Workbook

Sheet TENDERER INPUT DATA
C1: TENDERER COMPANY NAME:
B2: =DATA!C1004 -> R.081-010-2023/1F
B3: TENDERER INPUT DATA
B4: NOTE: ONLY INITIAL KEY PERSONS HOURS WILL BE CAPTURED AS HOURS FOR ALTERNATE KEY PERSONS WILL INHERIT THE HOURS SHOULD THEY NEED TO REPLACE THE ORIGINAL KEY PERSON DUE TO OVER-COMMITMENT.
B6: SERVICE PROVIDER TO COMPLETE ALL CELLS HIGHLIGHTED IN YELLOW
B8: Description
B10: SUMMARY OF KEY PERSONS
B11: ALL CATEGORIES | C11: INSERT KEY PERSONS NAMES BELOW | D11: Designation
B12: =IF(DATA!A1051="","",DATA!A1051) -> PL | D12: =IF(B12="","",DATA!B1051) -> Project Leader
B13: =IF(DATA!A1052="","",DATA!A1052) -> DS1 | D13: =IF(B13="","",DATA!B1052) -> Design Specialist 1 - Pavement and Materials
B14: =IF(DATA!A1053="","",DATA!A1053) ->  | D14: =IF(B14="","",DATA!B1053) -> 
B15: =IF(DATA!A1054="","",DATA!A1054) ->  | D15: =IF(B15="","",DATA!B1054) -> 
B16: =IF(DATA!A1055="","",DATA!A1055) ->  | D16: =IF(B16="","",DATA!B1055) -> 
B17: =IF(DATA!A1056="","",DATA!A1056) ->  | D17: =IF(B17="","",DATA!B1056) -> 
B18: =IF(DATA!A1057="","",DATA!A1057) ->  | D18: =IF(B18="","",DATA!B1057) -> 
B19: =IF(DATA!A1058="","",DATA!A1058) ->  | D19: =IF(B19="","",DATA!B1058) -> 
B20: =IF(DATA!A1059="","",DATA!A1059) ->  | D20: =IF(B20="","",DATA!B1059) -> 
B21: =IF(DATA!A1060="","",DATA!A1060) ->  | D21: =IF(B21="","",DATA!B1060) -> 
B32: OTHER | C32: Various non-key personnel
B34: NOTE: | C34: INCLUDE ALL NON-LISTED KEY PERSONS HOURS UNDER OTHER

Sheet Non Fee Hours
B1: =DATA!C1004 -> R.081-010-2023/1F | F1: NON FEE BASED HOURS
C2: ='All Hours'!D1 -> PLEASE INSERT TENDERER NAME ON INPUT DATA SHEET | E2: ONLY INSERT KEY PERSONS HOURS, NOT ALTERNATES.
B4: Description | C4: =IF('Pricing Schedule'!G13="n","NOT REQUIRED FOR THIS TENDER","") ->  | D4: Unit | E4: Quantity | F4: Rate | H4: Amount (R)
B5: % fee items; all appropriate stages
B6: 32.01 | C6: INITIAL ASSESSMENT | D6: LUMP SUM | E6: =IF('Pricing Schedule'!$G$13="n",0,ROUND((E7*(F7/F73)+E29*(F29/F73)+E51*(F51/F73)+E73),2)) -> 0 | F6: ="Norm. Hours" -> Norm. Hours | H6: =IF('Pricing Schedule'!G13="n",0,SUM(H7:H94)) -> 0
B7: (1) Category A | D7: hour | E7: =SUM(E8:E28) -> 0 | F7: =DATA!$B$7 -> 3534 | H7: =E7*F7 -> 0
B8: =IF(DATA!A1051="","",DATA!A1051) -> PL | C8: =IF('TENDERER INPUT DATA'!C12="","",'TENDERER INPUT DATA'!C12) ->  | E8: 0 | F8: =IF(B8="","",$F$7) -> 3534 | G8: =IF(B8="","",(F8*E8)) -> 0
B9: =IF(DATA!A1052="","",DATA!A1052) -> DS1 | C9: =IF('TENDERER INPUT DATA'!C13="","",'TENDERER INPUT DATA'!C13) ->  | E9: 0 | F9: =IF(B9="","",$F$7) -> 3534 | G9: =IF(B9="","",(F9*E9)) -> 0
B10: =IF(DATA!A1053="","",DATA!A1053) ->  | C10: =IF('TENDERER INPUT DATA'!C14="","",'TENDERER INPUT DATA'!C14) ->  | E10: 0
B11: =IF(DATA!A1054="","",DATA!A1054) ->  | C11: =IF('TENDERER INPUT DATA'!C15="","",'TENDERER INPUT DATA'!C15) ->  | E11: 0
B12: =IF(DATA!A1055="","",DATA!A1055) ->  | C12: =IF('TENDERER INPUT DATA'!C16="","",'TENDERER INPUT DATA'!C16) ->  | E12: 0
B13: =IF(DATA!A1056="","",DATA!A1056) ->  | C13: =IF('TENDERER INPUT DATA'!C17="","",'TENDERER INPUT DATA'!C17) ->  | E13: 0
B14: =IF(DATA!A1057="","",DATA!A1057) ->  | C14: =IF('TENDERER INPUT DATA'!C18="","",'TENDERER INPUT DATA'!C18) ->  | E14: 0
B15: =IF(DATA!A1058="","",DATA!A1058) ->  | C15: =IF('TENDERER INPUT DATA'!C19="","",'TENDERER INPUT DATA'!C19) ->  | E15: 0
B16: =IF(DATA!A1059="","",DATA!A1059) ->  | C16: =IF('TENDERER INPUT DATA'!C20="","",'TENDERER INPUT DATA'!C20) ->  | E16: 0
B17: =IF(DATA!A1060="","",DATA!A1060) ->  | C17: =IF('TENDERER INPUT DATA'!C21="","",'TENDERER INPUT DATA'!C21) ->  | E17: 0
B28: ='All Hours'!B30 -> OTHER | C28: ='All Hours'!C30 -> Various non-key personnel | E28: 0 | F28: 3534 | G28: 0
B29: (2) Category B | D29: hour | E29: =SUM(E30:E50) -> 0 | F29: =DATA!$B$8 -> 2796 | H29: =E29*F29 -> 0
B30: =B8 -> PL | E30: 0 | F30: =IF(B30="","",$F$29) -> 2796 | G30: =IF(B30="","",(F30*E30)) -> 0
B31: DS1 | E31: 0 | F31: =IF(B31="","",$F$29) -> 2796 | G31: =IF(B31="","",(F31*E31)) -> 0
E32: 0
B33: =B11 ->  | E33: 0 | G33: =IF(B33="","",(F33*E33)) -> 
B34: =B12 ->  | E34: 0
B35: =B13 ->  | E35: 0
B36: =B14 ->  | E36: 0
B37: =B15 ->  | E37: 0
B38: =B16 ->  | E38: 0
B39: =B17 ->  | E39: 0
B50: =B28 -> OTHER | C50: Various non-key personnel | E50: 0 | F50: 2796 | G50: 0
B51: (3) Category C | D51: hour | E51: =SUM(E52:E72) -> 0 | F51: =DATA!$B$9 -> 2403 | H51: =E51*F51 -> 0
B52: =B8 -> PL | C52: =C8 ->  | E52: 0 | F52: =IF(B52="","",$F$51) -> 2403 | G52: =IF(B52="","",(F52*E52)) -> 0
B53: =B9 -> DS1 | E53: 0 | F53: =IF(B53="","",$F$51) -> 2403 | G53: =IF(B53="","",(F53*E53)) -> 0
B54: =B10 ->  | E54: 0
B55: =B11 ->  | E55: 0
B56: =B12 ->  | E56: 0
B57: =B13 ->  | E57: 0
B58: =B14 ->  | E58: 0
B59: =B15 ->  | E59: 0
B60: =B16 ->  | E60: 0
B61: =B17 ->  | E61: 0
B72: =B28 -> OTHER | C72: =C28 -> Various non-key personnel | E72: 0 | F72: 2403 | G72: =IF(B72="","",(F72*E72)) -> 0
B73: (4) Category D | D73: hour | E73: =SUM(E74:E94) -> 0 | F73: =DATA!$B$10 -> 1167 | H73: =E73*F73 -> 0
B74: =B8 -> PL | C74: =C8 ->  | E74: 0 | F74: =IF(B74="","",$F$73) -> 1167 | G74: =IF(B74="","",(F74*E74)) -> 0
B75: =B9 -> DS1 | C75: =C9 ->  | E75: 0 | F75: =IF(B75="","",$F$73) -> 1167 | G75: =IF(B75="","",(F75*E75)) -> 0
B76: =B10 ->  | E76: 0 | F76: =IF(B76="","",$F$73) -> 
B77: =B11 ->  | E77: 0 | G77: =IF(B77="","",(F77*E77)) -> 
B78: =B12 ->  | E78: 0 | F78: =IF(B78="","",$F$73) -> 
B79: =B13 ->  | E79: 0
B80: =B14 ->  | E80: 0
B81: =B15 ->  | E81: 0
B82: =B16 ->  | E82: 0
B83: =B17 ->  | E83: 0
B94: =B28 -> OTHER | C94: =C28 -> Various non-key personnel | E94: 0 | F94: 1167 | G94: 0
B96: NOTE: | C96: INCLUDE ALL NON-LISTED KEY PERSONS HOURS UNDER OTHER
B104: Description | C104: =IF('Pricing Schedule'!G16="n","NOT REQUIRED","") ->  | D104: Unit | E104: Quantity | F104: Rate | H104: Amount (R)
B105: % fee items; all appropriate stages
B106: 32.02 | C106: VISUAL SURVEY | D106: LUMP SUM | E106: =IF('Pricing Schedule'!$G$16="n",0,ROUND((E107*(F107/F173)+E129*(F129/F173)+E151*(F151/F173)+E173),2)) -> 0 | F106: ="Norm. Hours" -> Norm. Hours | H106: =IF('Pricing Schedule'!G16="n",0,SUM(H107:H194)) -> 0
B107: (1) Category A | D107: hour | E107: =SUM(E108:E128) -> 0 | F107: =DATA!$B$7 -> 3534 | H107: =E107*F107 -> 0
B108: =$B$8 -> PL | C108: =$C$8 ->  | E108: 0 | F108: =IF(B108="","",$F$107) -> 3534 | G108: =IF(B108="","",(F108*E108)) -> 0
B109: =$B$9 -> DS1 | C109: =$C$9 ->  | E109: 0 | F109: =IF(B109="","",$F$107) -> 3534 | G109: =IF(B109="","",(F109*E109)) -> 0
B110: =$B$10 ->  | C110: =$C$10 ->  | E110: 0 | F110: =IF(B110="","",$F$107) -> 
B111: =$B$11 ->  | C111: =$C$11 ->  | E111: 0 | F111: =IF(B111="","",$F$107) ->  | G111: =IF(B111="","",(F111*E111)) -> 
B112: =$B$12 ->  | C112: =$C$12 ->  | E112: 0
B113: =$B$13 ->  | C113: =$C$13 ->  | E113: 0
B114: =$B$14 ->  | C114: =$C$14 ->  | E114: 0
B115: =$B$15 ->  | C115: =$C$15 ->  | E115: 0
B116: =$B$16 ->  | C116: =$C$16 ->  | E116: 0
B117: =$B$17 ->  | C117: =$C$17 ->  | E117: 0
B128: =$B$28 -> OTHER | C128: =$C$28 -> Various non-key personnel | E128: 0 | F128: 3534 | G128: 0
B129: (2) Category B | D129: hour | E129: =SUM(E130:E150) -> 0 | F129: =DATA!$B$8 -> 2796 | H129: =E129*F129 -> 0
B130: =B108 -> PL | C130: =C108 ->  | E130: 0 | F130: =IF(B130="","",$F$129) -> 2796 | G130: =IF(B130="","",(F130*E130)) -> 0
B131: =B109 -> DS1 | E131: 0 | F131: =IF(B131="","",$F$129) -> 2796 | G131: =IF(B131="","",(F131*E131)) -> 0
B132: =B110 ->  | E132: 0 | F132: =IF(B132="","",$F$129) -> 
B133: =B111 ->  | E133: 0 | G133: =IF(B133="","",(F133*E133)) -> 
B134: =B112 ->  | E134: 0
B135: =B113 ->  | E135: 0
B136: =B114 ->  | E136: 0
B137: =B115 ->  | E137: 0
B138: =B116 ->  | E138: 0
B139: =B117 ->  | E139: 0
B150: =B128 -> OTHER | C150: Various non-key personnel | E150: 0 | F150: =IF(B150="","",$F$129) -> 2796 | G150: 0
B151: (3) Category C | D151: hour | E151: =SUM(E152:E172) -> 0 | F151: =DATA!$B$9 -> 2403 | H151: =E151*F151 -> 0
B152: =B108 -> PL | C152: =C108 ->  | E152: 0 | F152: =IF(B152="","",$F$151) -> 2403 | G152: =IF(B152="","",(F152*E152)) -> 0
B153: =B109 -> DS1 | E153: 0 | F153: =IF(B153="","",$F$151) -> 2403 | G153: =IF(B153="","",(F153*E153)) -> 0
B154: =B110 ->  | E154: 0 | F154: =IF(B154="","",$F$151) -> 
B155: =B111 ->  | E155: 0 | G155: =IF(B155="","",(F155*E155)) -> 
B156: =B112 ->  | E156: 0
B157: =B113 ->  | E157: 0
B158: =B114 ->  | E158: 0
B159: =B115 ->  | E159: 0
B160: =B116 ->  | E160: 0
B161: =B117 ->  | E161: 0
B172: =B128 -> OTHER | C172: =C128 -> Various non-key personnel | E172: 0 | F172: =IF(B172="","",$F$151) -> 2403 | G172: 0
B173: (4) Category D | D173: hour | E173: =SUM(E174:E194) -> 0 | F173: =DATA!$B$10 -> 1167 | H173: =E173*F173 -> 0
B174: =B108 -> PL | C174: =C108 ->  | E174: 0 | F174: =IF(B174="","",$F$173) -> 1167 | G174: =IF(B174="","",(F174*E174)) -> 0
B175: =B109 -> DS1 | E175: 0 | F175: =IF(B175="","",$F$173) -> 1167 | G175: =IF(B175="","",(F175*E175)) -> 0
B176: =B110 ->  | E176: 0 | F176: =IF(B176="","",$F$173) -> 
B177: =B111 ->  | E177: 0 | G177: =IF(B177="","",(F177*E177)) -> 
B178: =B112 ->  | E178: 0
B179: =B113 ->  | E179: 0
B180: =B114 ->  | E180: 0
B181: =B115 ->  | E181: 0
B182: =B116 ->  | E182: 0
B183: =B117 ->  | E183: 0
B194: =B128 -> OTHER | C194: Various non-key personnel | E194: 0 | F194: =IF(B194="","",$F$173) -> 1167 | G194: 0
B196: NOTE: | C196: INCLUDE ALL NON-LISTED KEY PERSONS HOURS UNDER OTHER
B204: Description | C204: =IF('Pricing Schedule'!G19="n","NOT REQUIRED","") ->  | D204: Unit | E204: Quantity | F204: Rate | H204: Amount (R)
B205: % fee items; all appropriate stages
B206: 32.03 | C206: PROJECT ASSESSMENT REPORT | D206: LUMP SUM | E206: =IF('Pricing Schedule'!$G$19="n",0,ROUND((E207*(F207/F273)+E229*(F229/F273)+E251*(F251/F273)+E273),2)) -> 0 | F206: ="Norm. Hours" -> Norm. Hours | H206: =IF('Pricing Schedule'!G19="n",0,SUM(H207:H294)) -> 0
B207: (1) Category A | D207: hour | E207: =SUM(E208:E228) -> 0 | F207: =DATA!$B$7 -> 3534 | H207: =E207*F207 -> 0
B208: =$B$8 -> PL | C208: =$C$8 ->  | E208: 0 | F208: =IF(B208="","",$F$207) -> 3534 | G208: =IF(B208="","",(F208*E208)) -> 0
B209: =$B$9 -> DS1 | C209: =$C$9 ->  | E209: 0 | F209: =IF(B209="","",$F$207) -> 3534 | G209: =IF(B209="","",(F209*E209)) -> 0
B210: =$B$10 ->  | C210: =$C$10 ->  | E210: 0 | F210: =IF(B210="","",$F$207) -> 
B211: =$B$11 ->  | C211: =$C$11 ->  | E211: 0 | G211: =IF(B211="","",(F211*E211)) -> 
B212: =$B$12 ->  | C212: =$C$12 ->  | E212: 0
B213: =$B$13 ->  | C213: =$C$13 ->  | E213: 0
B214: =$B$14 ->  | C214: =$C$14 ->  | E214: 0
B215: =$B$15 ->  | C215: =$C$15 ->  | E215: 0
B216: =$B$16 ->  | C216: =$C$16 ->  | E216: 0
B217: =$B$17 ->  | C217: =$C$17 ->  | E217: 0
B228: =$B$28 -> OTHER | C228: =$C$28 -> Various non-key personnel | E228: 0 | F228: =IF(B228="","",$F$207) -> 3534 | G228: 0
B229: (2) Category B | D229: hour | E229: =SUM(E230:E250) -> 0 | F229: =DATA!$B$8 -> 2796 | H229: =E229*F229 -> 0
B230: =B208 -> PL | C230: =C208 ->  | E230: 0 | F230: =IF(B230="","",$F$229) -> 2796 | G230: =IF(B230="","",(F230*E230)) -> 0
B231: =B209 -> DS1 | E231: 0 | F231: =IF(B231="","",$F$229) -> 2796 | G231: =IF(B231="","",(F231*E231)) -> 0
B232: =B210 ->  | E232: 0 | F232: =IF(B232="","",$F$229) -> 
B233: =B211 ->  | E233: 0 | G233: =IF(B233="","",(F233*E233)) -> 
B234: =B212 ->  | E234: 0
B235: =B213 ->  | E235: 0
B236: =B214 ->  | E236: 0
B237: =B215 ->  | E237: 0
B238: =B216 ->  | E238: 0
B239: =B217 ->  | E239: 0
B250: =B228 -> OTHER | C250: Various non-key personnel | E250: 0 | F250: =IF(B250="","",$F$229) -> 2796 | G250: 0
B251: (3) Category C | D251: hour | E251: =SUM(E252:E272) -> 0 | F251: =DATA!$B$9 -> 2403 | H251: =E251*F251 -> 0
B252: =B208 -> PL | C252: =C208 ->  | E252: 0 | F252: =IF(B252="","",$F$251) -> 2403 | G252: =IF(B252="","",(F252*E252)) -> 0
B253: =B209 -> DS1 | E253: 0 | F253: =IF(B253="","",$F$251) -> 2403 | G253: =IF(B253="","",(F253*E253)) -> 0
B254: =B210 ->  | E254: 0 | F254: =IF(B254="","",$F$251) -> 
B255: =B211 ->  | E255: 0 | G255: =IF(B255="","",(F255*E255)) -> 
B256: =B212 ->  | E256: 0
B257: =B213 ->  | E257: 0
B258: =B214 ->  | E258: 0
B259: =B215 ->  | E259: 0
B260: =B216 ->  | E260: 0
B261: =B217 ->  | E261: 0
B272: =B228 -> OTHER | C272: =C228 -> Various non-key personnel | E272: 0 | F272: =IF(B272="","",$F$251) -> 2403 | G272: 0
B273: (4) Category D | D273: hour | E273: =SUM(E274:E294) -> 0 | F273: =DATA!$B$10 -> 1167 | H273: =E273*F273 -> 0
B274: =B208 -> PL | C274: =C208 ->  | E274: 0 | F274: =IF(B274="","",$F$273) -> 1167 | G274: =IF(B274="","",(F274*E274)) -> 0
B275: =B209 -> DS1 | E275: 0 | F275: =IF(B275="","",$F$273) -> 1167 | G275: =IF(B275="","",(F275*E275)) -> 0
B276: =B210 ->  | E276: 0 | F276: =IF(B276="","",$F$273) -> 
B277: =B211 ->  | E277: 0 | G277: =IF(B277="","",(F277*E277)) -> 
B278: =B212 ->  | E278: 0
B279: =B213 ->  | E279: 0
B280: =B214 ->  | E280: 0
B281: =B215 ->  | E281: 0
B282: =B216 ->  | E282: 0
B283: =B217 ->  | E283: 0
B294: =B228 -> OTHER | C294: Various non-key personnel | E294: 0 | F294: =IF(B294="","",$F$273) -> 1167 | G294: 0
B296: NOTE: | C296: INCLUDE ALL NON-LISTED KEY PERSONS HOURS UNDER OTHER
B304: Description | C304: =IF('Pricing Schedule'!G240="n","NOT REQUIRED","") ->  | D304: Unit | E304: Quantity | F304: Rate | H304: Amount (R)
B305: % fee items; all appropriate stages
B306: 35.01 (a) | C306: PREPARATION OF THE TENDER DOCUMENT | D306: LUMP SUM | E306: =IF('Pricing Schedule'!$G$240="n",0,ROUND((E307*(F307/F373)+E329*(F329/F373)+E351*(F351/F373)+E373),2)) -> 0 | F306: ="Norm. Hours" -> Norm. Hours | H306: =IF('Pricing Schedule'!G240="n",0,SUM(H307:H394)) -> 0
B307: (1) Category A | D307: hour | E307: =SUM(E308:E328) -> 0 | F307: =DATA!$B$7 -> 3534 | H307: =E307*F307 -> 0
B308: =$B$8 -> PL | C308: =$C$8 ->  | E308: 0 | F308: =IF(B308="","",$F$307) -> 3534 | G308: =IF(B308="","",(F308*E308)) -> 0
B309: =$B$9 -> DS1 | C309: =$C$9 ->  | E309: 0 | F309: =IF(B309="","",$F$307) -> 3534 | G309: =IF(B309="","",(F309*E309)) -> 0
B310: =$B$10 ->  | C310: =$C$10 ->  | E310: 0 | F310: =IF(B310="","",$F$307) -> 
B311: =$B$11 ->  | C311: =$C$11 ->  | E311: 0 | G311: =IF(B311="","",(F311*E311)) -> 
B312: =$B$12 ->  | C312: =$C$12 ->  | E312: 0
B313: =$B$13 ->  | C313: =$C$13 ->  | E313: 0
B314: =$B$14 ->  | C314: =$C$14 ->  | E314: 0
B315: =$B$15 ->  | C315: =$C$15 ->  | E315: 0
B316: =$B$16 ->  | C316: =$C$16 ->  | E316: 0
B317: =$B$17 ->  | C317: =$C$17 ->  | E317: 0
B328: =$B$28 -> OTHER | C328: =$C$28 -> Various non-key personnel | E328: 0 | F328: =IF(B328="","",$F$307) -> 3534 | G328: 0
B329: (2) Category B | D329: hour | E329: =SUM(E330:E350) -> 0 | F329: =DATA!$B$8 -> 2796 | H329: =E329*F329 -> 0
B330: =B308 -> PL | C330: =C308 ->  | E330: 0 | F330: =IF(B330="","",$F$329) -> 2796 | G330: =IF(B330="","",(F330*E330)) -> 0
B331: =B309 -> DS1 | E331: 0 | F331: =IF(B331="","",$F$329) -> 2796 | G331: =IF(B331="","",(F331*E331)) -> 0
B332: =B310 ->  | E332: 0 | F332: =IF(B332="","",$F$329) -> 
B333: =B311 ->  | E333: 0 | G333: =IF(B333="","",(F333*E333)) -> 
B334: =B312 ->  | E334: 0
B335: =B313 ->  | E335: 0
B336: =B314 ->  | E336: 0
B337: =B315 ->  | E337: 0
B338: =B316 ->  | E338: 0
B339: =B317 ->  | E339: 0
B350: =B328 -> OTHER | C350: Various non-key personnel | E350: 0 | F350: =IF(B350="","",$F$329) -> 2796 | G350: 0
B351: (3) Category C | D351: hour | E351: =SUM(E352:E372) -> 0 | F351: =DATA!$B$9 -> 2403 | H351: =E351*F351 -> 0
B352: =B308 -> PL | C352: =C308 ->  | E352: 0 | F352: =IF(B352="","",$F$351) -> 2403 | G352: =IF(B352="","",(F352*E352)) -> 0
B353: =B309 -> DS1 | E353: 0 | F353: =IF(B353="","",$F$351) -> 2403 | G353: =IF(B353="","",(F353*E353)) -> 0
B354: =B310 ->  | E354: 0 | F354: =IF(B354="","",$F$351) -> 
B355: =B311 ->  | E355: 0 | G355: =IF(B355="","",(F355*E355)) -> 
B356: =B312 ->  | E356: 0
B357: =B313 ->  | E357: 0
B358: =B314 ->  | E358: 0
B359: =B315 ->  | E359: 0
B360: =B316 ->  | E360: 0
B361: =B317 ->  | E361: 0
B372: =B328 -> OTHER | C372: =C328 -> Various non-key personnel | E372: 0 | F372: =IF(B372="","",$F$351) -> 2403 | G372: 0
B373: (4) Category D | D373: hour | E373: =SUM(E374:E394) -> 0 | F373: =DATA!$B$10 -> 1167 | H373: =E373*F373 -> 0
B374: =B308 -> PL | C374: =C308 ->  | E374: 0 | F374: =IF(B374="","",$F$373) -> 1167 | G374: =IF(B374="","",(F374*E374)) -> 0
B375: =B309 -> DS1 | E375: 0 | F375: =IF(B375="","",$F$373) -> 1167 | G375: =IF(B375="","",(F375*E375)) -> 0
... 62 more rows

Sheet Hours Roadworks
B1: =DATA!C1004 -> R.081-010-2023/1F | F1: =DATA!B1010 -> Road works
C2: ='All Hours'!D1 -> PLEASE INSERT TENDERER NAME ON INPUT DATA SHEET | E2: =IF(DATA!$D$1010="None","NOT USED IN THIS TENDER","") -> 
B3: =IF(DATA!D1010="None",DATA!B1010 & " NOT SPECIFIED FOR THIS PROJECT", "") ->  | E3: ='Non Fee Hours'!E2 -> ONLY INSERT KEY PERSONS HOURS, NOT ALTERNATES.
B4: Description | D4: Unit | E4: Quantity | F4: Rate | H4: Amount (R)
B5: % fee items; all appropriate stages
B6: =DATA!B1010 -> Road works | D6: LUMP SUM | E6: =IF('SUMMARY TENDERED FEE'!C7="none",0,ROUND((E7*(F7/F73)+E29*(F29/F73)+E51*(F51/F73)+E73),2)) -> 0 | F6: ="Norm. Hours" -> Norm. Hours | G6: =IF('SUMMARY TENDERED FEE'!C7="none",0,1) -> 1 | H6: =IF('SUMMARY TENDERED FEE'!C7="none",0,SUM(H7:H94)) -> 0
B7: (1) Category A | D7: hour | E7: =SUM(E8:E28) -> 0 | F7: =DATA!$B$7 -> 3534 | H7: =E7*F7 -> 0
B8: =IF(DATA!A1051="","",DATA!A1051) -> PL | C8: =IF('TENDERER INPUT DATA'!C12="","",'TENDERER INPUT DATA'!C12) ->  | E8: 0 | F8: =IF(B8="","",$F$7) -> 3534 | G8: =IF(B8="","",ROUND((F8*E8),2)) -> 0
B9: =IF(DATA!A1052="","",DATA!A1052) -> DS1 | C9: =IF('TENDERER INPUT DATA'!C13="","",'TENDERER INPUT DATA'!C13) ->  | E9: 0 | F9: =IF(B9="","",$F$7) -> 3534 | G9: =IF(B9="","",ROUND((F9*E9),2)) -> 0
B10: =IF(DATA!A1053="","",DATA!A1053) ->  | C10: =IF('TENDERER INPUT DATA'!C14="","",'TENDERER INPUT DATA'!C14) ->  | E10: 0 | F10: =IF(B10="","",$F$7) -> 
B11: =IF(DATA!A1054="","",DATA!A1054) ->  | C11: =IF('TENDERER INPUT DATA'!C15="","",'TENDERER INPUT DATA'!C15) ->  | E11: 0 | G11: =IF(B11="","",ROUND((F11*E11),2)) -> 
B12: =IF(DATA!A1055="","",DATA!A1055) ->  | C12: =IF('TENDERER INPUT DATA'!C16="","",'TENDERER INPUT DATA'!C16) ->  | E12: 0
B13: =IF(DATA!A1056="","",DATA!A1056) ->  | C13: =IF('TENDERER INPUT DATA'!C17="","",'TENDERER INPUT DATA'!C17) ->  | E13: 0
B14: =IF(DATA!A1057="","",DATA!A1057) ->  | C14: =IF('TENDERER INPUT DATA'!C18="","",'TENDERER INPUT DATA'!C18) ->  | E14: 0
B15: =IF(DATA!A1058="","",DATA!A1058) ->  | C15: =IF('TENDERER INPUT DATA'!C19="","",'TENDERER INPUT DATA'!C19) ->  | E15: 0
B16: =IF(DATA!A1059="","",DATA!A1059) ->  | C16: =IF('TENDERER INPUT DATA'!C20="","",'TENDERER INPUT DATA'!C20) ->  | E16: 0
B17: =IF(DATA!A1060="","",DATA!A1060) ->  | C17: =IF('TENDERER INPUT DATA'!C21="","",'TENDERER INPUT DATA'!C21) ->  | E17: 0
B28: ='All Hours'!B30 -> OTHER | C28: ='All Hours'!C30 -> Various non-key personnel | E28: 0 | F28: =IF(B28="","",$F$7) -> 3534 | G28: =IF(B28="","",(F28*E28)) -> 0
B29: (2) Category B | D29: hour | E29: =SUM(E30:E50) -> 0 | F29: =DATA!$B$8 -> 2796 | H29: =E29*F29 -> 0
B30: =B8 -> PL | C30: =C8 ->  | E30: 0 | F30: =IF(B30="","",$F$29) -> 2796 | G30: =IF(B30="","",(F30*E30)) -> 0
B31: =B9 -> DS1 | E31: 0 | F31: =IF(B31="","",$F$29) -> 2796 | G31: =IF(B31="","",(F31*E31)) -> 0
B32: =B10 ->  | E32: 0 | F32: =IF(B32="","",$F$29) -> 
B33: =B11 ->  | E33: 0 | G33: =IF(B33="","",(F33*E33)) -> 
B34: =B12 ->  | E34: 0
B35: =B13 ->  | E35: 0
B36: =B14 ->  | E36: 0
B37: =B15 ->  | E37: 0
B38: =B16 ->  | E38: 0
B39: =B17 ->  | E39: 0
B50: =B28 -> OTHER | C50: Various non-key personnel | E50: 0 | F50: =IF(B50="","",$F$29) -> 2796 | G50: 0
B51: (3) Category C | D51: hour | E51: =SUM(E52:E72) -> 0 | F51: =DATA!$B$9 -> 2403 | H51: =E51*F51 -> 0
B52: =B8 -> PL | C52: =C8 ->  | E52: 0 | F52: =IF(B52="","",$F$51) -> 2403 | G52: =IF(B52="","",(F52*E52)) -> 0
B53: =B9 -> DS1 | E53: 0 | F53: =IF(B53="","",$F$51) -> 2403 | G53: =IF(B53="","",(F53*E53)) -> 0
B54: =B10 ->  | E54: 0 | F54: =IF(B54="","",$F$51) -> 
B55: =B11 ->  | E55: 0 | G55: =IF(B55="","",(F55*E55)) -> 
B56: =B12 ->  | E56: 0
B57: =B13 ->  | E57: 0
B58: =B14 ->  | E58: 0
B59: =B15 ->  | E59: 0
B60: =B16 ->  | E60: 0
B61: =B17 ->  | E61: 0
B72: =B28 -> OTHER | C72: =C28 -> Various non-key personnel | E72: 0 | F72: =IF(B72="","",$F$51) -> 2403 | G72: 0
B73: (4) Category D | D73: hour | E73: =SUM(E74:E94) -> 0 | F73: =DATA!$B$10 -> 1167 | H73: =E73*F73 -> 0
B74: =B8 -> PL | E74: 0 | F74: =IF(B74="","",$F$73) -> 1167 | G74: =IF(B74="","",(F74*E74)) -> 0
B75: DS1 | E75: 0 | F75: =IF(B75="","",$F$73) -> 1167 | G75: =IF(B75="","",(F75*E75)) -> 0
E76: 0 | F76: =IF(B76="","",$F$73) -> 
E77: 0 | G77: =IF(B77="","",(F77*E77)) -> 
B78: =B12 ->  | E78: 0
B79: =B13 ->  | E79: 0
B80: =B14 ->  | E80: 0
B81: =B15 ->  | E81: 0
B82: =B16 ->  | E82: 0
B83: =B17 ->  | E83: 0
B94: =B28 -> OTHER | C94: Various non-key personnel | E94: 0 | F94: =IF(B94="","",$F$73) -> 1167 | G94: 0
B96: NOTE: | C96: INCLUDE ALL NON-LISTED KEY PERSONS HOURS UNDER OTHER

Sheet Hours Structures
B1: =DATA!C1004 -> R.081-010-2023/1F | F1: =DATA!B1011 -> Structures
C2: ='All Hours'!D1 -> PLEASE INSERT TENDERER NAME ON INPUT DATA SHEET | E2: =IF(DATA!$D$1011="None","NOT USED IN THIS TENDER","") -> NOT USED IN THIS TENDER
B3: =IF(DATA!D1011="None",DATA!B1011 & " NOT SPECIFIED FOR THIS PROJECT", "") -> Structures NOT SPECIFIED FOR THIS PROJECT | E3: ='Non Fee Hours'!E2 -> ONLY INSERT KEY PERSONS HOURS, NOT ALTERNATES.
B4: Description | D4: Unit | E4: Quantity | F4: Rate | H4: Amount (R)
B5: % fee items; all appropriate stages
B6: =DATA!B1011 -> Structures | D6: LUMP SUM | E6: =IF('SUMMARY TENDERED FEE'!C8="none",0,ROUND((E7*(F7/F73)+E29*(F29/F73)+E51*(F51/F73)+E73),2)) -> 0 | F6: ="Norm. Hours" -> Norm. Hours | G6: =IF('SUMMARY TENDERED FEE'!C8="none",0,1) -> 0 | H6: =IF('SUMMARY TENDERED FEE'!C8="none",0,SUM(H7:H94)) -> 0
B7: (1) Category A | D7: hour | E7: =SUM(E8:E28) -> 0 | F7: =DATA!$B$7 -> 3534 | H7: =E7*F7 -> 0
B8: =IF(DATA!A1051="","",DATA!A1051) -> PL | C8: =IF('TENDERER INPUT DATA'!C12="","",'TENDERER INPUT DATA'!C12) ->  | E8: 0 | F8: =IF(B8="","",$F$7) -> 3534 | G8: =IF(B8="","",(F8*E8)) -> 0
B9: =IF(DATA!A1052="","",DATA!A1052) -> DS1 | C9: =IF('TENDERER INPUT DATA'!C13="","",'TENDERER INPUT DATA'!C13) ->  | E9: 0 | F9: =IF(B9="","",$F$7) -> 3534 | G9: =IF(B9="","",(F9*E9)) -> 0
B10: =IF(DATA!A1053="","",DATA!A1053) ->  | C10: =IF('TENDERER INPUT DATA'!C14="","",'TENDERER INPUT DATA'!C14) ->  | E10: 0 | F10: =IF(B10="","",$F$7) -> 
B11: =IF(DATA!A1054="","",DATA!A1054) ->  | C11: =IF('TENDERER INPUT DATA'!C15="","",'TENDERER INPUT DATA'!C15) ->  | E11: 0 | G11: =IF(B11="","",(F11*E11)) -> 
B12: =IF(DATA!A1055="","",DATA!A1055) ->  | C12: =IF('TENDERER INPUT DATA'!C16="","",'TENDERER INPUT DATA'!C16) ->  | E12: 0
B13: =IF(DATA!A1056="","",DATA!A1056) ->  | C13: =IF('TENDERER INPUT DATA'!C17="","",'TENDERER INPUT DATA'!C17) ->  | E13: 0
B14: =IF(DATA!A1057="","",DATA!A1057) ->  | C14: =IF('TENDERER INPUT DATA'!C18="","",'TENDERER INPUT DATA'!C18) ->  | E14: 0
B15: =IF(DATA!A1058="","",DATA!A1058) ->  | C15: =IF('TENDERER INPUT DATA'!C19="","",'TENDERER INPUT DATA'!C19) ->  | E15: 0
B16: =IF(DATA!A1059="","",DATA!A1059) ->  | C16: =IF('TENDERER INPUT DATA'!C20="","",'TENDERER INPUT DATA'!C20) ->  | E16: 0
B17: =IF(DATA!A1060="","",DATA!A1060) ->  | C17: =IF('TENDERER INPUT DATA'!C21="","",'TENDERER INPUT DATA'!C21) ->  | E17: 0
B28: ='All Hours'!B30 -> OTHER | C28: ='All Hours'!C30 -> Various non-key personnel | E28: 0 | F28: =IF(B28="","",$F$7) -> 3534 | G28: 0
B29: (2) Category B | D29: hour | E29: =SUM(E30:E50) -> 0 | F29: =DATA!$B$8 -> 2796 | H29: =E29*F29 -> 0
B30: =B8 -> PL | C30: =C8 ->  | E30: 0 | F30: =IF(B30="","",$F$29) -> 2796 | G30: =IF(B30="","",(F30*E30)) -> 0
B31: =B9 -> DS1 | C31: =C9 ->  | E31: 0 | F31: =IF(B31="","",$F$29) -> 2796 | G31: =IF(B31="","",(F31*E31)) -> 0
B32: =B10 ->  | E32: 0 | F32: =IF(B32="","",$F$29) -> 
B33: =B11 ->  | E33: 0 | G33: =IF(B33="","",(F33*E33)) -> 
B34: =B12 ->  | E34: 0
B35: =B13 ->  | E35: 0
B36: =B14 ->  | E36: 0
B37: =B15 ->  | E37: 0
B38: =B16 ->  | E38: 0
B39: =B17 ->  | E39: 0
B50: =B28 -> OTHER | C50: Various non-key personnel | E50: 0 | F50: =IF(B50="","",$F$29) -> 2796 | G50: 0
B51: (3) Category C | D51: hour | E51: =SUM(E52:E72) -> 0 | F51: =DATA!$B$9 -> 2403 | H51: =E51*F51 -> 0
B52: =B8 -> PL | C52: =C8 ->  | E52: 0 | F52: =IF(B52="","",$F$51) -> 2403 | G52: =IF(B52="","",(F52*E52)) -> 0
B53: =B9 -> DS1 | C53: =C9 ->  | E53: 0 | F53: =IF(B53="","",$F$51) -> 2403 | G53: =IF(B53="","",(F53*E53)) -> 0
B54: =B10 ->  | E54: 0 | F54: =IF(B54="","",$F$51) -> 
B55: =B11 ->  | E55: 0 | G55: =IF(B55="","",(F55*E55)) -> 
B56: =B12 ->  | E56: 0
B57: =B13 ->  | E57: 0
B58: =B14 ->  | E58: 0
B59: =B15 ->  | E59: 0
B60: =B16 ->  | E60: 0
B61: =B17 ->  | E61: 0
B72: =B28 -> OTHER | C72: =C28 -> Various non-key personnel | E72: 0 | F72: =IF(B72="","",$F$51) -> 2403 | G72: 0
B73: (4) Category D | D73: hour | E73: =SUM(E74:E94) -> 0 | F73: =DATA!$B$10 -> 1167 | H73: =E73*F73 -> 0
B74: =B8 -> PL | C74: =C8 ->  | E74: 0 | F74: =IF(B74="","",$F$73) -> 1167 | G74: =IF(B74="","",(F74*E74)) -> 0
B75: =B9 -> DS1 | C75: =C9 ->  | E75: 0 | F75: =IF(B75="","",$F$73) -> 1167 | G75: =IF(B75="","",(F75*E75)) -> 0
B76: =B10 ->  | E76: 0 | F76: =IF(B76="","",$F$73) -> 
B77: =B11 ->  | E77: 0 | G77: =IF(B77="","",(F77*E77)) -> 
B78: =B12 ->  | E78: 0
B79: =B13 ->  | E79: 0
B80: =B14 ->  | E80: 0
B81: =B15 ->  | E81: 0
B82: =B16 ->  | E82: 0
B83: =B17 ->  | E83: 0
B94: =B28 -> OTHER | C94: Various non-key personnel | E94: 0 | F94: =IF(B94="","",$F$73) -> 1167 | G94: 0
B96: NOTE: | C96: INCLUDE ALL NON-LISTED KEY PERSONS HOURS UNDER OTHER

Sheet Hours Electrical
B1: =DATA!C1004 -> R.081-010-2023/1F | F1: =DATA!B1012 -> Electrical
C2: ='All Hours'!D1 -> PLEASE INSERT TENDERER NAME ON INPUT DATA SHEET | E2: =IF(DATA!$D$1012="None","NOT USED IN THIS TENDER","") -> NOT USED IN THIS TENDER
B3: =IF(DATA!D1012="None",DATA!B1012 & " NOT SPECIFIED FOR THIS PROJECT", "") -> Electrical NOT SPECIFIED FOR THIS PROJECT | E3: ='Non Fee Hours'!E2 -> ONLY INSERT KEY PERSONS HOURS, NOT ALTERNATES.
B4: Description | D4: Unit | E4: Quantity | F4: Rate | H4: Amount (R)
B5: % fee items; all appropriate stages
B6: =DATA!B1012 -> Electrical | D6: LUMP SUM | E6: =IF('SUMMARY TENDERED FEE'!C9="none",0,ROUND((E7*(F7/F73)+E29*(F29/F73)+E51*(F51/F73)+E73),2)) -> 0 | F6: ="Norm. Hours" -> Norm. Hours | G6: =IF('SUMMARY TENDERED FEE'!C9="none",0,1) -> 0 | H6: =IF('SUMMARY TENDERED FEE'!C9="none",0,SUM(H7:H94)) -> 0
B7: (1) Category A | D7: hour | E7: =SUM(E8:E28) -> 0 | F7: =DATA!$B$7 -> 3534 | H7: =E7*F7 -> 0
B8: =IF(DATA!A1051="","",DATA!A1051) -> PL | C8: =IF('TENDERER INPUT DATA'!C12="","",'TENDERER INPUT DATA'!C12) ->  | E8: 0 | F8: =IF(B8="","",$F$7) -> 3534 | G8: =IF(B8="","",(F8*E8)) -> 0
B9: =IF(DATA!A1052="","",DATA!A1052) -> DS1 | C9: =IF('TENDERER INPUT DATA'!C13="","",'TENDERER INPUT DATA'!C13) ->  | E9: 0 | F9: =IF(B9="","",$F$7) -> 3534 | G9: =IF(B9="","",(F9*E9)) -> 0
B10: =IF(DATA!A1053="","",DATA!A1053) ->  | C10: =IF('TENDERER INPUT DATA'!C14="","",'TENDERER INPUT DATA'!C14) ->  | E10: 0 | F10: =IF(B10="","",$F$7) -> 
B11: =IF(DATA!A1054="","",DATA!A1054) ->  | C11: =IF('TENDERER INPUT DATA'!C15="","",'TENDERER INPUT DATA'!C15) ->  | E11: 0 | G11: =IF(B11="","",(F11*E11)) -> 
B12: =IF(DATA!A1055="","",DATA!A1055) ->  | C12: =IF('TENDERER INPUT DATA'!C16="","",'TENDERER INPUT DATA'!C16) ->  | E12: 0
B13: =IF(DATA!A1056="","",DATA!A1056) ->  | C13: =IF('TENDERER INPUT DATA'!C17="","",'TENDERER INPUT DATA'!C17) ->  | E13: 0
B14: =IF(DATA!A1057="","",DATA!A1057) ->  | C14: =IF('TENDERER INPUT DATA'!C18="","",'TENDERER INPUT DATA'!C18) ->  | E14: 0
B15: =IF(DATA!A1058="","",DATA!A1058) ->  | C15: =IF('TENDERER INPUT DATA'!C19="","",'TENDERER INPUT DATA'!C19) ->  | E15: 0
B16: =IF(DATA!A1059="","",DATA!A1059) ->  | C16: =IF('TENDERER INPUT DATA'!C20="","",'TENDERER INPUT DATA'!C20) ->  | E16: 0
B17: =IF(DATA!A1060="","",DATA!A1060) ->  | C17: =IF('TENDERER INPUT DATA'!C21="","",'TENDERER INPUT DATA'!C21) ->  | E17: 0
B28: ='All Hours'!B30 -> OTHER | C28: ='All Hours'!C30 -> Various non-key personnel | E28: 0 | F28: =IF(B28="","",$F$7) -> 3534 | G28: 0
B29: (2) Category B | D29: hour | E29: =SUM(E30:E50) -> 0 | F29: =DATA!$B$8 -> 2796 | H29: =E29*F29 -> 0
B30: =B8 -> PL | C30: =C8 ->  | E30: 0 | F30: =IF(B30="","",$F$29) -> 2796 | G30: =IF(B30="","",(F30*E30)) -> 0
B31: =B9 -> DS1 | C31: =C9 ->  | E31: 0 | F31: =IF(B31="","",$F$29) -> 2796 | G31: =IF(B31="","",(F31*E31)) -> 0
B32: =B10 ->  | E32: 0 | F32: =IF(B32="","",$F$29) -> 
B33: =B11 ->  | E33: 0 | G33: =IF(B33="","",(F33*E33)) -> 
B34: =B12 ->  | E34: 0
B35: =B13 ->  | E35: 0
B36: =B14 ->  | E36: 0
B37: =B15 ->  | E37: 0
B38: =B16 ->  | E38: 0
B39: =B17 ->  | E39: 0
B50: =B28 -> OTHER | C50: =C28 -> Various non-key personnel | E50: 0 | F50: =IF(B50="","",$F$29) -> 2796 | G50: 0
B51: (3) Category C | D51: hour | E51: =SUM(E52:E72) -> 0 | F51: =DATA!$B$9 -> 2403 | H51: =E51*F51 -> 0
B52: =B8 -> PL | C52: =C8 ->  | E52: 0 | F52: =IF(B52="","",$F$51) -> 2403 | G52: =IF(B52="","",(F52*E52)) -> 0
B53: =B9 -> DS1 | C53: =C9 ->  | E53: 0 | F53: =IF(B53="","",$F$51) -> 2403 | G53: =IF(B53="","",(F53*E53)) -> 0
B54: =B10 ->  | E54: 0 | F54: =IF(B54="","",$F$51) -> 
B55: =B11 ->  | E55: 0 | G55: =IF(B55="","",(F55*E55)) -> 
B56: =B12 ->  | E56: 0
B57: =B13 ->  | E57: 0
B58: =B14 ->  | E58: 0
B59: =B15 ->  | E59: 0
B60: =B16 ->  | E60: 0
B61: =B17 ->  | E61: 0
B72: =B28 -> OTHER | C72: =C28 -> Various non-key personnel | E72: 0 | F72: =IF(B72="","",$F$51) -> 2403 | G72: 0
B73: (4) Category D | D73: hour | E73: =SUM(E74:E94) -> 0 | F73: =DATA!$B$10 -> 1167 | H73: =E73*F73 -> 0
B74: =B8 -> PL | C74: =C8 ->  | E74: 0 | F74: =IF(B74="","",$F$73) -> 1167 | G74: =IF(B74="","",(F74*E74)) -> 0
B75: =B9 -> DS1 | C75: =C9 ->  | E75: 0 | F75: =IF(B75="","",$F$73) -> 1167 | G75: =IF(B75="","",(F75*E75)) -> 0
B76: =B10 ->  | E76: 0 | F76: =IF(B76="","",$F$73) -> 
B77: =B11 ->  | E77: 0 | G77: =IF(B77="","",(F77*E77)) -> 
B78: =B12 ->  | E78: 0
B79: =B13 ->  | E79: 0
B80: =B14 ->  | E80: 0
B81: =B15 ->  | E81: 0
B82: =B16 ->  | E82: 0
B83: =B17 ->  | E83: 0
B94: =B28 -> OTHER | C94: Various non-key personnel | E94: 0 | F94: =IF(B94="","",$F$73) -> 1167 | G94: 0
B96: NOTE: | C96: INCLUDE ALL NON-LISTED KEY PERSONS HOURS UNDER OTHER

Sheet Hours Building
B1: =DATA!C1004 -> R.081-010-2023/1F | F1: =DATA!B1013 -> Building
C2: ='All Hours'!D1 -> PLEASE INSERT TENDERER NAME ON INPUT DATA SHEET | E2: =IF(DATA!$D$1013="None","NOT USED IN THIS TENDER","") -> NOT USED IN THIS TENDER
B3: =IF(DATA!D1013="None",DATA!B1013 & " NOT SPECIFIED FOR THIS PROJECT", "") -> Building NOT SPECIFIED FOR THIS PROJECT | E3: ='Non Fee Hours'!E2 -> ONLY INSERT KEY PERSONS HOURS, NOT ALTERNATES.
B4: Description | D4: Unit | E4: Quantity | F4: Rate | H4: Amount (R)
B5: % fee items; all appropriate stages
B6: =DATA!B1013 -> Building | D6: LUMP SUM | E6: =IF('SUMMARY TENDERED FEE'!C10="none",0,ROUND((E7*(F7/F73)+E29*(F29/F73)+E51*(F51/F73)+E73),2)) -> 0 | F6: ="Norm. Hours" -> Norm. Hours | G6: =IF('SUMMARY TENDERED FEE'!C10="none",0,1) -> 0 | H6: =IF('SUMMARY TENDERED FEE'!C10="none",0,SUM(H7:H94)) -> 0
B7: (1) Category A | D7: hour | E7: =SUM(E8:E28) -> 0 | F7: =DATA!$B$7 -> 3534 | H7: =E7*F7 -> 0
B8: =IF(DATA!A1051="","",DATA!A1051) -> PL | C8: =IF('TENDERER INPUT DATA'!C12="","",'TENDERER INPUT DATA'!C12) ->  | E8: 0 | F8: =IF(B8="","",$F$7) -> 3534 | G8: =IF(B8="","",(F8*E8)) -> 0
B9: =IF(DATA!A1052="","",DATA!A1052) -> DS1 | C9: =IF('TENDERER INPUT DATA'!C13="","",'TENDERER INPUT DATA'!C13) ->  | E9: 0 | F9: =IF(B9="","",$F$7) -> 3534 | G9: =IF(B9="","",(F9*E9)) -> 0
B10: =IF(DATA!A1053="","",DATA!A1053) ->  | C10: =IF('TENDERER INPUT DATA'!C14="","",'TENDERER INPUT DATA'!C14) ->  | E10: 0 | F10: =IF(B10="","",$F$7) -> 
B11: =IF(DATA!A1054="","",DATA!A1054) ->  | C11: =IF('TENDERER INPUT DATA'!C15="","",'TENDERER INPUT DATA'!C15) ->  | E11: 0 | G11: =IF(B11="","",(F11*E11)) -> 
B12: =IF(DATA!A1055="","",DATA!A1055) ->  | C12: =IF('TENDERER INPUT DATA'!C16="","",'TENDERER INPUT DATA'!C16) ->  | E12: 0
B13: =IF(DATA!A1056="","",DATA!A1056) ->  | C13: =IF('TENDERER INPUT DATA'!C17="","",'TENDERER INPUT DATA'!C17) ->  | E13: 0
B14: =IF(DATA!A1057="","",DATA!A1057) ->  | C14: =IF('TENDERER INPUT DATA'!C18="","",'TENDERER INPUT DATA'!C18) ->  | E14: 0
B15: =IF(DATA!A1058="","",DATA!A1058) ->  | C15: =IF('TENDERER INPUT DATA'!C19="","",'TENDERER INPUT DATA'!C19) ->  | E15: 0
B16: =IF(DATA!A1059="","",DATA!A1059) ->  | C16: =IF('TENDERER INPUT DATA'!C20="","",'TENDERER INPUT DATA'!C20) ->  | E16: 0
B17: =IF(DATA!A1060="","",DATA!A1060) ->  | C17: =IF('TENDERER INPUT DATA'!C21="","",'TENDERER INPUT DATA'!C21) ->  | E17: 0
B28: ='All Hours'!B30 -> OTHER | C28: ='All Hours'!C30 -> Various non-key personnel | E28: 0 | F28: =IF(B28="","",$F$7) -> 3534 | G28: 0
B29: (2) Category B | D29: hour | E29: =SUM(E30:E50) -> 0 | F29: =DATA!$B$8 -> 2796 | H29: =E29*F29 -> 0
B30: =B8 -> PL | C30: =C8 ->  | E30: 0 | F30: =IF(B30="","",$F$29) -> 2796 | G30: =IF(B30="","",(F30*E30)) -> 0
B31: =B9 -> DS1 | C31: =C9 ->  | E31: 0 | F31: =IF(B31="","",$F$29) -> 2796 | G31: =IF(B31="","",(F31*E31)) -> 0
B32: =B10 ->  | E32: 0 | F32: =IF(B32="","",$F$29) -> 
B33: =B11 ->  | E33: 0 | G33: =IF(B33="","",(F33*E33)) -> 
B34: =B12 ->  | E34: 0
B35: =B13 ->  | E35: 0
B36: =B14 ->  | E36: 0
B37: =B15 ->  | E37: 0
B38: =B16 ->  | E38: 0
B39: =B17 ->  | E39: 0
B50: =B28 -> OTHER | C50: Various non-key personnel | E50: 0 | F50: =IF(B50="","",$F$29) -> 2796 | G50: 0
B51: (3) Category C | D51: hour | E51: =SUM(E52:E72) -> 0 | F51: =DATA!$B$9 -> 2403 | H51: =E51*F51 -> 0
B52: =B8 -> PL | C52: =C8 ->  | E52: 0 | F52: =IF(B52="","",$F$51) -> 2403 | G52: =IF(B52="","",(F52*E52)) -> 0
B53: =B9 -> DS1 | C53: =C9 ->  | E53: 0 | F53: =IF(B53="","",$F$51) -> 2403 | G53: =IF(B53="","",(F53*E53)) -> 0
B54: =B10 ->  | E54: 0 | F54: =IF(B54="","",$F$51) -> 
B55: =B11 ->  | E55: 0 | G55: =IF(B55="","",(F55*E55)) -> 
B56: =B12 ->  | E56: 0
B57: =B13 ->  | E57: 0
B58: =B14 ->  | E58: 0
B59: =B15 ->  | E59: 0
B60: =B16 ->  | E60: 0
B61: =B17 ->  | E61: 0
B72: =B28 -> OTHER | C72: =C28 -> Various non-key personnel | E72: 0 | F72: =IF(B72="","",$F$51) -> 2403 | G72: 0
B73: (4) Category D | D73: hour | E73: =SUM(E74:E94) -> 0 | F73: =DATA!$B$10 -> 1167 | H73: =E73*F73 -> 0
B74: =B8 -> PL | C74: =C8 ->  | E74: 0 | F74: =IF(B74="","",$F$73) -> 1167 | G74: =IF(B74="","",(F74*E74)) -> 0
B75: =B9 -> DS1 | C75: =C9 ->  | E75: 0 | F75: =IF(B75="","",$F$73) -> 1167 | G75: =IF(B75="","",(F75*E75)) -> 0
B76: =B10 ->  | E76: 0 | F76: =IF(B76="","",$F$73) -> 
B77: =B11 ->  | E77: 0 | G77: =IF(B77="","",(F77*E77)) -> 
B78: =B12 ->  | E78: 0
B79: =B13 ->  | E79: 0
B80: =B14 ->  | E80: 0
B81: =B15 ->  | E81: 0
B82: =B16 ->  | E82: 0
B83: =B17 ->  | E83: 0
B94: =B28 -> OTHER | C94: Various non-key personnel | E94: 0 | F94: =IF(B94="","",$F$73) -> 1167 | G94: 0
B96: NOTE: | C96: INCLUDE ALL NON-LISTED KEY PERSONS HOURS UNDER OTHER

Sheet Hours Mechanical
B1: =DATA!C1004 -> R.081-010-2023/1F | F1: =DATA!B1014 -> Mechanical
C2: ='All Hours'!D1 -> PLEASE INSERT TENDERER NAME ON INPUT DATA SHEET | E2: =IF(DATA!$D$1014="None","NOT USED IN THIS TENDER","") -> NOT USED IN THIS TENDER
B3: =IF(DATA!D1014="None",DATA!B1014 & " NOT SPECIFIED FOR THIS PROJECT", "") -> Mechanical NOT SPECIFIED FOR THIS PROJECT | E3: ='Non Fee Hours'!E2 -> ONLY INSERT KEY PERSONS HOURS, NOT ALTERNATES.
B4: Description | D4: Unit | E4: Quantity | F4: Rate | H4: Amount (R)
B5: % fee items; all appropriate stages
B6: =DATA!B1014 -> Mechanical | D6: LUMP SUM | E6: =IF('SUMMARY TENDERED FEE'!C11="none",0,ROUND((E7*(F7/F73)+E29*(F29/F73)+E51*(F51/F73)+E73),2)) -> 0 | F6: ="Norm. Hours" -> Norm. Hours | G6: =IF('SUMMARY TENDERED FEE'!C11="none",0,1) -> 0 | H6: =IF('SUMMARY TENDERED FEE'!C11="none",0,SUM(H7:H94)) -> 0
B7: (1) Category A | D7: hour | E7: =SUM(E8:E28) -> 0 | F7: =DATA!$B$7 -> 3534 | H7: =E7*F7 -> 0
B8: =IF(DATA!A1051="","",DATA!A1051) -> PL | C8: =IF('TENDERER INPUT DATA'!C12="","",'TENDERER INPUT DATA'!C12) ->  | E8: 0 | F8: =IF(B8="","",$F$7) -> 3534 | G8: =IF(B8="","",(F8*E8)) -> 0
B9: =IF(DATA!A1052="","",DATA!A1052) -> DS1 | C9: =IF('TENDERER INPUT DATA'!C13="","",'TENDERER INPUT DATA'!C13) ->  | E9: 0 | F9: =IF(B9="","",$F$7) -> 3534 | G9: =IF(B9="","",(F9*E9)) -> 0
B10: =IF(DATA!A1053="","",DATA!A1053) ->  | C10: =IF('TENDERER INPUT DATA'!C14="","",'TENDERER INPUT DATA'!C14) ->  | E10: 0 | F10: =IF(B10="","",$F$7) -> 
B11: =IF(DATA!A1054="","",DATA!A1054) ->  | C11: =IF('TENDERER INPUT DATA'!C15="","",'TENDERER INPUT DATA'!C15) ->  | E11: 0 | G11: =IF(B11="","",(F11*E11)) -> 
B12: =IF(DATA!A1055="","",DATA!A1055) ->  | C12: =IF('TENDERER INPUT DATA'!C16="","",'TENDERER INPUT DATA'!C16) ->  | E12: 0
B13: =IF(DATA!A1056="","",DATA!A1056) ->  | C13: =IF('TENDERER INPUT DATA'!C17="","",'TENDERER INPUT DATA'!C17) ->  | E13: 0
B14: =IF(DATA!A1057="","",DATA!A1057) ->  | C14: =IF('TENDERER INPUT DATA'!C18="","",'TENDERER INPUT DATA'!C18) ->  | E14: 0
B15: =IF(DATA!A1058="","",DATA!A1058) ->  | C15: =IF('TENDERER INPUT DATA'!C19="","",'TENDERER INPUT DATA'!C19) ->  | E15: 0
B16: =IF(DATA!A1059="","",DATA!A1059) ->  | C16: =IF('TENDERER INPUT DATA'!C20="","",'TENDERER INPUT DATA'!C20) ->  | E16: 0
B17: =IF(DATA!A1060="","",DATA!A1060) ->  | C17: =IF('TENDERER INPUT DATA'!C21="","",'TENDERER INPUT DATA'!C21) ->  | E17: 0
B28: ='All Hours'!B30 -> OTHER | C28: ='All Hours'!C30 -> Various non-key personnel | E28: 0 | F28: =IF(B28="","",$F$7) -> 3534 | G28: 0
B29: (2) Category B | D29: hour | E29: =SUM(E30:E50) -> 0 | F29: =DATA!$B$8 -> 2796 | H29: =E29*F29 -> 0
B30: =B8 -> PL | C30: =C8 ->  | E30: 0 | F30: =IF(B30="","",$F$29) -> 2796 | G30: =IF(B30="","",(F30*E30)) -> 0
B31: =B9 -> DS1 | C31: =C9 ->  | E31: 0 | F31: =IF(B31="","",$F$29) -> 2796 | G31: =IF(B31="","",(F31*E31)) -> 0
B32: =B10 ->  | E32: 0 | F32: =IF(B32="","",$F$29) -> 
B33: =B11 ->  | E33: 0 | G33: =IF(B33="","",(F33*E33)) -> 
B34: =B12 ->  | E34: 0
B35: =B13 ->  | E35: 0
B36: =B14 ->  | E36: 0
B37: =B15 ->  | E37: 0
B38: =B16 ->  | E38: 0
B39: =B17 ->  | E39: 0
B50: =B28 -> OTHER | C50: Various non-key personnel | E50: 0 | F50: =IF(B50="","",$F$29) -> 2796 | G50: 0
B51: (3) Category C | D51: hour | E51: =SUM(E52:E72) -> 0 | F51: =DATA!$B$9 -> 2403 | H51: =E51*F51 -> 0
B52: =B8 -> PL | C52: =C8 ->  | E52: 0 | F52: =IF(B52="","",$F$51) -> 2403 | G52: =IF(B52="","",(F52*E52)) -> 0
B53: =B9 -> DS1 | C53: =C9 ->  | E53: 0 | F53: =IF(B53="","",$F$51) -> 2403 | G53: =IF(B53="","",(F53*E53)) -> 0
B54: =B10 ->  | E54: 0 | F54: =IF(B54="","",$F$51) -> 
B55: =B11 ->  | E55: 0 | G55: =IF(B55="","",(F55*E55)) -> 
B56: =B12 ->  | E56: 0
B57: =B13 ->  | E57: 0
B58: =B14 ->  | E58: 0
B59: =B15 ->  | E59: 0
B60: =B16 ->  | E60: 0
B61: =B17 ->  | E61: 0
B72: =B28 -> OTHER | C72: Various non-key personnel | E72: 0 | F72: 2403 | G72: 0
B73: (4) Category D | D73: hour | E73: =SUM(E74:E94) -> 0 | F73: =DATA!$B$10 -> 1167 | H73: =E73*F73 -> 0
B74: =B8 -> PL | C74: =C8 ->  | E74: 0 | F74: =IF(B74="","",$F$73) -> 1167 | G74: =IF(B74="","",(F74*E74)) -> 0
B75: =B9 -> DS1 | C75: =C9 ->  | E75: 0 | F75: =IF(B75="","",$F$73) -> 1167 | G75: =IF(B75="","",(F75*E75)) -> 0
B76: =B10 ->  | E76: 0 | F76: =IF(B76="","",$F$73) -> 
B77: =B11 ->  | E77: 0 | G77: =IF(B77="","",(F77*E77)) -> 
B78: =B12 ->  | E78: 0
B79: =B13 ->  | E79: 0
B80: =B14 ->  | E80: 0
B81: =B15 ->  | E81: 0
B82: =B16 ->  | E82: 0
B83: =B17 ->  | E83: 0
B94: =B28 -> OTHER | C94: Various non-key personnel | E94: 0 | F94: =IF(B94="","",$F$73) -> 1167 | G94: 0
B96: NOTE: | C96: INCLUDE ALL NON-LISTED KEY PERSONS HOURS UNDER OTHER

Sheet Hours Electronic
B1: =DATA!C1004 -> R.081-010-2023/1F | F1: =DATA!B1015 -> Electronic
C2: ='All Hours'!D1 -> PLEASE INSERT TENDERER NAME ON INPUT DATA SHEET | E2: =IF(DATA!$D$1015="None","NOT USED IN THIS TENDER","") -> NOT USED IN THIS TENDER
B3: =IF(DATA!D1015="None",DATA!B1015 & " NOT SPECIFIED FOR THIS PROJECT", "") -> Electronic NOT SPECIFIED FOR THIS PROJECT | E3: ='Non Fee Hours'!E2 -> ONLY INSERT KEY PERSONS HOURS, NOT ALTERNATES.
B4: Description | D4: Unit | E4: Quantity | F4: Rate | H4: Amount (R)
B5: % fee items; all appropriate stages
B6: =DATA!B1015 -> Electronic | D6: LUMP SUM | E6: =IF('SUMMARY TENDERED FEE'!C12="none",0,ROUND((E7*(F7/F73)+E29*(F29/F73)+E51*(F51/F73)+E73),2)) -> 0 | F6: ="Norm. Hours" -> Norm. Hours | G6: =IF('SUMMARY TENDERED FEE'!C12="none",0,1) -> 0 | H6: =IF('SUMMARY TENDERED FEE'!C12="none",0,SUM(H7:H94)) -> 0
B7: (1) Category A | D7: hour | E7: =SUM(E8:E28) -> 5 | F7: =DATA!$B$7 -> 3534 | H7: =E7*F7 -> 17670
B8: =IF(DATA!A1051="","",DATA!A1051) -> PL | C8: =IF('TENDERER INPUT DATA'!C12="","",'TENDERER INPUT DATA'!C12) ->  | E8: 0 | F8: =IF(B8="","",$F$7) -> 3534 | G8: =IF(B8="","",(F8*E8)) -> 0
B9: =IF(DATA!A1052="","",DATA!A1052) -> DS1 | C9: =IF('TENDERER INPUT DATA'!C13="","",'TENDERER INPUT DATA'!C13) ->  | E9: 5 | F9: =IF(B9="","",$F$7) -> 3534 | G9: =IF(B9="","",(F9*E9)) -> 17670
B10: =IF(DATA!A1053="","",DATA!A1053) ->  | C10: =IF('TENDERER INPUT DATA'!C14="","",'TENDERER INPUT DATA'!C14) ->  | E10: 0 | F10: =IF(B10="","",$F$7) -> 
B11: =IF(DATA!A1054="","",DATA!A1054) ->  | C11: =IF('TENDERER INPUT DATA'!C15="","",'TENDERER INPUT DATA'!C15) ->  | E11: 0 | G11: =IF(B11="","",(F11*E11)) -> 
B12: =IF(DATA!A1055="","",DATA!A1055) ->  | C12: =IF('TENDERER INPUT DATA'!C16="","",'TENDERER INPUT DATA'!C16) ->  | E12: 0
B13: =IF(DATA!A1056="","",DATA!A1056) ->  | C13: =IF('TENDERER INPUT DATA'!C17="","",'TENDERER INPUT DATA'!C17) ->  | E13: 0
B14: =IF(DATA!A1057="","",DATA!A1057) ->  | C14: =IF('TENDERER INPUT DATA'!C18="","",'TENDERER INPUT DATA'!C18) ->  | E14: 0
B15: =IF(DATA!A1058="","",DATA!A1058) ->  | C15: =IF('TENDERER INPUT DATA'!C19="","",'TENDERER INPUT DATA'!C19) ->  | E15: 0
B16: =IF(DATA!A1059="","",DATA!A1059) ->  | C16: =IF('TENDERER INPUT DATA'!C20="","",'TENDERER INPUT DATA'!C20) ->  | E16: 0
B17: =IF(DATA!A1060="","",DATA!A1060) ->  | C17: =IF('TENDERER INPUT DATA'!C21="","",'TENDERER INPUT DATA'!C21) ->  | E17: 0
B28: ='All Hours'!B30 -> OTHER | C28: ='All Hours'!C30 -> Various non-key personnel | E28: 0 | F28: =IF(B28="","",$F$7) -> 3534 | G28: 0
B29: (2) Category B | D29: hour | E29: =SUM(E30:E50) -> 0 | F29: =DATA!$B$8 -> 2796 | H29: =E29*F29 -> 0
B30: =B8 -> PL | C30: =C8 ->  | E30: 0 | F30: =IF(B30="","",$F$29) -> 2796 | G30: =IF(B30="","",(F30*E30)) -> 0
B31: =B9 -> DS1 | C31: =C9 ->  | E31: 0 | F31: =IF(B31="","",$F$29) -> 2796 | G31: =IF(B31="","",(F31*E31)) -> 0
B32: =B10 ->  | E32: 0 | F32: =IF(B32="","",$F$29) -> 
B33: =B11 ->  | E33: 0 | G33: =IF(B33="","",(F33*E33)) -> 
B34: =B12 ->  | E34: 0
B35: =B13 ->  | E35: 0
B36: =B14 ->  | E36: 0
B37: =B15 ->  | E37: 0
B38: =B16 ->  | E38: 0
B39: =B17 ->  | E39: 0
B50: =B28 -> OTHER | C50: Various non-key personnel | E50: 0 | F50: =IF(B50="","",$F$29) -> 2796 | G50: 0
B51: (3) Category C | D51: hour | E51: =SUM(E52:E72) -> 0 | F51: =DATA!$B$9 -> 2403 | H51: =E51*F51 -> 0
B52: =B8 -> PL | C52: =C8 ->  | E52: 0 | F52: =IF(B52="","",$F$51) -> 2403 | G52: =IF(B52="","",(F52*E52)) -> 0
B53: =B9 -> DS1 | C53: =C9 ->  | E53: 0 | F53: =IF(B53="","",$F$51) -> 2403 | G53: =IF(B53="","",(F53*E53)) -> 0
B54: =B10 ->  | E54: 0 | F54: =IF(B54="","",$F$51) -> 
B55: =B11 ->  | E55: 0 | G55: =IF(B55="","",(F55*E55)) -> 
B56: =B12 ->  | E56: 0
B57: =B13 ->  | E57: 0
B58: =B14 ->  | E58: 0
B59: =B15 ->  | E59: 0
B60: =B16 ->  | E60: 0
B61: =B17 ->  | E61: 0
B72: =B28 -> OTHER | C72: =C28 -> Various non-key personnel | E72: 0 | F72: =IF(B72="","",$F$51) -> 2403 | G72: 0
B73: (4) Category D | D73: hour | E73: =SUM(E74:E94) -> 0 | F73: =DATA!$B$10 -> 1167 | H73: =E73*F73 -> 0
B74: =B8 -> PL | C74: =C8 ->  | E74: 0 | F74: =IF(B74="","",$F$73) -> 1167 | G74: =IF(B74="","",(F74*E74)) -> 0
B75: =B9 -> DS1 | C75: =C9 ->  | E75: 0 | F75: =IF(B75="","",$F$73) -> 1167 | G75: =IF(B75="","",(F75*E75)) -> 0
B76: =B10 ->  | E76: 0 | F76: =IF(B76="","",$F$73) -> 
B77: =B11 ->  | E77: 0 | G77: =IF(B77="","",(F77*E77)) -> 
B78: =B12 ->  | E78: 0
B79: =B13 ->  | E79: 0
B80: =B14 ->  | E80: 0
B81: =B15 ->  | E81: 0
B82: =B16 ->  | E82: 0
B83: =B17 ->  | E83: 0
B94: =B28 -> OTHER | C94: Various non-key personnel | E94: 0 | F94: =IF(B94="","",$F$73) -> 1167 | G94: 0
B96: NOTE: | C96: INCLUDE ALL NON-LISTED KEY PERSONS HOURS UNDER OTHER

Sheet Hours Other
B1: =DATA!C1004 -> R.081-010-2023/1F | F1: =DATA!B1016 -> Other:
C2: ='All Hours'!D1 -> PLEASE INSERT TENDERER NAME ON INPUT DATA SHEET | E2: =IF(DATA!$D$1016="None","NOT USED IN THIS TENDER","") -> NOT USED IN THIS TENDER
B3: =IF(DATA!D1016="None",DATA!B1016 & " NOT SPECIFIED FOR THIS PROJECT", "") -> Other: NOT SPECIFIED FOR THIS PROJECT | E3: ='Non Fee Hours'!E2 -> ONLY INSERT KEY PERSONS HOURS, NOT ALTERNATES.
B4: Description | D4: Unit | E4: Quantity | F4: Rate | H4: Amount (R)
B5: % fee items; all appropriate stages
B6: =DATA!B1016 -> Other: | D6: LUMP SUM | E6: =IF('SUMMARY TENDERED FEE'!C13="none",0,ROUND((E7*(F7/F73)+E29*(F29/F73)+E51*(F51/F73)+E73),2)) -> 0 | F6: ="Norm. Hours" -> Norm. Hours | G6: =IF('SUMMARY TENDERED FEE'!C13="none",0,1) -> 0 | H6: =IF('SUMMARY TENDERED FEE'!C13="none",0,SUM(H7:H94)) -> 0
B7: (1) Category A | D7: hour | E7: =SUM(E8:E28) -> 0 | F7: =DATA!$B$7 -> 3534 | H7: =E7*F7 -> 0
B8: =IF(DATA!A1051="","",DATA!A1051) -> PL | C8: =IF('TENDERER INPUT DATA'!C12="","",'TENDERER INPUT DATA'!C12) ->  | E8: 0 | F8: =IF(B8="","",$F$7) -> 3534 | G8: =IF(B8="","",(F8*E8)) -> 0
B9: =IF(DATA!A1052="","",DATA!A1052) -> DS1 | C9: =IF('TENDERER INPUT DATA'!C13="","",'TENDERER INPUT DATA'!C13) ->  | E9: 0 | F9: =IF(B9="","",$F$7) -> 3534 | G9: =IF(B9="","",(F9*E9)) -> 0
B10: =IF(DATA!A1053="","",DATA!A1053) ->  | C10: =IF('TENDERER INPUT DATA'!C14="","",'TENDERER INPUT DATA'!C14) ->  | E10: 0 | F10: =IF(B10="","",$F$7) -> 
B11: =IF(DATA!A1054="","",DATA!A1054) ->  | C11: =IF('TENDERER INPUT DATA'!C15="","",'TENDERER INPUT DATA'!C15) ->  | E11: 0 | G11: =IF(B11="","",(F11*E11)) -> 
B12: =IF(DATA!A1055="","",DATA!A1055) ->  | C12: =IF('TENDERER INPUT DATA'!C16="","",'TENDERER INPUT DATA'!C16) ->  | E12: 0
B13: =IF(DATA!A1056="","",DATA!A1056) ->  | C13: =IF('TENDERER INPUT DATA'!C17="","",'TENDERER INPUT DATA'!C17) ->  | E13: 0
B14: =IF(DATA!A1057="","",DATA!A1057) ->  | C14: =IF('TENDERER INPUT DATA'!C18="","",'TENDERER INPUT DATA'!C18) ->  | E14: 0
B15: =IF(DATA!A1058="","",DATA!A1058) ->  | C15: =IF('TENDERER INPUT DATA'!C19="","",'TENDERER INPUT DATA'!C19) ->  | E15: 0
B16: =IF(DATA!A1059="","",DATA!A1059) ->  | C16: =IF('TENDERER INPUT DATA'!C20="","",'TENDERER INPUT DATA'!C20) ->  | E16: 0
B17: =IF(DATA!A1060="","",DATA!A1060) ->  | C17: =IF('TENDERER INPUT DATA'!C21="","",'TENDERER INPUT DATA'!C21) ->  | E17: 0
B28: ='All Hours'!B30 -> OTHER | C28: ='All Hours'!C30 -> Various non-key personnel | E28: 0 | F28: =IF(B28="","",$F$7) -> 3534 | G28: 0
B29: (2) Category B | D29: hour | E29: =SUM(E30:E50) -> 0 | F29: =DATA!$B$8 -> 2796 | H29: =E29*F29 -> 0
B30: =B8 -> PL | C30: =C8 ->  | E30: 0 | F30: =IF(B30="","",$F$29) -> 2796 | G30: =IF(B30="","",(F30*E30)) -> 0
B31: =B9 -> DS1 | C31: =C9 ->  | E31: 0 | F31: =IF(B31="","",$F$29) -> 2796 | G31: =IF(B31="","",(F31*E31)) -> 0
B32: =B10 ->  | E32: 0 | F32: =IF(B32="","",$F$29) -> 
B33: =B11 ->  | E33: 0 | G33: =IF(B33="","",(F33*E33)) -> 
B34: =B12 ->  | E34: 0
B35: =B13 ->  | E35: 0
B36: =B14 ->  | E36: 0
B37: =B15 ->  | E37: 0
B38: =B16 ->  | E38: 0
B39: =B17 ->  | E39: 0
B50: =B28 -> OTHER | C50: Various non-key personnel | E50: 0 | F50: =IF(B50="","",$F$29) -> 2796 | G50: 0
B51: (3) Category C | D51: hour | E51: =SUM(E52:E72) -> 0 | F51: =DATA!$B$9 -> 2403 | H51: =E51*F51 -> 0
B52: =B8 -> PL | C52: =C8 ->  | E52: 0 | F52: =IF(B52="","",$F$51) -> 2403 | G52: =IF(B52="","",(F52*E52)) -> 0
B53: =B9 -> DS1 | C53: =C9 ->  | E53: 0 | F53: =IF(B53="","",$F$51) -> 2403 | G53: =IF(B53="","",(F53*E53)) -> 0
B54: =B10 ->  | E54: 0 | F54: =IF(B54="","",$F$51) -> 
B55: =B11 ->  | E55: 0 | G55: =IF(B55="","",(F55*E55)) -> 
B56: =B12 ->  | E56: 0
B57: =B13 ->  | E57: 0
B58: =B14 ->  | E58: 0
B59: =B15 ->  | E59: 0
B60: =B16 ->  | E60: 0
B61: =B17 ->  | E61: 0
B72: =B28 -> OTHER | C72: =C28 -> Various non-key personnel | E72: 0 | F72: =IF(B72="","",$F$51) -> 2403 | G72: 0
B73: (4) Category D | D73: hour | E73: =SUM(E74:E94) -> 0 | F73: =DATA!$B$10 -> 1167 | H73: =E73*F73 -> 0
B74: =B8 -> PL | C74: =C8 ->  | E74: 0 | F74: =IF(B74="","",$F$73) -> 1167 | G74: =IF(B74="","",(F74*E74)) -> 0
B75: =B9 -> DS1 | C75: =C9 ->  | E75: 0 | F75: =IF(B75="","",$F$73) -> 1167 | G75: =IF(B75="","",(F75*E75)) -> 0
B76: =B10 ->  | E76: 0 | F76: =IF(B76="","",$F$73) -> 
B77: =B11 ->  | E77: 0 | G77: =IF(B77="","",(F77*E77)) -> 
B78: =B12 ->  | E78: 0
B79: =B13 ->  | E79: 0
B80: =B14 ->  | E80: 0
B81: =B15 ->  | E81: 0
B82: =B16 ->  | E82: 0
B83: =B17 ->  | E83: 0
B94: =B28 -> OTHER | C94: Various non-key personnel | E94: 0 | F94: =IF(B94="","",$F$73) -> 1167 | G94: 0
B96: NOTE: | C96: INCLUDE ALL NON-LISTED KEY PERSONS HOURS UNDER OTHER

Sheet All Hours
C1: TENDERER NAME: | D1: =IF('TENDERER INPUT DATA'!D1="","PLEASE INSERT TENDERER NAME ON INPUT DATA SHEET",'TENDERER INPUT DATA'!D1) -> PLEASE INSERT TENDERER NAME ON INPUT DATA SHEET
B2: =DATA!C1004 -> R.081-010-2023/1F
B3: SUMMARY OF ALL HOURS TENDERED
B6: Description | E6: Quantity | H6: Amount (R)
B7: % fee items; all appropriate stages
B8: SUMMARY OF ALL NORMALISED HOUR PAY ITEMS
B9: ALL CATEGORIES | C9: KEY PERSONS NAMES | D9: hour | E9: =SUM(E10:E30) -> 0 | H9: =SUM(G10:G30) -> 0
B10: =IF(DATA!A1051="","",DATA!A1051) -> PL | C10: =IF('TENDERER INPUT DATA'!C12="","",'TENDERER INPUT DATA'!C12) ->  | E10: =E85*DATA!$C$7+E107*DATA!$C$8+E129*DATA!$C$9+E151*DATA!$C$10 -> 0 | G10: =IF(B10="","",(E85*F85+E107*F107+E129*F129+E151*F151)) -> 0
B11: =IF(DATA!A1052="","",DATA!A1052) -> DS1 | C11: =IF('TENDERER INPUT DATA'!C13="","",'TENDERER INPUT DATA'!C13) ->  | E11: =E86*DATA!$C$7+E108*DATA!$C$8+E130*DATA!$C$9+E152*DATA!$C$10 -> 0 | G11: =IF(B11="","",(E86*F86+E108*F108+E130*F130+E152*F152)) -> 0
B12: =IF(DATA!A1053="","",DATA!A1053) ->  | C12: =IF('TENDERER INPUT DATA'!C14="","",'TENDERER INPUT DATA'!C14) ->  | E12: =E87*DATA!$C$7+E109*DATA!$C$8+E131*DATA!$C$9+E153*DATA!$C$10 -> 0 | G12: =IF(B12="","",(E87*F87+E109*F109+E131*F131+E153*F153)) -> 
B13: =IF(DATA!A1054="","",DATA!A1054) ->  | C13: =IF('TENDERER INPUT DATA'!C15="","",'TENDERER INPUT DATA'!C15) ->  | E13: =E88*DATA!$C$7+E110*DATA!$C$8+E132*DATA!$C$9+E154*DATA!$C$10 -> 0
B14: =IF(DATA!A1055="","",DATA!A1055) ->  | C14: =IF('TENDERER INPUT DATA'!C16="","",'TENDERER INPUT DATA'!C16) ->  | E14: =E89*DATA!$C$7+E111*DATA!$C$8+E133*DATA!$C$9+E155*DATA!$C$10 -> 0
B15: =IF(DATA!A1056="","",DATA!A1056) ->  | C15: =IF('TENDERER INPUT DATA'!C17="","",'TENDERER INPUT DATA'!C17) ->  | E15: =E90*DATA!$C$7+E112*DATA!$C$8+E134*DATA!$C$9+E156*DATA!$C$10 -> 0
B16: =IF(DATA!A1057="","",DATA!A1057) ->  | C16: =IF('TENDERER INPUT DATA'!C18="","",'TENDERER INPUT DATA'!C18) ->  | E16: =E91*DATA!$C$7+E113*DATA!$C$8+E135*DATA!$C$9+E157*DATA!$C$10 -> 0
B17: =IF(DATA!A1058="","",DATA!A1058) ->  | C17: =IF('TENDERER INPUT DATA'!C19="","",'TENDERER INPUT DATA'!C19) ->  | E17: =E92*DATA!$C$7+E114*DATA!$C$8+E136*DATA!$C$9+E158*DATA!$C$10 -> 0
B18: =IF(DATA!A1059="","",DATA!A1059) ->  | C18: =IF('TENDERER INPUT DATA'!C20="","",'TENDERER INPUT DATA'!C20) ->  | E18: =E93*DATA!$C$7+E115*DATA!$C$8+E137*DATA!$C$9+E159*DATA!$C$10 -> 0
B19: =IF(DATA!A1060="","",DATA!A1060) ->  | C19: =IF('TENDERER INPUT DATA'!C21="","",'TENDERER INPUT DATA'!C21) ->  | E19: =E94*DATA!$C$7+E116*DATA!$C$8+E138*DATA!$C$9+E160*DATA!$C$10 -> 0
B30: OTHER | C30: Various non-key personnel | E30: =E105*DATA!$C$7+E127*DATA!$C$8+E149*DATA!$C$9+E171*DATA!$C$10 -> 0 | G30: =IF(B30="","",(E105*F105+E127*F127+E149*F149+E171*F171)) -> 0
B32: Description | E32: Quantity | H32: Amount (R)
B33: % fee items; all appropriate stages
B34: SUMMARY OF ALL KEY PERSONS NORMALISED HOURS | D34: NHT KEY ONLY | E34: NHT | F34: % of Total Hours | G34: % of Key Persons Only
B35: ALL CATEGORIES | D35: =SUM(E36:E55) -> 0 | E35: =SUM(E36:E56) -> 0 | F35: =SUM(F36:F56) ->  | G35: =SUM(G36:G56) ->  | H35: =SUM(H36:H56) -> 0
B36: =IF(DATA!A1051="","",DATA!A1051) -> PL | C36: =IF(B10="","",C10) ->  | E36: =E10 -> 0 | F36: =IF(B36="","",(E36/$E$35)) ->  | G36: =IF(B36="","",(E36/$D$35)) ->  | H36: =G10 -> 0
B37: =IF(DATA!A1052="","",DATA!A1052) -> DS1 | C37: =IF(B11="","",C11) ->  | E37: =E11 -> 0 | F37: =IF(B37="","",(E37/$E$35)) ->  | G37: =IF(B37="","",(E37/$D$35)) ->  | H37: =G11 -> 0
B38: =IF(DATA!A1053="","",DATA!A1053) ->  | C38: =IF(B12="","",C12) ->  | E38: 0 | H38: =G12 -> 
B39: =IF(DATA!A1054="","",DATA!A1054) ->  | E39: 0 | F39: =IF(B39="","",(E39/$E$35)) ->  | G39: =IF(B39="","",(E39/$D$35)) ->  | H39: =G13 -> 
B40: =IF(DATA!A1055="","",DATA!A1055) ->  | E40: 0
B41: =IF(DATA!A1056="","",DATA!A1056) ->  | E41: 0
B42: =IF(DATA!A1057="","",DATA!A1057) ->  | E42: 0
B43: =IF(DATA!A1058="","",DATA!A1058) ->  | E43: 0
B44: =IF(DATA!A1059="","",DATA!A1059) ->  | E44: 0
B45: =IF(DATA!A1060="","",DATA!A1060) ->  | E45: 0
B56: =$B$30 -> OTHER | C56: =$C$30 -> Various non-key personnel | E56: =E30 -> 0 | H56: =G30 -> 0
B58: SUMMARY NON FEE ITEMS
B59: ITEM No. | C59: Description | E59: Normalised hours | F59: Lump Sum
B60: ='Non Fee Hours'!$B$6 -> 32.01 | C60: ='Non Fee Hours'!$C$6 -> INITIAL ASSESSMENT | E60: ='Non Fee Hours'!$E$6 -> 0 | F60: ='Non Fee Hours'!$H$6 -> 0
B61: ='Non Fee Hours'!$B$106 -> 32.02 | C61: ='Non Fee Hours'!$C$106 -> VISUAL SURVEY | E61: ='Non Fee Hours'!$E$106 -> 0 | F61: ='Non Fee Hours'!$H$106 -> 0
B62: ='Non Fee Hours'!$B$206 -> 32.03 | C62: ='Non Fee Hours'!$C$206 -> PROJECT ASSESSMENT REPORT | E62: ='Non Fee Hours'!$E$206 -> 0 | F62: ='Non Fee Hours'!$H$206 -> 0
B63: ='Non Fee Hours'!$B$306 -> 35.01 (a) | C63: ='Non Fee Hours'!$C$306 -> PREPARATION OF THE TENDER DOCUMENT | E63: ='Non Fee Hours'!$E$306 -> 0 | F63: ='Non Fee Hours'!$H$306 -> 0
B64: ='Non Fee Hours'!$B$406 -> 36.02 | C64: ='Non Fee Hours'!$C$406 -> TENDER EVALUATION | E64: ='Non Fee Hours'!$E$406 -> 0 | F64: ='Non Fee Hours'!$H$406 -> 0
C67: ALL WORK TYPES | E67: =SUM(E60:E66) -> 0 | F67: =SUM(F60:F66) -> 0
C69: SUMMARY FEE ITEMS
C70: Work Type | E70: Normalised hours | F70: Lump Sum
C71: ='Hours Roadworks'!$B$6 -> Road works | E71: ='Hours Roadworks'!$E$6 -> 0 | F71: ='Hours Roadworks'!$H$6 -> 0
C72: ='Hours Structures'!$B$6 -> Structures | E72: ='Hours Structures'!$E$6 -> 0 | F72: ='Hours Structures'!$H$6 -> 0
C73: ='Hours Electrical'!$B$6 -> Electrical | E73: ='Hours Electrical'!$E$6 -> 0 | F73: ='Hours Electrical'!$H$6 -> 0
C74: ='Hours Building'!$B$6 -> Building | E74: ='Hours Building'!$E$6 -> 0 | F74: ='Hours Building'!$H$6 -> 0
C75: ='Hours Mechanical'!$B$6 -> Mechanical | E75: ='Hours Mechanical'!$E$6 -> 0 | F75: ='Hours Mechanical'!$H$6 -> 0
C76: ='Hours Electronic'!$B$6 -> Electronic | E76: ='Hours Electronic'!$E$6 -> 0 | F76: ='Hours Electronic'!$H$6 -> 0
C77: ='Hours Other'!$B$6 -> Other: | E77: ='Hours Other'!$E$6 -> 0 | F77: ='Hours Other'!$H$6 -> 0
C78: ALL WORK TYPES | E78: =SUM(E71:E77) -> 0 | F78: =SUM(F71:F77) -> 0
B81: Description | D81: Unit | E81: Quantity | F81: Rate | H81: Amount (R)
B82: % fee items; all appropriate stages
B83: SUMMARY OF ALL HOUR PAY ITEMS | E83: =E84+E106+E128+E150 -> 0
B84: (1) Category A | D84: hour | E84: =SUM(E85:E105) -> 0 | F84: =DATA!$B$7 -> 3534 | H84: =E84*F84 -> 0
B85: =IF(DATA!A1051="","",DATA!A1051) -> PL | C85: =IF(B10="","",C10) ->  | E85: ='Hours Roadworks'!E8*'Hours Roadworks'!$G$6+'Hours Structures'!E8*'Hours Structures'!$G$6+'Hours Electrical'!E8*'Hours Electrical'!$G$6+'Hours Building'!E8*'Hours Building'!$G$6+'Hours Mechanical'!E8*'Hours Mechanical'!$G$6+'Hours Electronic'!E8*'Hours Electronic'!$G$6+'Hours Other'!E8*'Hours Other'!$G$6+IF('Pricing Schedule'!$G$13="n",0,'Non Fee Hours'!E8)+IF('Pricing Schedule'!$G$16="n",0,'Non Fee Hours'!E108)+IF('Pricing Schedule'!$G$19="n",0,'Non Fee Hours'!E208)+IF('Pricing Schedule'!$G$240="n",0,'Non Fee Hours'!E308)+IF('Pricing Schedule'!$G$250="n",0,'Non Fee Hours'!E408) -> 0 | F85: =IF(B85="","",$F$84) -> 3534 | G85: =IF(B85="","",(F85*E85)) -> 0
B86: =IF(DATA!A1052="","",DATA!A1052) -> DS1 | C86: =IF(B11="","",C11) ->  | E86: ='Hours Roadworks'!E9*'Hours Roadworks'!$G$6+'Hours Structures'!E9*'Hours Structures'!$G$6+'Hours Electrical'!E9*'Hours Electrical'!$G$6+'Hours Building'!E9*'Hours Building'!$G$6+'Hours Mechanical'!E9*'Hours Mechanical'!$G$6+'Hours Electronic'!E9*'Hours Electronic'!$G$6+'Hours Other'!E9*'Hours Other'!$G$6+IF('Pricing Schedule'!$G$13="n",0,'Non Fee Hours'!E9)+IF('Pricing Schedule'!$G$16="n",0,'Non Fee Hours'!E109)+IF('Pricing Schedule'!$G$19="n",0,'Non Fee Hours'!E209)+IF('Pricing Schedule'!$G$240="n",0,'Non Fee Hours'!E309)+IF('Pricing Schedule'!$G$250="n",0,'Non Fee Hours'!E409) -> 0 | F86: =IF(B86="","",$F$84) -> 3534 | G86: =IF(B86="","",(F86*E86)) -> 0
B87: =IF(DATA!A1053="","",DATA!A1053) ->  | C87: =IF(B12="","",C12) ->  | E87: ='Hours Roadworks'!E10*'Hours Roadworks'!$G$6+'Hours Structures'!E10*'Hours Structures'!$G$6+'Hours Electrical'!E10*'Hours Electrical'!$G$6+'Hours Building'!E10*'Hours Building'!$G$6+'Hours Mechanical'!E10*'Hours Mechanical'!$G$6+'Hours Electronic'!E10*'Hours Electronic'!$G$6+'Hours Other'!E10*'Hours Other'!$G$6+IF('Pricing Schedule'!$G$13="n",0,'Non Fee Hours'!E10)+IF('Pricing Schedule'!$G$16="n",0,'Non Fee Hours'!E110)+IF('Pricing Schedule'!$G$19="n",0,'Non Fee Hours'!E210)+IF('Pricing Schedule'!$G$240="n",0,'Non Fee Hours'!E310)+IF('Pricing Schedule'!$G$250="n",0,'Non Fee Hours'!E410) -> 0 | F87: =IF(B87="","",$F$84) -> 
B88: =IF(DATA!A1054="","",DATA!A1054) ->  | E88: ='Hours Roadworks'!E11*'Hours Roadworks'!$G$6+'Hours Structures'!E11*'Hours Structures'!$G$6+'Hours Electrical'!E11*'Hours Electrical'!$G$6+'Hours Building'!E11*'Hours Building'!$G$6+'Hours Mechanical'!E11*'Hours Mechanical'!$G$6+'Hours Electronic'!E11*'Hours Electronic'!$G$6+'Hours Other'!E11*'Hours Other'!$G$6+IF('Pricing Schedule'!$G$13="n",0,'Non Fee Hours'!E11)+IF('Pricing Schedule'!$G$16="n",0,'Non Fee Hours'!E111)+IF('Pricing Schedule'!$G$19="n",0,'Non Fee Hours'!E211)+IF('Pricing Schedule'!$G$240="n",0,'Non Fee Hours'!E311)+IF('Pricing Schedule'!$G$250="n",0,'Non Fee Hours'!E411) -> 0
B89: =IF(DATA!A1055="","",DATA!A1055) ->  | E89: ='Hours Roadworks'!E12*'Hours Roadworks'!$G$6+'Hours Structures'!E12*'Hours Structures'!$G$6+'Hours Electrical'!E12*'Hours Electrical'!$G$6+'Hours Building'!E12*'Hours Building'!$G$6+'Hours Mechanical'!E12*'Hours Mechanical'!$G$6+'Hours Electronic'!E12*'Hours Electronic'!$G$6+'Hours Other'!E12*'Hours Other'!$G$6+IF('Pricing Schedule'!$G$13="n",0,'Non Fee Hours'!E12)+IF('Pricing Schedule'!$G$16="n",0,'Non Fee Hours'!E112)+IF('Pricing Schedule'!$G$19="n",0,'Non Fee Hours'!E212)+IF('Pricing Schedule'!$G$240="n",0,'Non Fee Hours'!E312)+IF('Pricing Schedule'!$G$250="n",0,'Non Fee Hours'!E412) -> 0
B90: =IF(DATA!A1056="","",DATA!A1056) ->  | E90: ='Hours Roadworks'!E13*'Hours Roadworks'!$G$6+'Hours Structures'!E13*'Hours Structures'!$G$6+'Hours Electrical'!E13*'Hours Electrical'!$G$6+'Hours Building'!E13*'Hours Building'!$G$6+'Hours Mechanical'!E13*'Hours Mechanical'!$G$6+'Hours Electronic'!E13*'Hours Electronic'!$G$6+'Hours Other'!E13*'Hours Other'!$G$6+IF('Pricing Schedule'!$G$13="n",0,'Non Fee Hours'!E13)+IF('Pricing Schedule'!$G$16="n",0,'Non Fee Hours'!E113)+IF('Pricing Schedule'!$G$19="n",0,'Non Fee Hours'!E213)+IF('Pricing Schedule'!$G$240="n",0,'Non Fee Hours'!E313)+IF('Pricing Schedule'!$G$250="n",0,'Non Fee Hours'!E413) -> 0
B91: =IF(DATA!A1057="","",DATA!A1057) ->  | E91: ='Hours Roadworks'!E14*'Hours Roadworks'!$G$6+'Hours Structures'!E14*'Hours Structures'!$G$6+'Hours Electrical'!E14*'Hours Electrical'!$G$6+'Hours Building'!E14*'Hours Building'!$G$6+'Hours Mechanical'!E14*'Hours Mechanical'!$G$6+'Hours Electronic'!E14*'Hours Electronic'!$G$6+'Hours Other'!E14*'Hours Other'!$G$6+IF('Pricing Schedule'!$G$13="n",0,'Non Fee Hours'!E14)+IF('Pricing Schedule'!$G$16="n",0,'Non Fee Hours'!E114)+IF('Pricing Schedule'!$G$19="n",0,'Non Fee Hours'!E214)+IF('Pricing Schedule'!$G$240="n",0,'Non Fee Hours'!E314)+IF('Pricing Schedule'!$G$250="n",0,'Non Fee Hours'!E414) -> 0
B92: =IF(DATA!A1058="","",DATA!A1058) ->  | E92: ='Hours Roadworks'!E15*'Hours Roadworks'!$G$6+'Hours Structures'!E15*'Hours Structures'!$G$6+'Hours Electrical'!E15*'Hours Electrical'!$G$6+'Hours Building'!E15*'Hours Building'!$G$6+'Hours Mechanical'!E15*'Hours Mechanical'!$G$6+'Hours Electronic'!E15*'Hours Electronic'!$G$6+'Hours Other'!E15*'Hours Other'!$G$6+IF('Pricing Schedule'!$G$13="n",0,'Non Fee Hours'!E15)+IF('Pricing Schedule'!$G$16="n",0,'Non Fee Hours'!E115)+IF('Pricing Schedule'!$G$19="n",0,'Non Fee Hours'!E215)+IF('Pricing Schedule'!$G$240="n",0,'Non Fee Hours'!E315)+IF('Pricing Schedule'!$G$250="n",0,'Non Fee Hours'!E415) -> 0
B93: =IF(DATA!A1059="","",DATA!A1059) ->  | E93: ='Hours Roadworks'!E16*'Hours Roadworks'!$G$6+'Hours Structures'!E16*'Hours Structures'!$G$6+'Hours Electrical'!E16*'Hours Electrical'!$G$6+'Hours Building'!E16*'Hours Building'!$G$6+'Hours Mechanical'!E16*'Hours Mechanical'!$G$6+'Hours Electronic'!E16*'Hours Electronic'!$G$6+'Hours Other'!E16*'Hours Other'!$G$6+IF('Pricing Schedule'!$G$13="n",0,'Non Fee Hours'!E16)+IF('Pricing Schedule'!$G$16="n",0,'Non Fee Hours'!E116)+IF('Pricing Schedule'!$G$19="n",0,'Non Fee Hours'!E216)+IF('Pricing Schedule'!$G$240="n",0,'Non Fee Hours'!E316)+IF('Pricing Schedule'!$G$250="n",0,'Non Fee Hours'!E416) -> 0
B94: =IF(DATA!A1060="","",DATA!A1060) ->  | E94: ='Hours Roadworks'!E17*'Hours Roadworks'!$G$6+'Hours Structures'!E17*'Hours Structures'!$G$6+'Hours Electrical'!E17*'Hours Electrical'!$G$6+'Hours Building'!E17*'Hours Building'!$G$6+'Hours Mechanical'!E17*'Hours Mechanical'!$G$6+'Hours Electronic'!E17*'Hours Electronic'!$G$6+'Hours Other'!E17*'Hours Other'!$G$6+IF('Pricing Schedule'!$G$13="n",0,'Non Fee Hours'!E17)+IF('Pricing Schedule'!$G$16="n",0,'Non Fee Hours'!E117)+IF('Pricing Schedule'!$G$19="n",0,'Non Fee Hours'!E217)+IF('Pricing Schedule'!$G$240="n",0,'Non Fee Hours'!E317)+IF('Pricing Schedule'!$G$250="n",0,'Non Fee Hours'!E417) -> 0
E95: ='Hours Roadworks'!E18*'Hours Roadworks'!$G$6+'Hours Structures'!E18*'Hours Structures'!$G$6+'Hours Electrical'!E18*'Hours Electrical'!$G$6+'Hours Building'!E18*'Hours Building'!$G$6+'Hours Mechanical'!E18*'Hours Mechanical'!$G$6+'Hours Electronic'!E18*'Hours Electronic'!$G$6+'Hours Other'!E18*'Hours Other'!$G$6+IF('Pricing Schedule'!$G$13="n",0,'Non Fee Hours'!E18)+IF('Pricing Schedule'!$G$16="n",0,'Non Fee Hours'!E118)+IF('Pricing Schedule'!$G$19="n",0,'Non Fee Hours'!E218)+IF('Pricing Schedule'!$G$240="n",0,'Non Fee Hours'!E318)+IF('Pricing Schedule'!$G$250="n",0,'Non Fee Hours'!E418) -> 0
E96: ='Hours Roadworks'!E19*'Hours Roadworks'!$G$6+'Hours Structures'!E19*'Hours Structures'!$G$6+'Hours Electrical'!E19*'Hours Electrical'!$G$6+'Hours Building'!E19*'Hours Building'!$G$6+'Hours Mechanical'!E19*'Hours Mechanical'!$G$6+'Hours Electronic'!E19*'Hours Electronic'!$G$6+'Hours Other'!E19*'Hours Other'!$G$6+IF('Pricing Schedule'!$G$13="n",0,'Non Fee Hours'!E19)+IF('Pricing Schedule'!$G$16="n",0,'Non Fee Hours'!E119)+IF('Pricing Schedule'!$G$19="n",0,'Non Fee Hours'!E219)+IF('Pricing Schedule'!$G$240="n",0,'Non Fee Hours'!E319)+IF('Pricing Schedule'!$G$250="n",0,'Non Fee Hours'!E419) -> 0
E97: ='Hours Roadworks'!E20*'Hours Roadworks'!$G$6+'Hours Structures'!E20*'Hours Structures'!$G$6+'Hours Electrical'!E20*'Hours Electrical'!$G$6+'Hours Building'!E20*'Hours Building'!$G$6+'Hours Mechanical'!E20*'Hours Mechanical'!$G$6+'Hours Electronic'!E20*'Hours Electronic'!$G$6+'Hours Other'!E20*'Hours Other'!$G$6+IF('Pricing Schedule'!$G$13="n",0,'Non Fee Hours'!E20)+IF('Pricing Schedule'!$G$16="n",0,'Non Fee Hours'!E120)+IF('Pricing Schedule'!$G$19="n",0,'Non Fee Hours'!E220)+IF('Pricing Schedule'!$G$240="n",0,'Non Fee Hours'!E320)+IF('Pricing Schedule'!$G$250="n",0,'Non Fee Hours'!E420) -> 0
E98: ='Hours Roadworks'!E21*'Hours Roadworks'!$G$6+'Hours Structures'!E21*'Hours Structures'!$G$6+'Hours Electrical'!E21*'Hours Electrical'!$G$6+'Hours Building'!E21*'Hours Building'!$G$6+'Hours Mechanical'!E21*'Hours Mechanical'!$G$6+'Hours Electronic'!E21*'Hours Electronic'!$G$6+'Hours Other'!E21*'Hours Other'!$G$6+IF('Pricing Schedule'!$G$13="n",0,'Non Fee Hours'!E21)+IF('Pricing Schedule'!$G$16="n",0,'Non Fee Hours'!E121)+IF('Pricing Schedule'!$G$19="n",0,'Non Fee Hours'!E221)+IF('Pricing Schedule'!$G$240="n",0,'Non Fee Hours'!E321)+IF('Pricing Schedule'!$G$250="n",0,'Non Fee Hours'!E421) -> 0
E99: ='Hours Roadworks'!E22*'Hours Roadworks'!$G$6+'Hours Structures'!E22*'Hours Structures'!$G$6+'Hours Electrical'!E22*'Hours Electrical'!$G$6+'Hours Building'!E22*'Hours Building'!$G$6+'Hours Mechanical'!E22*'Hours Mechanical'!$G$6+'Hours Electronic'!E22*'Hours Electronic'!$G$6+'Hours Other'!E22*'Hours Other'!$G$6+IF('Pricing Schedule'!$G$13="n",0,'Non Fee Hours'!E22)+IF('Pricing Schedule'!$G$16="n",0,'Non Fee Hours'!E122)+IF('Pricing Schedule'!$G$19="n",0,'Non Fee Hours'!E222)+IF('Pricing Schedule'!$G$240="n",0,'Non Fee Hours'!E322)+IF('Pricing Schedule'!$G$250="n",0,'Non Fee Hours'!E422) -> 0
E100: ='Hours Roadworks'!E23*'Hours Roadworks'!$G$6+'Hours Structures'!E23*'Hours Structures'!$G$6+'Hours Electrical'!E23*'Hours Electrical'!$G$6+'Hours Building'!E23*'Hours Building'!$G$6+'Hours Mechanical'!E23*'Hours Mechanical'!$G$6+'Hours Electronic'!E23*'Hours Electronic'!$G$6+'Hours Other'!E23*'Hours Other'!$G$6+IF('Pricing Schedule'!$G$13="n",0,'Non Fee Hours'!E23)+IF('Pricing Schedule'!$G$16="n",0,'Non Fee Hours'!E123)+IF('Pricing Schedule'!$G$19="n",0,'Non Fee Hours'!E223)+IF('Pricing Schedule'!$G$240="n",0,'Non Fee Hours'!E323)+IF('Pricing Schedule'!$G$250="n",0,'Non Fee Hours'!E423) -> 0
E101: ='Hours Roadworks'!E24*'Hours Roadworks'!$G$6+'Hours Structures'!E24*'Hours Structures'!$G$6+'Hours Electrical'!E24*'Hours Electrical'!$G$6+'Hours Building'!E24*'Hours Building'!$G$6+'Hours Mechanical'!E24*'Hours Mechanical'!$G$6+'Hours Electronic'!E24*'Hours Electronic'!$G$6+'Hours Other'!E24*'Hours Other'!$G$6+IF('Pricing Schedule'!$G$13="n",0,'Non Fee Hours'!E24)+IF('Pricing Schedule'!$G$16="n",0,'Non Fee Hours'!E124)+IF('Pricing Schedule'!$G$19="n",0,'Non Fee Hours'!E224)+IF('Pricing Schedule'!$G$240="n",0,'Non Fee Hours'!E324)+IF('Pricing Schedule'!$G$250="n",0,'Non Fee Hours'!E424) -> 0
E102: ='Hours Roadworks'!E25*'Hours Roadworks'!$G$6+'Hours Structures'!E25*'Hours Structures'!$G$6+'Hours Electrical'!E25*'Hours Electrical'!$G$6+'Hours Building'!E25*'Hours Building'!$G$6+'Hours Mechanical'!E25*'Hours Mechanical'!$G$6+'Hours Electronic'!E25*'Hours Electronic'!$G$6+'Hours Other'!E25*'Hours Other'!$G$6+IF('Pricing Schedule'!$G$13="n",0,'Non Fee Hours'!E25)+IF('Pricing Schedule'!$G$16="n",0,'Non Fee Hours'!E125)+IF('Pricing Schedule'!$G$19="n",0,'Non Fee Hours'!E225)+IF('Pricing Schedule'!$G$240="n",0,'Non Fee Hours'!E325)+IF('Pricing Schedule'!$G$250="n",0,'Non Fee Hours'!E425) -> 0
E103: ='Hours Roadworks'!E26*'Hours Roadworks'!$G$6+'Hours Structures'!E26*'Hours Structures'!$G$6+'Hours Electrical'!E26*'Hours Electrical'!$G$6+'Hours Building'!E26*'Hours Building'!$G$6+'Hours Mechanical'!E26*'Hours Mechanical'!$G$6+'Hours Electronic'!E26*'Hours Electronic'!$G$6+'Hours Other'!E26*'Hours Other'!$G$6+IF('Pricing Schedule'!$G$13="n",0,'Non Fee Hours'!E26)+IF('Pricing Schedule'!$G$16="n",0,'Non Fee Hours'!E126)+IF('Pricing Schedule'!$G$19="n",0,'Non Fee Hours'!E226)+IF('Pricing Schedule'!$G$240="n",0,'Non Fee Hours'!E326)+IF('Pricing Schedule'!$G$250="n",0,'Non Fee Hours'!E426) -> 0
E104: ='Hours Roadworks'!E27*'Hours Roadworks'!$G$6+'Hours Structures'!E27*'Hours Structures'!$G$6+'Hours Electrical'!E27*'Hours Electrical'!$G$6+'Hours Building'!E27*'Hours Building'!$G$6+'Hours Mechanical'!E27*'Hours Mechanical'!$G$6+'Hours Electronic'!E27*'Hours Electronic'!$G$6+'Hours Other'!E27*'Hours Other'!$G$6+IF('Pricing Schedule'!$G$13="n",0,'Non Fee Hours'!E27)+IF('Pricing Schedule'!$G$16="n",0,'Non Fee Hours'!E127)+IF('Pricing Schedule'!$G$19="n",0,'Non Fee Hours'!E227)+IF('Pricing Schedule'!$G$240="n",0,'Non Fee Hours'!E327)+IF('Pricing Schedule'!$G$250="n",0,'Non Fee Hours'!E427) -> 0
B105: =$B$30 -> OTHER | C105: =$C$30 -> Various non-key personnel | E105: ='Hours Roadworks'!E28*'Hours Roadworks'!$G$6+'Hours Structures'!E28*'Hours Structures'!$G$6+'Hours Electrical'!E28*'Hours Electrical'!$G$6+'Hours Building'!E28*'Hours Building'!$G$6+'Hours Mechanical'!E28*'Hours Mechanical'!$G$6+'Hours Electronic'!E28*'Hours Electronic'!$G$6+'Hours Other'!E28*'Hours Other'!$G$6+IF('Pricing Schedule'!$G$13="n",0,'Non Fee Hours'!E28)+IF('Pricing Schedule'!$G$16="n",0,'Non Fee Hours'!E128)+IF('Pricing Schedule'!$G$19="n",0,'Non Fee Hours'!E228)+IF('Pricing Schedule'!$G$240="n",0,'Non Fee Hours'!E328)+IF('Pricing Schedule'!$G$250="n",0,'Non Fee Hours'!E428) -> 0 | F105: =IF(B105="","",$F$84) -> 3534 | G105: =IF(B105="","",(F105*E105)) -> 0
B106: (2) Category B | D106: hour | E106: =SUM(E107:E127) -> 0 | F106: =DATA!$B$8 -> 2796 | H106: =E106*F106 -> 0
B107: =IF(DATA!A1051="","",DATA!A1051) -> PL | C107: =IF(B10="","",C10) ->  | E107: ='Hours Roadworks'!E30*'Hours Roadworks'!$G$6+'Hours Structures'!E30*'Hours Structures'!$G$6+'Hours Electrical'!E30*'Hours Electrical'!$G$6+'Hours Building'!E30*'Hours Building'!$G$6+'Hours Mechanical'!E30*'Hours Mechanical'!$G$6+'Hours Electronic'!E30*'Hours Electronic'!$G$6+'Hours Other'!E30*'Hours Other'!$G$6+IF('Pricing Schedule'!$G$13="n",0,'Non Fee Hours'!E30)+IF('Pricing Schedule'!$G$16="n",0,'Non Fee Hours'!E130)+IF('Pricing Schedule'!$G$19="n",0,'Non Fee Hours'!E230)+IF('Pricing Schedule'!$G$240="n",0,'Non Fee Hours'!E330)+IF('Pricing Schedule'!$G$250="n",0,'Non Fee Hours'!E430) -> 0 | F107: =IF(B107="","",$F$106) -> 2796 | G107: =IF(B107="","",(F107*E107)) -> 0
B108: =IF(DATA!A1052="","",DATA!A1052) -> DS1 | C108: =IF(B11="","",C11) ->  | E108: ='Hours Roadworks'!E31*'Hours Roadworks'!$G$6+'Hours Structures'!E31*'Hours Structures'!$G$6+'Hours Electrical'!E31*'Hours Electrical'!$G$6+'Hours Building'!E31*'Hours Building'!$G$6+'Hours Mechanical'!E31*'Hours Mechanical'!$G$6+'Hours Electronic'!E31*'Hours Electronic'!$G$6+'Hours Other'!E31*'Hours Other'!$G$6+IF('Pricing Schedule'!$G$13="n",0,'Non Fee Hours'!E31)+IF('Pricing Schedule'!$G$16="n",0,'Non Fee Hours'!E131)+IF('Pricing Schedule'!$G$19="n",0,'Non Fee Hours'!E231)+IF('Pricing Schedule'!$G$240="n",0,'Non Fee Hours'!E331)+IF('Pricing Schedule'!$G$250="n",0,'Non Fee Hours'!E431) -> 0 | F108: =IF(B108="","",$F$106) -> 2796 | G108: =IF(B108="","",(F108*E108)) -> 0
B109: =IF(DATA!A1053="","",DATA!A1053) ->  | C109: =IF(B12="","",C12) ->  | E109: ='Hours Roadworks'!E32*'Hours Roadworks'!$G$6+'Hours Structures'!E32*'Hours Structures'!$G$6+'Hours Electrical'!E32*'Hours Electrical'!$G$6+'Hours Building'!E32*'Hours Building'!$G$6+'Hours Mechanical'!E32*'Hours Mechanical'!$G$6+'Hours Electronic'!E32*'Hours Electronic'!$G$6+'Hours Other'!E32*'Hours Other'!$G$6+IF('Pricing Schedule'!$G$13="n",0,'Non Fee Hours'!E32)+IF('Pricing Schedule'!$G$16="n",0,'Non Fee Hours'!E132)+IF('Pricing Schedule'!$G$19="n",0,'Non Fee Hours'!E232)+IF('Pricing Schedule'!$G$240="n",0,'Non Fee Hours'!E332)+IF('Pricing Schedule'!$G$250="n",0,'Non Fee Hours'!E432) -> 0
B110: =IF(DATA!A1054="","",DATA!A1054) ->  | E110: ='Hours Roadworks'!E33*'Hours Roadworks'!$G$6+'Hours Structures'!E33*'Hours Structures'!$G$6+'Hours Electrical'!E33*'Hours Electrical'!$G$6+'Hours Building'!E33*'Hours Building'!$G$6+'Hours Mechanical'!E33*'Hours Mechanical'!$G$6+'Hours Electronic'!E33*'Hours Electronic'!$G$6+'Hours Other'!E33*'Hours Other'!$G$6+IF('Pricing Schedule'!$G$13="n",0,'Non Fee Hours'!E33)+IF('Pricing Schedule'!$G$16="n",0,'Non Fee Hours'!E133)+IF('Pricing Schedule'!$G$19="n",0,'Non Fee Hours'!E233)+IF('Pricing Schedule'!$G$240="n",0,'Non Fee Hours'!E333)+IF('Pricing Schedule'!$G$250="n",0,'Non Fee Hours'!E433) -> 0
B111: =IF(DATA!A1055="","",DATA!A1055) ->  | E111: ='Hours Roadworks'!E34*'Hours Roadworks'!$G$6+'Hours Structures'!E34*'Hours Structures'!$G$6+'Hours Electrical'!E34*'Hours Electrical'!$G$6+'Hours Building'!E34*'Hours Building'!$G$6+'Hours Mechanical'!E34*'Hours Mechanical'!$G$6+'Hours Electronic'!E34*'Hours Electronic'!$G$6+'Hours Other'!E34*'Hours Other'!$G$6+IF('Pricing Schedule'!$G$13="n",0,'Non Fee Hours'!E34)+IF('Pricing Schedule'!$G$16="n",0,'Non Fee Hours'!E134)+IF('Pricing Schedule'!$G$19="n",0,'Non Fee Hours'!E234)+IF('Pricing Schedule'!$G$240="n",0,'Non Fee Hours'!E334)+IF('Pricing Schedule'!$G$250="n",0,'Non Fee Hours'!E434) -> 0
B112: =IF(DATA!A1056="","",DATA!A1056) ->  | E112: ='Hours Roadworks'!E35*'Hours Roadworks'!$G$6+'Hours Structures'!E35*'Hours Structures'!$G$6+'Hours Electrical'!E35*'Hours Electrical'!$G$6+'Hours Building'!E35*'Hours Building'!$G$6+'Hours Mechanical'!E35*'Hours Mechanical'!$G$6+'Hours Electronic'!E35*'Hours Electronic'!$G$6+'Hours Other'!E35*'Hours Other'!$G$6+IF('Pricing Schedule'!$G$13="n",0,'Non Fee Hours'!E35)+IF('Pricing Schedule'!$G$16="n",0,'Non Fee Hours'!E135)+IF('Pricing Schedule'!$G$19="n",0,'Non Fee Hours'!E235)+IF('Pricing Schedule'!$G$240="n",0,'Non Fee Hours'!E335)+IF('Pricing Schedule'!$G$250="n",0,'Non Fee Hours'!E435) -> 0
B113: =IF(DATA!A1057="","",DATA!A1057) ->  | E113: ='Hours Roadworks'!E36*'Hours Roadworks'!$G$6+'Hours Structures'!E36*'Hours Structures'!$G$6+'Hours Electrical'!E36*'Hours Electrical'!$G$6+'Hours Building'!E36*'Hours Building'!$G$6+'Hours Mechanical'!E36*'Hours Mechanical'!$G$6+'Hours Electronic'!E36*'Hours Electronic'!$G$6+'Hours Other'!E36*'Hours Other'!$G$6+IF('Pricing Schedule'!$G$13="n",0,'Non Fee Hours'!E36)+IF('Pricing Schedule'!$G$16="n",0,'Non Fee Hours'!E136)+IF('Pricing Schedule'!$G$19="n",0,'Non Fee Hours'!E236)+IF('Pricing Schedule'!$G$240="n",0,'Non Fee Hours'!E336)+IF('Pricing Schedule'!$G$250="n",0,'Non Fee Hours'!E436) -> 0
B114: =IF(DATA!A1058="","",DATA!A1058) ->  | E114: ='Hours Roadworks'!E37*'Hours Roadworks'!$G$6+'Hours Structures'!E37*'Hours Structures'!$G$6+'Hours Electrical'!E37*'Hours Electrical'!$G$6+'Hours Building'!E37*'Hours Building'!$G$6+'Hours Mechanical'!E37*'Hours Mechanical'!$G$6+'Hours Electronic'!E37*'Hours Electronic'!$G$6+'Hours Other'!E37*'Hours Other'!$G$6+IF('Pricing Schedule'!$G$13="n",0,'Non Fee Hours'!E37)+IF('Pricing Schedule'!$G$16="n",0,'Non Fee Hours'!E137)+IF('Pricing Schedule'!$G$19="n",0,'Non Fee Hours'!E237)+IF('Pricing Schedule'!$G$240="n",0,'Non Fee Hours'!E337)+IF('Pricing Schedule'!$G$250="n",0,'Non Fee Hours'!E437) -> 0
B115: =IF(DATA!A1059="","",DATA!A1059) ->  | E115: ='Hours Roadworks'!E38*'Hours Roadworks'!$G$6+'Hours Structures'!E38*'Hours Structures'!$G$6+'Hours Electrical'!E38*'Hours Electrical'!$G$6+'Hours Building'!E38*'Hours Building'!$G$6+'Hours Mechanical'!E38*'Hours Mechanical'!$G$6+'Hours Electronic'!E38*'Hours Electronic'!$G$6+'Hours Other'!E38*'Hours Other'!$G$6+IF('Pricing Schedule'!$G$13="n",0,'Non Fee Hours'!E38)+IF('Pricing Schedule'!$G$16="n",0,'Non Fee Hours'!E138)+IF('Pricing Schedule'!$G$19="n",0,'Non Fee Hours'!E238)+IF('Pricing Schedule'!$G$240="n",0,'Non Fee Hours'!E338)+IF('Pricing Schedule'!$G$250="n",0,'Non Fee Hours'!E438) -> 0
B116: =IF(DATA!A1060="","",DATA!A1060) ->  | E116: ='Hours Roadworks'!E39*'Hours Roadworks'!$G$6+'Hours Structures'!E39*'Hours Structures'!$G$6+'Hours Electrical'!E39*'Hours Electrical'!$G$6+'Hours Building'!E39*'Hours Building'!$G$6+'Hours Mechanical'!E39*'Hours Mechanical'!$G$6+'Hours Electronic'!E39*'Hours Electronic'!$G$6+'Hours Other'!E39*'Hours Other'!$G$6+IF('Pricing Schedule'!$G$13="n",0,'Non Fee Hours'!E39)+IF('Pricing Schedule'!$G$16="n",0,'Non Fee Hours'!E139)+IF('Pricing Schedule'!$G$19="n",0,'Non Fee Hours'!E239)+IF('Pricing Schedule'!$G$240="n",0,'Non Fee Hours'!E339)+IF('Pricing Schedule'!$G$250="n",0,'Non Fee Hours'!E439) -> 0
E117: ='Hours Roadworks'!E40*'Hours Roadworks'!$G$6+'Hours Structures'!E40*'Hours Structures'!$G$6+'Hours Electrical'!E40*'Hours Electrical'!$G$6+'Hours Building'!E40*'Hours Building'!$G$6+'Hours Mechanical'!E40*'Hours Mechanical'!$G$6+'Hours Electronic'!E40*'Hours Electronic'!$G$6+'Hours Other'!E40*'Hours Other'!$G$6+IF('Pricing Schedule'!$G$13="n",0,'Non Fee Hours'!E40)+IF('Pricing Schedule'!$G$16="n",0,'Non Fee Hours'!E140)+IF('Pricing Schedule'!$G$19="n",0,'Non Fee Hours'!E240)+IF('Pricing Schedule'!$G$240="n",0,'Non Fee Hours'!E340)+IF('Pricing Schedule'!$G$250="n",0,'Non Fee Hours'!E440) -> 0
E118: ='Hours Roadworks'!E41*'Hours Roadworks'!$G$6+'Hours Structures'!E41*'Hours Structures'!$G$6+'Hours Electrical'!E41*'Hours Electrical'!$G$6+'Hours Building'!E41*'Hours Building'!$G$6+'Hours Mechanical'!E41*'Hours Mechanical'!$G$6+'Hours Electronic'!E41*'Hours Electronic'!$G$6+'Hours Other'!E41*'Hours Other'!$G$6+IF('Pricing Schedule'!$G$13="n",0,'Non Fee Hours'!E41)+IF('Pricing Schedule'!$G$16="n",0,'Non Fee Hours'!E141)+IF('Pricing Schedule'!$G$19="n",0,'Non Fee Hours'!E241)+IF('Pricing Schedule'!$G$240="n",0,'Non Fee Hours'!E341)+IF('Pricing Schedule'!$G$250="n",0,'Non Fee Hours'!E441) -> 0
E119: ='Hours Roadworks'!E42*'Hours Roadworks'!$G$6+'Hours Structures'!E42*'Hours Structures'!$G$6+'Hours Electrical'!E42*'Hours Electrical'!$G$6+'Hours Building'!E42*'Hours Building'!$G$6+'Hours Mechanical'!E42*'Hours Mechanical'!$G$6+'Hours Electronic'!E42*'Hours Electronic'!$G$6+'Hours Other'!E42*'Hours Other'!$G$6+IF('Pricing Schedule'!$G$13="n",0,'Non Fee Hours'!E42)+IF('Pricing Schedule'!$G$16="n",0,'Non Fee Hours'!E142)+IF('Pricing Schedule'!$G$19="n",0,'Non Fee Hours'!E242)+IF('Pricing Schedule'!$G$240="n",0,'Non Fee Hours'!E342)+IF('Pricing Schedule'!$G$250="n",0,'Non Fee Hours'!E442) -> 0
E120: ='Hours Roadworks'!E43*'Hours Roadworks'!$G$6+'Hours Structures'!E43*'Hours Structures'!$G$6+'Hours Electrical'!E43*'Hours Electrical'!$G$6+'Hours Building'!E43*'Hours Building'!$G$6+'Hours Mechanical'!E43*'Hours Mechanical'!$G$6+'Hours Electronic'!E43*'Hours Electronic'!$G$6+'Hours Other'!E43*'Hours Other'!$G$6+IF('Pricing Schedule'!$G$13="n",0,'Non Fee Hours'!E43)+IF('Pricing Schedule'!$G$16="n",0,'Non Fee Hours'!E143)+IF('Pricing Schedule'!$G$19="n",0,'Non Fee Hours'!E243)+IF('Pricing Schedule'!$G$240="n",0,'Non Fee Hours'!E343)+IF('Pricing Schedule'!$G$250="n",0,'Non Fee Hours'!E443) -> 0
E121: ='Hours Roadworks'!E44*'Hours Roadworks'!$G$6+'Hours Structures'!E44*'Hours Structures'!$G$6+'Hours Electrical'!E44*'Hours Electrical'!$G$6+'Hours Building'!E44*'Hours Building'!$G$6+'Hours Mechanical'!E44*'Hours Mechanical'!$G$6+'Hours Electronic'!E44*'Hours Electronic'!$G$6+'Hours Other'!E44*'Hours Other'!$G$6+IF('Pricing Schedule'!$G$13="n",0,'Non Fee Hours'!E44)+IF('Pricing Schedule'!$G$16="n",0,'Non Fee Hours'!E144)+IF('Pricing Schedule'!$G$19="n",0,'Non Fee Hours'!E244)+IF('Pricing Schedule'!$G$240="n",0,'Non Fee Hours'!E344)+IF('Pricing Schedule'!$G$250="n",0,'Non Fee Hours'!E444) -> 0
E122: ='Hours Roadworks'!E45*'Hours Roadworks'!$G$6+'Hours Structures'!E45*'Hours Structures'!$G$6+'Hours Electrical'!E45*'Hours Electrical'!$G$6+'Hours Building'!E45*'Hours Building'!$G$6+'Hours Mechanical'!E45*'Hours Mechanical'!$G$6+'Hours Electronic'!E45*'Hours Electronic'!$G$6+'Hours Other'!E45*'Hours Other'!$G$6+IF('Pricing Schedule'!$G$13="n",0,'Non Fee Hours'!E45)+IF('Pricing Schedule'!$G$16="n",0,'Non Fee Hours'!E145)+IF('Pricing Schedule'!$G$19="n",0,'Non Fee Hours'!E245)+IF('Pricing Schedule'!$G$240="n",0,'Non Fee Hours'!E345)+IF('Pricing Schedule'!$G$250="n",0,'Non Fee Hours'!E445) -> 0
E123: ='Hours Roadworks'!E46*'Hours Roadworks'!$G$6+'Hours Structures'!E46*'Hours Structures'!$G$6+'Hours Electrical'!E46*'Hours Electrical'!$G$6+'Hours Building'!E46*'Hours Building'!$G$6+'Hours Mechanical'!E46*'Hours Mechanical'!$G$6+'Hours Electronic'!E46*'Hours Electronic'!$G$6+'Hours Other'!E46*'Hours Other'!$G$6+IF('Pricing Schedule'!$G$13="n",0,'Non Fee Hours'!E46)+IF('Pricing Schedule'!$G$16="n",0,'Non Fee Hours'!E146)+IF('Pricing Schedule'!$G$19="n",0,'Non Fee Hours'!E246)+IF('Pricing Schedule'!$G$240="n",0,'Non Fee Hours'!E346)+IF('Pricing Schedule'!$G$250="n",0,'Non Fee Hours'!E446) -> 0
E124: ='Hours Roadworks'!E47*'Hours Roadworks'!$G$6+'Hours Structures'!E47*'Hours Structures'!$G$6+'Hours Electrical'!E47*'Hours Electrical'!$G$6+'Hours Building'!E47*'Hours Building'!$G$6+'Hours Mechanical'!E47*'Hours Mechanical'!$G$6+'Hours Electronic'!E47*'Hours Electronic'!$G$6+'Hours Other'!E47*'Hours Other'!$G$6+IF('Pricing Schedule'!$G$13="n",0,'Non Fee Hours'!E47)+IF('Pricing Schedule'!$G$16="n",0,'Non Fee Hours'!E147)+IF('Pricing Schedule'!$G$19="n",0,'Non Fee Hours'!E247)+IF('Pricing Schedule'!$G$240="n",0,'Non Fee Hours'!E347)+IF('Pricing Schedule'!$G$250="n",0,'Non Fee Hours'!E447) -> 0
E125: ='Hours Roadworks'!E48*'Hours Roadworks'!$G$6+'Hours Structures'!E48*'Hours Structures'!$G$6+'Hours Electrical'!E48*'Hours Electrical'!$G$6+'Hours Building'!E48*'Hours Building'!$G$6+'Hours Mechanical'!E48*'Hours Mechanical'!$G$6+'Hours Electronic'!E48*'Hours Electronic'!$G$6+'Hours Other'!E48*'Hours Other'!$G$6+IF('Pricing Schedule'!$G$13="n",0,'Non Fee Hours'!E48)+IF('Pricing Schedule'!$G$16="n",0,'Non Fee Hours'!E148)+IF('Pricing Schedule'!$G$19="n",0,'Non Fee Hours'!E248)+IF('Pricing Schedule'!$G$240="n",0,'Non Fee Hours'!E348)+IF('Pricing Schedule'!$G$250="n",0,'Non Fee Hours'!E448) -> 0
E126: ='Hours Roadworks'!E49*'Hours Roadworks'!$G$6+'Hours Structures'!E49*'Hours Structures'!$G$6+'Hours Electrical'!E49*'Hours Electrical'!$G$6+'Hours Building'!E49*'Hours Building'!$G$6+'Hours Mechanical'!E49*'Hours Mechanical'!$G$6+'Hours Electronic'!E49*'Hours Electronic'!$G$6+'Hours Other'!E49*'Hours Other'!$G$6+IF('Pricing Schedule'!$G$13="n",0,'Non Fee Hours'!E49)+IF('Pricing Schedule'!$G$16="n",0,'Non Fee Hours'!E149)+IF('Pricing Schedule'!$G$19="n",0,'Non Fee Hours'!E249)+IF('Pricing Schedule'!$G$240="n",0,'Non Fee Hours'!E349)+IF('Pricing Schedule'!$G$250="n",0,'Non Fee Hours'!E449) -> 0
B127: =$B$30 -> OTHER | C127: =$C$30 -> Various non-key personnel | E127: ='Hours Roadworks'!E50*'Hours Roadworks'!$G$6+'Hours Structures'!E50*'Hours Structures'!$G$6+'Hours Electrical'!E50*'Hours Electrical'!$G$6+'Hours Building'!E50*'Hours Building'!$G$6+'Hours Mechanical'!E50*'Hours Mechanical'!$G$6+'Hours Electronic'!E50*'Hours Electronic'!$G$6+'Hours Other'!E50*'Hours Other'!$G$6+IF('Pricing Schedule'!$G$13="n",0,'Non Fee Hours'!E50)+IF('Pricing Schedule'!$G$16="n",0,'Non Fee Hours'!E150)+IF('Pricing Schedule'!$G$19="n",0,'Non Fee Hours'!E250)+IF('Pricing Schedule'!$G$240="n",0,'Non Fee Hours'!E350)+IF('Pricing Schedule'!$G$250="n",0,'Non Fee Hours'!E450) -> 0 | F127: =IF(B127="","",F106) -> 2796 | G127: =IF(B127="","",(F127*E127)) -> 0
B128: (3) Category C | D128: hour | E128: =SUM(E129:E149) -> 0 | F128: =DATA!$B$9 -> 2403 | H128: =E128*F128 -> 0
B129: =IF(DATA!A1051="","",DATA!A1051) -> PL | C129: =IF(B10="","",C10) ->  | E129: ='Hours Roadworks'!E52*'Hours Roadworks'!$G$6+'Hours Structures'!E52*'Hours Structures'!$G$6+'Hours Electrical'!E52*'Hours Electrical'!$G$6+'Hours Building'!E52*'Hours Building'!$G$6+'Hours Mechanical'!E52*'Hours Mechanical'!$G$6+'Hours Electronic'!E52*'Hours Electronic'!$G$6+'Hours Other'!E52*'Hours Other'!$G$6+IF('Pricing Schedule'!$G$13="n",0,'Non Fee Hours'!E52)+IF('Pricing Schedule'!$G$16="n",0,'Non Fee Hours'!E152)+IF('Pricing Schedule'!$G$19="n",0,'Non Fee Hours'!E252)+IF('Pricing Schedule'!$G$240="n",0,'Non Fee Hours'!E352)+IF('Pricing Schedule'!$G$250="n",0,'Non Fee Hours'!E452) -> 0 | F129: =IF(B129="","",$F$128) -> 2403 | G129: =IF(B129="","",(F129*E129)) -> 0
B130: =IF(DATA!A1052="","",DATA!A1052) -> DS1 | C130: =IF(B11="","",C11) ->  | E130: ='Hours Roadworks'!E53*'Hours Roadworks'!$G$6+'Hours Structures'!E53*'Hours Structures'!$G$6+'Hours Electrical'!E53*'Hours Electrical'!$G$6+'Hours Building'!E53*'Hours Building'!$G$6+'Hours Mechanical'!E53*'Hours Mechanical'!$G$6+'Hours Electronic'!E53*'Hours Electronic'!$G$6+'Hours Other'!E53*'Hours Other'!$G$6+IF('Pricing Schedule'!$G$13="n",0,'Non Fee Hours'!E53)+IF('Pricing Schedule'!$G$16="n",0,'Non Fee Hours'!E153)+IF('Pricing Schedule'!$G$19="n",0,'Non Fee Hours'!E253)+IF('Pricing Schedule'!$G$240="n",0,'Non Fee Hours'!E353)+IF('Pricing Schedule'!$G$250="n",0,'Non Fee Hours'!E453) -> 0 | F130: =IF(B130="","",$F$128) -> 2403 | G130: =IF(B130="","",(F130*E130)) -> 0
B131: =IF(DATA!A1053="","",DATA!A1053) ->  | C131: =IF(B12="","",C12) ->  | E131: ='Hours Roadworks'!E54*'Hours Roadworks'!$G$6+'Hours Structures'!E54*'Hours Structures'!$G$6+'Hours Electrical'!E54*'Hours Electrical'!$G$6+'Hours Building'!E54*'Hours Building'!$G$6+'Hours Mechanical'!E54*'Hours Mechanical'!$G$6+'Hours Electronic'!E54*'Hours Electronic'!$G$6+'Hours Other'!E54*'Hours Other'!$G$6+IF('Pricing Schedule'!$G$13="n",0,'Non Fee Hours'!E54)+IF('Pricing Schedule'!$G$16="n",0,'Non Fee Hours'!E154)+IF('Pricing Schedule'!$G$19="n",0,'Non Fee Hours'!E254)+IF('Pricing Schedule'!$G$240="n",0,'Non Fee Hours'!E354)+IF('Pricing Schedule'!$G$250="n",0,'Non Fee Hours'!E454) -> 0 | F131: =IF(B131="","",$F$128) -> 
B132: =IF(DATA!A1054="","",DATA!A1054) ->  | E132: ='Hours Roadworks'!E55*'Hours Roadworks'!$G$6+'Hours Structures'!E55*'Hours Structures'!$G$6+'Hours Electrical'!E55*'Hours Electrical'!$G$6+'Hours Building'!E55*'Hours Building'!$G$6+'Hours Mechanical'!E55*'Hours Mechanical'!$G$6+'Hours Electronic'!E55*'Hours Electronic'!$G$6+'Hours Other'!E55*'Hours Other'!$G$6+IF('Pricing Schedule'!$G$13="n",0,'Non Fee Hours'!E55)+IF('Pricing Schedule'!$G$16="n",0,'Non Fee Hours'!E155)+IF('Pricing Schedule'!$G$19="n",0,'Non Fee Hours'!E255)+IF('Pricing Schedule'!$G$240="n",0,'Non Fee Hours'!E355)+IF('Pricing Schedule'!$G$250="n",0,'Non Fee Hours'!E455) -> 0 | G132: =IF(B132="","",(F132*E132)) -> 
B133: =IF(DATA!A1055="","",DATA!A1055) ->  | E133: ='Hours Roadworks'!E56*'Hours Roadworks'!$G$6+'Hours Structures'!E56*'Hours Structures'!$G$6+'Hours Electrical'!E56*'Hours Electrical'!$G$6+'Hours Building'!E56*'Hours Building'!$G$6+'Hours Mechanical'!E56*'Hours Mechanical'!$G$6+'Hours Electronic'!E56*'Hours Electronic'!$G$6+'Hours Other'!E56*'Hours Other'!$G$6+IF('Pricing Schedule'!$G$13="n",0,'Non Fee Hours'!E56)+IF('Pricing Schedule'!$G$16="n",0,'Non Fee Hours'!E156)+IF('Pricing Schedule'!$G$19="n",0,'Non Fee Hours'!E256)+IF('Pricing Schedule'!$G$240="n",0,'Non Fee Hours'!E356)+IF('Pricing Schedule'!$G$250="n",0,'Non Fee Hours'!E456) -> 0
B134: =IF(DATA!A1056="","",DATA!A1056) ->  | E134: ='Hours Roadworks'!E57*'Hours Roadworks'!$G$6+'Hours Structures'!E57*'Hours Structures'!$G$6+'Hours Electrical'!E57*'Hours Electrical'!$G$6+'Hours Building'!E57*'Hours Building'!$G$6+'Hours Mechanical'!E57*'Hours Mechanical'!$G$6+'Hours Electronic'!E57*'Hours Electronic'!$G$6+'Hours Other'!E57*'Hours Other'!$G$6+IF('Pricing Schedule'!$G$13="n",0,'Non Fee Hours'!E57)+IF('Pricing Schedule'!$G$16="n",0,'Non Fee Hours'!E157)+IF('Pricing Schedule'!$G$19="n",0,'Non Fee Hours'!E257)+IF('Pricing Schedule'!$G$240="n",0,'Non Fee Hours'!E357)+IF('Pricing Schedule'!$G$250="n",0,'Non Fee Hours'!E457) -> 0
B135: =IF(DATA!A1057="","",DATA!A1057) ->  | E135: ='Hours Roadworks'!E58*'Hours Roadworks'!$G$6+'Hours Structures'!E58*'Hours Structures'!$G$6+'Hours Electrical'!E58*'Hours Electrical'!$G$6+'Hours Building'!E58*'Hours Building'!$G$6+'Hours Mechanical'!E58*'Hours Mechanical'!$G$6+'Hours Electronic'!E58*'Hours Electronic'!$G$6+'Hours Other'!E58*'Hours Other'!$G$6+IF('Pricing Schedule'!$G$13="n",0,'Non Fee Hours'!E58)+IF('Pricing Schedule'!$G$16="n",0,'Non Fee Hours'!E158)+IF('Pricing Schedule'!$G$19="n",0,'Non Fee Hours'!E258)+IF('Pricing Schedule'!$G$240="n",0,'Non Fee Hours'!E358)+IF('Pricing Schedule'!$G$250="n",0,'Non Fee Hours'!E458) -> 0
B136: =IF(DATA!A1058="","",DATA!A1058) ->  | E136: ='Hours Roadworks'!E59*'Hours Roadworks'!$G$6+'Hours Structures'!E59*'Hours Structures'!$G$6+'Hours Electrical'!E59*'Hours Electrical'!$G$6+'Hours Building'!E59*'Hours Building'!$G$6+'Hours Mechanical'!E59*'Hours Mechanical'!$G$6+'Hours Electronic'!E59*'Hours Electronic'!$G$6+'Hours Other'!E59*'Hours Other'!$G$6+IF('Pricing Schedule'!$G$13="n",0,'Non Fee Hours'!E59)+IF('Pricing Schedule'!$G$16="n",0,'Non Fee Hours'!E159)+IF('Pricing Schedule'!$G$19="n",0,'Non Fee Hours'!E259)+IF('Pricing Schedule'!$G$240="n",0,'Non Fee Hours'!E359)+IF('Pricing Schedule'!$G$250="n",0,'Non Fee Hours'!E459) -> 0
B137: =IF(DATA!A1059="","",DATA!A1059) ->  | E137: ='Hours Roadworks'!E60*'Hours Roadworks'!$G$6+'Hours Structures'!E60*'Hours Structures'!$G$6+'Hours Electrical'!E60*'Hours Electrical'!$G$6+'Hours Building'!E60*'Hours Building'!$G$6+'Hours Mechanical'!E60*'Hours Mechanical'!$G$6+'Hours Electronic'!E60*'Hours Electronic'!$G$6+'Hours Other'!E60*'Hours Other'!$G$6+IF('Pricing Schedule'!$G$13="n",0,'Non Fee Hours'!E60)+IF('Pricing Schedule'!$G$16="n",0,'Non Fee Hours'!E160)+IF('Pricing Schedule'!$G$19="n",0,'Non Fee Hours'!E260)+IF('Pricing Schedule'!$G$240="n",0,'Non Fee Hours'!E360)+IF('Pricing Schedule'!$G$250="n",0,'Non Fee Hours'!E460) -> 0
B138: =IF(DATA!A1060="","",DATA!A1060) ->  | E138: ='Hours Roadworks'!E61*'Hours Roadworks'!$G$6+'Hours Structures'!E61*'Hours Structures'!$G$6+'Hours Electrical'!E61*'Hours Electrical'!$G$6+'Hours Building'!E61*'Hours Building'!$G$6+'Hours Mechanical'!E61*'Hours Mechanical'!$G$6+'Hours Electronic'!E61*'Hours Electronic'!$G$6+'Hours Other'!E61*'Hours Other'!$G$6+IF('Pricing Schedule'!$G$13="n",0,'Non Fee Hours'!E61)+IF('Pricing Schedule'!$G$16="n",0,'Non Fee Hours'!E161)+IF('Pricing Schedule'!$G$19="n",0,'Non Fee Hours'!E261)+IF('Pricing Schedule'!$G$240="n",0,'Non Fee Hours'!E361)+IF('Pricing Schedule'!$G$250="n",0,'Non Fee Hours'!E461) -> 0
E139: ='Hours Roadworks'!E62*'Hours Roadworks'!$G$6+'Hours Structures'!E62*'Hours Structures'!$G$6+'Hours Electrical'!E62*'Hours Electrical'!$G$6+'Hours Building'!E62*'Hours Building'!$G$6+'Hours Mechanical'!E62*'Hours Mechanical'!$G$6+'Hours Electronic'!E62*'Hours Electronic'!$G$6+'Hours Other'!E62*'Hours Other'!$G$6+IF('Pricing Schedule'!$G$13="n",0,'Non Fee Hours'!E62)+IF('Pricing Schedule'!$G$16="n",0,'Non Fee Hours'!E162)+IF('Pricing Schedule'!$G$19="n",0,'Non Fee Hours'!E262)+IF('Pricing Schedule'!$G$240="n",0,'Non Fee Hours'!E362)+IF('Pricing Schedule'!$G$250="n",0,'Non Fee Hours'!E462) -> 0
E140: ='Hours Roadworks'!E63*'Hours Roadworks'!$G$6+'Hours Structures'!E63*'Hours Structures'!$G$6+'Hours Electrical'!E63*'Hours Electrical'!$G$6+'Hours Building'!E63*'Hours Building'!$G$6+'Hours Mechanical'!E63*'Hours Mechanical'!$G$6+'Hours Electronic'!E63*'Hours Electronic'!$G$6+'Hours Other'!E63*'Hours Other'!$G$6+IF('Pricing Schedule'!$G$13="n",0,'Non Fee Hours'!E63)+IF('Pricing Schedule'!$G$16="n",0,'Non Fee Hours'!E163)+IF('Pricing Schedule'!$G$19="n",0,'Non Fee Hours'!E263)+IF('Pricing Schedule'!$G$240="n",0,'Non Fee Hours'!E363)+IF('Pricing Schedule'!$G$250="n",0,'Non Fee Hours'!E463) -> 0
E141: ='Hours Roadworks'!E64*'Hours Roadworks'!$G$6+'Hours Structures'!E64*'Hours Structures'!$G$6+'Hours Electrical'!E64*'Hours Electrical'!$G$6+'Hours Building'!E64*'Hours Building'!$G$6+'Hours Mechanical'!E64*'Hours Mechanical'!$G$6+'Hours Electronic'!E64*'Hours Electronic'!$G$6+'Hours Other'!E64*'Hours Other'!$G$6+IF('Pricing Schedule'!$G$13="n",0,'Non Fee Hours'!E64)+IF('Pricing Schedule'!$G$16="n",0,'Non Fee Hours'!E164)+IF('Pricing Schedule'!$G$19="n",0,'Non Fee Hours'!E264)+IF('Pricing Schedule'!$G$240="n",0,'Non Fee Hours'!E364)+IF('Pricing Schedule'!$G$250="n",0,'Non Fee Hours'!E464) -> 0
E142: ='Hours Roadworks'!E65*'Hours Roadworks'!$G$6+'Hours Structures'!E65*'Hours Structures'!$G$6+'Hours Electrical'!E65*'Hours Electrical'!$G$6+'Hours Building'!E65*'Hours Building'!$G$6+'Hours Mechanical'!E65*'Hours Mechanical'!$G$6+'Hours Electronic'!E65*'Hours Electronic'!$G$6+'Hours Other'!E65*'Hours Other'!$G$6+IF('Pricing Schedule'!$G$13="n",0,'Non Fee Hours'!E65)+IF('Pricing Schedule'!$G$16="n",0,'Non Fee Hours'!E165)+IF('Pricing Schedule'!$G$19="n",0,'Non Fee Hours'!E265)+IF('Pricing Schedule'!$G$240="n",0,'Non Fee Hours'!E365)+IF('Pricing Schedule'!$G$250="n",0,'Non Fee Hours'!E465) -> 0
E143: ='Hours Roadworks'!E66*'Hours Roadworks'!$G$6+'Hours Structures'!E66*'Hours Structures'!$G$6+'Hours Electrical'!E66*'Hours Electrical'!$G$6+'Hours Building'!E66*'Hours Building'!$G$6+'Hours Mechanical'!E66*'Hours Mechanical'!$G$6+'Hours Electronic'!E66*'Hours Electronic'!$G$6+'Hours Other'!E66*'Hours Other'!$G$6+IF('Pricing Schedule'!$G$13="n",0,'Non Fee Hours'!E66)+IF('Pricing Schedule'!$G$16="n",0,'Non Fee Hours'!E166)+IF('Pricing Schedule'!$G$19="n",0,'Non Fee Hours'!E266)+IF('Pricing Schedule'!$G$240="n",0,'Non Fee Hours'!E366)+IF('Pricing Schedule'!$G$250="n",0,'Non Fee Hours'!E466) -> 0
E144: ='Hours Roadworks'!E67*'Hours Roadworks'!$G$6+'Hours Structures'!E67*'Hours Structures'!$G$6+'Hours Electrical'!E67*'Hours Electrical'!$G$6+'Hours Building'!E67*'Hours Building'!$G$6+'Hours Mechanical'!E67*'Hours Mechanical'!$G$6+'Hours Electronic'!E67*'Hours Electronic'!$G$6+'Hours Other'!E67*'Hours Other'!$G$6+IF('Pricing Schedule'!$G$13="n",0,'Non Fee Hours'!E67)+IF('Pricing Schedule'!$G$16="n",0,'Non Fee Hours'!E167)+IF('Pricing Schedule'!$G$19="n",0,'Non Fee Hours'!E267)+IF('Pricing Schedule'!$G$240="n",0,'Non Fee Hours'!E367)+IF('Pricing Schedule'!$G$250="n",0,'Non Fee Hours'!E467) -> 0
E145: ='Hours Roadworks'!E68*'Hours Roadworks'!$G$6+'Hours Structures'!E68*'Hours Structures'!$G$6+'Hours Electrical'!E68*'Hours Electrical'!$G$6+'Hours Building'!E68*'Hours Building'!$G$6+'Hours Mechanical'!E68*'Hours Mechanical'!$G$6+'Hours Electronic'!E68*'Hours Electronic'!$G$6+'Hours Other'!E68*'Hours Other'!$G$6+IF('Pricing Schedule'!$G$13="n",0,'Non Fee Hours'!E68)+IF('Pricing Schedule'!$G$16="n",0,'Non Fee Hours'!E168)+IF('Pricing Schedule'!$G$19="n",0,'Non Fee Hours'!E268)+IF('Pricing Schedule'!$G$240="n",0,'Non Fee Hours'!E368)+IF('Pricing Schedule'!$G$250="n",0,'Non Fee Hours'!E468) -> 0
E146: ='Hours Roadworks'!E69*'Hours Roadworks'!$G$6+'Hours Structures'!E69*'Hours Structures'!$G$6+'Hours Electrical'!E69*'Hours Electrical'!$G$6+'Hours Building'!E69*'Hours Building'!$G$6+'Hours Mechanical'!E69*'Hours Mechanical'!$G$6+'Hours Electronic'!E69*'Hours Electronic'!$G$6+'Hours Other'!E69*'Hours Other'!$G$6+IF('Pricing Schedule'!$G$13="n",0,'Non Fee Hours'!E69)+IF('Pricing Schedule'!$G$16="n",0,'Non Fee Hours'!E169)+IF('Pricing Schedule'!$G$19="n",0,'Non Fee Hours'!E269)+IF('Pricing Schedule'!$G$240="n",0,'Non Fee Hours'!E369)+IF('Pricing Schedule'!$G$250="n",0,'Non Fee Hours'!E469) -> 0
E147: ='Hours Roadworks'!E70*'Hours Roadworks'!$G$6+'Hours Structures'!E70*'Hours Structures'!$G$6+'Hours Electrical'!E70*'Hours Electrical'!$G$6+'Hours Building'!E70*'Hours Building'!$G$6+'Hours Mechanical'!E70*'Hours Mechanical'!$G$6+'Hours Electronic'!E70*'Hours Electronic'!$G$6+'Hours Other'!E70*'Hours Other'!$G$6+IF('Pricing Schedule'!$G$13="n",0,'Non Fee Hours'!E70)+IF('Pricing Schedule'!$G$16="n",0,'Non Fee Hours'!E170)+IF('Pricing Schedule'!$G$19="n",0,'Non Fee Hours'!E270)+IF('Pricing Schedule'!$G$240="n",0,'Non Fee Hours'!E370)+IF('Pricing Schedule'!$G$250="n",0,'Non Fee Hours'!E470) -> 0
E148: ='Hours Roadworks'!E71*'Hours Roadworks'!$G$6+'Hours Structures'!E71*'Hours Structures'!$G$6+'Hours Electrical'!E71*'Hours Electrical'!$G$6+'Hours Building'!E71*'Hours Building'!$G$6+'Hours Mechanical'!E71*'Hours Mechanical'!$G$6+'Hours Electronic'!E71*'Hours Electronic'!$G$6+'Hours Other'!E71*'Hours Other'!$G$6+IF('Pricing Schedule'!$G$13="n",0,'Non Fee Hours'!E71)+IF('Pricing Schedule'!$G$16="n",0,'Non Fee Hours'!E171)+IF('Pricing Schedule'!$G$19="n",0,'Non Fee Hours'!E271)+IF('Pricing Schedule'!$G$240="n",0,'Non Fee Hours'!E371)+IF('Pricing Schedule'!$G$250="n",0,'Non Fee Hours'!E471) -> 0
B149: =$B$30 -> OTHER | C149: =$C$30 -> Various non-key personnel | E149: ='Hours Roadworks'!E72*'Hours Roadworks'!$G$6+'Hours Structures'!E72*'Hours Structures'!$G$6+'Hours Electrical'!E72*'Hours Electrical'!$G$6+'Hours Building'!E72*'Hours Building'!$G$6+'Hours Mechanical'!E72*'Hours Mechanical'!$G$6+'Hours Electronic'!E72*'Hours Electronic'!$G$6+'Hours Other'!E72*'Hours Other'!$G$6+IF('Pricing Schedule'!$G$13="n",0,'Non Fee Hours'!E72)+IF('Pricing Schedule'!$G$16="n",0,'Non Fee Hours'!E172)+IF('Pricing Schedule'!$G$19="n",0,'Non Fee Hours'!E272)+IF('Pricing Schedule'!$G$240="n",0,'Non Fee Hours'!E372)+IF('Pricing Schedule'!$G$250="n",0,'Non Fee Hours'!E472) -> 0 | F149: =IF(B149="","",$F$128) -> 2403 | G149: 0
B150: (4) Category D | D150: hour | E150: =SUM(E151:E171) -> 0 | F150: =DATA!$B$10 -> 1167 | H150: =E150*F150 -> 0
B151: =IF(DATA!A1051="","",DATA!A1051) -> PL | C151: =IF(B10="","",C10) ->  | E151: ='Hours Roadworks'!E74*'Hours Roadworks'!$G$6+'Hours Structures'!E74*'Hours Structures'!$G$6+'Hours Electrical'!E74*'Hours Electrical'!$G$6+'Hours Building'!E74*'Hours Building'!$G$6+'Hours Mechanical'!E74*'Hours Mechanical'!$G$6+'Hours Electronic'!E74*'Hours Electronic'!$G$6+'Hours Other'!E74*'Hours Other'!$G$6+IF('Pricing Schedule'!$G$13="n",0,'Non Fee Hours'!E74)+IF('Pricing Schedule'!$G$16="n",0,'Non Fee Hours'!E174)+IF('Pricing Schedule'!$G$19="n",0,'Non Fee Hours'!E274)+IF('Pricing Schedule'!$G$240="n",0,'Non Fee Hours'!E374)+IF('Pricing Schedule'!$G$250="n",0,'Non Fee Hours'!E474) -> 0 | F151: =IF(B151="","",$F$150) -> 1167 | G151: =IF(B151="","",(F151*E151)) -> 0
B152: =IF(DATA!A1052="","",DATA!A1052) -> DS1 | C152: =IF(B11="","",C11) ->  | E152: ='Hours Roadworks'!E75*'Hours Roadworks'!$G$6+'Hours Structures'!E75*'Hours Structures'!$G$6+'Hours Electrical'!E75*'Hours Electrical'!$G$6+'Hours Building'!E75*'Hours Building'!$G$6+'Hours Mechanical'!E75*'Hours Mechanical'!$G$6+'Hours Electronic'!E75*'Hours Electronic'!$G$6+'Hours Other'!E75*'Hours Other'!$G$6+IF('Pricing Schedule'!$G$13="n",0,'Non Fee Hours'!E75)+IF('Pricing Schedule'!$G$16="n",0,'Non Fee Hours'!E175)+IF('Pricing Schedule'!$G$19="n",0,'Non Fee Hours'!E275)+IF('Pricing Schedule'!$G$240="n",0,'Non Fee Hours'!E375)+IF('Pricing Schedule'!$G$250="n",0,'Non Fee Hours'!E475) -> 0 | F152: =IF(B152="","",$F$150) -> 1167 | G152: =IF(B152="","",(F152*E152)) -> 0
B153: =IF(DATA!A1053="","",DATA!A1053) ->  | C153: =IF(B12="","",C12) ->  | E153: ='Hours Roadworks'!E76*'Hours Roadworks'!$G$6+'Hours Structures'!E76*'Hours Structures'!$G$6+'Hours Electrical'!E76*'Hours Electrical'!$G$6+'Hours Building'!E76*'Hours Building'!$G$6+'Hours Mechanical'!E76*'Hours Mechanical'!$G$6+'Hours Electronic'!E76*'Hours Electronic'!$G$6+'Hours Other'!E76*'Hours Other'!$G$6+IF('Pricing Schedule'!$G$13="n",0,'Non Fee Hours'!E76)+IF('Pricing Schedule'!$G$16="n",0,'Non Fee Hours'!E176)+IF('Pricing Schedule'!$G$19="n",0,'Non Fee Hours'!E276)+IF('Pricing Schedule'!$G$240="n",0,'Non Fee Hours'!E376)+IF('Pricing Schedule'!$G$250="n",0,'Non Fee Hours'!E476) -> 0 | F153: =IF(B153="","",$F$150) -> 
B154: =IF(DATA!A1054="","",DATA!A1054) ->  | E154: ='Hours Roadworks'!E77*'Hours Roadworks'!$G$6+'Hours Structures'!E77*'Hours Structures'!$G$6+'Hours Electrical'!E77*'Hours Electrical'!$G$6+'Hours Building'!E77*'Hours Building'!$G$6+'Hours Mechanical'!E77*'Hours Mechanical'!$G$6+'Hours Electronic'!E77*'Hours Electronic'!$G$6+'Hours Other'!E77*'Hours Other'!$G$6+IF('Pricing Schedule'!$G$13="n",0,'Non Fee Hours'!E77)+IF('Pricing Schedule'!$G$16="n",0,'Non Fee Hours'!E177)+IF('Pricing Schedule'!$G$19="n",0,'Non Fee Hours'!E277)+IF('Pricing Schedule'!$G$240="n",0,'Non Fee Hours'!E377)+IF('Pricing Schedule'!$G$250="n",0,'Non Fee Hours'!E477) -> 0 | G154: =IF(B154="","",(F154*E154)) -> 
B155: =IF(DATA!A1055="","",DATA!A1055) ->  | E155: ='Hours Roadworks'!E78*'Hours Roadworks'!$G$6+'Hours Structures'!E78*'Hours Structures'!$G$6+'Hours Electrical'!E78*'Hours Electrical'!$G$6+'Hours Building'!E78*'Hours Building'!$G$6+'Hours Mechanical'!E78*'Hours Mechanical'!$G$6+'Hours Electronic'!E78*'Hours Electronic'!$G$6+'Hours Other'!E78*'Hours Other'!$G$6+IF('Pricing Schedule'!$G$13="n",0,'Non Fee Hours'!E78)+IF('Pricing Schedule'!$G$16="n",0,'Non Fee Hours'!E178)+IF('Pricing Schedule'!$G$19="n",0,'Non Fee Hours'!E278)+IF('Pricing Schedule'!$G$240="n",0,'Non Fee Hours'!E378)+IF('Pricing Schedule'!$G$250="n",0,'Non Fee Hours'!E478) -> 0
B156: =IF(DATA!A1056="","",DATA!A1056) ->  | E156: ='Hours Roadworks'!E79*'Hours Roadworks'!$G$6+'Hours Structures'!E79*'Hours Structures'!$G$6+'Hours Electrical'!E79*'Hours Electrical'!$G$6+'Hours Building'!E79*'Hours Building'!$G$6+'Hours Mechanical'!E79*'Hours Mechanical'!$G$6+'Hours Electronic'!E79*'Hours Electronic'!$G$6+'Hours Other'!E79*'Hours Other'!$G$6+IF('Pricing Schedule'!$G$13="n",0,'Non Fee Hours'!E79)+IF('Pricing Schedule'!$G$16="n",0,'Non Fee Hours'!E179)+IF('Pricing Schedule'!$G$19="n",0,'Non Fee Hours'!E279)+IF('Pricing Schedule'!$G$240="n",0,'Non Fee Hours'!E379)+IF('Pricing Schedule'!$G$250="n",0,'Non Fee Hours'!E479) -> 0
B157: =IF(DATA!A1057="","",DATA!A1057) ->  | E157: ='Hours Roadworks'!E80*'Hours Roadworks'!$G$6+'Hours Structures'!E80*'Hours Structures'!$G$6+'Hours Electrical'!E80*'Hours Electrical'!$G$6+'Hours Building'!E80*'Hours Building'!$G$6+'Hours Mechanical'!E80*'Hours Mechanical'!$G$6+'Hours Electronic'!E80*'Hours Electronic'!$G$6+'Hours Other'!E80*'Hours Other'!$G$6+IF('Pricing Schedule'!$G$13="n",0,'Non Fee Hours'!E80)+IF('Pricing Schedule'!$G$16="n",0,'Non Fee Hours'!E180)+IF('Pricing Schedule'!$G$19="n",0,'Non Fee Hours'!E280)+IF('Pricing Schedule'!$G$240="n",0,'Non Fee Hours'!E380)+IF('Pricing Schedule'!$G$250="n",0,'Non Fee Hours'!E480) -> 0
B158: =IF(DATA!A1058="","",DATA!A1058) ->  | E158: ='Hours Roadworks'!E81*'Hours Roadworks'!$G$6+'Hours Structures'!E81*'Hours Structures'!$G$6+'Hours Electrical'!E81*'Hours Electrical'!$G$6+'Hours Building'!E81*'Hours Building'!$G$6+'Hours Mechanical'!E81*'Hours Mechanical'!$G$6+'Hours Electronic'!E81*'Hours Electronic'!$G$6+'Hours Other'!E81*'Hours Other'!$G$6+IF('Pricing Schedule'!$G$13="n",0,'Non Fee Hours'!E81)+IF('Pricing Schedule'!$G$16="n",0,'Non Fee Hours'!E181)+IF('Pricing Schedule'!$G$19="n",0,'Non Fee Hours'!E281)+IF('Pricing Schedule'!$G$240="n",0,'Non Fee Hours'!E381)+IF('Pricing Schedule'!$G$250="n",0,'Non Fee Hours'!E481) -> 0
B159: =IF(DATA!A1059="","",DATA!A1059) ->  | E159: ='Hours Roadworks'!E82*'Hours Roadworks'!$G$6+'Hours Structures'!E82*'Hours Structures'!$G$6+'Hours Electrical'!E82*'Hours Electrical'!$G$6+'Hours Building'!E82*'Hours Building'!$G$6+'Hours Mechanical'!E82*'Hours Mechanical'!$G$6+'Hours Electronic'!E82*'Hours Electronic'!$G$6+'Hours Other'!E82*'Hours Other'!$G$6+IF('Pricing Schedule'!$G$13="n",0,'Non Fee Hours'!E82)+IF('Pricing Schedule'!$G$16="n",0,'Non Fee Hours'!E182)+IF('Pricing Schedule'!$G$19="n",0,'Non Fee Hours'!E282)+IF('Pricing Schedule'!$G$240="n",0,'Non Fee Hours'!E382)+IF('Pricing Schedule'!$G$250="n",0,'Non Fee Hours'!E482) -> 0
B160: =IF(DATA!A1060="","",DATA!A1060) ->  | E160: ='Hours Roadworks'!E83*'Hours Roadworks'!$G$6+'Hours Structures'!E83*'Hours Structures'!$G$6+'Hours Electrical'!E83*'Hours Electrical'!$G$6+'Hours Building'!E83*'Hours Building'!$G$6+'Hours Mechanical'!E83*'Hours Mechanical'!$G$6+'Hours Electronic'!E83*'Hours Electronic'!$G$6+'Hours Other'!E83*'Hours Other'!$G$6+IF('Pricing Schedule'!$G$13="n",0,'Non Fee Hours'!E83)+IF('Pricing Schedule'!$G$16="n",0,'Non Fee Hours'!E183)+IF('Pricing Schedule'!$G$19="n",0,'Non Fee Hours'!E283)+IF('Pricing Schedule'!$G$240="n",0,'Non Fee Hours'!E383)+IF('Pricing Schedule'!$G$250="n",0,'Non Fee Hours'!E483) -> 0
E161: ='Hours Roadworks'!E84*'Hours Roadworks'!$G$6+'Hours Structures'!E84*'Hours Structures'!$G$6+'Hours Electrical'!E84*'Hours Electrical'!$G$6+'Hours Building'!E84*'Hours Building'!$G$6+'Hours Mechanical'!E84*'Hours Mechanical'!$G$6+'Hours Electronic'!E84*'Hours Electronic'!$G$6+'Hours Other'!E84*'Hours Other'!$G$6+IF('Pricing Schedule'!$G$13="n",0,'Non Fee Hours'!E84)+IF('Pricing Schedule'!$G$16="n",0,'Non Fee Hours'!E184)+IF('Pricing Schedule'!$G$19="n",0,'Non Fee Hours'!E284)+IF('Pricing Schedule'!$G$240="n",0,'Non Fee Hours'!E384)+IF('Pricing Schedule'!$G$250="n",0,'Non Fee Hours'!E484) -> 0
E162: ='Hours Roadworks'!E85*'Hours Roadworks'!$G$6+'Hours Structures'!E85*'Hours Structures'!$G$6+'Hours Electrical'!E85*'Hours Electrical'!$G$6+'Hours Building'!E85*'Hours Building'!$G$6+'Hours Mechanical'!E85*'Hours Mechanical'!$G$6+'Hours Electronic'!E85*'Hours Electronic'!$G$6+'Hours Other'!E85*'Hours Other'!$G$6+IF('Pricing Schedule'!$G$13="n",0,'Non Fee Hours'!E85)+IF('Pricing Schedule'!$G$16="n",0,'Non Fee Hours'!E185)+IF('Pricing Schedule'!$G$19="n",0,'Non Fee Hours'!E285)+IF('Pricing Schedule'!$G$240="n",0,'Non Fee Hours'!E385)+IF('Pricing Schedule'!$G$250="n",0,'Non Fee Hours'!E485) -> 0
E163: ='Hours Roadworks'!E86*'Hours Roadworks'!$G$6+'Hours Structures'!E86*'Hours Structures'!$G$6+'Hours Electrical'!E86*'Hours Electrical'!$G$6+'Hours Building'!E86*'Hours Building'!$G$6+'Hours Mechanical'!E86*'Hours Mechanical'!$G$6+'Hours Electronic'!E86*'Hours Electronic'!$G$6+'Hours Other'!E86*'Hours Other'!$G$6+IF('Pricing Schedule'!$G$13="n",0,'Non Fee Hours'!E86)+IF('Pricing Schedule'!$G$16="n",0,'Non Fee Hours'!E186)+IF('Pricing Schedule'!$G$19="n",0,'Non Fee Hours'!E286)+IF('Pricing Schedule'!$G$240="n",0,'Non Fee Hours'!E386)+IF('Pricing Schedule'!$G$250="n",0,'Non Fee Hours'!E486) -> 0
E164: ='Hours Roadworks'!E87*'Hours Roadworks'!$G$6+'Hours Structures'!E87*'Hours Structures'!$G$6+'Hours Electrical'!E87*'Hours Electrical'!$G$6+'Hours Building'!E87*'Hours Building'!$G$6+'Hours Mechanical'!E87*'Hours Mechanical'!$G$6+'Hours Electronic'!E87*'Hours Electronic'!$G$6+'Hours Other'!E87*'Hours Other'!$G$6+IF('Pricing Schedule'!$G$13="n",0,'Non Fee Hours'!E87)+IF('Pricing Schedule'!$G$16="n",0,'Non Fee Hours'!E187)+IF('Pricing Schedule'!$G$19="n",0,'Non Fee Hours'!E287)+IF('Pricing Schedule'!$G$240="n",0,'Non Fee Hours'!E387)+IF('Pricing Schedule'!$G$250="n",0,'Non Fee Hours'!E487) -> 0
E165: ='Hours Roadworks'!E88*'Hours Roadworks'!$G$6+'Hours Structures'!E88*'Hours Structures'!$G$6+'Hours Electrical'!E88*'Hours Electrical'!$G$6+'Hours Building'!E88*'Hours Building'!$G$6+'Hours Mechanical'!E88*'Hours Mechanical'!$G$6+'Hours Electronic'!E88*'Hours Electronic'!$G$6+'Hours Other'!E88*'Hours Other'!$G$6+IF('Pricing Schedule'!$G$13="n",0,'Non Fee Hours'!E88)+IF('Pricing Schedule'!$G$16="n",0,'Non Fee Hours'!E188)+IF('Pricing Schedule'!$G$19="n",0,'Non Fee Hours'!E288)+IF('Pricing Schedule'!$G$240="n",0,'Non Fee Hours'!E388)+IF('Pricing Schedule'!$G$250="n",0,'Non Fee Hours'!E488) -> 0
E166: ='Hours Roadworks'!E89*'Hours Roadworks'!$G$6+'Hours Structures'!E89*'Hours Structures'!$G$6+'Hours Electrical'!E89*'Hours Electrical'!$G$6+'Hours Building'!E89*'Hours Building'!$G$6+'Hours Mechanical'!E89*'Hours Mechanical'!$G$6+'Hours Electronic'!E89*'Hours Electronic'!$G$6+'Hours Other'!E89*'Hours Other'!$G$6+IF('Pricing Schedule'!$G$13="n",0,'Non Fee Hours'!E89)+IF('Pricing Schedule'!$G$16="n",0,'Non Fee Hours'!E189)+IF('Pricing Schedule'!$G$19="n",0,'Non Fee Hours'!E289)+IF('Pricing Schedule'!$G$240="n",0,'Non Fee Hours'!E389)+IF('Pricing Schedule'!$G$250="n",0,'Non Fee Hours'!E489) -> 0
E167: ='Hours Roadworks'!E90*'Hours Roadworks'!$G$6+'Hours Structures'!E90*'Hours Structures'!$G$6+'Hours Electrical'!E90*'Hours Electrical'!$G$6+'Hours Building'!E90*'Hours Building'!$G$6+'Hours Mechanical'!E90*'Hours Mechanical'!$G$6+'Hours Electronic'!E90*'Hours Electronic'!$G$6+'Hours Other'!E90*'Hours Other'!$G$6+IF('Pricing Schedule'!$G$13="n",0,'Non Fee Hours'!E90)+IF('Pricing Schedule'!$G$16="n",0,'Non Fee Hours'!E190)+IF('Pricing Schedule'!$G$19="n",0,'Non Fee Hours'!E290)+IF('Pricing Schedule'!$G$240="n",0,'Non Fee Hours'!E390)+IF('Pricing Schedule'!$G$250="n",0,'Non Fee Hours'!E490) -> 0
E168: ='Hours Roadworks'!E91*'Hours Roadworks'!$G$6+'Hours Structures'!E91*'Hours Structures'!$G$6+'Hours Electrical'!E91*'Hours Electrical'!$G$6+'Hours Building'!E91*'Hours Building'!$G$6+'Hours Mechanical'!E91*'Hours Mechanical'!$G$6+'Hours Electronic'!E91*'Hours Electronic'!$G$6+'Hours Other'!E91*'Hours Other'!$G$6+IF('Pricing Schedule'!$G$13="n",0,'Non Fee Hours'!E91)+IF('Pricing Schedule'!$G$16="n",0,'Non Fee Hours'!E191)+IF('Pricing Schedule'!$G$19="n",0,'Non Fee Hours'!E291)+IF('Pricing Schedule'!$G$240="n",0,'Non Fee Hours'!E391)+IF('Pricing Schedule'!$G$250="n",0,'Non Fee Hours'!E491) -> 0
E169: ='Hours Roadworks'!E92*'Hours Roadworks'!$G$6+'Hours Structures'!E92*'Hours Structures'!$G$6+'Hours Electrical'!E92*'Hours Electrical'!$G$6+'Hours Building'!E92*'Hours Building'!$G$6+'Hours Mechanical'!E92*'Hours Mechanical'!$G$6+'Hours Electronic'!E92*'Hours Electronic'!$G$6+'Hours Other'!E92*'Hours Other'!$G$6+IF('Pricing Schedule'!$G$13="n",0,'Non Fee Hours'!E92)+IF('Pricing Schedule'!$G$16="n",0,'Non Fee Hours'!E192)+IF('Pricing Schedule'!$G$19="n",0,'Non Fee Hours'!E292)+IF('Pricing Schedule'!$G$240="n",0,'Non Fee Hours'!E392)+IF('Pricing Schedule'!$G$250="n",0,'Non Fee Hours'!E492) -> 0
E170: ='Hours Roadworks'!E93*'Hours Roadworks'!$G$6+'Hours Structures'!E93*'Hours Structures'!$G$6+'Hours Electrical'!E93*'Hours Electrical'!$G$6+'Hours Building'!E93*'Hours Building'!$G$6+'Hours Mechanical'!E93*'Hours Mechanical'!$G$6+'Hours Electronic'!E93*'Hours Electronic'!$G$6+'Hours Other'!E93*'Hours Other'!$G$6+IF('Pricing Schedule'!$G$13="n",0,'Non Fee Hours'!E93)+IF('Pricing Schedule'!$G$16="n",0,'Non Fee Hours'!E193)+IF('Pricing Schedule'!$G$19="n",0,'Non Fee Hours'!E293)+IF('Pricing Schedule'!$G$240="n",0,'Non Fee Hours'!E393)+IF('Pricing Schedule'!$G$250="n",0,'Non Fee Hours'!E493) -> 0
B171: =$B$30 -> OTHER | C171: =$C$30 -> Various non-key personnel | E171: ='Hours Roadworks'!E94*'Hours Roadworks'!$G$6+'Hours Structures'!E94*'Hours Structures'!$G$6+'Hours Electrical'!E94*'Hours Electrical'!$G$6+'Hours Building'!E94*'Hours Building'!$G$6+'Hours Mechanical'!E94*'Hours Mechanical'!$G$6+'Hours Electronic'!E94*'Hours Electronic'!$G$6+'Hours Other'!E94*'Hours Other'!$G$6+IF('Pricing Schedule'!$G$13="n",0,'Non Fee Hours'!E94)+IF('Pricing Schedule'!$G$16="n",0,'Non Fee Hours'!E194)+IF('Pricing Schedule'!$G$19="n",0,'Non Fee Hours'!E294)+IF('Pricing Schedule'!$G$240="n",0,'Non Fee Hours'!E394)+IF('Pricing Schedule'!$G$250="n",0,'Non Fee Hours'!E494) -> 0 | F171: =IF(B171="","",$F$150) -> 1167 | G171: 0

Sheet FORM C2.4 FIN
A1: SOUTH AFRICAN NATIONAL ROADS AGENCY SOC LTD
A2: ='All Hours'!D1 -> PLEASE INSERT TENDERER NAME ON INPUT DATA SHEET
A3: Project Number : | B3: =DATA!C1004 -> R.081-010-2023/1F
A4: Project Description: | B4: =DATA!C1005 -> CONTRACT SANRAL R.081-010-2023/1F FOR CONSULTING ENGINEERING SERVICES FOR THE RESURFACING ON NATIONAL ROAD R81 SECTION 1 FROM km 37.0 TO km 61.19 AND km 71.12 TO km 75.40
A7: FORM C2.4: KEY PERSONS FOR THIS PROJECT AND SUMMARY OF NORMALIZED HOURS TENDERED
A9: SERVICE PROVIDER
A10: TOTAL HOURS TENDERED FOR THE SERVICE PROVIDER (ALL CATEGORIES) | E10: ='All Hours'!E83 -> 0
A11: TOTAL ALL NORMALISED HOURS | E11: =C41 -> 0
A15: Key Persons Listed for this Project
A17: SUMMARY OF ALL KEY PERSONS NORMALISED HOURS | C17: NHT | D17: % of Total Hours | E17: % of Key Persons Hours Only
A18: POSITION | B18: NAME | D18: =SUM(D19:D39) ->  | E18: =SUM(E19:E39) -> 
A19: ='All Hours'!B10 -> PL | B19: ='All Hours'!C10 ->  | C19: ='All Hours'!E10 -> 0 | D19: =IF(A19="","",IF(C19="","",(C19/$C$41))) ->  | E19: =IF(A19="","",IF(C19="","",(C19/$C$40))) -> 
A20: ='All Hours'!B11 -> DS1 | B20: ='All Hours'!C11 ->  | C20: ='All Hours'!E11 -> 0 | D20: =IF(A20="","",IF(C20="","",(C20/$C$41))) ->  | E20: =IF(A20="","",IF(C20="","",(C20/$C$40))) -> 
A21: ='All Hours'!B12 ->  | B21: ='All Hours'!C12 ->  | C21: ='All Hours'!E12 -> 0
A22: ='All Hours'!B13 ->  | B22: ='All Hours'!C13 ->  | C22: ='All Hours'!E13 -> 0 | D22: =IF(A22="","",IF(C22="","",(C22/$C$41))) ->  | E22: =IF(A22="","",IF(C22="","",(C22/$C$40))) -> 
A23: ='All Hours'!B14 ->  | B23: ='All Hours'!C14 ->  | C23: ='All Hours'!E14 -> 0
A24: ='All Hours'!B15 ->  | B24: ='All Hours'!C15 ->  | C24: ='All Hours'!E15 -> 0
A25: ='All Hours'!B16 ->  | B25: ='All Hours'!C16 ->  | C25: ='All Hours'!E16 -> 0
A26: ='All Hours'!B17 ->  | B26: ='All Hours'!C17 ->  | C26: ='All Hours'!E17 -> 0
A27: ='All Hours'!B18 ->  | B27: ='All Hours'!C18 ->  | C27: ='All Hours'!E18 -> 0
A28: ='All Hours'!B19 ->  | B28: ='All Hours'!C19 ->  | C28: ='All Hours'!E19 -> 0
A39: ='All Hours'!B30 -> OTHER | B39: ='All Hours'!C30 -> Various non-key personnel | C39: ='All Hours'!E30 -> 0
A40: TOTAL KEY PERSONS NORMALISED HOURS ONLY | C40: =SUM(C18:C38) -> 0
A41: TOTAL ALL NORMALISED HOURS | C41: =SUM(C18:C39) -> 0
A43: NOTE TO TENDERER: THIS FORM IS TO BE COMPLETED, PRINTED AND INCLUDED IN THE TENDERER'S TECHNICAL PROPOSAL AS A HARD COPY AND FINANCIAL PROPOSAL ELECTRONICALLY. FAILURE TO INCLUDE THIS FORM IN THE TECHNICAL AND FINANCIAL PROPOSAL SHALL RESULT IN THE TENDERER BEING DEEMED NON-RESPONSIVE. IF THE ELECTRONIC VERSION ATTACHED TO THE PRICING SCHEDULE SUBMITTED WITH THE FINANCIAL PROPOSAL DOES NOT MATCH THE HARD COPY SUBMITTED WITH THE TECHNICAL PROPOSAL, THE TENDERER WILL BE DEEMED NON-RESPONSIVE.

Sheet Notes (hidden)
A1: Notes on completion
B3: Complete the light yellow shaded cells in the 1st claim
B4: Amend the light blue shaded cells with every claim
A6: F1 Cover | B6: To be updated monthly (DO NOT RUN THE MACRO FOR THE FIRST FEE CLAIM - RESAVE AND RUN MACRO FOR FEE CLAIM 2 AND ONWARDS)
A8: Pg 2 Sum Scheduled & | B8: Ensure references on Pg 2 Sum Schedule match relevant totals in Pricing schedule
A9: Pricing Schedules
A11: Pg 3 Travel | B11: Ensure the total of Pg 3 Travel is linked to the relevant item in the pricing schedule. This is required due to different rates for less and more than 3000km

Sheet F1 Forecast Combined (hidden)
B1: SOUTH AFRICAN NATIONAL ROADS AGENCY LTD | D1: Consulting Engineers Fee Account | F1: SUMMARY FORM
D2: ='F1 Forecast Consultant'!D2:E2 -> Safety Improvement | F2: FULL PROJECT
B3: REGION: | C3: ='F1 Forecast Consultant'!C3:C4 -> Western | D3: Contract No.: | E3: =DATA!C1004 -> R.081-010-2023/1F | F3: Contractor Account no.:
D4: Consultant Account no.: | E4: ='F1 Forecast Consultant'!E4 -> 1 | F4: ='F1 Forecast Contractor'!E4 -> 0
A5: SUMMARY PAGE 1 (a)
A8: CONTRACT No | B8: =E3 -> R.081-010-2023/1F
A9: DESCRIPTION | B9: =DATA!C1005 -> CONTRACT SANRAL R.081-010-2023/1F FOR CONSULTING ENGINEERING SERVICES FOR THE RESURFACING ON NATIONAL ROAD R81 SECTION 1 FROM km 37.0 TO km 61.19 AND km 71.12 TO km 75.40
A11: START DATE | B11: =IF('F1 Forecast Consultant'!B11:C11="","",'F1 Forecast Consultant'!B11:C11) ->  | D11: COMPLETION DATE | E11: =IF('F1 Forecast Consultant'!E11:F11="","",'F1 Forecast Consultant'!E11:F11) -> 
A12: CONSULTANT | B12: ='All Hours'!D1 -> PLEASE INSERT TENDERER NAME ON INPUT DATA SHEET
A13: FEE BUDGET AMOUNT | B13: =IF('F1 Forecast Consultant'!B13="","",'F1 Forecast Consultant'!B13) -> 31753156 | C13: (VAT INCLUDED)
A14: CONTRACTOR | B14: =IF('F1 Forecast Contractor'!B14:D14="","",'F1 Forecast Contractor'!B14:D14) -> 
A15: START DATE | B15: =IF('F1 Forecast Contractor'!B15:C15=0,"",'F1 Forecast Contractor'!B15:C15) ->  | D15: COMPLETION DATE | E15: =IF('F1 Forecast Contractor'!E15:F15=0,"",'F1 Forecast Contractor'!E15:F15) -> 
A16: CONSTRUCTION BUDGET AMOUNT | B16: =IF('F1 Forecast Contractor'!B16="","",'F1 Forecast Contractor'!B16) -> 214767892.3 | C16: (VAT INCLUDED)
A17: MONTH | B17: ESTIMATED EXPENDITURE | F17: ACTUAL PAYMENT
B18: (VAT INCLUDED) | F18: (VAT INCLUDED)
B19: DESIGN & DIVERSE SERVICES | C19: SUPERVISION | D19: CONSTRUCTION | E19: TOTAL
A20: =DATA!U2 -> 2023-04-01 | B20: =IF('F1 Forecast Consultant'!B20="","",'F1 Forecast Consultant'!B20) ->  | C20: =IF('F1 Forecast Consultant'!C20="","",'F1 Forecast Consultant'!C20) ->  | D20: =IF('F1 Forecast Contractor'!D20="","",'F1 Forecast Contractor'!D20) ->  | E20: =SUM(B20:D20) -> 0
A21: =+A20+30 -> 2023-05-01 | B21: =IF('F1 Forecast Consultant'!B21="","",'F1 Forecast Consultant'!B21) ->  | C21: =IF('F1 Forecast Consultant'!C21="","",'F1 Forecast Consultant'!C21) ->  | D21: =IF('F1 Forecast Contractor'!D21="","",'F1 Forecast Contractor'!D21) ->  | E21: =SUM(B21:D21) -> 0
A22: =+A21+31 -> 2023-06-01 | B22: =IF('F1 Forecast Consultant'!B22="","",'F1 Forecast Consultant'!B22) ->  | C22: =IF('F1 Forecast Consultant'!C22="","",'F1 Forecast Consultant'!C22) ->  | D22: =IF('F1 Forecast Contractor'!D22="","",'F1 Forecast Contractor'!D22) ->  | E22: =SUM(B22:D22) -> 0
A23: =+A22+30 -> 2023-07-01 | B23: =IF('F1 Forecast Consultant'!B23="","",'F1 Forecast Consultant'!B23) ->  | C23: =IF('F1 Forecast Consultant'!C23="","",'F1 Forecast Consultant'!C23) ->  | D23: =IF('F1 Forecast Contractor'!D23="","",'F1 Forecast Contractor'!D23) ->  | E23: =SUM(B23:D23) -> 0
A24: =+A23+31 -> 2023-08-01 | B24: =IF('F1 Forecast Consultant'!B24="","",'F1 Forecast Consultant'!B24) ->  | C24: =IF('F1 Forecast Consultant'!C24="","",'F1 Forecast Consultant'!C24) ->  | D24: =IF('F1 Forecast Contractor'!D24="","",'F1 Forecast Contractor'!D24) ->  | E24: =SUM(B24:D24) -> 0
A25: =+A24+31 -> 2023-09-01 | B25: =IF('F1 Forecast Consultant'!B25="","",'F1 Forecast Consultant'!B25) ->  | C25: =IF('F1 Forecast Consultant'!C25="","",'F1 Forecast Consultant'!C25) ->  | D25: =IF('F1 Forecast Contractor'!D25="","",'F1 Forecast Contractor'!D25) ->  | E25: =SUM(B25:D25) -> 0
A26: =+A25+30 -> 2023-10-01 | B26: =IF('F1 Forecast Consultant'!B26="","",'F1 Forecast Consultant'!B26) ->  | C26: =IF('F1 Forecast Consultant'!C26="","",'F1 Forecast Consultant'!C26) ->  | D26: =IF('F1 Forecast Contractor'!D26="","",'F1 Forecast Contractor'!D26) ->  | E26: 0
A27: =+A26+31 -> 2023-11-01 | B27: =IF('F1 Forecast Consultant'!B27="","",'F1 Forecast Consultant'!B27) ->  | C27: =IF('F1 Forecast Consultant'!C27="","",'F1 Forecast Consultant'!C27) ->  | D27: =IF('F1 Forecast Contractor'!D27="","",'F1 Forecast Contractor'!D27) ->  | E27: 0
A28: =+A27+30 -> 2023-12-01 | B28: =IF('F1 Forecast Consultant'!B28="","",'F1 Forecast Consultant'!B28) ->  | C28: =IF('F1 Forecast Consultant'!C28="","",'F1 Forecast Consultant'!C28) ->  | D28: =IF('F1 Forecast Contractor'!D28="","",'F1 Forecast Contractor'!D28) ->  | E28: 0
A29: =+A28+31 -> 2024-01-01 | B29: =IF('F1 Forecast Consultant'!B29="","",'F1 Forecast Consultant'!B29) ->  | C29: =IF('F1 Forecast Consultant'!C29="","",'F1 Forecast Consultant'!C29) ->  | D29: =IF('F1 Forecast Contractor'!D29="","",'F1 Forecast Contractor'!D29) ->  | E29: 0
A30: =+A29+31 -> 2024-02-01 | B30: =IF('F1 Forecast Consultant'!B30="","",'F1 Forecast Consultant'!B30) ->  | C30: =IF('F1 Forecast Consultant'!C30="","",'F1 Forecast Consultant'!C30) ->  | D30: =IF('F1 Forecast Contractor'!D30="","",'F1 Forecast Contractor'!D30) ->  | E30: 0
A31: =IF(ISNA(VLOOKUP(A30,DATA!$E$4:$E$13,1,FALSE))=TRUE,A30+28,A30+29) -> 2024-03-01 | B31: =IF('F1 Forecast Consultant'!B31="","",'F1 Forecast Consultant'!B31) ->  | C31: =IF('F1 Forecast Consultant'!C31="","",'F1 Forecast Consultant'!C31) ->  | D31: =IF('F1 Forecast Contractor'!D31="","",'F1 Forecast Contractor'!D31) ->  | E31: 0
A32: =VLOOKUP(A20,DATA!$Y$2:$AA$41,2,FALSE) -> Sub-Total 2023/2024 | B32: ='F1 Forecast Consultant'!B32 -> 0 | C32: ='F1 Forecast Consultant'!C32 -> 0 | D32: ='F1 Forecast Contractor'!D32 -> 0 | E32: =SUM(E20:E31) -> 0 | F32: =SUM(F20:F31) -> 0
A33: =A31+31 -> 2024-04-01 | B33: =IF('F1 Forecast Consultant'!B33="","",'F1 Forecast Consultant'!B33) ->  | C33: =IF('F1 Forecast Consultant'!C33="","",'F1 Forecast Consultant'!C33) ->  | D33: =IF('F1 Forecast Contractor'!D33="","",'F1 Forecast Contractor'!D33) ->  | E33: =SUM(B33:D33) -> 0
A34: =+A33+30 -> 2024-05-01 | B34: =IF('F1 Forecast Consultant'!B34="","",'F1 Forecast Consultant'!B34) ->  | C34: =IF('F1 Forecast Consultant'!C34="","",'F1 Forecast Consultant'!C34) ->  | D34: =IF('F1 Forecast Contractor'!D34="","",'F1 Forecast Contractor'!D34) ->  | E34: 0
A35: =+A34+31 -> 2024-06-01 | B35: =IF('F1 Forecast Consultant'!B35="","",'F1 Forecast Consultant'!B35) ->  | C35: =IF('F1 Forecast Consultant'!C35="","",'F1 Forecast Consultant'!C35) ->  | D35: =IF('F1 Forecast Contractor'!D35="","",'F1 Forecast Contractor'!D35) ->  | E35: 0
A36: =+A35+30 -> 2024-07-01 | B36: =IF('F1 Forecast Consultant'!B36="","",'F1 Forecast Consultant'!B36) ->  | C36: =IF('F1 Forecast Consultant'!C36="","",'F1 Forecast Consultant'!C36) ->  | D36: =IF('F1 Forecast Contractor'!D36="","",'F1 Forecast Contractor'!D36) ->  | E36: 0
A37: =+A36+31 -> 2024-08-01 | B37: =IF('F1 Forecast Consultant'!B37="","",'F1 Forecast Consultant'!B37) ->  | C37: =IF('F1 Forecast Consultant'!C37="","",'F1 Forecast Consultant'!C37) ->  | D37: =IF('F1 Forecast Contractor'!D37="","",'F1 Forecast Contractor'!D37) ->  | E37: 0
A38: =+A37+31 -> 2024-09-01 | B38: =IF('F1 Forecast Consultant'!B38="","",'F1 Forecast Consultant'!B38) ->  | C38: =IF('F1 Forecast Consultant'!C38="","",'F1 Forecast Consultant'!C38) ->  | D38: =IF('F1 Forecast Contractor'!D38="","",'F1 Forecast Contractor'!D38) ->  | E38: 0
A39: =+A38+30 -> 2024-10-01 | B39: =IF('F1 Forecast Consultant'!B39="","",'F1 Forecast Consultant'!B39) ->  | C39: =IF('F1 Forecast Consultant'!C39="","",'F1 Forecast Consultant'!C39) ->  | D39: =IF('F1 Forecast Contractor'!D39="","",'F1 Forecast Contractor'!D39) ->  | E39: 0
A40: =+A39+31 -> 2024-11-01 | B40: =IF('F1 Forecast Consultant'!B40="","",'F1 Forecast Consultant'!B40) ->  | C40: =IF('F1 Forecast Consultant'!C40="","",'F1 Forecast Consultant'!C40) ->  | D40: =IF('F1 Forecast Contractor'!D40="","",'F1 Forecast Contractor'!D40) ->  | E40: 0
A41: =+A40+30 -> 2024-12-01 | B41: =IF('F1 Forecast Consultant'!B41="","",'F1 Forecast Consultant'!B41) ->  | C41: =IF('F1 Forecast Consultant'!C41="","",'F1 Forecast Consultant'!C41) ->  | D41: =IF('F1 Forecast Contractor'!D41="","",'F1 Forecast Contractor'!D41) ->  | E41: 0
A42: =+A41+31 -> 2025-01-01 | B42: =IF('F1 Forecast Consultant'!B42="","",'F1 Forecast Consultant'!B42) ->  | C42: =IF('F1 Forecast Consultant'!C42="","",'F1 Forecast Consultant'!C42) ->  | D42: =IF('F1 Forecast Contractor'!D42="","",'F1 Forecast Contractor'!D42) ->  | E42: 0
A43: =+A42+31 -> 2025-02-01 | B43: =IF('F1 Forecast Consultant'!B43="","",'F1 Forecast Consultant'!B43) ->  | C43: =IF('F1 Forecast Consultant'!C43="","",'F1 Forecast Consultant'!C43) ->  | D43: =IF('F1 Forecast Contractor'!D43="","",'F1 Forecast Contractor'!D43) ->  | E43: 0
A44: =IF(ISNA(VLOOKUP(A43,DATA!$E$4:$E$13,1,FALSE))=TRUE,A43+28,A43+29) -> 2025-03-01 | B44: =IF('F1 Forecast Consultant'!B44="","",'F1 Forecast Consultant'!B44) ->  | C44: =IF('F1 Forecast Consultant'!C44="","",'F1 Forecast Consultant'!C44) ->  | D44: =IF('F1 Forecast Contractor'!D44="","",'F1 Forecast Contractor'!D44) ->  | E44: 0
A45: =VLOOKUP(A33,DATA!$Y$2:$AA$41,2,FALSE) -> Sub-Total 2024/2025 | B45: ='F1 Forecast Consultant'!B45 -> 0 | C45: ='F1 Forecast Consultant'!C45 -> 0 | D45: ='F1 Forecast Contractor'!D45 -> 0 | E45: =SUM(E33:E44) -> 0 | F45: =SUM(F33:F44) -> 0
A46: =A44+31 -> 2025-04-01 | B46: =IF('F1 Forecast Consultant'!B46="","",'F1 Forecast Consultant'!B46) ->  | C46: =IF('F1 Forecast Consultant'!C46="","",'F1 Forecast Consultant'!C46) ->  | D46: =IF('F1 Forecast Contractor'!D46="","",'F1 Forecast Contractor'!D46) ->  | E46: =SUM(B46:D46) -> 0
A47: =+A46+30 -> 2025-05-01 | B47: =IF('F1 Forecast Consultant'!B47="","",'F1 Forecast Consultant'!B47) ->  | C47: =IF('F1 Forecast Consultant'!C47="","",'F1 Forecast Consultant'!C47) ->  | D47: =IF('F1 Forecast Contractor'!D47="","",'F1 Forecast Contractor'!D47) ->  | E47: =SUM(B47:D47) -> 0
A48: =+A47+31 -> 2025-06-01 | B48: =IF('F1 Forecast Consultant'!B48="","",'F1 Forecast Consultant'!B48) ->  | C48: =IF('F1 Forecast Consultant'!C48="","",'F1 Forecast Consultant'!C48) ->  | D48: =IF('F1 Forecast Contractor'!D48="","",'F1 Forecast Contractor'!D48) ->  | E48: 0
A49: =+A48+30 -> 2025-07-01 | B49: =IF('F1 Forecast Consultant'!B49="","",'F1 Forecast Consultant'!B49) ->  | C49: =IF('F1 Forecast Consultant'!C49="","",'F1 Forecast Consultant'!C49) ->  | D49: =IF('F1 Forecast Contractor'!D49="","",'F1 Forecast Contractor'!D49) ->  | E49: 0
A50: =+A49+31 -> 2025-08-01 | B50: =IF('F1 Forecast Consultant'!B50="","",'F1 Forecast Consultant'!B50) ->  | C50: =IF('F1 Forecast Consultant'!C50="","",'F1 Forecast Consultant'!C50) ->  | D50: =IF('F1 Forecast Contractor'!D50="","",'F1 Forecast Contractor'!D50) ->  | E50: 0
A51: =+A50+31 -> 2025-09-01 | B51: =IF('F1 Forecast Consultant'!B51="","",'F1 Forecast Consultant'!B51) ->  | C51: =IF('F1 Forecast Consultant'!C51="","",'F1 Forecast Consultant'!C51) ->  | D51: =IF('F1 Forecast Contractor'!D51="","",'F1 Forecast Contractor'!D51) ->  | E51: 0
A52: =+A51+30 -> 2025-10-01 | B52: =IF('F1 Forecast Consultant'!B52="","",'F1 Forecast Consultant'!B52) ->  | C52: =IF('F1 Forecast Consultant'!C52="","",'F1 Forecast Consultant'!C52) ->  | D52: =IF('F1 Forecast Contractor'!D52="","",'F1 Forecast Contractor'!D52) ->  | E52: 0
A53: =+A52+31 -> 2025-11-01 | B53: =IF('F1 Forecast Consultant'!B53="","",'F1 Forecast Consultant'!B53) ->  | C53: =IF('F1 Forecast Consultant'!C53="","",'F1 Forecast Consultant'!C53) ->  | D53: =IF('F1 Forecast Contractor'!D53="","",'F1 Forecast Contractor'!D53) ->  | E53: 0
A54: =+A53+30 -> 2025-12-01 | B54: =IF('F1 Forecast Consultant'!B54="","",'F1 Forecast Consultant'!B54) ->  | C54: =IF('F1 Forecast Consultant'!C54="","",'F1 Forecast Consultant'!C54) ->  | D54: =IF('F1 Forecast Contractor'!D54="","",'F1 Forecast Contractor'!D54) ->  | E54: 0
A55: =+A54+31 -> 2026-01-01 | B55: =IF('F1 Forecast Consultant'!B55="","",'F1 Forecast Consultant'!B55) ->  | C55: =IF('F1 Forecast Consultant'!C55="","",'F1 Forecast Consultant'!C55) ->  | D55: =IF('F1 Forecast Contractor'!D55="","",'F1 Forecast Contractor'!D55) ->  | E55: 0
A56: =+A55+31 -> 2026-02-01 | B56: =IF('F1 Forecast Consultant'!B56="","",'F1 Forecast Consultant'!B56) ->  | C56: =IF('F1 Forecast Consultant'!C56="","",'F1 Forecast Consultant'!C56) ->  | D56: =IF('F1 Forecast Contractor'!D56="","",'F1 Forecast Contractor'!D56) ->  | E56: 0
A57: =IF(ISNA(VLOOKUP(A56,DATA!$E$4:$E$13,1,FALSE))=TRUE,A56+28,A56+29) -> 2026-03-01 | B57: =IF('F1 Forecast Consultant'!B57="","",'F1 Forecast Consultant'!B57) ->  | C57: =IF('F1 Forecast Consultant'!C57="","",'F1 Forecast Consultant'!C57) ->  | D57: =IF('F1 Forecast Contractor'!D57="","",'F1 Forecast Contractor'!D57) ->  | E57: =SUM(B57:D57) -> 0
A58: =VLOOKUP(A46,DATA!$Y$2:$AA$41,2,FALSE) -> Sub-Total 2025/2026 | B58: ='F1 Forecast Consultant'!B58 -> 0 | C58: ='F1 Forecast Consultant'!C58 -> 0 | D58: ='F1 Forecast Contractor'!D58 -> 0 | E58: =SUM(E46:E57) -> 0 | F58: =SUM(F46:F57) -> 0
A59: TOTALS | B59: ='F1 Forecast Consultant'!B59 -> 0 | C59: ='F1 Forecast Consultant'!C59 -> 0 | D59: ='F1 Forecast Contractor'!D59 -> 0 | E59: =+E32+E45+E58 -> 0 | F59: =+F32+F45+F58 -> 0
A60: Actual - Red or Bold | B60: Estimate - Black
B64: SOUTH AFRICAN NATIONAL ROADS AGENCY LTD | D64: Consulting Engineers Fee Account | F64: SUMMARY FORM
D65: =D2 -> Safety Improvement | F65: FULL PROJECT
B66: REGION: | C66: =C3 -> Western | D66: Contract No.: | E66: =E3 -> R.081-010-2023/1F | F66: Contractor Account no.:
D67: Consultant Account no.: | E67: =E4 -> 1 | F67: =F4 -> 0
A68: SUMMARY PAGE 1 (b)
A71: CONTRACT No | B71: =E66 -> R.081-010-2023/1F
A72: DESCRIPTION | B72: =B9 -> CONTRACT SANRAL R.081-010-2023/1F FOR CONSULTING ENGINEERING SERVICES FOR THE RESURFACING ON NATIONAL ROAD R81 SECTION 1 FROM km 37.0 TO km 61.19 AND km 71.12 TO km 75.40
A74: START DATE | B74: =B11 ->  | D74: COMPLETION DATE | E74: =E11 -> 
A75: CONSULTANT | B75: PLEASE INSERT TENDERER NAME ON INPUT DATA SHEET
A76: FEE BUDGET AMOUNT | B76: 31753156 | C76: (VAT INCLUDED)
A77: CONTRACTOR
A78: START DATE | D78: COMPLETION DATE | E78: =E15 -> 
A79: CONSTRUCTION BUDGET AMOUNT | B79: 214767892.3 | C79: (VAT INCLUDED)
A80: MONTH | B80: ESTIMATED EXPENDITURE | F80: ACTUAL PAYMENT
B81: (VAT INCLUDED) | F81: (VAT INCLUDED)
B82: DESIGN & DIVERSE SERVICES | C82: SUPERVISION | D82: CONSTRUCTION | E82: TOTAL
A83: Brought Forward | B83: =B59 -> 0 | C83: =C59 -> 0 | D83: =D59 -> 0 | E83: =E59 -> 0 | F83: =F59 -> 0
A84: =A57+31 -> 2026-04-01 | B84: =IF('F1 Forecast Consultant'!B84="","",'F1 Forecast Consultant'!B84) ->  | C84: =IF('F1 Forecast Consultant'!C84="","",'F1 Forecast Consultant'!C84) ->  | D84: =IF('F1 Forecast Contractor'!D84="","",'F1 Forecast Contractor'!D84) ->  | E84: =SUM(B84:D84) -> 0
A85: =+A84+30 -> 2026-05-01 | B85: =IF('F1 Forecast Consultant'!B85="","",'F1 Forecast Consultant'!B85) ->  | C85: =IF('F1 Forecast Consultant'!C85="","",'F1 Forecast Consultant'!C85) ->  | D85: =IF('F1 Forecast Contractor'!D85="","",'F1 Forecast Contractor'!D85) ->  | E85: =SUM(B85:D85) -> 0
A86: =+A85+31 -> 2026-06-01 | B86: =IF('F1 Forecast Consultant'!B86="","",'F1 Forecast Consultant'!B86) ->  | C86: =IF('F1 Forecast Consultant'!C86="","",'F1 Forecast Consultant'!C86) ->  | D86: =IF('F1 Forecast Contractor'!D86="","",'F1 Forecast Contractor'!D86) ->  | E86: =SUM(B86:D86) -> 0
A87: =+A86+30 -> 2026-07-01 | B87: =IF('F1 Forecast Consultant'!B87="","",'F1 Forecast Consultant'!B87) ->  | C87: =IF('F1 Forecast Consultant'!C87="","",'F1 Forecast Consultant'!C87) ->  | D87: =IF('F1 Forecast Contractor'!D87="","",'F1 Forecast Contractor'!D87) ->  | E87: =SUM(B87:D87) -> 0
A88: =+A87+31 -> 2026-08-01 | B88: =IF('F1 Forecast Consultant'!B88="","",'F1 Forecast Consultant'!B88) ->  | C88: =IF('F1 Forecast Consultant'!C88="","",'F1 Forecast Consultant'!C88) ->  | D88: =IF('F1 Forecast Contractor'!D88="","",'F1 Forecast Contractor'!D88) ->  | E88: =SUM(B88:D88) -> 0
A89: =+A88+31 -> 2026-09-01 | B89: =IF('F1 Forecast Consultant'!B89="","",'F1 Forecast Consultant'!B89) ->  | C89: =IF('F1 Forecast Consultant'!C89="","",'F1 Forecast Consultant'!C89) ->  | D89: =IF('F1 Forecast Contractor'!D89="","",'F1 Forecast Contractor'!D89) ->  | E89: =SUM(B89:D89) -> 0
A90: =+A89+30 -> 2026-10-01 | B90: =IF('F1 Forecast Consultant'!B90="","",'F1 Forecast Consultant'!B90) ->  | C90: =IF('F1 Forecast Consultant'!C90="","",'F1 Forecast Consultant'!C90) ->  | D90: =IF('F1 Forecast Contractor'!D90="","",'F1 Forecast Contractor'!D90) ->  | E90: 0
A91: =+A90+31 -> 2026-11-01 | B91: =IF('F1 Forecast Consultant'!B91="","",'F1 Forecast Consultant'!B91) ->  | C91: =IF('F1 Forecast Consultant'!C91="","",'F1 Forecast Consultant'!C91) ->  | D91: =IF('F1 Forecast Contractor'!D91="","",'F1 Forecast Contractor'!D91) ->  | E91: 0
A92: =+A91+30 -> 2026-12-01 | B92: =IF('F1 Forecast Consultant'!B92="","",'F1 Forecast Consultant'!B92) ->  | C92: =IF('F1 Forecast Consultant'!C92="","",'F1 Forecast Consultant'!C92) ->  | D92: =IF('F1 Forecast Contractor'!D92="","",'F1 Forecast Contractor'!D92) ->  | E92: 0
A93: =+A92+31 -> 2027-01-01 | B93: =IF('F1 Forecast Consultant'!B93="","",'F1 Forecast Consultant'!B93) ->  | C93: =IF('F1 Forecast Consultant'!C93="","",'F1 Forecast Consultant'!C93) ->  | D93: =IF('F1 Forecast Contractor'!D93="","",'F1 Forecast Contractor'!D93) ->  | E93: 0
A94: =+A93+31 -> 2027-02-01 | B94: =IF('F1 Forecast Consultant'!B94="","",'F1 Forecast Consultant'!B94) ->  | C94: =IF('F1 Forecast Consultant'!C94="","",'F1 Forecast Consultant'!C94) ->  | D94: =IF('F1 Forecast Contractor'!D94="","",'F1 Forecast Contractor'!D94) ->  | E94: 0
A95: =IF(ISNA(VLOOKUP(A94,DATA!$E$4:$E$13,1,FALSE))=TRUE,A94+28,A94+29) -> 2027-03-01 | B95: =IF('F1 Forecast Consultant'!B95="","",'F1 Forecast Consultant'!B95) ->  | C95: =IF('F1 Forecast Consultant'!C95="","",'F1 Forecast Consultant'!C95) ->  | D95: =IF('F1 Forecast Contractor'!D95="","",'F1 Forecast Contractor'!D95) ->  | E95: 0
A96: =VLOOKUP(A84,DATA!$Y$2:$AA$41,2,FALSE) -> Sub-Total 2026/2027 | B96: ='F1 Forecast Consultant'!B96 -> 0 | C96: ='F1 Forecast Consultant'!C96 -> 0 | D96: ='F1 Forecast Contractor'!D96 -> 0 | E96: =SUM(E84:E95) -> 0 | F96: =SUM(F84:F95) -> 0
A97: =A95+31 -> 2027-04-01 | B97: =IF('F1 Forecast Consultant'!B97="","",'F1 Forecast Consultant'!B97) ->  | C97: =IF('F1 Forecast Consultant'!C97="","",'F1 Forecast Consultant'!C97) ->  | D97: =IF('F1 Forecast Contractor'!D97="","",'F1 Forecast Contractor'!D97) ->  | E97: =SUM(B97:D97) -> 0
A98: =+A97+30 -> 2027-05-01 | B98: =IF('F1 Forecast Consultant'!B98="","",'F1 Forecast Consultant'!B98) ->  | C98: =IF('F1 Forecast Consultant'!C98="","",'F1 Forecast Consultant'!C98) ->  | D98: =IF('F1 Forecast Contractor'!D98="","",'F1 Forecast Contractor'!D98) ->  | E98: 0
A99: =+A98+31 -> 2027-06-01 | B99: =IF('F1 Forecast Consultant'!B99="","",'F1 Forecast Consultant'!B99) ->  | C99: =IF('F1 Forecast Consultant'!C99="","",'F1 Forecast Consultant'!C99) ->  | D99: =IF('F1 Forecast Contractor'!D99="","",'F1 Forecast Contractor'!D99) ->  | E99: 0
A100: =+A99+30 -> 2027-07-01 | B100: =IF('F1 Forecast Consultant'!B100="","",'F1 Forecast Consultant'!B100) ->  | C100: =IF('F1 Forecast Consultant'!C100="","",'F1 Forecast Consultant'!C100) ->  | D100: =IF('F1 Forecast Contractor'!D100="","",'F1 Forecast Contractor'!D100) ->  | E100: 0
A101: =+A100+31 -> 2027-08-01 | B101: =IF('F1 Forecast Consultant'!B101="","",'F1 Forecast Consultant'!B101) ->  | C101: =IF('F1 Forecast Consultant'!C101="","",'F1 Forecast Consultant'!C101) ->  | D101: =IF('F1 Forecast Contractor'!D101="","",'F1 Forecast Contractor'!D101) ->  | E101: 0
A102: =+A101+31 -> 2027-09-01 | B102: =IF('F1 Forecast Consultant'!B102="","",'F1 Forecast Consultant'!B102) ->  | C102: =IF('F1 Forecast Consultant'!C102="","",'F1 Forecast Consultant'!C102) ->  | D102: =IF('F1 Forecast Contractor'!D102="","",'F1 Forecast Contractor'!D102) ->  | E102: 0
A103: =+A102+30 -> 2027-10-01 | B103: =IF('F1 Forecast Consultant'!B103="","",'F1 Forecast Consultant'!B103) ->  | C103: =IF('F1 Forecast Consultant'!C103="","",'F1 Forecast Consultant'!C103) ->  | D103: =IF('F1 Forecast Contractor'!D103="","",'F1 Forecast Contractor'!D103) ->  | E103: 0
A104: =+A103+31 -> 2027-11-01 | B104: =IF('F1 Forecast Consultant'!B104="","",'F1 Forecast Consultant'!B104) ->  | C104: =IF('F1 Forecast Consultant'!C104="","",'F1 Forecast Consultant'!C104) ->  | D104: =IF('F1 Forecast Contractor'!D104="","",'F1 Forecast Contractor'!D104) ->  | E104: 0
A105: =+A104+30 -> 2027-12-01 | B105: =IF('F1 Forecast Consultant'!B105="","",'F1 Forecast Consultant'!B105) ->  | C105: =IF('F1 Forecast Consultant'!C105="","",'F1 Forecast Consultant'!C105) ->  | D105: =IF('F1 Forecast Contractor'!D105="","",'F1 Forecast Contractor'!D105) ->  | E105: 0
A106: =+A105+31 -> 2028-01-01 | B106: =IF('F1 Forecast Consultant'!B106="","",'F1 Forecast Consultant'!B106) ->  | C106: =IF('F1 Forecast Consultant'!C106="","",'F1 Forecast Consultant'!C106) ->  | D106: =IF('F1 Forecast Contractor'!D106="","",'F1 Forecast Contractor'!D106) ->  | E106: 0
A107: =+A106+31 -> 2028-02-01 | B107: =IF('F1 Forecast Consultant'!B107="","",'F1 Forecast Consultant'!B107) ->  | C107: =IF('F1 Forecast Consultant'!C107="","",'F1 Forecast Consultant'!C107) ->  | D107: =IF('F1 Forecast Contractor'!D107="","",'F1 Forecast Contractor'!D107) ->  | E107: 0
A108: =IF(ISNA(VLOOKUP(A107,DATA!$E$4:$E$13,1,FALSE))=TRUE,A107+28,A107+29) -> 2028-03-01 | B108: =IF('F1 Forecast Consultant'!B108="","",'F1 Forecast Consultant'!B108) ->  | C108: =IF('F1 Forecast Consultant'!C108="","",'F1 Forecast Consultant'!C108) ->  | D108: =IF('F1 Forecast Contractor'!D108="","",'F1 Forecast Contractor'!D108) ->  | E108: 0
A109: =VLOOKUP(A97,DATA!$Y$2:$AA$41,2,FALSE) -> Sub-Total 2027/2028 | B109: ='F1 Forecast Consultant'!B109 -> 0 | C109: ='F1 Forecast Consultant'!C109 -> 0 | D109: ='F1 Forecast Contractor'!D109 -> 0 | E109: =SUM(E97:E108) -> 0 | F109: =SUM(F97:F108) -> 0
A110: =A108+31 -> 2028-04-01 | B110: =IF('F1 Forecast Consultant'!B110="","",'F1 Forecast Consultant'!B110) ->  | C110: =IF('F1 Forecast Consultant'!C110="","",'F1 Forecast Consultant'!C110) ->  | D110: =IF('F1 Forecast Contractor'!D110="","",'F1 Forecast Contractor'!D110) ->  | E110: =SUM(B110:D110) -> 0
A111: =+A110+30 -> 2028-05-01 | B111: =IF('F1 Forecast Consultant'!B111="","",'F1 Forecast Consultant'!B111) ->  | C111: =IF('F1 Forecast Consultant'!C111="","",'F1 Forecast Consultant'!C111) ->  | D111: =IF('F1 Forecast Contractor'!D111="","",'F1 Forecast Contractor'!D111) ->  | E111: =SUM(B111:D111) -> 0
A112: =+A111+31 -> 2028-06-01 | B112: =IF('F1 Forecast Consultant'!B112="","",'F1 Forecast Consultant'!B112) ->  | C112: =IF('F1 Forecast Consultant'!C112="","",'F1 Forecast Consultant'!C112) ->  | D112: =IF('F1 Forecast Contractor'!D112="","",'F1 Forecast Contractor'!D112) ->  | E112: 0
A113: =+A112+30 -> 2028-07-01 | B113: =IF('F1 Forecast Consultant'!B113="","",'F1 Forecast Consultant'!B113) ->  | C113: =IF('F1 Forecast Consultant'!C113="","",'F1 Forecast Consultant'!C113) ->  | D113: =IF('F1 Forecast Contractor'!D113="","",'F1 Forecast Contractor'!D113) ->  | E113: 0
A114: =+A113+31 -> 2028-08-01 | B114: =IF('F1 Forecast Consultant'!B114="","",'F1 Forecast Consultant'!B114) ->  | C114: =IF('F1 Forecast Consultant'!C114="","",'F1 Forecast Consultant'!C114) ->  | D114: =IF('F1 Forecast Contractor'!D114="","",'F1 Forecast Contractor'!D114) ->  | E114: 0
A115: =+A114+31 -> 2028-09-01 | B115: =IF('F1 Forecast Consultant'!B115="","",'F1 Forecast Consultant'!B115) ->  | C115: =IF('F1 Forecast Consultant'!C115="","",'F1 Forecast Consultant'!C115) ->  | D115: =IF('F1 Forecast Contractor'!D115="","",'F1 Forecast Contractor'!D115) ->  | E115: 0
A116: =+A115+30 -> 2028-10-01 | B116: =IF('F1 Forecast Consultant'!B116="","",'F1 Forecast Consultant'!B116) ->  | C116: =IF('F1 Forecast Consultant'!C116="","",'F1 Forecast Consultant'!C116) ->  | D116: =IF('F1 Forecast Contractor'!D116="","",'F1 Forecast Contractor'!D116) ->  | E116: 0
A117: =+A116+31 -> 2028-11-01 | B117: =IF('F1 Forecast Consultant'!B117="","",'F1 Forecast Consultant'!B117) ->  | C117: =IF('F1 Forecast Consultant'!C117="","",'F1 Forecast Consultant'!C117) ->  | D117: =IF('F1 Forecast Contractor'!D117="","",'F1 Forecast Contractor'!D117) ->  | E117: 0
A118: =+A117+30 -> 2028-12-01 | B118: =IF('F1 Forecast Consultant'!B118="","",'F1 Forecast Consultant'!B118) ->  | C118: =IF('F1 Forecast Consultant'!C118="","",'F1 Forecast Consultant'!C118) ->  | D118: =IF('F1 Forecast Contractor'!D118="","",'F1 Forecast Contractor'!D118) ->  | E118: 0
A119: =+A118+31 -> 2029-01-01 | B119: =IF('F1 Forecast Consultant'!B119="","",'F1 Forecast Consultant'!B119) ->  | C119: =IF('F1 Forecast Consultant'!C119="","",'F1 Forecast Consultant'!C119) ->  | D119: =IF('F1 Forecast Contractor'!D119="","",'F1 Forecast Contractor'!D119) ->  | E119: 0
A120: =+A119+31 -> 2029-02-01 | B120: =IF('F1 Forecast Consultant'!B120="","",'F1 Forecast Consultant'!B120) ->  | C120: =IF('F1 Forecast Consultant'!C120="","",'F1 Forecast Consultant'!C120) ->  | D120: =IF('F1 Forecast Contractor'!D120="","",'F1 Forecast Contractor'!D120) ->  | E120: 0
A121: =IF(ISNA(VLOOKUP(A120,DATA!$E$4:$E$13,1,FALSE))=TRUE,A120+28,A120+29) -> 2029-03-01 | B121: =IF('F1 Forecast Consultant'!B121="","",'F1 Forecast Consultant'!B121) ->  | C121: =IF('F1 Forecast Consultant'!C121="","",'F1 Forecast Consultant'!C121) ->  | D121: =IF('F1 Forecast Contractor'!D121="","",'F1 Forecast Contractor'!D121) ->  | E121: =SUM(B121:D121) -> 0
A122: =VLOOKUP(A110,DATA!$Y$2:$AA$41,2,FALSE) -> Sub-Total 2028/2029 | B122: ='F1 Forecast Consultant'!B122 -> 0 | C122: ='F1 Forecast Consultant'!C122 -> 0 | D122: ='F1 Forecast Contractor'!D122 -> 0 | E122: =SUM(E110:E121) -> 0 | F122: =SUM(F110:F121) -> 0
A123: TOTALS | B123: ='F1 Forecast Consultant'!B123 -> 0 | C123: ='F1 Forecast Consultant'!C123 -> 0 | D123: ='F1 Forecast Contractor'!D124 -> 0 | E123: =E83+E96+E109+E122 -> 0 | F123: =F83+F96+F109+F122 -> 0
A124: Actual - Red or Bold | B124: Estimate - Black

Sheet F1 Forecast Consultant (hidden)
B1: SOUTH AFRICAN NATIONAL ROADS AGENCY LTD | D1: Consulting Engineers Fee Account | F1: SUMMARY FORM
D2: Safety Improvement | F2: CONSULTANT
B3: REGION: | C3: Western | D3: Contract No.: | E3: =DATA!C1004 -> R.081-010-2023/1F
D4: Account no.: | E4: ='F1 Cover'!K8 -> 1
A5: SUMMARY PAGE 1 (a)
A8: CONTRACT No | B8: =E3 -> R.081-010-2023/1F
A9: DESCRIPTION | B9: =DATA!C1005 -> CONTRACT SANRAL R.081-010-2023/1F FOR CONSULTING ENGINEERING SERVICES FOR THE RESURFACING ON NATIONAL ROAD R81 SECTION 1 FROM km 37.0 TO km 61.19 AND km 71.12 TO km 75.40
A11: START DATE | D11: COMPLETION DATE
A12: CONSULTANT | B12: ='All Hours'!D1 -> PLEASE INSERT TENDERER NAME ON INPUT DATA SHEET
A13: FEE BUDGET AMOUNT | B13: ='Pricing Schedule'!F406 -> 31753156 | C13: (VAT INCLUDED)
A14: CONTRACTOR | B14: =IF('F1 Forecast Contractor'!B14:D14="","",'F1 Forecast Contractor'!B14:D14) -> 
A15: START DATE | B15: =IF('F1 Forecast Contractor'!B15="","",'F1 Forecast Contractor'!B15) ->  | D15: COMPLETION DATE | E15: =IF('F1 Forecast Contractor'!E15:F15="","",'F1 Forecast Contractor'!E15:F15) -> 
A16: CONSTRUCTION BUDGET AMOUNT | B16: =IF('F1 Forecast Contractor'!B16="","",'F1 Forecast Contractor'!B16) -> 214767892.3 | C16: (VAT INCLUDED)
A17: MONTH | B17: ESTIMATED EXPENDITURE | F17: ACTUAL PAYMENT
B18: (VAT INCLUDED) | F18: (VAT INCLUDED)
B19: DESIGN & DIVERSE SERVICES | C19: SUPERVISION | D19: CONSTRUCTION | E19: TOTAL
A20: ='F1 Forecast Combined'!A20 -> 2023-04-01 | E20: =SUM(B20:C20) -> 0
A21: ='F1 Forecast Combined'!A21 -> 2023-05-01 | E21: 0
A22: ='F1 Forecast Combined'!A22 -> 2023-06-01 | E22: 0
A23: ='F1 Forecast Combined'!A23 -> 2023-07-01 | E23: 0
A24: ='F1 Forecast Combined'!A24 -> 2023-08-01 | E24: 0
A25: ='F1 Forecast Combined'!A25 -> 2023-09-01 | E25: 0
A26: ='F1 Forecast Combined'!A26 -> 2023-10-01 | E26: 0
A27: ='F1 Forecast Combined'!A27 -> 2023-11-01 | E27: 0
A28: ='F1 Forecast Combined'!A28 -> 2023-12-01 | E28: 0
A29: ='F1 Forecast Combined'!A29 -> 2024-01-01 | E29: 0
A30: ='F1 Forecast Combined'!A30 -> 2024-02-01 | E30: 0
A31: ='F1 Forecast Combined'!A31 -> 2024-03-01 | E31: 0
A32: ='F1 Forecast Combined'!A32 -> Sub-Total 2023/2024 | B32: =SUM(B20:B31) -> 0 | C32: =SUM(C20:C31) -> 0 | E32: =SUM(E20:E31) -> 0 | F32: =SUM(F20:F31) -> 0
A33: ='F1 Forecast Combined'!A33 -> 2024-04-01 | E33: =SUM(B33:C33) -> 0
A34: ='F1 Forecast Combined'!A34 -> 2024-05-01 | E34: 0
A35: ='F1 Forecast Combined'!A35 -> 2024-06-01 | E35: 0
A36: ='F1 Forecast Combined'!A36 -> 2024-07-01 | E36: 0
A37: ='F1 Forecast Combined'!A37 -> 2024-08-01 | E37: 0
A38: ='F1 Forecast Combined'!A38 -> 2024-09-01 | E38: 0
A39: ='F1 Forecast Combined'!A39 -> 2024-10-01 | E39: 0
A40: ='F1 Forecast Combined'!A40 -> 2024-11-01 | E40: 0
A41: ='F1 Forecast Combined'!A41 -> 2024-12-01 | E41: 0
A42: ='F1 Forecast Combined'!A42 -> 2025-01-01 | E42: 0
A43: ='F1 Forecast Combined'!A43 -> 2025-02-01 | E43: 0
A44: ='F1 Forecast Combined'!A44 -> 2025-03-01 | E44: 0
A45: ='F1 Forecast Combined'!A45 -> Sub-Total 2024/2025 | B45: =SUM(B33:B44) -> 0 | C45: =SUM(C33:C44) -> 0 | E45: =SUM(E33:E44) -> 0 | F45: =SUM(F33:F44) -> 0
A46: ='F1 Forecast Combined'!A46 -> 2025-04-01 | E46: =SUM(B46:C46) -> 0
A47: ='F1 Forecast Combined'!A47 -> 2025-05-01 | E47: 0
A48: ='F1 Forecast Combined'!A48 -> 2025-06-01 | E48: 0
A49: ='F1 Forecast Combined'!A49 -> 2025-07-01 | E49: 0
A50: ='F1 Forecast Combined'!A50 -> 2025-08-01 | E50: 0
A51: ='F1 Forecast Combined'!A51 -> 2025-09-01 | E51: 0
A52: ='F1 Forecast Combined'!A52 -> 2025-10-01 | E52: 0
A53: ='F1 Forecast Combined'!A53 -> 2025-11-01 | E53: 0
A54: ='F1 Forecast Combined'!A54 -> 2025-12-01 | E54: 0
A55: ='F1 Forecast Combined'!A55 -> 2026-01-01 | E55: 0
A56: ='F1 Forecast Combined'!A56 -> 2026-02-01 | E56: 0
A57: ='F1 Forecast Combined'!A57 -> 2026-03-01 | E57: 0
A58: ='F1 Forecast Combined'!A58 -> Sub-Total 2025/2026 | B58: =SUM(B46:B57) -> 0 | C58: =SUM(C46:C57) -> 0 | E58: =SUM(E46:E57) -> 0 | F58: =SUM(F46:F57) -> 0
A59: TOTALS | B59: =+B32+B45+B58 -> 0 | C59: =+C32+C45+C58 -> 0 | E59: =+E32+E45+E58 -> 0 | F59: =+F32+F45+F58 -> 0
A60: Actual - Red or Bold | B60: Estimate - Black
B64: SOUTH AFRICAN NATIONAL ROADS AGENCY LTD | D64: Consulting Engineers Fee Account | F64: SUMMARY FORM
D65: =D2 -> Safety Improvement | F65: CONSULTANT
B66: REGION: | C66: =C3 -> Western | D66: Contract No.: | E66: =E3 -> R.081-010-2023/1F
D67: Account no.: | E67: =E4 -> 1
A68: SUMMARY PAGE 1 (b)
A71: CONTRACT No | B71: =B8 -> R.081-010-2023/1F
A72: DESCRIPTION | B72: =B9 -> CONTRACT SANRAL R.081-010-2023/1F FOR CONSULTING ENGINEERING SERVICES FOR THE RESURFACING ON NATIONAL ROAD R81 SECTION 1 FROM km 37.0 TO km 61.19 AND km 71.12 TO km 75.40
A74: START DATE | B74: =B11 -> 00:00:00 | D74: COMPLETION DATE | E74: =E11 -> 00:00:00
A75: CONSULTANT | B75: PLEASE INSERT TENDERER NAME ON INPUT DATA SHEET
A76: FEE BUDGET AMOUNT | B76: 31753156 | C76: (VAT INCLUDED)
A77: CONTRACTOR
A78: START DATE | D78: COMPLETION DATE | E78: =E15 -> 
A79: CONSTRUCTION BUDGET AMOUNT | B79: 214767892.3 | C79: (VAT INCLUDED)
A80: MONTH | B80: ESTIMATED EXPENDITURE | F80: ACTUAL PAYMENT
B81: (VAT INCLUDED) | F81: (VAT INCLUDED)
B82: DESIGN & DIVERSE SERVICES | C82: SUPERVISION | D82: CONSTRUCTION | E82: ='F1 Forecast Combined'!A83 -> Brought Forward
A83: ='F1 Forecast Combined'!A83 -> Brought Forward | B83: =B59 -> 0 | C83: =C59 -> 0 | E83: =E59 -> 0 | F83: =F59 -> 0
A84: ='F1 Forecast Combined'!A84 -> 2026-04-01 | E84: =SUM(B84:C84) -> 0
A85: ='F1 Forecast Combined'!A85 -> 2026-05-01 | E85: 0
A86: ='F1 Forecast Combined'!A86 -> 2026-06-01 | E86: 0
A87: ='F1 Forecast Combined'!A87 -> 2026-07-01 | E87: 0
A88: ='F1 Forecast Combined'!A88 -> 2026-08-01 | E88: 0
A89: ='F1 Forecast Combined'!A89 -> 2026-09-01 | E89: 0
A90: ='F1 Forecast Combined'!A90 -> 2026-10-01 | E90: 0
A91: ='F1 Forecast Combined'!A91 -> 2026-11-01 | E91: 0
A92: ='F1 Forecast Combined'!A92 -> 2026-12-01 | E92: 0
A93: ='F1 Forecast Combined'!A93 -> 2027-01-01 | E93: 0
A94: ='F1 Forecast Combined'!A94 -> 2027-02-01 | E94: 0
A95: ='F1 Forecast Combined'!A95 -> 2027-03-01 | E95: 0
A96: ='F1 Forecast Combined'!A96 -> Sub-Total 2026/2027 | B96: =SUM(B84:B95) -> 0 | C96: =SUM(C84:C95) -> 0 | E96: =SUM(E84:E95) -> 0 | F96: =SUM(F84:F95) -> 0
A97: ='F1 Forecast Combined'!A97 -> 2027-04-01 | E97: =SUM(B97:C97) -> 0
A98: ='F1 Forecast Combined'!A98 -> 2027-05-01 | E98: 0
A99: ='F1 Forecast Combined'!A99 -> 2027-06-01 | E99: 0
A100: ='F1 Forecast Combined'!A100 -> 2027-07-01 | E100: 0
A101: ='F1 Forecast Combined'!A101 -> 2027-08-01 | E101: 0
A102: ='F1 Forecast Combined'!A102 -> 2027-09-01 | E102: 0
A103: ='F1 Forecast Combined'!A103 -> 2027-10-01 | E103: 0
A104: ='F1 Forecast Combined'!A104 -> 2027-11-01 | E104: 0
A105: ='F1 Forecast Combined'!A105 -> 2027-12-01 | E105: 0
A106: ='F1 Forecast Combined'!A106 -> 2028-01-01 | E106: 0
A107: ='F1 Forecast Combined'!A107 -> 2028-02-01 | E107: 0
A108: ='F1 Forecast Combined'!A108 -> 2028-03-01 | E108: 0
A109: ='F1 Forecast Combined'!A109 -> Sub-Total 2027/2028 | B109: =SUM(B97:B108) -> 0 | C109: =SUM(C97:C108) -> 0 | E109: =SUM(E97:E108) -> 0 | F109: =SUM(F97:F108) -> 0
A110: ='F1 Forecast Combined'!A110 -> 2028-04-01 | E110: =SUM(B110:C110) -> 0
A111: ='F1 Forecast Combined'!A111 -> 2028-05-01 | E111: 0
A112: ='F1 Forecast Combined'!A112 -> 2028-06-01 | E112: 0
A113: ='F1 Forecast Combined'!A113 -> 2028-07-01 | E113: 0
A114: ='F1 Forecast Combined'!A114 -> 2028-08-01 | E114: 0
A115: ='F1 Forecast Combined'!A115 -> 2028-09-01 | E115: 0
A116: ='F1 Forecast Combined'!A116 -> 2028-10-01 | E116: 0
A117: ='F1 Forecast Combined'!A117 -> 2028-11-01 | E117: 0
A118: ='F1 Forecast Combined'!A118 -> 2028-12-01 | E118: 0
A119: ='F1 Forecast Combined'!A119 -> 2029-01-01 | E119: 0
A120: ='F1 Forecast Combined'!A120 -> 2029-02-01 | E120: 0
A121: ='F1 Forecast Combined'!A121 -> 2029-03-01 | E121: 0
A122: ='F1 Forecast Combined'!A122 -> Sub-Total 2028/2029 | B122: =SUM(B110:B121) -> 0 | C122: =SUM(C110:C121) -> 0 | E122: =SUM(E110:E121) -> 0 | F122: =SUM(F110:F121) -> 0
A123: TOTALS | B123: =B83+B96+B109+B122 -> 0 | C123: =C83+C96+C109+C122 -> 0 | E123: =E83+E96+E109+E122 -> 0 | F123: =F83+F96+F109+F122 -> 0
A124: Actual - Red or Bold | B124: Estimate - Black

Sheet F1 Forecast Contractor (hidden)
B1: SOUTH AFRICAN NATIONAL ROADS AGENCY LTD | D1: Consulting Engineers Fee Account | F1: SUMMARY FORM
D2: ='F1 Forecast Consultant'!D2:E2 -> Safety Improvement | F2: CONTRACTOR
B3: REGION: | C3: ='F1 Forecast Consultant'!C3 -> Western | D3: Contract No.: | E3: =DATA!C1004 -> R.081-010-2023/1F
D4: Account no.:
A5: SUMMARY PAGE 1 (a)
A8: CONTRACT No | B8: =E3 -> R.081-010-2023/1F
A9: DESCRIPTION | B9: =DATA!C1005 -> CONTRACT SANRAL R.081-010-2023/1F FOR CONSULTING ENGINEERING SERVICES FOR THE RESURFACING ON NATIONAL ROAD R81 SECTION 1 FROM km 37.0 TO km 61.19 AND km 71.12 TO km 75.40
A11: START DATE | B11: =IF('F1 Forecast Consultant'!B11:C11="","",'F1 Forecast Consultant'!B11:C11) ->  | D11: COMPLETION DATE | E11: =IF('F1 Forecast Consultant'!E11:F11="","",'F1 Forecast Consultant'!E11:F11) -> 
A12: CONSULTANT | B12: ='All Hours'!D1 -> PLEASE INSERT TENDERER NAME ON INPUT DATA SHEET
A13: FEE BUDGET AMOUNT | B13: ='F1 Forecast Consultant'!B13 -> 31753156 | C13: (VAT INCLUDED)
A14: CONTRACTOR
A15: START DATE | D15: COMPLETION DATE
A16: CONSTRUCTION BUDGET AMOUNT | B16: =E16*(1+DATA!$C$1032) -> 214767892.3 | C16: (VAT INCLUDED) | D16: Original Est. (Excl. VAT) = | E16: =DATA!J1017 -> 186754689
A17: MONTH | B17: ESTIMATED EXPENDITURE | F17: ACTUAL PAYMENT
B18: (VAT INCLUDED) | F18: (VAT INCLUDED)
B19: DESIGN & DIVERSE SERVICES | C19: SUPERVISION | D19: CONSTRUCTION | E19: TOTAL
A20: ='F1 Forecast Combined'!A20 -> 2023-04-01 | E20: =SUM(D20:D20) -> 0
A21: ='F1 Forecast Combined'!A21 -> 2023-05-01 | E21: 0
A22: ='F1 Forecast Combined'!A22 -> 2023-06-01 | E22: 0
A23: ='F1 Forecast Combined'!A23 -> 2023-07-01 | E23: 0
A24: ='F1 Forecast Combined'!A24 -> 2023-08-01 | E24: 0
A25: ='F1 Forecast Combined'!A25 -> 2023-09-01 | E25: 0
A26: ='F1 Forecast Combined'!A26 -> 2023-10-01 | E26: 0
A27: ='F1 Forecast Combined'!A27 -> 2023-11-01 | E27: 0
A28: ='F1 Forecast Combined'!A28 -> 2023-12-01 | E28: 0
A29: ='F1 Forecast Combined'!A29 -> 2024-01-01 | E29: 0
A30: ='F1 Forecast Combined'!A30 -> 2024-02-01 | E30: 0
A31: ='F1 Forecast Combined'!A31 -> 2024-03-01 | E31: 0
A32: ='F1 Forecast Combined'!A32 -> Sub-Total 2023/2024 | D32: =SUM(D20:D31) -> 0 | E32: =SUM(E20:E31) -> 0 | F32: =SUM(F20:F31) -> 0
A33: ='F1 Forecast Combined'!A33 -> 2024-04-01 | E33: =SUM(D33:D33) -> 0
A34: ='F1 Forecast Combined'!A34 -> 2024-05-01 | E34: 0
A35: ='F1 Forecast Combined'!A35 -> 2024-06-01 | E35: 0
A36: ='F1 Forecast Combined'!A36 -> 2024-07-01 | E36: 0
A37: ='F1 Forecast Combined'!A37 -> 2024-08-01 | E37: 0
A38: ='F1 Forecast Combined'!A38 -> 2024-09-01 | E38: 0
A39: ='F1 Forecast Combined'!A39 -> 2024-10-01 | E39: 0
A40: ='F1 Forecast Combined'!A40 -> 2024-11-01 | E40: 0
A41: ='F1 Forecast Combined'!A41 -> 2024-12-01 | E41: 0
A42: ='F1 Forecast Combined'!A42 -> 2025-01-01 | E42: 0
A43: ='F1 Forecast Combined'!A43 -> 2025-02-01 | E43: 0
A44: ='F1 Forecast Combined'!A44 -> 2025-03-01 | E44: 0
A45: ='F1 Forecast Combined'!A45 -> Sub-Total 2024/2025 | D45: =SUM(D33:D44) -> 0 | E45: =SUM(E33:E44) -> 0 | F45: =SUM(F33:F44) -> 0
A46: ='F1 Forecast Combined'!A46 -> 2025-04-01 | E46: =SUM(D46:D46) -> 0
A47: ='F1 Forecast Combined'!A47 -> 2025-05-01 | E47: 0
A48: ='F1 Forecast Combined'!A48 -> 2025-06-01 | E48: 0
A49: ='F1 Forecast Combined'!A49 -> 2025-07-01 | E49: 0
A50: ='F1 Forecast Combined'!A50 -> 2025-08-01 | E50: 0
A51: ='F1 Forecast Combined'!A51 -> 2025-09-01 | E51: 0
A52: ='F1 Forecast Combined'!A52 -> 2025-10-01 | E52: 0
A53: ='F1 Forecast Combined'!A53 -> 2025-11-01 | E53: 0
A54: ='F1 Forecast Combined'!A54 -> 2025-12-01 | E54: 0
A55: ='F1 Forecast Combined'!A55 -> 2026-01-01 | E55: 0
A56: ='F1 Forecast Combined'!A56 -> 2026-02-01 | E56: 0
A57: ='F1 Forecast Combined'!A57 -> 2026-03-01 | E57: 0
A58: ='F1 Forecast Combined'!A58 -> Sub-Total 2025/2026 | D58: =SUM(D46:D57) -> 0 | E58: =SUM(E46:E57) -> 0 | F58: =SUM(F46:F57) -> 0
A59: TOTALS | D59: =+D32+D45+D58 -> 0 | E59: =+E32+E45+E58 -> 0 | F59: =+F32+F45+F58 -> 0
A60: Actual - Red or Bold | B60: Estimate - Black
B64: SOUTH AFRICAN NATIONAL ROADS AGENCY LTD | D64: Consulting Engineers Fee Account | F64: SUMMARY FORM
D65: =D2 -> Safety Improvement | F65: CONTRACTOR
B66: REGION: | C66: =C3 -> Western | D66: Contract No.: | E66: =E3 -> R.081-010-2023/1F
D67: Account no.: | E67: =E4 -> 0
A68: SUMMARY PAGE 1 (b)
A71: CONTRACT No | B71: =E66 -> R.081-010-2023/1F
A72: DESCRIPTION | B72: =B9 -> CONTRACT SANRAL R.081-010-2023/1F FOR CONSULTING ENGINEERING SERVICES FOR THE RESURFACING ON NATIONAL ROAD R81 SECTION 1 FROM km 37.0 TO km 61.19 AND km 71.12 TO km 75.40
A74: START DATE | B74: =B11 ->  | D74: COMPLETION DATE | E74: =E11 -> 
A75: CONSULTANT | B75: PLEASE INSERT TENDERER NAME ON INPUT DATA SHEET
A76: FEE BUDGET AMOUNT | B76: 31753156 | C76: (VAT INCLUDED)
A77: CONTRACTOR | B77: 0
A78: START DATE | B78: 00:00:00 | D78: COMPLETION DATE | E78: =E15 -> 00:00:00
A79: CONSTRUCTION BUDGET AMOUNT | B79: 214767892.3 | C79: (VAT INCLUDED)
A80: MONTH | B80: ESTIMATED EXPENDITURE | F80: ACTUAL PAYMENT
B81: (VAT INCLUDED) | F81: (VAT INCLUDED)
B82: DESIGN & DIVERSE SERVICES | C82: SUPERVISION | D82: CONSTRUCTION | E82: TOTAL
A83: ='F1 Forecast Combined'!A83 -> Brought Forward | D83: =D59 -> 0 | E83: =E59 -> 0 | F83: =F59 -> 0
A84: ='F1 Forecast Combined'!A84 -> 2026-04-01 | E84: =SUM(D84:D84) -> 0
A85: ='F1 Forecast Combined'!A85 -> 2026-05-01 | E85: 0
A86: ='F1 Forecast Combined'!A86 -> 2026-06-01 | E86: 0
A87: ='F1 Forecast Combined'!A87 -> 2026-07-01 | E87: 0
A88: ='F1 Forecast Combined'!A88 -> 2026-08-01 | E88: 0
A89: ='F1 Forecast Combined'!A89 -> 2026-09-01 | E89: 0
A90: ='F1 Forecast Combined'!A90 -> 2026-10-01 | E90: 0
A91: ='F1 Forecast Combined'!A91 -> 2026-11-01 | E91: 0
A92: ='F1 Forecast Combined'!A92 -> 2026-12-01 | E92: 0
A93: ='F1 Forecast Combined'!A93 -> 2027-01-01 | E93: 0
A94: ='F1 Forecast Combined'!A94 -> 2027-02-01 | E94: 0
A95: ='F1 Forecast Combined'!A95 -> 2027-03-01 | E95: 0
A96: ='F1 Forecast Combined'!A96 -> Sub-Total 2026/2027 | D96: =SUM(D84:D95) -> 0 | E96: =SUM(E84:E95) -> 0 | F96: =SUM(F84:F95) -> 0
A97: ='F1 Forecast Combined'!A97 -> 2027-04-01 | E97: =SUM(D97:D97) -> 0
A98: ='F1 Forecast Combined'!A98 -> 2027-05-01 | E98: 0
A99: ='F1 Forecast Combined'!A99 -> 2027-06-01 | E99: 0
A100: ='F1 Forecast Combined'!A100 -> 2027-07-01 | E100: 0
A101: ='F1 Forecast Combined'!A101 -> 2027-08-01 | E101: 0
A102: ='F1 Forecast Combined'!A102 -> 2027-09-01 | E102: 0
A103: ='F1 Forecast Combined'!A103 -> 2027-10-01 | E103: 0
A104: ='F1 Forecast Combined'!A104 -> 2027-11-01 | E104: 0
A105: ='F1 Forecast Combined'!A105 -> 2027-12-01 | E105: 0
A106: ='F1 Forecast Combined'!A106 -> 2028-01-01 | E106: 0
A107: ='F1 Forecast Combined'!A107 -> 2028-02-01 | E107: 0
A108: ='F1 Forecast Combined'!A108 -> 2028-03-01 | E108: 0
A109: ='F1 Forecast Combined'!A109 -> Sub-Total 2027/2028 | D109: =SUM(D97:D108) -> 0 | E109: =SUM(E97:E108) -> 0 | F109: =SUM(F97:F108) -> 0
A110: ='F1 Forecast Combined'!A110 -> 2028-04-01 | E110: =SUM(D110:D110) -> 0
A111: ='F1 Forecast Combined'!A111 -> 2028-05-01 | E111: 0
A112: ='F1 Forecast Combined'!A112 -> 2028-06-01 | E112: 0
A113: ='F1 Forecast Combined'!A113 -> 2028-07-01 | E113: 0
A114: ='F1 Forecast Combined'!A114 -> 2028-08-01 | E114: 0
A115: ='F1 Forecast Combined'!A115 -> 2028-09-01 | E115: 0
A116: ='F1 Forecast Combined'!A116 -> 2028-10-01 | E116: 0
A117: ='F1 Forecast Combined'!A117 -> 2028-11-01 | E117: 0
A118: ='F1 Forecast Combined'!A118 -> 2028-12-01 | E118: 0
A119: ='F1 Forecast Combined'!A119 -> 2029-01-01 | E119: 0
A120: ='F1 Forecast Combined'!A120 -> 2029-02-01 | E120: 0
A121: ='F1 Forecast Combined'!A121 -> 2029-03-01 | E121: 0
A122: ='F1 Forecast Combined'!A122 -> Sub-Total 2028/2029 | D122: =SUM(D110:D121) -> 0 | E122: =SUM(E110:E121) -> 0 | F122: =SUM(F110:F121) -> 0
A123: TOTALS | D123: =D83+D96+D109+D122 -> 0 | E123: =E83+E96+E109+E122 -> 0 | F123: =F83+F96+F109+F122 -> 0
A124: Actual - Red or Bold | B124: Estimate - Black

Sheet F1 Cover (hidden)
A1: SOUTH AFRICAN NATIONAL ROADS AGENCY LIMITED | J1: CLAIM: Consulting Engineers Fees | N1: Form 1
A2: REGION: | C2: ='F1 Forecast Consultant'!C3 -> Western
A3: Payable to | C3: ='F1 Forecast Combined'!B12 -> PLEASE INSERT TENDERER NAME ON INPUT DATA SHEET | J3: File No: | L3: =" W12/9/2 - " & K6 -> W12/9/2 - R.081-010-2023/1F
A5: Address | J5: Vat Registration No. : | N5: Consultants Ref.
J6: Contract no. : | K6: ='F1 Forecast Combined'!B8 -> R.081-010-2023/1F
A7: Project Description | C7: ='F1 Forecast Combined'!B9 -> CONTRACT SANRAL R.081-010-2023/1F FOR CONSULTING ENGINEERING SERVICES FOR THE RESURFACING ON NATIONAL ROAD R81 SECTION 1 FROM km 37.0 TO km 61.19 AND km 71.12 TO km 75.40 | N7: Consultants Invoice No.
J8: Account no. | K8: 1 | L8: 2022-08-31
A10: ITEM | B10: DESCRIPTION | G10: TENDERED AMOUNT | H10: TOTAL TO DATE | I10: TOTAL PREVIOUS PAYMENTS | K10: TOTAL NOW PAYABLE | L10: FORM | M10: APPOINTMENT APPROVED BY BOARD
M13: Date:
A14: ='Pricing Schedule'!A392 -> 3.2 | B14: ='Pricing Schedule'!B392 -> PROJECT ASSESSMENT STAGE | G14: ='Pg 2 Sum Scheduled'!E9 -> 0 | H14: ='Pg 2 Sum Scheduled'!I9 -> 0 | I14: ='Pg 2 Sum Scheduled'!G9 -> 0 | K14: =+H14-I14 -> 0 | L14: ='C3.2'!$N$1 -> C3.2
M15: Item No:
A16: ='Pricing Schedule'!A393 -> 3.3 | B16: ='Pricing Schedule'!B393 -> INVESTIGATIONS FOR DESIGN DEVELOPMENT | G16: ='Pg 2 Sum Scheduled'!E10 -> 1125000 | H16: ='Pg 2 Sum Scheduled'!I10 -> 0 | I16: ='Pg 2 Sum Scheduled'!G10 -> 0 | K16: =H16-I16 -> 0 | L16: ='C3.3'!$N$1 -> C3.3
A18: ='Pricing Schedule'!A394 -> 3.4 | B18: ='Pricing Schedule'!B394 -> DESIGN DEVELOPMENT STAGE | G18: ='Pg 2 Sum Scheduled'!E11 ->  | H18: ='Pg 2 Sum Scheduled'!I11 ->  | I18: ='Pg 2 Sum Scheduled'!G11 -> 0 | K18: =H18-I18 ->  | L18: ='C3.4'!$N$1 -> C3.4 | M18: PAYMENT AUTHORISATION
A20: ='Pricing Schedule'!A395 -> 3.5 | B20: ='Pricing Schedule'!B395 -> TENDER DOCUMENTATION | G20: ='Pg 2 Sum Scheduled'!E12 -> 0 | H20: ='Pg 2 Sum Scheduled'!I12 -> 0 | I20: ='Pg 2 Sum Scheduled'!G12 -> 0 | K20: =H20-I20 -> 0 | L20: ='C3.5'!$N$1 -> C3.5 | M20: INTERIM ACCOUNT: RECOMMENDATION
A22: ='Pricing Schedule'!A396 -> 3.6 | B22: ='Pricing Schedule'!B396 -> CLARIFICATION MEETING, TENDER PERIOD AND TENDER EVALUATION | G22: ='Pg 2 Sum Scheduled'!E13 -> 25000 | H22: ='Pg 2 Sum Scheduled'!I13 -> 0 | I22: ='Pg 2 Sum Scheduled'!G13 -> 0 | K22: 0 | L22: ='C3.6'!$N$1 -> C3.6
M23: ………………………….. | O23: …………………………..
A24: ='Pricing Schedule'!A397 -> 3.7 | B24: ='Pricing Schedule'!B397 -> ADMINISTRATION AND MONITORING OF THE WORKS CONTRACT | G24: ='Pg 2 Sum Scheduled'!E14 ->  | H24: ='Pg 2 Sum Scheduled'!I14 ->  | I24: ='Pg 2 Sum Scheduled'!G14 -> 0 | L24: ='C3.7'!$N$1 -> C3.7 | M24: PROJECT MANAGER | O24: DATE
M25: INTERIM ACCOUNT: APPROVED
A26: ='Pricing Schedule'!A398 -> 3.8 | B26: ='Pricing Schedule'!B398 -> ADDITIONAL DUTIES, SPECIAL SERVICES AND SPECIALIST ADVICE | G26: ='Pg 2 Sum Scheduled'!E15 -> 2111440 | H26: ='Pg 2 Sum Scheduled'!I15 -> 0 | I26: ='Pg 2 Sum Scheduled'!G15 -> 0 | K26: 0 | L26: ='C3.8'!$N$1 -> C3.8
A28: ='Pricing Schedule'!A399 -> 3.9 | B28: ='Pricing Schedule'!B399 -> QUALITY CONTROL: WORKS CONTRACT | G28: ='Pg 2 Sum Scheduled'!E16 -> 750000 | H28: ='Pg 2 Sum Scheduled'!I16 -> 0 | I28: ='Pg 2 Sum Scheduled'!G16 -> 0 | K28: 0 | L28: ='C3.9'!$N$1 -> C3.9 | M28: ………………………….. | O28: …………………………..
M29: NOM. PROJECT MAN. | O29: DATE
A30: ='Pricing Schedule'!A400 -> 3.1 | B30: ='Pricing Schedule'!B400 -> CLOSE OUT | G30: ='Pg 2 Sum Scheduled'!E17 ->  | H30: ='Pg 2 Sum Scheduled'!I17 ->  | I30: ='Pg 2 Sum Scheduled'!G17 -> 0 | L30: ='C3.10'!$N$1 -> C3.10
M31: ………………………….. | O31: ………………………
A32: Esc | B32: Escalation | H32: ='Pg 1 Payment'!L17 -> 0 | I32: =DATA!O52 -> 0 | K32: =H32-I32 -> 0 | L32: ESC2 | M32: FINANCIAL MANAGER | O32: DATE
M33: FINAL ACCOUNT: APPROVED
A34: WAF | B34: WAF | H34: =SUM('Pg 1 Payment'!L13:L14) -> 0 | I34: =DATA!GN52 -> 0 | K34: 0 | L34: Pg 1
A36: PEN | B36: Penalties | H36: ='Pg 1 Payment'!L23*-1 -> 0 | I36: =DATA!GO52 -> 0 | K36: =(H36-I36) -> 0 | L36: Pg1
M37: ………………………….. | O37: ………………………
A38: RET | B38: Retention @ 10% | H38: ='Pg 1 Payment'!L20*-1 ->  | I38: =DATA!P56 -> 0 | K38: =(H38-I38) ->  | L38: Pg 1 | M38: FINANCIAL MANAGER | O38: DATE
A40: Sub-Total | G40: =SUM(G14:G38) ->  | H40: =SUM(H13:H39) ->  | I40: =SUM(I13:J39) -> 0 | K40: =+H40-I40 -> 
M41: ………………………….. | O41: ………………………
A42: ="VAT (" & DATA!$C$1032*100 &"%)" -> VAT (15%) | G42: =+G40*DATA!$C$1032 ->  | H42: =DATA!$C$1032*H40 ->  | I42: =DATA!$C$1032*I40 -> 0 | K42: =DATA!$C$1032*K40 ->  | M42: REGIONAL MANAGER | O42: DATE
A44: GRAND TOTAL: | G44: =+G42+G40 ->  | H44: =H40+H42 ->  | I44: =I40+I42 -> 0 | K44: =ROUND((K40+K42),2) -> 
A46: AMOUNT PAYABLE | K46: =K44 -> 
A48: BUDGET AMOUNT AS PER CASHFLOW | K48: =VLOOKUP(DATA!C301,'F1 Forecast Consultant'!$A$20:$F$123,5,FALSE) ->  | M48: ………………………….. | O48: ……………….........
M49: CONSULTING ENGINEER | O49: DATE

Sheet Pg 1 Payment (hidden)
L1: PAGE 1
C3: ='F1 Cover'!K6 -> R.081-010-2023/1F | H3: ='F1 Cover'!L8 -> 2022-08-31 | J3: ACCOUNT NO | K3: ='F1 Cover'!K8 -> 1
A6: PAYMENT CALCULATION FOR WORK DONE TO DATE
B9: DESCRIPTION | F9: FROM | L9: TOTAL
F10: PAGE | H10: Design | J10: Supervision
H11: Actual | J11: Actual | L11: Actual
A12: 1 | B12: Value of scheduled work to date | F12: 2 | H12: ='Pg 2 Sum Scheduled'!$J$19 ->  | J12: ='Pg 2 Sum Scheduled'!$J$20 ->  | L12: =H12+J12 -> 
A13: 2 | B13: Add: Value of Extra work (Variation Orders) - CPI Applic. | F13: 6 | H13: ='Pg 6 WAF with CPI'!$L$31 -> 0 | J13: ='Pg 6 WAF with CPI'!$L$32 -> 0 | L13: =H13+J13 -> 0
A14: 2 | B14: Add: Value of Extra work (Variation Orders) - CPI not Applic. | F14: 7 | H14: ='Pg 7 WAF No CPI'!$L$31 -> 0 | J14: ='Pg 7 WAF No CPI'!$L$32 -> 0 | L14: =H14+J14 -> 0
A15: 3 | C15: Sub-total | H15: =SUM(H12:H14) ->  | J15: =SUM(J12:J14) ->  | L15: =SUM(L12:L14) -> 
A17: 4 | B17: Add: Total contract price adjustment | F17: 9 | H17: ='Pg 9 CPI'!$G$35 -> 0 | J17: ='Pg 9 CPI'!$N$53 -> 0 | L17: =H17+J17 -> 0
A18: 5 | C18: Sub-total | H18: =H15+H17 ->  | J18: =J15+J17 ->  | L18: =L15+L17 -> 
A20: 6 | B20: ="Deduct: Retention - 10% of subtotal (R" &DATA!D13 & " maximum)" -> Deduct: Retention - 10% of subtotal (R150000 maximum) | G20: =DATA!D13 -> 150000 | H20: =IF((H18*10%)>G20,G20,(H18*10%)) ->  | J20: =IF(((J18*10%)+(H18*10%))>G20,(G20-H20),(J18*10%)) ->  | L20: =(H20+J20)+L21+L22 -> 
B21: Reduce Retention • 60% on receipt of approved draft Contract Report and As-built material records and drawings within 3 (three) months of issue of the Taking-over Certificates of the Works Contract. | H21: =ROUND((H20*G21),2) ->  | J21: =ROUND((J20*G21),2) ->  | L21: =((H20+J20)*G21)*-1 -> 
B22: Reduce Retention • 40% on receipt of approved final copies of the above within 1 (one) month of the issue of the Performance Certificate for the Works Contract. | G22: 0 | H22: =ROUND((H21*G22),2) ->  | J22: =ROUND((J21*G22),2) ->  | L22: =((H20+J20)*G22)*-1 -> 
A23: 7 | B23: Deduct: Penalties | F23: 8 | H23: ='Pg 8 Penalties'!$L$32 -> 0 | J23: ='Pg 8 Penalties'!$L$33 -> 0 | L23: =H23+J23 -> 0
A24: 8 | C24: Sub-total (A) | H24: =H18-H20-H23+H21+H22 ->  | J24: =J18-J20-J23+J21+J22 ->  | L24: =L18-L20-L23 -> 
A26: 9 | B26: Deduct: Previous certificate (A) | H26: =DATA!Q52 -> 0 | J26: =DATA!R52 -> 0 | L26: =H26+J26 -> 0
A27: 10 | C27: Total this certificate | H27: =ROUND((H24-H26),2) ->  | J27: =ROUND((J24-J26),2) ->  | L27: =ROUND((L24-L26),2) -> 
A28: 11 | B28: ="Add: V.A.T. (" & DATA!$C$1032*100 & "%)" -> Add: V.A.T. (15%) | H28: =ROUND((H27*DATA!$C$1032),2) ->  | J28: =ROUND((J27*DATA!$C$1032),2) ->  | L28: =ROUND((L27*DATA!$C$1032),2) -> 
A29: 12 | B29: NET AMOUNT NOW DUE FOR PAYMENT | H29: =H27+H28 ->  | J29: =J27+J28 ->  | L29: =L27+L28 -> 
A38: CONSULTING FIRM | C38: DATE | J38: SANRAL PROJECT MANAGER | L38: DATE

Sheet Pg 2 Sum Scheduled (hidden)
J1: PAGE 2
A3: ='Pg 1 Payment'!C3 -> R.081-010-2023/1F | E3: ='F1 Cover'!L8 -> 2022-08-31 | G3: ACCOUNT NO | I3: ='F1 Cover'!K8 -> 1
A6: SUMMARY OF SCHEDULED WORK
A8: Section | B8: Description | D8: From Page | E8: Scheduled | F8: Revised | G8: Previous | H8: This Month | I8: Total to Date | J8: Outstanding
A9: ='F1 Cover'!A14 -> 3.2 | B9: ='F1 Cover'!B14 -> PROJECT ASSESSMENT STAGE | D9: ='F1 Cover'!L14 -> C3.2 | E9: ='C3.2'!J17 -> 0 | F9: ='C3.2'!K17 -> 0 | G9: ='C3.2'!L17 -> 0 | H9: ='C3.2'!M17 -> 0 | I9: ='C3.2'!N17 -> 0 | J9: =IF(I9=0,1,((F9-I9)/F9)) -> 1
A10: ='F1 Cover'!A16 -> 3.3 | B10: ='F1 Cover'!B16 -> INVESTIGATIONS FOR DESIGN DEVELOPMENT | D10: ='F1 Cover'!L16 -> C3.3 | E10: ='C3.3'!J72 -> 1125000 | F10: ='C3.3'!K72 -> 1125000 | G10: ='C3.3'!L72 -> 0 | H10: ='C3.3'!M72 -> 0 | I10: ='C3.3'!N72 -> 0 | J10: =IF(I10=0,1,((F10-I10)/F10)) -> 1
A11: ='F1 Cover'!A18 -> 3.4 | B11: ='F1 Cover'!B18 -> DESIGN DEVELOPMENT STAGE | D11: ='F1 Cover'!L18 -> C3.4 | E11: ='C3.4'!J155 ->  | F11: ='C3.4'!K155 ->  | G11: ='C3.4'!L155 -> 0 | H11: ='C3.4'!M155 ->  | I11: ='C3.4'!N155 -> 
A12: ='F1 Cover'!A20 -> 3.5 | B12: ='F1 Cover'!B20 -> TENDER DOCUMENTATION | D12: ='F1 Cover'!L20 -> C3.5 | E12: ='C3.5'!J12 -> 0 | F12: ='C3.5'!K12 -> 0 | G12: ='C3.5'!L12 -> 0 | H12: ='C3.5'!M12 -> 0 | I12: ='C3.5'!N12 -> 0 | J12: 1
A13: ='F1 Cover'!A22 -> 3.6 | B13: ='F1 Cover'!B22 -> CLARIFICATION MEETING, TENDER PERIOD AND TENDER EVALUATION | D13: ='F1 Cover'!L22 -> C3.6 | E13: ='C3.6'!J16 -> 25000 | F13: ='C3.6'!K16 -> 25000 | G13: ='C3.6'!L16 -> 0 | H13: ='C3.6'!M16 -> 0 | I13: ='C3.6'!N16 -> 0 | J13: 1
A14: ='F1 Cover'!A24 -> 3.7 | B14: ='F1 Cover'!B24 -> ADMINISTRATION AND MONITORING OF THE WORKS CONTRACT | D14: ='F1 Cover'!L24 -> C3.7 | E14: ='C3.7'!J69 ->  | F14: ='C3.7'!K69 ->  | G14: ='C3.7'!L69 -> 0 | H14: ='C3.7'!M69 ->  | I14: ='C3.7'!N69 -> 
A15: ='F1 Cover'!A26 -> 3.8 | B15: ='F1 Cover'!B26 -> ADDITIONAL DUTIES, SPECIAL SERVICES AND SPECIALIST ADVICE | D15: ='F1 Cover'!L26 -> C3.8 | E15: ='C3.8'!J41 -> 2111440 | F15: ='C3.8'!K41 -> 2111440 | G15: ='C3.8'!L41 -> 0 | H15: ='C3.8'!M41 -> 0 | I15: ='C3.8'!N41 -> 0 | J15: 1
A16: ='F1 Cover'!A28 -> 3.9 | B16: ='F1 Cover'!B28 -> QUALITY CONTROL: WORKS CONTRACT | D16: ='F1 Cover'!L28 -> C3.9 | E16: ='C3.9'!J13 -> 750000 | F16: ='C3.9'!K13 -> 750000 | G16: ='C3.9'!L13 -> 0 | H16: ='C3.9'!M13 -> 0 | I16: ='C3.9'!N13 -> 0 | J16: 1
A17: ='F1 Cover'!A30 -> 3.1 | B17: ='F1 Cover'!B30 -> CLOSE OUT | D17: ='F1 Cover'!L30 -> C3.10 | E17: ='C3.10'!J30 ->  | F17: ='C3.10'!K30 ->  | G17: ='C3.10'!L30 -> 0 | H17: ='C3.10'!M30 ->  | I17: ='C3.10'!N30 -> 
B18: Total Scheduled work | E18: =SUM(E9:E17) ->  | F18: =SUM(F9:F17) ->  | G18: =SUM(G9:G17) -> 0 | H18: =SUM(H9:H17) ->  | I18: =SUM(I9:I17) -> 
B19: Total Scheduled Design (A) to Page 1 | J19: =I9+I10+I11+I12+I13+I15 -> 
B20: Total Scheduled Supervision (B) to Page 1 | J20: =I14+I16+I17 -> 
A22: ESCALATABLE WORK
H23: Design | I23: Supervision | J23: Total
B24: Total Scheduled work | H24: =J19 ->  | I24: =J20 ->  | J24: =I18 -> 
B25: Add: Extra work (WAFs) with CPI applicable from Page 6 | H25: ='Pg 6 WAF with CPI'!$L$31 -> 0 | I25: ='Pg 6 WAF with CPI'!$L$32 -> 0 | J25: =H25+I25 -> 0
B26: Deduct: Provisional Sums and PC Sums and Mark-up from Page 4 | H26: ='Pg 4 P Sums'!$L$444 -> 0 | I26: ='Pg 4 P Sums'!$L$445 -> 0 | J26: =H26+I26 -> 0
B27: Deduct: % Fee and Adjustment Value from Summary of Tendered Fee | H27: 0 | I27: 0 | J27: =H27+I27 -> 0
C28: Subtotal Escalatable work (C) | H28: =H24+H25-H26-H27 ->  | I28: =I24+I25-I26-I27 ->  | J28: =J24+J25-J26-J27 -> 
B29: Deduct: Previous Certificate Escalatable work (C) | H29: =DATA!S52 -> 0 | I29: =DATA!T52 -> 0 | J29: =H29+I29 -> 0
B30: Net amount of Work for current month C.P.A. to Page 9 | H30: =H28-H29 ->  | I30: =I28-I29 ->  | J30: =J28-J29 -> 

Sheet Pg 3 Travel (hidden)
Q1: PAGE 3
A3: ='Pg 2 Sum Scheduled'!A3:C3 -> R.081-010-2023/1F | H3: ='F1 Cover'!L8 -> 2022-08-31 | K3: ACCOUNT NO | N3: ='F1 Cover'!K8 -> 1
A6: TRAVEL FOR SITE PERSONNEL
A8: Name | B8: Period | D8: Car Details | F8: Rate | K8: Km | L8: Amount | P8: Total to date
B9: From | C9: To | D9: Make and Type | E9: cm3 | F9: Km | J9: Per Km | K9: Site Travel | M9: Km | N9: Total km | O9: Amount | P9: Km | Q9: Amount
G10: FIXED | H10: CHANGE | I10: PP | M10: Previous
F11: 3000 | J11: =1/100*(G11+(H11*I11)) -> 0 | L11: =ROUND(J11*K11,2) -> 0 | N11: =+M11 -> 0 | O11: =N11*J11 -> 0 | P11: =K11+N11 -> 0 | Q11: 0
F12: >3000 | J12: 0 | L12: =ROUND(J12*K12,2) -> 0 | N12: =+M12 -> 0 | O12: 0 | P12: 0 | Q12: 0
F13: 3000 | J13: 0 | L13: =ROUND(J13*K13,2) -> 0 | N13: 0 | O13: 0 | P13: 0 | Q13: 0
F14: >3000 | J14: 0 | L14: =ROUND(J14*K14,2) -> 0 | N14: 0 | O14: 0 | P14: 0 | Q14: 0
F15: 3000 | J15: 0 | L15: =ROUND(J15*K15,2) -> 0 | N15: 0 | O15: 0 | P15: 0 | Q15: 0
F16: >3000 | J16: 0 | L16: =ROUND(J16*K16,2) -> 0 | N16: 0 | O16: 0 | P16: 0 | Q16: 0
F17: 3000 | J17: 0 | L17: 0 | N17: 0 | O17: 0 | P17: 0 | Q17: 0
F18: >3000 | J18: =1/100*(G18+(H18*I18)) -> 0 | L18: 0 | N18: 0 | O18: 0 | P18: 0 | Q18: 0
F19: 3000 | J19: =1/100*(G19+(H19*I19)) -> 0 | L19: 0 | N19: 0 | O19: 0 | P19: 0 | Q19: 0
F20: >3000 | J20: =1/100*(G20+(H20*I20)) -> 0 | L20: 0 | N20: 0 | O20: 0 | P20: 0 | Q20: 0
F21: 3000 | J21: =1/100*(G21+(H21*I21)) -> 0 | L21: 0 | N21: 0 | O21: 0 | P21: 0 | Q21: 0
F22: >3000 | J22: =1/100*(G22+(H22*I22)) -> 0 | L22: 0 | N22: 0 | O22: 0 | P22: 0 | Q22: 0
F23: 3000 | J23: 0 | L23: 0 | N23: 0 | O23: 0 | P23: 0 | Q23: 0
F24: >3000 | J24: 0 | L24: 0 | N24: 0 | O24: 0 | P24: 0 | Q24: 0
F25: 3000 | J25: 0 | L25: 0 | N25: 0 | O25: 0 | P25: 0 | Q25: 0
F26: >3000 | J26: 0 | L26: 0 | N26: 0 | O26: 0 | P26: 0 | Q26: 0
F27: 3000 | J27: 0 | L27: 0 | N27: 0 | O27: 0 | P27: 0 | Q27: 0
F28: >3000 | J28: 0 | L28: 0 | N28: 0 | O28: 0 | P28: 0 | Q28: 0
A29: SUB TOTAL | F29: 3000 | K29: =K11+K13+K15+K17+K19+K21+K23+K25+K27 -> 0 | L29: =L11+L13+L15+L17+L19+L21+L23+L25+L27 -> 0 | M29: 0 | N29: 0 | O29: 0 | P29: 0 | Q29: 0
F30: >3000 | K30: =K12+K14+K16+K18+K20+K22+K24+K26+K28 -> 0 | L30: 0 | M30: 0 | N30: 0 | O30: 0 | P30: 0 | Q30: 0
A32: Name | B32: Period | D32: Car Details | F32: Rate | K32: Km | L32: Amount | P32: Total to date
B33: From | C33: To | D33: Make and Type | E33: cm3 | F33: Km | J33: Per Km | K33: Site Travel | M33: Km | N33: Total km | O33: Amount | P33: Km | Q33: Amount
G34: FIXED | H34: CHANGE | I34: PP | M34: Previous
F35: 3000 | J35: =1/100*(G35+(H35*I35)) -> 0 | L35: =ROUND(J35*K35,2) -> 0 | N35: =+M35 -> 0 | O35: =N35*J35 -> 0 | P35: =K35+N35 -> 0 | Q35: =L35+O35 -> 0
F36: >3000 | J36: 0 | L36: =ROUND(J36*K36,2) -> 0 | N36: =+M36 -> 0 | O36: 0 | P36: 0 | Q36: 0
F37: 3000 | J37: 0 | L37: =ROUND(J37*K37,2) -> 0 | N37: 0 | O37: 0 | P37: 0 | Q37: 0
F38: >3000 | J38: 0 | L38: =ROUND(J38*K38,2) -> 0 | N38: 0 | O38: 0 | P38: 0 | Q38: 0
F39: 3000 | J39: 0 | L39: =ROUND(J39*K39,2) -> 0 | N39: 0 | O39: 0 | P39: 0 | Q39: 0
F40: >3000 | J40: 0 | L40: =ROUND(J40*K40,2) -> 0 | N40: 0 | O40: 0 | P40: 0 | Q40: 0
F41: 3000 | J41: 0 | L41: 0 | N41: 0 | O41: 0 | P41: 0 | Q41: 0
F42: >3000 | J42: =1/100*(G42+(H42*I42)) -> 0 | L42: 0 | N42: 0 | O42: 0 | P42: 0 | Q42: 0
F43: 3000 | J43: =1/100*(G43+(H43*I43)) -> 0 | L43: 0 | N43: 0 | O43: 0 | P43: 0 | Q43: 0
F44: >3000 | J44: =1/100*(G44+(H44*I44)) -> 0 | L44: 0 | N44: 0 | O44: 0 | P44: 0 | Q44: 0
F45: 3000 | J45: =1/100*(G45+(H45*I45)) -> 0 | L45: 0 | N45: 0 | O45: 0 | P45: 0 | Q45: 0
F46: >3000 | J46: =1/100*(G46+(H46*I46)) -> 0 | L46: 0 | N46: 0 | O46: 0 | P46: 0 | Q46: 0
F47: 3000 | J47: 0 | L47: 0 | N47: 0 | O47: 0 | P47: 0 | Q47: 0
F48: >3000 | J48: 0 | L48: 0 | N48: 0 | O48: 0 | P48: 0 | Q48: 0
F49: 3000 | J49: 0 | L49: 0 | N49: 0 | O49: 0 | P49: 0 | Q49: 0
F50: >3000 | J50: 0 | L50: 0 | N50: 0 | O50: 0 | P50: 0 | Q50: 0
F51: 3000 | J51: 0 | L51: 0 | N51: 0 | O51: 0 | P51: 0 | Q51: 0
F52: >3000 | J52: 0 | L52: 0 | N52: 0 | O52: 0 | P52: 0 | Q52: 0
A53: SUB TOTAL | F53: 3000 | K53: =K35+K37+K39+K41+K43+K45+K47+K49+K51 -> 0 | L53: =L35+L37+L39+L41+L43+L45+L47+L49+L51 -> 0 | M53: 0 | N53: 0 | O53: 0 | P53: 0 | Q53: 0
F54: >3000 | K54: =K36+K38+K40+K42+K44+K46+K48+K50+K52 -> 0 | L54: =L36+L38+L40+L42+L44+L46+L48+L50+L52 -> 0 | M54: 0 | N54: 0 | O54: 0 | P54: 0 | Q54: 0
A56: Name | B56: Period | D56: Car Details | F56: Rate | K56: Km | L56: Amount | P56: Total to date
B57: From | C57: To | D57: Make and Type | E57: cm3 | F57: Km | J57: Per Km | K57: Site Travel | M57: Km | N57: Total km | O57: Amount | P57: Km | Q57: Amount
G58: FIXED | H58: CHANGE | I58: PP | M58: Previous
F59: 3000 | J59: =1/100*(G59+(H59*I59)) -> 0 | L59: =ROUND(J59*K59,2) -> 0 | N59: =+M59 -> 0 | O59: =N59*J59 -> 0 | P59: =K59+N59 -> 0 | Q59: =L59+O59 -> 0
F60: >3000 | J60: 0 | L60: =ROUND(J60*K60,2) -> 0 | N60: =+M60 -> 0 | O60: 0 | P60: 0 | Q60: 0
F61: 3000 | J61: 0 | L61: =ROUND(J61*K61,2) -> 0 | N61: 0 | O61: 0 | P61: 0 | Q61: 0
F62: >3000 | J62: 0 | L62: =ROUND(J62*K62,2) -> 0 | N62: 0 | O62: 0 | P62: 0 | Q62: 0
F63: 3000 | J63: 0 | L63: =ROUND(J63*K63,2) -> 0 | N63: 0 | O63: 0 | P63: 0 | Q63: 0
F64: >3000 | J64: 0 | L64: =ROUND(J64*K64,2) -> 0 | N64: 0 | O64: 0 | P64: 0 | Q64: 0
F65: 3000 | J65: 0 | L65: 0 | N65: 0 | O65: 0 | P65: 0 | Q65: 0
F66: >3000 | J66: =1/100*(G66+(H66*I66)) -> 0 | L66: 0 | N66: 0 | O66: 0 | P66: 0 | Q66: 0
F67: 3000 | J67: =1/100*(G67+(H67*I67)) -> 0 | L67: 0 | N67: 0 | O67: 0 | P67: 0 | Q67: 0
F68: >3000 | J68: =1/100*(G68+(H68*I68)) -> 0 | L68: 0 | N68: 0 | O68: 0 | P68: 0 | Q68: 0
F69: 3000 | J69: =1/100*(G69+(H69*I69)) -> 0 | L69: 0 | N69: 0 | O69: 0 | P69: 0 | Q69: 0
F70: >3000 | J70: =1/100*(G70+(H70*I70)) -> 0 | L70: 0 | N70: 0 | O70: 0 | P70: 0 | Q70: 0
F71: 3000 | J71: 0 | L71: 0 | N71: 0 | O71: 0 | P71: 0 | Q71: 0
F72: >3000 | J72: 0 | L72: 0 | N72: 0 | O72: 0 | P72: 0 | Q72: 0
F73: 3000 | J73: 0 | L73: 0 | N73: 0 | O73: 0 | P73: 0 | Q73: 0
F74: >3000 | J74: 0 | L74: 0 | N74: 0 | O74: 0 | P74: 0 | Q74: 0
F75: 3000 | J75: 0 | L75: 0 | N75: 0 | O75: 0 | P75: 0 | Q75: 0
F76: >3000 | J76: 0 | L76: 0 | N76: 0 | O76: 0 | P76: 0 | Q76: 0
A77: SUB TOTAL | F77: 3000 | K77: =K59+K61+K63+K65+K67+K69+K71+K73+K75 -> 0 | L77: =L59+L61+L63+L65+L67+L69+L71+L73+L75 -> 0 | M77: 0 | N77: 0 | O77: 0 | P77: 0 | Q77: 0
F78: >3000 | K78: =K60+K62+K64+K66++K68+K70+K72+K74+K76 -> 0 | L78: =L60+L62+L64+L66++L68+L70+L72+L74+L76 -> 0 | M78: 0 | N78: 0 | O78: 0 | P78: 0 | Q78: 0
A80: Name | B80: Period | D80: Car Details | F80: Rate | K80: Km | L80: Amount | P80: Total to date
B81: From | C81: To | D81: Make and Type | E81: cm3 | F81: Km | J81: Per Km | K81: Site Travel | M81: Km | N81: Total km | O81: Amount | P81: Km | Q81: Amount
G82: FIXED | H82: CHANGE | I82: PP | M82: Previous
F83: 3000 | J83: =1/100*(G83+(H83*I83)) -> 0 | L83: =ROUND(J83*K83,2) -> 0 | N83: =+M83 -> 0 | O83: =N83*J83 -> 0 | P83: =K83+N83 -> 0 | Q83: =L83+O83 -> 0
F84: >3000 | J84: 0 | L84: =ROUND(J84*K84,2) -> 0 | N84: =+M84 -> 0 | O84: 0 | P84: 0 | Q84: 0
F85: 3000 | J85: 0 | L85: =ROUND(J85*K85,2) -> 0 | N85: 0 | O85: 0 | P85: 0 | Q85: 0
F86: >3000 | J86: 0 | L86: =ROUND(J86*K86,2) -> 0 | N86: 0 | O86: 0 | P86: 0 | Q86: 0
F87: 3000 | J87: 0 | L87: =ROUND(J87*K87,2) -> 0 | N87: 0 | O87: 0 | P87: 0 | Q87: 0
F88: >3000 | J88: 0 | L88: =ROUND(J88*K88,2) -> 0 | N88: 0 | O88: 0 | P88: 0 | Q88: 0
F89: 3000 | J89: 0 | L89: 0 | N89: 0 | O89: 0 | P89: 0 | Q89: 0
F90: >3000 | J90: =1/100*(G90+(H90*I90)) -> 0 | L90: 0 | N90: 0 | O90: 0 | P90: 0 | Q90: 0
F91: 3000 | J91: =1/100*(G91+(H91*I91)) -> 0 | L91: 0 | N91: 0 | O91: 0 | P91: 0 | Q91: 0
F92: >3000 | J92: =1/100*(G92+(H92*I92)) -> 0 | L92: 0 | N92: 0 | O92: 0 | P92: 0 | Q92: 0
F93: 3000 | J93: =1/100*(G93+(H93*I93)) -> 0 | L93: 0 | N93: 0 | O93: 0 | P93: 0 | Q93: 0
F94: >3000 | J94: =1/100*(G94+(H94*I94)) -> 0 | L94: 0 | N94: 0 | O94: 0 | P94: 0 | Q94: 0
F95: 3000 | J95: 0 | L95: 0 | N95: 0 | O95: 0 | P95: 0 | Q95: 0
F96: >3000 | J96: 0 | L96: 0 | N96: 0 | O96: 0 | P96: 0 | Q96: 0
F97: 3000 | J97: 0 | L97: 0 | N97: 0 | O97: 0 | P97: 0 | Q97: 0
F98: >3000 | J98: 0 | L98: 0 | N98: 0 | O98: 0 | P98: 0 | Q98: 0
F99: 3000 | J99: 0 | L99: 0 | N99: 0 | O99: 0 | P99: 0 | Q99: 0
F100: >3000 | J100: 0 | L100: 0 | N100: 0 | O100: 0 | P100: 0 | Q100: 0
A101: SUB TOTAL | F101: 3000 | K101: =K83+K85+K87+K89+K91+K93+K95+K97+K99 -> 0 | L101: =L83+L85+L87+L89+L91+L93+L95+L97+L99 -> 0 | M101: 0 | N101: 0 | O101: 0 | P101: 0 | Q101: 0
F102: >3000 | K102: =K84+K86+K88+K90++K92+K94+K96+K98+K100 -> 0 | L102: =L84+L86+L88+L90++L92+L94+L96+L98+L100 -> 0 | M102: 0 | N102: 0 | O102: 0 | P102: 0 | Q102: 0
A104: Name | B104: Period | D104: Car Details | F104: Rate | K104: Km | L104: Amount | P104: Total to date
B105: From | C105: To | D105: Make and Type | E105: cm3 | F105: Km | J105: Per Km | K105: Site Travel | M105: Km | N105: Total km | O105: Amount | P105: Km | Q105: Amount
G106: FIXED | H106: CHANGE | I106: PP | M106: Previous
F107: 3000 | J107: =1/100*(G107+(H107*I107)) -> 0 | L107: =ROUND(J107*K107,2) -> 0 | N107: =+M107 -> 0 | O107: =N107*J107 -> 0 | P107: =K107+N107 -> 0 | Q107: =L107+O107 -> 0
F108: >3000 | J108: 0 | L108: =ROUND(J108*K108,2) -> 0 | N108: =+M108 -> 0 | O108: 0 | P108: 0 | Q108: 0
F109: 3000 | J109: 0 | L109: =ROUND(J109*K109,2) -> 0 | N109: 0 | O109: 0 | P109: 0 | Q109: 0
F110: >3000 | J110: 0 | L110: =ROUND(J110*K110,2) -> 0 | N110: 0 | O110: 0 | P110: 0 | Q110: 0
F111: 3000 | J111: 0 | L111: =ROUND(J111*K111,2) -> 0 | N111: 0 | O111: 0 | P111: 0 | Q111: 0
F112: >3000 | J112: 0 | L112: =ROUND(J112*K112,2) -> 0 | N112: 0 | O112: 0 | P112: 0 | Q112: 0
F113: 3000 | J113: 0 | L113: 0 | N113: 0 | O113: 0 | P113: 0 | Q113: 0
F114: >3000 | J114: =1/100*(G114+(H114*I114)) -> 0 | L114: 0 | N114: 0 | O114: 0 | P114: 0 | Q114: 0
F115: 3000 | J115: =1/100*(G115+(H115*I115)) -> 0 | L115: 0 | N115: 0 | O115: 0 | P115: 0 | Q115: 0
F116: >3000 | J116: =1/100*(G116+(H116*I116)) -> 0 | L116: 0 | N116: 0 | O116: 0 | P116: 0 | Q116: 0
F117: 3000 | J117: =1/100*(G117+(H117*I117)) -> 0 | L117: 0 | N117: 0 | O117: 0 | P117: 0 | Q117: 0
F118: >3000 | J118: =1/100*(G118+(H118*I118)) -> 0 | L118: 0 | N118: 0 | O118: 0 | P118: 0 | Q118: 0
F119: 3000 | J119: 0 | L119: 0 | N119: 0 | O119: 0 | P119: 0 | Q119: 0
F120: >3000 | J120: 0 | L120: 0 | N120: 0 | O120: 0 | P120: 0 | Q120: 0
F121: 3000 | J121: 0 | L121: 0 | N121: 0 | O121: 0 | P121: 0 | Q121: 0
F122: >3000 | J122: 0 | L122: 0 | N122: 0 | O122: 0 | P122: 0 | Q122: 0
F123: 3000 | J123: 0 | L123: 0 | N123: 0 | O123: 0 | P123: 0 | Q123: 0
F124: >3000 | J124: 0 | L124: 0 | N124: 0 | O124: 0 | P124: 0 | Q124: 0
A125: SUB TOTAL | F125: 3000 | K125: =K107+K109+K111+K113+K115+K117+K119+K121+K123 -> 0 | L125: =L107+L109+L111+L113+L115+L117+L119+L121+L123 -> 0 | M125: 0 | N125: 0 | O125: 0 | P125: 0 | Q125: 0
F126: >3000 | K126: =K108+K110+K112+K114+K116+K118+K120+K122+K124 -> 0 | L126: 0 | M126: 0 | N126: 0 | O126: 0 | P126: 0 | Q126: 0
A128: Total Travel For Site Personnel to calculate into Pricing Schedule item 3.7.6 (a) | F128: 3000 | K128: =SUM(K29+K53+K77+K101+K125) -> 0 | L128: 0 | M128: 0 | N128: 0 | O128: 0 | P128: 0 | Q128: 0
A129: Total Travel For Site Personnel to calculate into Pricing Schedule item 3.7.6 (a) | F129: >3000 | K129: =K30+K54+K78+K102+K126 -> 0 | L129: 0 | M129: 0 | N129: 0 | O129: 0 | P129: 0 | Q129: 0

Sheet Pg 4 P Sums (hidden)
L1: PAGE 4.1
A3: CONTRACT NO: | C3: ='Pg 3 Travel'!A3 -> R.081-010-2023/1F | F3: ='F1 Cover'!L8 -> 2022-08-31 | H3: ACCOUNT NO | K3: ='F1 Cover'!K8 -> 1
A6: PROVISIONAL SUM / PC SUM BREAKDOWN & MARK-UP
A8: Description | H8: ORIG PROV OR PC SUM | I8: Unit | J8: Quantity | K8: Rate | L8: Amount
A9: ='Pricing Schedule'!A22&" " &'Pricing Schedule'!B22 -> 3.3 INVESTIGATIONS FOR DESIGN DEVELOPMENT
A10: ='Pricing Schedule'!A23&" " &'Pricing Schedule'!B23 -> 3.3.1 Survey Services
A11: ='Pricing Schedule'!A24&" " &'Pricing Schedule'!B24 -> (a) Survey Services when procured by service provider | H11: ='Pricing Schedule'!F24 -> 125000 | K11: =IF(H11=0,L11/100,(L11/H11)) -> 0 | L11: =SUM(L12:L18) -> 0
L12: =K12*J12 -> 0
L13: =K13*J13 -> 0
L14: 0
L15: 0
L16: 0
L17: 0
L18: 0
A19: ='Pricing Schedule'!A27&" " &'Pricing Schedule'!B27 -> 3.3.2 Traffic Monitoring Services
A20: ='Pricing Schedule'!A28&" " &'Pricing Schedule'!B28 -> (a) Traffic Monitoring Services when procured by Service Provider | H20: ='Pricing Schedule'!F28 -> 500000 | K20: =IF(H20=0,L20/100,(L20/H20)) -> 0 | L20: =SUM(L21:L27) -> 0
L21: 0
L22: 0
L23: 0
L24: 0
L25: 0
L26: 0
L27: 0
A28: ='Pricing Schedule'!A31&" " &'Pricing Schedule'!B31 -> 3.3.3 Environmental Services
A29: ='Pricing Schedule'!A32&" " &'Pricing Schedule'!B32 -> (a) Environmental services during design stage | H29: ='Pricing Schedule'!F32 -> 0 | K29: =IF(H29=0,L29/100,(L29/H29)) -> 0 | L29: =SUM(L30:L36) -> 0
L30: =K30*J30 -> 0
L31: =K31*J31 -> 0
L32: 0
L33: 0
L34: 0
L35: 0
L36: 0
A37: ='Pricing Schedule'!A34&" " &'Pricing Schedule'!B34 -> 3.3.4 Geotechnical and Drilling Services
A38: ='Pricing Schedule'!A35&" " &'Pricing Schedule'!B35 -> (a) Professional Service for Geotechnical and/or Drilling services investigations | H38: ='Pricing Schedule'!F35 -> 0 | K38: =IF(H38=0,L38/100,(L38/H38)) -> 0 | L38: =SUM(L39:L45) -> 0
L39: =K39*J39 -> 0
L40: =K40*J40 -> 0
L41: 0
L42: 0
L43: 0
L44: 0
L45: 0
A46: ='Pricing Schedule'!A38&" " &'Pricing Schedule'!B38 -> (d) Supervision of the work:
A47: ='Pricing Schedule'!A39&" " &'Pricing Schedule'!B39 -> (i) Full time | H47: ='Pricing Schedule'!F39 -> 0 | K47: =IF(H47=0,L47/100,(L47/H47)) -> 0 | L47: =SUM(L48:L54) -> 0
L48: =K48*J48 -> 0
L49: 0
L50: 0
L51: 0
L52: 0
L53: 0
L54: 0
A55: ='Pricing Schedule'!A40&" " &'Pricing Schedule'!B40 -> (ii) Engineering Geologist for logging of cores and Profiling of test pits | H55: ='Pricing Schedule'!F40 -> 0 | K55: =IF(H55=0,L55/100,(L55/H55)) -> 0 | L55: =SUM(L56:L62) -> 0
L56: 0
L57: 0
L58: 0
L59: 0
L60: 0
L61: 0
L62: 0
A63: ='Pricing Schedule'!A41&" " &'Pricing Schedule'!B41 -> (iii) Accommodation costs | H63: ='Pricing Schedule'!F41 -> 0 | K63: =IF(H63=0,L63/100,(L63/H63)) -> 0 | L63: =SUM(L64:L70) -> 0
L64: 0
L65: 0
L66: 0
L67: 0
L68: 0
L69: 0
L70: 0
A71: ='Pricing Schedule'!A43&" " &'Pricing Schedule'!B43 -> (e) Contracting Services for Geotechnical and Drilling Works:
A72: ='Pricing Schedule'!A44&" " &'Pricing Schedule'!B44 -> (i) Geotechnical and Drilling contractor | H72: ='Pricing Schedule'!F44 -> 0 | K72: =IF(H72=0,L72/100,(L72/H72)) -> 0 | L72: =SUM(L73:L79) -> 0
L73: 0
L74: 0
L75: 0
L76: 0
L77: 0
L78: 0
L79: 0
A80: ='Pricing Schedule'!A55&" " &'Pricing Schedule'!B55 -> 3.3.6 Laboratory testing and reporting
A81: ='Pricing Schedule'!A85&" " &'Pricing Schedule'!B85 -> (b) Laboratory Testing where no schedule is available, or specialised testing | H81: ='Pricing Schedule'!F85 -> 500000 | K81: =IF(H81=0,L81/100,(L81/H81)) -> 0 | L81: =SUM(L82:L88) -> 0
L82: =K82*J82 -> 0
L83: =K83*J83 -> 0
L84: 0
L85: 0
L86: 0
L87: 0
L88: 0
J89: Sub-total | K89: ='C3.3'!A7 -> 3.3 | L89: =L11+L20+L29+L38+L47+L55+L63+L72+L81 -> 0
A91: Carried forward to Page 4.2 | L91: =L89 -> 0
L92: PAGE 4.2
A94: CONTRACT NO: | C94: =$C$3 -> R.081-010-2023/1F | F94: =$F$3 -> 2022-08-31 | H94: ACCOUNT NO | K94: =$K$3 -> 1
A97: PROVISIONAL SUM / PC SUM BREAKDOWN & MARK-UP
A99: Description | I99: Unit | J99: Quantity | K99: Rate | L99: Amount
A100: Brought forward from Page 4.1 | L100: =L91 -> 0
A101: ='Pricing Schedule'!A88&" " &'Pricing Schedule'!B88 -> 3.4 DESIGN DEVELOPMENT STAGE
A102: ='Pricing Schedule'!A164&" " &'Pricing Schedule'!B164 -> 3.4.6 Road Safety Audit: Feasibility/Preliminary/Detail
A103: ='Pricing Schedule'!A165&" " &'Pricing Schedule'!B165 -> (a) Road Safety Audit | H103: ='Pricing Schedule'!F165 -> 500000 | K103: =IF(H103=0,L103/100,(L103/H103)) -> 0 | L103: =SUM(L104:L110) -> 0
L104: =K104*J104 -> 0
L105: =K105*J105 -> 0
L106: 0
L107: 0
L108: 0
L109: 0
L110: 0
A111: ='Pricing Schedule'!A167&" " &'Pricing Schedule'!B167 -> 3.4.7 Road Safety Audit: Construction/Pre-opening
A112: ='Pricing Schedule'!A168&" " &'Pricing Schedule'!B168 -> (a) Road Safety Audit | H112: ='Pricing Schedule'!F168 -> 200000 | K112: =IF(H112=0,L112/100,(L112/H112)) -> 0 | L112: =SUM(L113:L119) -> 0
L113: =K113*J113 -> 0
L114: =K114*J114 -> 0
L115: 0
L116: 0
L117: 0
L118: 0
L119: 0
A120: ='Pricing Schedule'!A171&" " &'Pricing Schedule'!B171 -> 3.4.9 Training
A121: ='Pricing Schedule'!A172&" " &'Pricing Schedule'!B172 -> (a) Service Provider’s staff and Targeted Enterprises:
A122: ='Pricing Schedule'!A175&" " &'Pricing Schedule'!B175 -> (iii) Disbursements | H122: ='Pricing Schedule'!F175 -> 50000 | K122: =IF(H122=0,L122/100,(L122/H122)) -> 0 | L122: =SUM(L123:L129) -> 0
L123: =K123*J123 -> 0
L124: =K124*J124 -> 0
L125: 0
L126: 0
L127: 0
L128: 0
L129: 0
A130: ='Pricing Schedule'!A176&" " &'Pricing Schedule'!B176 -> (b) Employer’s Trainees:
A131: ='Pricing Schedule'!A179&" " &'Pricing Schedule'!B179 -> (iii) Student stipend | H131: ='Pricing Schedule'!F179 -> 200000 | K131: =IF(H131=0,L131/100,(L131/H131)) -> 0 | L131: =SUM(L132:L138) -> 0
L132: =K132*J132 -> 0
L133: 0
L134: 0
L135: 0
L136: 0
L137: 0
L138: 0
A139: ='Pricing Schedule'!A180&" " &'Pricing Schedule'!B180 -> 3.4.10 Phase / Stage discontinuity
A140: ='Pricing Schedule'!A182&" " &'Pricing Schedule'!B182 -> (b) Review of tender documentation by original designer | H140: ='Pricing Schedule'!F182 -> 0 | K140: =IF(H140=0,L140/100,(L140/H140)) -> 0 | L140: =SUM(L141:L147) -> 0
L141: =K141*J141 -> 0
L142: =K142*J142 -> 0
L143: 0
L144: 0
L145: 0
L146: 0
L147: 0
A148: ='Pricing Schedule'!A183&" " &'Pricing Schedule'!B183 -> (c) Visit to construction site by original designer | H148: ='Pricing Schedule'!F182 -> 0 | K148: =IF(H148=0,L148/100,(L148/H148)) -> 0 | L148: =SUM(L149:L155) -> 0
L149: =K149*J149 -> 0
L150: =K150*J150 -> 0
L151: 0
L152: 0
L153: 0
L154: 0
L155: 0
A156: ='Pricing Schedule'!A185&" " &'Pricing Schedule'!B185 -> 3.4.11 Field work for identification of material sources by service provider
A157: ='Pricing Schedule'!A186&" " &'Pricing Schedule'!B186 -> (a) Personnel cost | H157: ='Pricing Schedule'!F186 -> 200000 | K157: =IF(H157=0,L157/100,(L157/H157)) -> 0 | L157: =SUM(L158:L164) -> 0
L158: =K158*J158 -> 0
L159: =K159*J159 -> 0
L160: 0
L161: 0
L162: 0
L163: 0
L164: 0
A165: ='Pricing Schedule'!A187&" " &'Pricing Schedule'!B187 -> (b) Disbursements | H165: ='Pricing Schedule'!F187 -> 15000 | K165: =IF(H165=0,L165/100,(L165/H165)) -> 0 | L165: =SUM(L166:L172) -> 0
L166: =K166*J166 -> 0
L167: 0
L168: 0
L169: 0
L170: 0
L171: 0
L172: 0
A173: ='Pricing Schedule'!A189&" " &'Pricing Schedule'!B189 -> 3.4.12 Investigation and sampling for roadbed, borrow pits, quarries, structure founding materials and other areas, e.g. Cuttings
A174: ='Pricing Schedule'!A191&" " &'Pricing Schedule'!B191 -> (b) Hire and operation of excavator | H174: ='Pricing Schedule'!F191 -> 250000 | K174: =IF(H174=0,L174/100,(L174/H174)) -> 0 | L174: =SUM(L175:L181) -> 0
L175: =K175*J175 -> 0
L176: =K176*J176 -> 0
L177: 0
L178: 0
L179: 0
L180: 0
L181: 0
A182: ='Pricing Schedule'!A199&" " &'Pricing Schedule'!B199 -> 3.4.13 Laboratory testing and reporting
A183: ='Pricing Schedule'!A229&" " &'Pricing Schedule'!B229 -> (b) Laboratory Testing where no schedule is available, or specialised testing | H183: ='Pricing Schedule'!F229 -> 500000 | K183: =IF(H183=0,L183/100,(L183/H183)) -> 0 | L183: =SUM(L184:L190) -> 0
L184: =K184*J184 -> 0
L185: =K185*J185 -> 0
L186: 0
L187: 0
L188: 0
L189: 0
L190: 0
A191: ='Pricing Schedule'!A231&" " &'Pricing Schedule'!B231 -> 3.4.14 Protection, removal, realignment and replacement of services prior to construction phase
A192: ='Pricing Schedule'!A232&" " &'Pricing Schedule'!B232 -> (a) Services | H192: ='Pricing Schedule'!F232 -> 100000 | K192: =IF(H192=0,L192/100,(L192/H192)) -> 0 | L192: =SUM(L193:L199) -> 0
L193: =K193*J193 -> 0
L194: =K194*J194 -> 0
L195: 0
L196: 0
L197: 0
L198: 0
L199: 0
J200: Sub-total | K200: ='C3.4'!A7 -> 3.4 | L200: =L103+L112+L122+L131+L140+L148+L157+L165+L174+L183+L192 -> 0
A202: Carried forward to Page 4.3 | L202: =L100+L200 -> 0
L203: PAGE 4.3
A205: CONTRACT NO: | C205: =$C$3 -> R.081-010-2023/1F | F205: =$F$3 -> 2022-08-31 | H205: ACCOUNT NO | K205: =$K$3 -> 1
A208: PROVISIONAL SUM / PC SUM BREAKDOWN & MARK-UP
A210: Description | I210: Unit | J210: Quantity | K210: Rate | L210: Amount
A211: Brought forward from Page 4.2 | L211: =L202 -> 0
A212: ='Pricing Schedule'!A244&" " &'Pricing Schedule'!B244 -> 3.6 CLARIFICATION MEETING, TENDER PERIOD AND TENDER EVALUATION
A213: ='Pricing Schedule'!A245&" " &'Pricing Schedule'!B245 -> 3.6.1 Clarification meeting and tender period
A214: ='Pricing Schedule'!A247&" " &'Pricing Schedule'!B247 -> (b) Provision for pre-recorded video | H214: ='Pricing Schedule'!F247 -> 25000 | K214: =IF(H214=0,L214/100,(L214/H214)) -> 0 | L214: =SUM(L215:L221) -> 0
... 216 more rows

Sheet Pg 5 Add. Duties (hidden)
L1: PAGE 5
A3: ='Pg 4 P Sums'!C3 -> R.081-010-2023/1F | E3: ='F1 Cover'!L8 -> 2022-08-31 | H3: ACCOUNT NO: | K3: ='F1 Cover'!K8 -> 1
A6: ADDITIONAL DUTIES BREAKDOWN
A8: Description | I8: Unit | J8: Quantity | K8: Rate | L8: Amount
A9: 37.01 Additional duties
A10: A {type of additional duties}
A11: Previous
A12: (a) Category A ________________________
A13: (b) Category B ________________________
A14: (b) Category B ________________________
A15: (c) Category C Daan de Winnaar | I15: hr | L15: =K15*J15 -> 0
A16: (c) Category C ________________________
A17: (d) Category D ________________________
A18: (d) Category D ________________________
A19: Disbursements
A20: i) Travelling , Daan de Winnaar | I20: km | L20: =K20*J20 -> 0
A21: ii)
A22: ii)
I23: Sub-total | L23: =SUM(L11:L22) -> 0
A24: B {type of additional duties}
A25: Previous
A26: (a) Category A ________________________
A27: (b) Category B ________________________
A28: (b) Category B ________________________
A29: (c) Category C ________________________
A30: (c) Category C ________________________
A31: (d) Category D ________________________
A32: (d) Category D ________________________
A33: Disbursements
A34: i)
A35: ii)
A36: ii)
I37: Sub-total | L37: =SUM(L25:L36) -> 0
A38: Total Additional Duties | L38: =L23+L37 -> 0

Sheet Pg 6 WAF with CPI (hidden)
L1: PAGE 6
A3: ='Pg 5 Add. Duties'!A3 -> R.081-010-2023/1F | F3: ='F1 Cover'!L8 -> 2022-08-31 | H3: ACCOUNT NO | K3: ='F1 Cover'!K8 -> 1
A6: WORKS AUTHORISATION FORMS (NOT REFLECTED IN PRICING SCHEDULE) - CPI APPLICABLE
A8: Description | I8: Unit | J8: Quantity | K8: Rate | L8: Amount
A9: Design phase
A10: WAF No. 1
A11: Previous
I18: Design phase variation orders
A19: Supervision phase
A20: WAF No. __
A21: Previous
I29: Supervision phase variation orders
A31: Design phase: Total Variation orders (CPI applicable) to Page 2 & Page 1 | L31: =L18 -> 0
A32: Supervision phase: Total Variation orders (CPI applicable) to Page 2 & Page 1 | L32: =L29 -> 0
A33: Total Variation Orders (CPI applicable) | L33: =L31+L32 -> 0

Sheet Pg 7 WAF No CPI (hidden)
L1: PAGE 7
A3: ='Pg 6 WAF with CPI'!A3 -> R.081-010-2023/1F | F3: ='F1 Cover'!L8 -> 2022-08-31 | H3: ACCOUNT NO | K3: ='F1 Cover'!K8 -> 1
A6: WORKS AUTHORISATION FORMS (NOT REFLECTED IN PRICING SCHEDULE) - CPI NOT APPLICABLE
A8: Description | I8: Unit | J8: Quantity | K8: Rate | L8: Amount
A9: Design phase
A10: WAF No. 1
I18: Design phase variation orders | L18: =SUM(L10:L17) -> 0
A19: Supervision phase
A20: WAF No. ___
I29: Supervision phase variation orders | L29: =SUM(L20:L28) -> 0
A31: Design phase: Total Variation orders (CPI not applicable) to Page 1 | L31: =L18 -> 0
A32: Supervision phase: Total Variation orders (CPI not applicable) to Page 1 | L32: =L29 -> 0
A33: Total Variation Orders (CPI not applicable) | L33: =L31+L32 -> 0

Sheet Pg 8 Penalties (hidden)
L1: PAGE 8
A3: ='Pg 7 WAF No CPI'!A3 -> R.081-010-2023/1F | F3: ='F1 Cover'!L8 -> 2022-08-31 | H3: ACCOUNT NO | K3: ='F1 Cover'!K8 -> 1
A6: PENALTIES
A8: Description | I8: Unit | J8: Quantity | K8: Rate | L8: Amount
A9: Design phase
A10: Penalty
A11: Previous
I18: Design phase penalties | L18: =SUM(L11:L17) -> 0
A20: Supervision phase
A21: Penalty
A22: Previous
I30: Supervision phase penalties
A32: Design phase: Total Penalties to Page 1 | L32: =L18 -> 0
A33: Supervision phase: Total Penalties to Page 1 | L33: =L30 -> 0
A34: Total Penalties | L34: =L32+L33 -> 0

Sheet Pg 9 CPI (hidden)
N1: PAGE 9
A3: ='Pg 8 Penalties'!A3 -> R.081-010-2023/1F | G3: ='F1 Cover'!L8 -> 2022-08-31 | I3: ACCOUNT NO | M3: ='F1 Cover'!K8 -> 1
A6: CONTRACT PRICE ADJUSTMENT
B8: Ct | H8: Base Date | J8: =DATA!$K$1023-28 -> 2023-03-24
B9: f = (1-x) * { a ------- -1 } | F9: Co = Lo | H9: Urban Area
B10: Co | F10: Ct = Lt | H10: x = | J10: 0
H11: a = | J11: 1 | M11: * denotes provisional index
A12: No | B12: Month | C12: L | E12: Factor | F12: Work Done | G12: CPA | H12: No | I12: Month | J12: L | L12: Factor | M12: Work Done | N12: CPA
E13: BASE
A14: DESIGN
A15: 1 | E15: =ROUND((1-$J$10)*(($J$11*C15/C$13)-1),4) ->  | F15: 0 | G15: =ROUND((E15*F15),2) ->  | L15: =ROUND((1-$J$10)*(($J$11*J15/C$13)-1),4) ->  | N15: =ROUND((L15*M15),2) -> 
A16: 2 | F16: 0
A17: 3
A18: 4
A19: 5 | D19: *
A20: 6 | G20: =ROUND((E20*F20),2) -> 
A21: 7
A22: 8
A23: 9
A24: 10
A25: 11
A26: 12
A27: 13
A28: 14
A29: 15
A30: 16
A31: 17
A32: 18
A33: 19
A35: Total Design to Page 1 | F35: =SUM(F15:F33) -> 0 | G35: =IF(F35=0,0,(SUM(G15:G33))) -> 0
A36: SUPERVISION
A37: 9 | D37: * | E37: =ROUND((1-$J$10)*(($J$11*C37/C$13)-1),4) -> 
A38: 10 | E38: =ROUND((1-$J$10)*(($J$11*C38/C$13)-1),4) -> 
A39: 11 | E39: =ROUND((1-$J$10)*(($J$11*C39/C$13)-1),4) -> 
A40: 12 | E40: =ROUND((1-$J$10)*(($J$11*C40/C$13)-1),4) -> 
A41: 13
A42: 14
A43: 15
A44: 16
A45: 17
A46: 18
L51: =ROUND((1-$J$10)*(($J$11*J51/C$13)-1),4) ->  | N51: =ROUND((L51*M51),2) -> 
L52: =ROUND((1-$J$10)*(($J$11*J52/C$13)-1),4) ->  | N52: =ROUND((L52*M52),2) -> 
A53: Sub Total Supervision | F53: =SUM(F37:F52) -> 0 | G53: =IF(F53=0,0,SUM(G37:G52)) -> 0 | H53: Total Supervision to Page 1 | M53: =SUM(M15:M52)+F53 -> 0 | N53: =IF(M53=0,G53,(SUM(N15:N52)+G53)) -> 0

Sheet Pg 10 Calc of COW (hidden)
L1: PAGE 10
A3: ='Pg 7 WAF No CPI'!A3 -> R.081-010-2023/1F | F3: ='F1 Cover'!L8 -> 2022-08-31 | H3: ACCOUNT NO | K3: ='F1 Cover'!K8 -> 1
A6: CALCULATION OF CURRENT COST OF WORKS | J6: ="Original Cost of Works (Excl. " & DATA!$C$1032*100 & "% Vat) = " -> Original Cost of Works (Excl. 15% Vat) = | K6: ='F1 Forecast Contractor'!E16 -> 186754689
J7: ="Latest Est. Cost of Works (Excl. " & DATA!$C$1032*100 & "% Vat) =" -> Latest Est. Cost of Works (Excl. 15% Vat) = | K7: ='F1 Forecast Contractor'!B16/(1+DATA!$C$1032) -> 186754689
A9: Description | L9: Amount
A10: TOTAL CURRENT COW | L10: =K7 -> 186754689
A12: DEDUCTIONS FOR % FEE CALCUALTION
A13: CONTRACTOR ITEM | B13: DESCRIPTION
I19: Design phase penalties
A31: TOTAL DEDUCTIONS FOR % FEE CALCUALTION | L31: =SUM(L14:L30) -> 0
A32: COW FOR % FEE CALCULATION | L32: =L10-L31 -> 186754689

Sheet C3.2 (hidden)
A1: SOUTH AFRICAN NATIONAL ROADS AGENCY LIMITED | I1: CLAIM: Consulting Engineers Fees | N1: C3.2
A3: REGION: | B3: ='F1 Forecast Consultant'!C3 -> Western | I3: Account No. | K3: ='F1 Cover'!K8 -> 1
I4: Contract No. | K4: ='F1 Forecast Combined'!E3 -> R.081-010-2023/1F
A5: PRICING SCHEDULE
A6: Item No. | B6: Description | C6: Unit | D6: Sched. Quantity | E6: Fin. Est. Quantity | F6: Prev. Quantity | G6: This month Quantity | H6: Total current Quantity | I6: Rate | J6: Sched. Amount | K6: Fin. Est. Amount | L6: Prev. Amount | M6: This month Amount | N6: Total current Amount (R)
A7: ='Pricing Schedule'!A11 -> 3.2 | B7: ='Pricing Schedule'!B11 -> PROJECT ASSESSMENT STAGE
A8: ='Pricing Schedule'!A12 -> 3.2.1 | B8: ='Pricing Schedule'!B12 -> Initial Assessment
B9: ='Pricing Schedule'!B13 -> (a) Initial Assessment | C9: ='Pricing Schedule'!C13 -> lump sum (LS) | D9: 1 | E9: 1 | F9: =DATA!U52 -> 0 | H9: =F9+G9 -> 0 | I9: ='Pricing Schedule'!F13 -> 0 | J9: =D9*I9 -> 0 | K9: =E9*I9 -> 0 | L9: =F9*I9 -> 0 | M9: =G9*I9 -> 0 | N9: =H9*I9 -> 0
B10: ='Pricing Schedule'!B14 -> (b) Disbursements | C10: ='Pricing Schedule'!C14 -> lump sum (LS) | D10: 1 | E10: 1 | F10: =DATA!V52 -> 0 | H10: =F10+G10 -> 0 | I10: ='Pricing Schedule'!F14 -> 0 | J10: =D10*I10 -> 0 | K10: =E10*I10 -> 0 | L10: =F10*I10 -> 0 | M10: =G10*I10 -> 0 | N10: =H10*I10 -> 0
A11: ='Pricing Schedule'!A15 -> 3.2.2 | B11: ='Pricing Schedule'!B15 -> Visual Survey
B12: ='Pricing Schedule'!B16 -> (a) Visual survey | C12: ='Pricing Schedule'!C16 -> lump sum (LS) | D12: 1 | E12: 1 | F12: =DATA!W52 -> 0 | H12: =F12+G12 -> 0 | I12: ='Pricing Schedule'!F16 -> 0 | J12: =D12*I12 -> 0 | K12: =E12*I12 -> 0 | L12: =F12*I12 -> 0 | M12: =G12*I12 -> 0 | N12: =H12*I12 -> 0
B13: ='Pricing Schedule'!B17 -> (b) Disbursements | C13: ='Pricing Schedule'!C17 -> lump sum (LS) | D13: 1 | E13: 1 | F13: =DATA!X52 -> 0 | H13: 0 | I13: ='Pricing Schedule'!F17 -> 0 | J13: 0 | K13: 0 | L13: 0 | M13: 0 | N13: 0
A14: ='Pricing Schedule'!A18 -> 3.2.3 | B14: ='Pricing Schedule'!B18 -> Project Assessment Report
B15: ='Pricing Schedule'!B19 -> (a) Project assessment report | C15: ='Pricing Schedule'!C19 -> lump sum (LS) | D15: 1 | E15: 1 | F15: =DATA!Y52 -> 0 | H15: 0 | I15: ='Pricing Schedule'!F19 -> 0 | J15: 0 | K15: =E15*I15 -> 0 | L15: =F15*I15 -> 0 | M15: =G15*I15 -> 0 | N15: =H15*I15 -> 0
B16: ='Pricing Schedule'!B20 -> (b) Disbursements | C16: ='Pricing Schedule'!C20 -> lump sum (LS) | D16: 1 | E16: 1 | F16: =DATA!Z52 -> 0 | H16: 0 | I16: ='Pricing Schedule'!F20 -> 0 | J16: 0 | K16: 0 | L16: 0 | M16: 0 | N16: 0
A17: TOTAL CARRIED FORWARD TO PAGE 2 | J17: =SUM(J8:J16) -> 0 | K17: =SUM(K8:K16) -> 0 | L17: =SUM(L8:L16) -> 0 | M17: =SUM(M8:M16) -> 0 | N17: =SUM(N8:N16) -> 0
A20: INCL. IN CALCULATION FOR CPA | J20: =J9+J10+J12+J13+J15+J16 -> 0 | K20: =K9+K10+K12+K13+K15+K16 -> 0 | L20: 0 | M20: 0 | N20: 0
A21: EXCL. IN CALCULATION FOR CPA | J21: 0 | K21: 0 | L21: 0 | M21: 0 | N21: 0
A22: TOTAL CHECK | J22: =SUM(J20:J21) -> 0 | K22: =SUM(K20:K21) -> 0 | L22: 0 | M22: 0 | N22: 0

Sheet C3.3 (hidden)
A1: SOUTH AFRICAN NATIONAL ROADS AGENCY LIMITED | I1: CLAIM: Consulting Engineers Fees | N1: C3.3
A3: REGION: | B3: ='F1 Forecast Consultant'!C3 -> Western | I3: Account No. | K3: ='F1 Cover'!K8 -> 1
I4: Contract No. | K4: ='F1 Forecast Combined'!E3 -> R.081-010-2023/1F
A5: PRICING SCHEDULE
A6: Item No. | B6: Description | C6: Unit | D6: Sched. Quantity | E6: Fin. Est. Quantity | F6: Prev. Quantity | G6: This month Quantity | H6: Total current Quantity | I6: Rate | J6: Sched. Amount | K6: Fin. Est. Amount | L6: Prev. Amount | M6: This month Amount | N6: Total current Amount (R)
A7: ='Pricing Schedule'!A22 -> 3.3 | B7: ='Pricing Schedule'!B22 -> INVESTIGATIONS FOR DESIGN DEVELOPMENT
A8: ='Pricing Schedule'!A23 -> 3.3.1 | B8: ='Pricing Schedule'!B23 -> Survey Services
B9: ='Pricing Schedule'!B24 -> (a) Survey Services when procured by service provider | C9: ='Pricing Schedule'!C24 -> prime cost (PC) | D9: 1 | E9: =D9 -> 1 | F9: =DATA!$AA$52 -> 0 | G9: ='Pg 4 P Sums'!K11-'C3.3'!F9 -> 0 | H9: =F9+G9 -> 0 | I9: ='Pricing Schedule'!F24 -> 125000 | J9: =D9*I9 -> 125000 | K9: =E9*I9 -> 125000 | L9: =F9*I9 -> 0 | M9: =G9*I9 -> 0 | N9: =H9*I9 -> 0
B10: ='Pricing Schedule'!B25 -> (b) Cost for procuring and managing sub-service providerService Provider under sub-item 3.3.1(a) | C10: ='Pricing Schedule'!C25 -> lump sum (LS) | D10: 1 | E10: 1 | F10: =DATA!$AB$52 -> 0 | H10: =F10+G10 -> 0 | I10: ='Pricing Schedule'!F25 -> 0 | J10: =D10*I10 -> 0 | K10: =E10*I10 -> 0 | L10: =F10*I10 -> 0 | M10: =G10*I10 -> 0 | N10: =H10*I10 -> 0
B11: ='Pricing Schedule'!B26 -> (c) Cost when making use of SANRAL’s Property Service Providers | C11: ='Pricing Schedule'!C26 -> lump sum (LS) | D11: 1 | E11: 1 | F11: =DATA!$AC$52 -> 0 | H11: =F11+G11 -> 0 | I11: ='Pricing Schedule'!F26 -> 0 | J11: =D11*I11 -> 0 | K11: =E11*I11 -> 0 | L11: =F11*I11 -> 0 | M11: =G11*I11 -> 0 | N11: =H11*I11 -> 0
A12: ='Pricing Schedule'!A27 -> 3.3.2 | B12: ='Pricing Schedule'!B27 -> Traffic Monitoring Services
B13: ='Pricing Schedule'!B28 -> (a) Traffic Monitoring Services when procured by Service Provider | C13: ='Pricing Schedule'!C28 -> prime cost (PC) | D13: 1 | E13: =D13 -> 1 | F13: =DATA!$JT$52 -> 0 | G13: ='Pg 4 P Sums'!K20-'C3.3'!F13 -> 0 | H13: =F13+G13 -> 0 | I13: ='Pricing Schedule'!F28 -> 500000 | J13: =D13*I13 -> 500000 | K13: =E13*I13 -> 500000 | L13: =F13*I13 -> 0 | M13: =G13*I13 -> 0 | N13: =H13*I13 -> 0
B14: ='Pricing Schedule'!B29 -> (b) Cost for procuring and managing sub-Service Provider under sub-item 3.3.2(a) | C14: ='Pricing Schedule'!C29 -> lump sum (LS) | D14: 1 | E14: 1 | F14: =DATA!$JU$52 -> 0 | H14: =F14+G14 -> 0 | I14: ='Pricing Schedule'!F29 -> 0 | J14: =D14*I14 -> 0 | K14: =E14*I14 -> 0 | L14: =F14*I14 -> 0 | M14: =G14*I14 -> 0 | N14: =H14*I14 -> 0
B15: ='Pricing Schedule'!B30 -> (c) Cost when making use of SANRAL’s Traffic Monitoring Service Provider (TMSP) | C15: ='Pricing Schedule'!C30 -> lump sum (LS) | D15: 1 | E15: 1 | F15: =DATA!$JV$52 -> 0 | H15: =F15+G15 -> 0 | I15: ='Pricing Schedule'!F30 -> 0 | J15: =D15*I15 -> 0 | K15: =E15*I15 -> 0 | L15: =F15*I15 -> 0 | M15: =G15*I15 -> 0 | N15: =H15*I15 -> 0
A16: ='Pricing Schedule'!A31 -> 3.3.3 | B16: ='Pricing Schedule'!B31 -> Environmental Services
B17: ='Pricing Schedule'!B32 -> (a) Environmental services during design stage | C17: ='Pricing Schedule'!C32 -> prime cost (PC) | D17: 1 | E17: =D17 -> 1 | F17: =DATA!AD52 -> 0 | G17: ='Pg 4 P Sums'!K29-'C3.3'!F17 -> 0 | H17: =F17+G17 -> 0 | I17: ='Pricing Schedule'!F32 -> 0 | J17: =D17*I17 -> 0 | K17: =E17*I17 -> 0 | L17: =F17*I17 -> 0 | M17: =G17*I17 -> 0 | N17: =H17*I17 -> 0
B18: ='Pricing Schedule'!B33 -> (b) Cost for procuring and managing sub-service provider under sub-item 3.3.3(a) | C18: ='Pricing Schedule'!C33 -> lump sum (LS) | D18: 1 | E18: 1 | F18: =DATA!AE52 -> 0 | H18: =F18+G18 -> 0 | I18: ='Pricing Schedule'!F33 -> 0 | J18: =D18*I18 -> 0 | K18: =E18*I18 -> 0 | L18: =F18*I18 -> 0 | M18: =G18*I18 -> 0 | N18: =H18*I18 -> 0
A19: ='Pricing Schedule'!A34 -> 3.3.4 | B19: ='Pricing Schedule'!B34 -> Geotechnical and Drilling Services
B20: ='Pricing Schedule'!B35 -> (a) Professional Service for Geotechnical and/or Drilling services investigations | C20: ='Pricing Schedule'!C35 -> prime cost (PC) | D20: 1 | E20: =D20 -> 1 | F20: =DATA!AI52 -> 0 | G20: ='Pg 4 P Sums'!K38-'C3.3'!F20 -> 0 | H20: =F20+G20 -> 0 | I20: ='Pricing Schedule'!F35 -> 0 | J20: =D20*I20 -> 0 | K20: =E20*I20 -> 0 | L20: =F20*I20 -> 0 | M20: =G20*I20 -> 0 | N20: =H20*I20 -> 0
B21: ='Pricing Schedule'!B36 -> (b) Handling costs for planning, procuring professional services for geotechnical and/or drilling investigations i.r.o. item 3.3.4(a) | C21: ='Pricing Schedule'!C36 -> lump sum (LS) | D21: 1 | E21: 1 | F21: =DATA!AJ52 -> 0 | H21: =F21+G21 -> 0 | I21: ='Pricing Schedule'!F36 -> 0 | J21: =D21*I21 -> 0 | K21: =E21*I21 -> 0 | L21: =F21*I21 -> 0 | M21: =G21*I21 -> 0 | N21: =H21*I21 -> 0
B22: ='Pricing Schedule'!B37 -> (c) Administration and monitoring of the geotechnical and/or drilling contract by the engineer | C22: ='Pricing Schedule'!C37 -> month | D22: ='Pricing Schedule'!D37 -> 0 | E22: 0 | F22: =DATA!AF52 -> 0 | H22: =F22+G22 -> 0 | I22: ='Pricing Schedule'!E37 -> 0 | J22: =D22*I22 -> 0 | K22: =E22*I22 -> 0 | L22: =F22*I22 -> 0 | M22: =G22*I22 -> 0 | N22: =H22*I22 -> 0
B23: ='Pricing Schedule'!B38 -> (d) Supervision of the work:
B24: ='Pricing Schedule'!B39 -> (i) Full time | C24: ='Pricing Schedule'!C39 -> provisional sum (PS) | D24: 1 | E24: 1 | F24: =DATA!AG52 -> 0 | G24: ='Pg 4 P Sums'!K47-'C3.3'!F24 -> 0 | H24: =F24+G24 -> 0 | I24: ='Pricing Schedule'!F39 -> 0 | J24: =D24*I24 -> 0 | K24: =E24*I24 -> 0 | L24: =F24*I24 -> 0 | M24: =G24*I24 -> 0 | N24: =H24*I24 -> 0
B25: ='Pricing Schedule'!B40 -> (ii) Engineering Geologist for logging of cores and Profiling of test pits | C25: ='Pricing Schedule'!C40 -> prime cost (PC) | D25: 1 | E25: 1 | F25: =DATA!AH52 -> 0 | G25: ='Pg 4 P Sums'!K55-'C3.3'!F25 -> 0 | H25: =F25+G25 -> 0 | I25: ='Pricing Schedule'!F40 -> 0 | J25: =D25*I25 -> 0 | K25: =E25*I25 -> 0 | L25: =F25*I25 -> 0 | M25: =G25*I25 -> 0 | N25: =H25*I25 -> 0
B26: ='Pricing Schedule'!B41 -> (iii) Accommodation costs | C26: ='Pricing Schedule'!C41 -> prime cost (PC) | D26: 1 | E26: =D26 -> 1 | F26: =DATA!JW52 -> 0 | G26: ='Pg 4 P Sums'!K63-'C3.3'!F26 -> 0 | H26: =F26+G26 -> 0 | I26: ='Pricing Schedule'!F41 -> 0 | J26: =D26*I26 -> 0 | K26: =E26*I26 -> 0 | L26: =F26*I26 -> 0 | M26: =G26*I26 -> 0 | N26: =H26*I26 -> 0
B27: ='Pricing Schedule'!B42 -> (iv) Occupational Health and Safety obligations (continuous compliance and monthly audits) | C27: ='Pricing Schedule'!C42 -> month | D27: ='Pricing Schedule'!D42 -> 0 | E27: =D27 -> 0 | F27: =DATA!AM52 -> 0 | H27: =F27+G27 -> 0 | I27: ='Pricing Schedule'!E42 -> 0 | J27: =D27*I27 -> 0 | K27: =E27*I27 -> 0 | L27: =F27*I27 -> 0 | M27: =G27*I27 -> 0 | N27: =H27*I27 -> 0
B28: ='Pricing Schedule'!B43 -> (e) Contracting Services for Geotechnical and Drilling Works:
B29: ='Pricing Schedule'!B44 -> (i) Geotechnical and Drilling contractor | C29: ='Pricing Schedule'!C44 -> prime cost (PC) | D29: 1 | E29: =D29 -> 1 | F29: =DATA!JX52 -> 0 | G29: ='Pg 4 P Sums'!K72-'C3.3'!F29 -> 0 | H29: =F29+G29 -> 0 | I29: ='Pricing Schedule'!F44 -> 0 | J29: =D29*I29 -> 0 | K29: =E29*I29 -> 0 | L29: =F29*I29 -> 0 | M29: =G29*I29 -> 0 | N29: =H29*I29 -> 0
B30: ='Pricing Schedule'!B45 -> (ii) Handling cost for planning, procuring Contracting Services for geotechnical and drilling Works i.r.o item 3.3.4(e)(i) | C30: ='Pricing Schedule'!C45 -> lump sum (LS) | D30: 1 | E30: 1 | F30: =DATA!JY52 -> 0 | H30: =F30+G30 -> 0 | I30: ='Pricing Schedule'!F45 -> 0 | J30: =D30*I30 -> 0 | K30: =E30*I30 -> 0 | L30: =F30*I30 -> 0 | M30: =G30*I30 -> 0 | N30: =H30*I30 -> 0
A31: ='Pricing Schedule'!A46 -> 3.3.5 | B31: ='Pricing Schedule'!B46 -> Pavement investigation and sampling
B32: ='Pricing Schedule'!B47 -> (a) Establishment of personnel and equipment for test pitting | C32: ='Pricing Schedule'!C47 -> lump sum (LS) | D32: 1 | E32: 1 | F32: =DATA!JZ52 -> 0 | H32: =F32+G32 -> 0 | I32: ='Pricing Schedule'!F47 -> 0 | J32: =D32*I32 -> 0 | K32: =E32*I32 -> 0 | L32: =F32*I32 -> 0 | M32: =G32*I32 -> 0 | N32: =H32*I32 -> 0
B33: ='Pricing Schedule'!B48 -> (b) Pavement test pit, sampling & profiling | C33: ='Pricing Schedule'!C48 -> number (No) | D33: ='Pricing Schedule'!D48 -> 59 | E33: =D33 -> 59 | F33: =DATA!AN52 -> 0 | H33: =F33+G33 -> 0 | I33: ='Pricing Schedule'!E48 -> 0 | J33: =D33*I33 -> 0 | K33: =E33*I33 -> 0 | L33: =F33*I33 -> 0 | M33: =G33*I33 -> 0 | N33: =H33*I33 -> 0
B34: ='Pricing Schedule'!B49 -> (c) Dynamic Cone Penetration (DCP) | C34: ='Pricing Schedule'!C49 -> number (No) | D34: ='Pricing Schedule'!D49 -> 177 | E34: 177 | F34: =DATA!AO52 -> 0 | H34: =F34+G34 -> 0 | I34: ='Pricing Schedule'!E49 -> 0 | J34: =D34*I34 -> 0 | K34: =E34*I34 -> 0 | L34: =F34*I34 -> 0 | M34: =G34*I34 -> 0 | N34: =H34*I34 -> 0
B35: ='Pricing Schedule'!B50 -> (d) Cores in asphalt layers (100/150mm dia) | C35: ='Pricing Schedule'!C50 -> number (No) | D35: ='Pricing Schedule'!D50 -> 50 | E35: 50 | F35: =DATA!AP52 -> 0 | H35: =F35+G35 -> 0 | I35: ='Pricing Schedule'!E50 -> 0 | J35: =D35*I35 -> 0 | K35: =E35*I35 -> 0 | L35: =F35*I35 -> 0 | M35: =G35*I35 -> 0 | N35: =H35*I35 -> 0
B36: ='Pricing Schedule'!B51 -> (e) Cores in concrete layers (100/150mm dia) | C36: ='Pricing Schedule'!C51 -> number (No) | D36: ='Pricing Schedule'!D51 -> 20 | E36: 20 | F36: =DATA!AQ52 -> 0 | H36: =F36+G36 -> 0 | I36: ='Pricing Schedule'!E51 -> 0 | J36: =D36*I36 -> 0 | K36: =E36*I36 -> 0 | L36: =F36*I36 -> 0 | M36: =G36*I36 -> 0 | N36: =H36*I36 -> 0
B37: ='Pricing Schedule'!B52 -> (f) Transport of samples to laboratory:
B38: ='Pricing Schedule'!B53 -> (i) Large bags | C38: ='Pricing Schedule'!C53 -> number (No) | D38: ='Pricing Schedule'!D53 -> 248 | E38: =D38 -> 248 | F38: =DATA!AR52 -> 0 | H38: =F38+G38 -> 0 | I38: ='Pricing Schedule'!E53 -> 0 | J38: =D38*I38 -> 0 | K38: =E38*I38 -> 0 | L38: =F38*I38 -> 0 | M38: =G38*I38 -> 0 | N38: =H38*I38 -> 0
B39: ='Pricing Schedule'!B54 -> (ii) Small bags/cores | C39: ='Pricing Schedule'!C54 -> number (No) | D39: ='Pricing Schedule'!D54 -> 236 | E39: =D39 -> 236 | F39: =DATA!AS52 -> 0 | H39: =F39+G39 -> 0 | I39: ='Pricing Schedule'!E54 -> 0 | J39: =D39*I39 -> 0 | K39: =E39*I39 -> 0 | L39: =F39*I39 -> 0 | M39: =G39*I39 -> 0 | N39: =H39*I39 -> 0
A40: ='Pricing Schedule'!A55 -> 3.3.6 | B40: ='Pricing Schedule'!B55 -> Laboratory testing and reporting
B41: ='Pricing Schedule'!B56 -> (a) Standard tests
B42: ='Pricing Schedule'!B57 -> (i) In-situ density | C42: ='Pricing Schedule'!C57 -> number (No) | D42: ='Pricing Schedule'!D57 -> 236 | E42: =D42 -> 236 | F42: =DATA!AT$52 -> 0 | H42: =F42+G42 -> 0 | I42: ='Pricing Schedule'!E57 -> 0 | J42: =D42*I42 -> 0 | K42: =E42*I42 -> 0 | L42: =F42*I42 -> 0 | M42: =G42*I42 -> 0 | N42: =H42*I42 -> 0
B43: ='Pricing Schedule'!B58 -> (ii) Moisture content | C43: ='Pricing Schedule'!C58 -> number (No) | D43: ='Pricing Schedule'!D58 -> 236 | E43: =D43 -> 236 | F43: =DATA!AU$52 -> 0 | H43: 0 | I43: ='Pricing Schedule'!E58 -> 0 | J43: 0 | K43: 0 | L43: 0 | M43: 0 | N43: 0
B44: ='Pricing Schedule'!B59 -> (iii) Sieve analysis | C44: ='Pricing Schedule'!C59 -> number (No) | D44: ='Pricing Schedule'!D59 -> 236 | E44: 236 | F44: =DATA!AV$52 -> 0 | H44: 0 | I44: ='Pricing Schedule'!E59 -> 0 | J44: 0 | K44: 0 | L44: 0 | M44: 0 | N44: 0
B45: ='Pricing Schedule'!B60 -> (iv) Atterberg limits | C45: ='Pricing Schedule'!C60 -> number (No) | D45: ='Pricing Schedule'!D60 -> 236 | E45: 236 | F45: =DATA!AW$52 -> 0 | H45: 0 | I45: ='Pricing Schedule'!E60 -> 0 | J45: 0 | K45: 0 | L45: 0 | M45: 0 | N45: 0
B46: ='Pricing Schedule'!B61 -> (v) M.D.D + OMC (Mod AASHTO) natural | C46: ='Pricing Schedule'!C61 -> number (No) | D46: ='Pricing Schedule'!D61 -> 236 | E46: 236 | F46: =DATA!AX$52 -> 0 | H46: 0 | I46: ='Pricing Schedule'!E61 -> 0 | J46: 0 | K46: 0 | L46: 0 | M46: 0 | N46: 0
B47: ='Pricing Schedule'!B62 -> (vi) M.D.D + OMC (Mod.AASHTO) stab. | C47: ='Pricing Schedule'!C62 -> number (No) | D47: ='Pricing Schedule'!D62 -> 77 | E47: 77 | F47: =DATA!AY$52 -> 0 | H47: 0 | I47: ='Pricing Schedule'!E62 -> 0 | J47: 0 | K47: 0 | L47: 0 | M47: 0 | N47: 0
B48: ='Pricing Schedule'!B63 -> (vii) CBR | C48: ='Pricing Schedule'!C63 -> number (No) | D48: ='Pricing Schedule'!D63 -> 236 | E48: 236 | F48: =DATA!AZ$52 -> 0 | H48: 0 | I48: ='Pricing Schedule'!E63 -> 0 | J48: 0 | K48: 0 | L48: 0 | M48: 0 | N48: 0
B49: ='Pricing Schedule'!B64 -> (viii) ITS (stabilised) (set of 3) | C49: ='Pricing Schedule'!C64 -> number (No) | D49: ='Pricing Schedule'!D64 -> 77 | E49: 77 | F49: =DATA!BA$52 -> 0 | H49: 0 | I49: ='Pricing Schedule'!E64 -> 0 | J49: 0 | K49: 0 | L49: 0 | M49: 0 | N49: 0
B50: ='Pricing Schedule'!B65 -> (ix) UCS (stabilised) (set of 3) | C50: ='Pricing Schedule'!C65 -> number (No) | D50: ='Pricing Schedule'!D65 -> 77 | E50: 77 | F50: =DATA!BB$52 -> 0 | H50: 0 | I50: ='Pricing Schedule'!E65 -> 0 | J50: 0 | K50: 0 | L50: 0 | M50: 0 | N50: 0
B51: ='Pricing Schedule'!B66 -> (x) PH value | C51: ='Pricing Schedule'!C66 -> number (No) | D51: ='Pricing Schedule'!D66 -> 39 | E51: 39 | F51: =DATA!BC$52 -> 0 | H51: 0 | I51: ='Pricing Schedule'!E66 -> 0 | J51: 0 | K51: 0 | L51: 0 | M51: 0 | N51: 0
B52: ='Pricing Schedule'!B67 -> (xi) Wet/dry durability (150mm) (set of 3) | C52: ='Pricing Schedule'!C67 -> number (No) | D52: ='Pricing Schedule'!D67 -> 19 | E52: 19 | F52: =DATA!BD$52 -> 0 | H52: 0 | I52: ='Pricing Schedule'!E67 -> 0 | J52: 0 | K52: 0 | L52: 0 | M52: 0 | N52: 0
B53: ='Pricing Schedule'!B68 -> (xii) Initial consumption lime/cement (ICL) | C53: ='Pricing Schedule'!C68 -> number (No) | D53: ='Pricing Schedule'!D68 -> 77 | E53: 77 | F53: =DATA!BE$52 -> 0 | H53: 0 | I53: ='Pricing Schedule'!E68 -> 0 | J53: 0 | K53: 0 | L53: 0 | M53: 0 | N53: 0
B54: ='Pricing Schedule'!B69 -> (xiii) Ethylene glycol Durability Index | C54: ='Pricing Schedule'!C69 -> number (No) | D54: ='Pricing Schedule'!D69 -> 4 | E54: 4 | F54: =DATA!BF$52 -> 0 | H54: 0 | I54: ='Pricing Schedule'!E69 -> 0 | J54: 0 | K54: 0 | L54: 0 | M54: 0 | N54: 0
B55: ='Pricing Schedule'!B70 -> (xiv) ACV | C55: ='Pricing Schedule'!C70 -> number (No) | D55: ='Pricing Schedule'!D70 -> 4 | E55: 4 | F55: =DATA!BG$52 -> 0 | H55: 0 | I55: ='Pricing Schedule'!E70 -> 0 | J55: 0 | K55: 0 | L55: 0 | M55: 0 | N55: 0
B56: ='Pricing Schedule'!B71 -> (xv) 10% FACT (dry) | C56: ='Pricing Schedule'!C71 -> number (No) | D56: ='Pricing Schedule'!D71 -> 4 | E56: 4 | F56: =DATA!BH$52 -> 0 | H56: 0 | I56: ='Pricing Schedule'!E71 -> 0 | J56: 0 | K56: 0 | L56: 0 | M56: 0 | N56: 0
B57: ='Pricing Schedule'!B72 -> (xvi) 10% Fact (wet) | C57: ='Pricing Schedule'!C72 -> number (No) | D57: ='Pricing Schedule'!D72 -> 4 | E57: 4 | F57: =DATA!BI$52 -> 0 | H57: 0 | I57: ='Pricing Schedule'!E72 -> 0 | J57: 0 | K57: 0 | L57: 0 | M57: 0 | N57: 0
B58: ='Pricing Schedule'!B73 -> (xvii) 10% Fact (ethylene glycol) | C58: ='Pricing Schedule'!C73 -> number (No) | D58: ='Pricing Schedule'!D73 -> 2 | E58: 2 | F58: =DATA!BJ$52 -> 0 | H58: 0 | I58: ='Pricing Schedule'!E73 -> 0 | J58: 0 | K58: 0 | L58: 0 | M58: 0 | N58: 0
B59: ='Pricing Schedule'!B74 -> (xviii) Aggregate grading | C59: ='Pricing Schedule'!C74 -> number (No) | D59: ='Pricing Schedule'!D74 -> 10 | E59: 10 | F59: =DATA!BK$52 -> 0 | H59: 0 | I59: ='Pricing Schedule'!E74 -> 0 | J59: 0 | K59: 0 | L59: 0 | M59: 0 | N59: 0
B60: ='Pricing Schedule'!B75 -> (xix) Aggregate Flakiness Index | C60: ='Pricing Schedule'!C75 -> number (No) | D60: ='Pricing Schedule'!D75 -> 10 | E60: 10 | F60: =DATA!BL$52 -> 0 | H60: 0 | I60: ='Pricing Schedule'!E75 -> 0 | J60: 0 | K60: 0 | L60: 0 | M60: 0 | N60: 0
B61: ='Pricing Schedule'!B76 -> (xx) Aggregate Average Least Dimension | C61: ='Pricing Schedule'!C76 -> number (No) | D61: ='Pricing Schedule'!D76 -> 10 | E61: 10 | F61: =DATA!BM$52 -> 0 | H61: 0 | I61: ='Pricing Schedule'!E76 -> 0 | J61: 0 | K61: 0 | L61: 0 | M61: 0 | N61: 0
B62: ='Pricing Schedule'!B77 -> (xxi) Polished Stone Value | C62: ='Pricing Schedule'!C77 -> number (No) | D62: ='Pricing Schedule'!D77 -> 1 | E62: 1 | F62: =DATA!BN$52 -> 0 | H62: 0 | I62: ='Pricing Schedule'!E77 -> 0 | J62: 0 | K62: 0 | L62: 0 | M62: 0 | N62: 0
B63: ='Pricing Schedule'!B78 -> (xxii) Sand Equivalent | C63: ='Pricing Schedule'!C78 -> number (No) | D63: ='Pricing Schedule'!D78 -> 1 | E63: 1 | F63: =DATA!BO$52 -> 0 | H63: 0 | I63: ='Pricing Schedule'!E78 -> 0 | J63: 0 | K63: 0 | L63: 0 | M63: 0 | N63: 0
B64: ='Pricing Schedule'!B79 -> (xxiii) Bitumen content and grading | C64: ='Pricing Schedule'!C79 -> number (No) | D64: ='Pricing Schedule'!D79 -> 50 | E64: 50 | F64: =DATA!BP$52 -> 0 | H64: 0 | I64: ='Pricing Schedule'!E79 -> 0 | J64: 0 | K64: 0 | L64: 0 | M64: 0 | N64: 0
B65: ='Pricing Schedule'!B80 -> (xxiv) Asphalt void content (cores) | C65: ='Pricing Schedule'!C80 -> number (No) | D65: ='Pricing Schedule'!D80 -> 50 | E65: 50 | F65: =DATA!BQ$52 -> 0 | H65: 0 | I65: ='Pricing Schedule'!E80 -> 0 | J65: 0 | K65: 0 | L65: 0 | M65: 0 | N65: 0
B66: ='Pricing Schedule'!B81 -> (xxv) Binder recovery (Absom) | C66: ='Pricing Schedule'!C81 -> number (No) | D66: ='Pricing Schedule'!D81 -> 7 | E66: 7 | F66: =DATA!BR$52 -> 0 | H66: 0 | I66: ='Pricing Schedule'!E81 -> 0 | J66: 0 | K66: 0 | L66: 0 | M66: 0 | N66: 0
B67: ='Pricing Schedule'!B82 -> (xxvi) Bitumen penetration | C67: ='Pricing Schedule'!C82 -> number (No) | D67: ='Pricing Schedule'!D82 -> 25 | E67: 25 | F67: =DATA!BS$52 -> 0 | H67: 0 | I67: ='Pricing Schedule'!E82 -> 0 | J67: 0 | K67: 0 | L67: 0 | M67: 0 | N67: 0
B68: ='Pricing Schedule'!B83 -> (xxvii) Bitumen softening point | C68: ='Pricing Schedule'!C83 -> number (No) | D68: ='Pricing Schedule'!D83 -> 25 | E68: 25 | F68: =DATA!BT$52 -> 0 | H68: 0 | I68: ='Pricing Schedule'!E83 -> 0 | J68: 0 | K68: 0 | L68: 0 | M68: 0 | N68: 0
B69: ='Pricing Schedule'!B84 -> (xxviii) Sand Patch | C69: ='Pricing Schedule'!C84 -> number (No) | D69: ='Pricing Schedule'!D84 -> 77 | E69: 77 | F69: =DATA!BU$52 -> 0 | H69: 0 | I69: ='Pricing Schedule'!E84 -> 0 | J69: 0 | K69: 0 | L69: 0 | M69: 0 | N69: 0
B70: ='Pricing Schedule'!B85 -> (b) Laboratory Testing where no schedule is available, or specialised testing | C70: ='Pricing Schedule'!C85 -> prime cost (PC) | D70: 1 | E70: 1 | F70: =DATA!BV52 -> 0 | G70: ='Pg 4 P Sums'!K81-'C3.3'!F70 -> 0 | H70: =F70+G70 -> 0 | I70: ='Pricing Schedule'!F85 -> 500000 | J70: =D70*I70 -> 500000 | K70: =E70*I70 -> 500000 | L70: =F70*I70 -> 0 | M70: =G70*I70 -> 0 | N70: =H70*I70 -> 0
B71: ='Pricing Schedule'!B86 -> (c) Handling costs i.r.o. pay item 3.3.6(b) | C71: ='Pricing Schedule'!C86 -> percentage (%) | D71: ='Pricing Schedule'!D86 -> 500000 | E71: =K70 -> 500000 | F71: =L70 -> 0 | G71: =M70 -> 0 | H71: =F71+G71 -> 0 | I71: ='Pricing Schedule'!E86 -> 0 | J71: =D71*I71 -> 0 | K71: =E71*I71 -> 0 | L71: =F71*I71 -> 0 | M71: =G71*I71 -> 0 | N71: =H71*I71 -> 0
A72: TOTAL CARRIED FORWARD TO PAGE 2 | J72: =SUM(J8:J71) -> 1125000 | K72: =SUM(K8:K71) -> 1125000 | L72: =SUM(L8:L71) -> 0 | M72: =SUM(M8:M71) -> 0 | N72: =SUM(N8:N71) -> 0
A75: INCL. IN CALCULATION FOR CPA | J75: =J10+J11+J14+J15+J18+J21+J22+J27+J30+J32+J33+J34+J35+J36+J38+J39+J42+J43+J44+J45+J46+J47+J48+J49+J50+J51+J52+J53+J54+J55+J56+J57+J58+J59+J60+J61+J62+J63+J64+J65+J66+J67+J68+J69 -> 0 | K75: =K10+K11+K14+K15+K18+K21+K22+K27+K30+K32+K33+K34+K35+K36+K38+K39+K42+K43+K44+K45+K46+K47+K48+K49+K50+K51+K52+K53+K54+K55+K56+K57+K58+K59+K60+K61+K62+K63+K64+K65+K66+K67+K68+K69 -> 0 | L75: 0 | M75: 0 | N75: 0
A76: EXCL. IN CALCULATION FOR CPA | J76: =J9+J13+J17+J20+J24+J25+J26+J29+J70+J71 -> 1125000 | K76: =K9+K13+K17+K20+K24+K25+K26+K29+K70+K71 -> 1125000 | L76: 0 | M76: 0 | N76: 0
A77: TOTAL CHECK | J77: =SUM(J75:J76) -> 1125000 | K77: =SUM(K75:K76) -> 1125000 | L77: 0 | M77: 0 | N77: 0

Sheet C3.4 (hidden)
A1: SOUTH AFRICAN NATIONAL ROADS AGENCY LIMITED | I1: CLAIM: Consulting Engineers Fees | N1: C3.4
A3: REGION: | B3: ='F1 Forecast Consultant'!C3 -> Western | I3: Account No. | K3: ='F1 Cover'!K8 -> 1
I4: Contract No. | K4: ='F1 Forecast Combined'!E3 -> R.081-010-2023/1F
A5: PRICING SCHEDULE
A6: Item No. | B6: Description | C6: Unit | D6: Sched. Quantity | E6: Fin. Est. Quantity | F6: Prev. Quantity | G6: This month Quantity | H6: Total current Quantity | I6: Rate | J6: Sched. Amount | K6: Fin. Est. Amount | L6: Prev. Amount | M6: This month Amount | N6: Total current Amount (R)
A7: ='Pricing Schedule'!A88 -> 3.4 | B7: ='Pricing Schedule'!B88 -> DESIGN DEVELOPMENT STAGE
A8: ='Pricing Schedule'!A90 -> 3.4.1 | B8: ='Pricing Schedule'!B90 -> Concept design
B9: ='Pricing Schedule'!B91 -> (a) Road works:
B10: ='Pricing Schedule'!B92 -> (i) Fee (based on Employer’s estimated cost of the works) | C10: ='Pricing Schedule'!C92 -> lump sum (LS) | D10: 1 | E10: 1 | F10: =DATA!$BW$52 -> 0 | H10: =IF((F10+G10)>E10,"◄ ERROR TOO MUCH",(F10+G10)) -> 0 | I10: ='Pricing Schedule'!F92 -> 0 | J10: =D10*I10 -> 0 | K10: =E10*I10 -> 0 | L10: =F10*I10 -> 0 | M10: =G10*I10 -> 0 | N10: =H10*I10 -> 0
B11: ='Pricing Schedule'!B93 -> (ii) Fee adjustment* | C11: ='Pricing Schedule'!C93 -> lump sum (LS) | D11: 1 | E11: 1 | F11: =DATA!$GQ$52 -> 0 | G11: =G10 -> 0 | H11: =IF((F11+G11)>E11,"◄ ERROR TOO MUCH",IF((F11+G11)>H10,"◄ ERROR > PREV ROW",(F11+G11))) -> 0 | I11: =E11 -> 1 | J11: ='ADJ-Summary'!$J$9 ->  | K11: ='ADJ-Summary'!$J$16 ->  | L11: =DATA!$GR$52 -> 0 | M11: =+(G11+F11)*K11-L11 ->  | N11: =L11+M11 -> 
B12: ='Pricing Schedule'!B94 -> (b) Structures (bridges and other major structures):
B13: ='Pricing Schedule'!B95 -> (i) Fee (based on Employer’s estimated cost of the works) | C13: ='Pricing Schedule'!C95 -> lump sum (LS) | D13: 1 | E13: 1 | F13: =DATA!$BX$52 -> 0 | H13: =IF((F13+G13)>E13,"◄ ERROR TOO MUCH",(F13+G13)) -> 0 | I13: ='Pricing Schedule'!F95 -> 0 | J13: =D13*I13 -> 0 | K13: =E13*I13 -> 0 | L13: =F13*I13 -> 0 | M13: =G13*I13 -> 0 | N13: =H13*I13 -> 0
B14: ='Pricing Schedule'!B96 -> (ii) Fee adjustment* | C14: ='Pricing Schedule'!C96 -> lump sum (LS) | D14: 1 | E14: 1 | F14: =DATA!$GS$52 -> 0 | G14: =G13 -> 0 | H14: =IF((F14+G14)>E14,"◄ ERROR TOO MUCH",IF((F14+G14)>H13,"◄ ERROR > PREV ROW",(F14+G14))) -> 0 | I14: =E14 -> 1 | J14: ='ADJ-Summary'!$J$32 ->  | K14: ='ADJ-Summary'!$J$39 ->  | L14: =DATA!$GT$52 -> 0 | M14: =+(G14+F14)*K14-L14 ->  | N14: =L14+M14 -> 
B15: ='Pricing Schedule'!B97 -> (c) Electrical:
B16: ='Pricing Schedule'!B98 -> (i) Fee (based on Employer’s estimated cost of the works) | C16: ='Pricing Schedule'!C98 -> lump sum (LS) | D16: 1 | E16: 1 | F16: =DATA!$BY$52 -> 0 | H16: =IF((F16+G16)>E16,"◄ ERROR TOO MUCH",(F16+G16)) -> 0 | I16: ='Pricing Schedule'!F98 -> 0 | J16: =D16*I16 -> 0 | K16: =E16*I16 -> 0 | L16: =F16*I16 -> 0 | M16: =G16*I16 -> 0 | N16: =H16*I16 -> 0
B17: ='Pricing Schedule'!B99 -> (ii) Fee adjustment* | C17: ='Pricing Schedule'!C99 -> lump sum (LS) | D17: 1 | E17: 1 | F17: =DATA!$GU$52 -> 0 | G17: =G16 -> 0 | H17: =IF((F17+G17)>E17,"◄ ERROR TOO MUCH",IF((F17+G17)>H16,"◄ ERROR > PREV ROW",(F17+G17))) -> 0 | I17: =E17 -> 1 | J17: ='ADJ-Summary'!$J$56 ->  | K17: ='ADJ-Summary'!$J$63 ->  | L17: =DATA!$GV$52 -> 0 | M17: =+(G17+F17)*K17-L17 ->  | N17: =L17+M17 -> 
B18: ='Pricing Schedule'!B100 -> (d) Buildings:
B19: ='Pricing Schedule'!B101 -> (i) Fee (based on Employer’s estimated cost of the works) | C19: ='Pricing Schedule'!C101 -> lump sum (LS) | D19: 1 | E19: 1 | F19: =DATA!$BZ$52 -> 0 | H19: =IF((F19+G19)>E19,"◄ ERROR TOO MUCH",(F19+G19)) -> 0 | I19: ='Pricing Schedule'!F101 -> 0 | J19: =D19*I19 -> 0 | K19: =E19*I19 -> 0 | L19: =F19*I19 -> 0 | M19: =G19*I19 -> 0 | N19: =H19*I19 -> 0
B20: ='Pricing Schedule'!B102 -> (ii) Fee adjustment* | C20: ='Pricing Schedule'!C102 -> lump sum (LS) | D20: 1 | E20: 1 | F20: =DATA!$GW$52 -> 0 | G20: =G19 -> 0 | H20: =IF((F20+G20)>E20,"◄ ERROR TOO MUCH",IF((F20+G20)>H19,"◄ ERROR > PREV ROW",(F20+G20))) -> 0 | I20: =E20 -> 1 | J20: ='ADJ-Summary'!$J$79 ->  | K20: ='ADJ-Summary'!$J$86 ->  | L20: =DATA!$GX$52 -> 0 | M20: =+(G20+F20)*K20-L20 ->  | N20: =L20+M20 -> 
B21: ='Pricing Schedule'!B103 -> (e) Mechanical:
B22: ='Pricing Schedule'!B104 -> (i) Fee (based on Employer’s estimated cost of the works) | C22: ='Pricing Schedule'!C104 -> lump sum (LS) | D22: 1 | E22: 1 | F22: =DATA!$CA$52 -> 0 | H22: =IF((F22+G22)>E22,"◄ ERROR TOO MUCH",(F22+G22)) -> 0 | I22: ='Pricing Schedule'!F104 -> 0 | J22: =D22*I22 -> 0 | K22: =E22*I22 -> 0 | L22: =F22*I22 -> 0 | M22: =G22*I22 -> 0 | N22: =H22*I22 -> 0
B23: ='Pricing Schedule'!B105 -> (ii) Fee adjustment* | C23: ='Pricing Schedule'!C105 -> lump sum (LS) | D23: 1 | E23: 1 | F23: =DATA!$GY$52 -> 0 | G23: =G22 -> 0 | H23: =IF((F23+G23)>E23,"◄ ERROR TOO MUCH",IF((F23+G23)>H22,"◄ ERROR > PREV ROW",(F23+G23))) -> 0 | I23: =E23 -> 1 | J23: ='ADJ-Summary'!$J$102 ->  | K23: ='ADJ-Summary'!$J$109 ->  | L23: =DATA!$GZ$52 -> 0 | M23: =+(G23+F23)*K23-L23 ->  | N23: =L23+M23 -> 
B24: ='Pricing Schedule'!B106 -> (f) Electronic:
B25: ='Pricing Schedule'!B107 -> (i) Fee (based on Employer’s estimated cost of the works) | C25: ='Pricing Schedule'!C107 -> lump sum (LS) | D25: 1 | E25: 1 | F25: =DATA!$CB$52 -> 0 | H25: =IF((F25+G25)>E25,"◄ ERROR TOO MUCH",(F25+G25)) -> 0 | I25: ='Pricing Schedule'!F107 -> 0 | J25: =D25*I25 -> 0 | K25: =E25*I25 -> 0 | L25: =F25*I25 -> 0 | M25: =G25*I25 -> 0 | N25: =H25*I25 -> 0
B26: ='Pricing Schedule'!B108 -> (ii) Fee adjustment* | C26: ='Pricing Schedule'!C108 -> lump sum (LS) | D26: 1 | E26: 1 | F26: =DATA!$HA$52 -> 0 | G26: =G25 -> 0 | H26: =IF((F26+G26)>E26,"◄ ERROR TOO MUCH",IF((F26+G26)>H25,"◄ ERROR > PREV ROW",(F26+G26))) -> 0 | I26: =E26 -> 1 | J26: ='ADJ-Summary'!$J$125 ->  | K26: ='ADJ-Summary'!$J$132 ->  | L26: =DATA!$HB$52 -> 0 | M26: =+(G26+F26)*K26-L26 ->  | N26: =L26+M26 -> 
B27: ='Pricing Schedule'!B109 -> (g) Other:
B28: ='Pricing Schedule'!B110 -> (i) Fee (based on Employer’s estimated cost of the works) | C28: ='Pricing Schedule'!C110 -> lump sum (LS) | D28: 1 | E28: 1 | F28: =DATA!$CC$52 -> 0 | H28: =IF((F28+G28)>E28,"◄ ERROR TOO MUCH",(F28+G28)) -> 0 | I28: ='Pricing Schedule'!F110 -> 0 | J28: =D28*I28 -> 0 | K28: =E28*I28 -> 0 | L28: =F28*I28 -> 0 | M28: =G28*I28 -> 0 | N28: =H28*I28 -> 0
B29: ='Pricing Schedule'!B111 -> (ii) Fee adjustment* | C29: ='Pricing Schedule'!C111 -> lump sum (LS) | D29: 1 | E29: 1 | F29: =DATA!$HC$52 -> 0 | G29: =G28 -> 0 | H29: =IF((F29+G29)>E29,"◄ ERROR TOO MUCH",IF((F29+G29)>H28,"◄ ERROR > PREV ROW",(F29+G29))) -> 0 | I29: =E29 -> 1 | J29: ='ADJ-Summary'!$J$148 ->  | K29: ='ADJ-Summary'!$J$155 ->  | L29: =DATA!$HD$52 -> 0 | M29: =+(G29+F29)*K29-L29 ->  | N29: =L29+M29 -> 
A30: ='Pricing Schedule'!A112 -> 3.4.2 | B30: ='Pricing Schedule'!B112 -> Preliminary design
B31: ='Pricing Schedule'!B113 -> (a) Road works:
B32: ='Pricing Schedule'!B114 -> (i) Fee (based on Employer’s estimated cost of the works) | C32: ='Pricing Schedule'!C114 -> lump sum (LS) | D32: 1 | E32: 1 | F32: =DATA!$CD$52 -> 0 | H32: =IF((F32+G32)>E32,"◄ ERROR TOO MUCH",(F32+G32)) -> 0 | I32: ='Pricing Schedule'!F114 -> 0 | J32: =D32*I32 -> 0 | K32: =E32*I32 -> 0 | L32: =F32*I32 -> 0 | M32: =G32*I32 -> 0 | N32: =H32*I32 -> 0
B33: ='Pricing Schedule'!B115 -> (ii) Fee adjustment* | C33: ='Pricing Schedule'!C115 -> lump sum (LS) | D33: 1 | E33: 1 | F33: =DATA!$HE$52 -> 0 | G33: =G32 -> 0 | H33: =IF((F33+G33)>E33,"◄ ERROR TOO MUCH",IF((F33+G33)>H32,"◄ ERROR > PREV ROW",(F33+G33))) -> 0 | I33: =E33 -> 1 | J33: ='ADJ-Summary'!$J$10 ->  | K33: ='ADJ-Summary'!$J$17 ->  | L33: =DATA!$HF$52 -> 0 | M33: =+(G33+F33)*K33-L33 ->  | N33: =L33+M33 -> 
B34: ='Pricing Schedule'!B116 -> (b) Structures (bridges and other major structures):
B35: ='Pricing Schedule'!B117 -> (i) Fee (based on Employer’s estimated cost of the works) | C35: ='Pricing Schedule'!C117 -> lump sum (LS) | D35: 1 | E35: 1 | F35: =DATA!$CE$52 -> 0 | H35: =IF((F35+G35)>E35,"◄ ERROR TOO MUCH",(F35+G35)) -> 0 | I35: ='Pricing Schedule'!F117 -> 0 | J35: =D35*I35 -> 0 | K35: =E35*I35 -> 0 | L35: =F35*I35 -> 0 | M35: =G35*I35 -> 0 | N35: =H35*I35 -> 0
B36: ='Pricing Schedule'!B118 -> (ii) Fee adjustment* | C36: ='Pricing Schedule'!C118 -> lump sum (LS) | D36: 1 | E36: 1 | F36: =DATA!$HG$52 -> 0 | G36: =G35 -> 0 | H36: =IF((F36+G36)>E36,"◄ ERROR TOO MUCH",IF((F36+G36)>H35,"◄ ERROR > PREV ROW",(F36+G36))) -> 0 | I36: =E36 -> 1 | J36: ='ADJ-Summary'!$J$33 ->  | K36: ='ADJ-Summary'!$J$40 ->  | L36: =DATA!$HH$52 -> 0 | M36: =+(G36+F36)*K36-L36 ->  | N36: =L36+M36 -> 
B37: ='Pricing Schedule'!B119 -> (c) Electrical:
B38: ='Pricing Schedule'!B120 -> (i) Fee (based on Employer’s estimated cost of the works) | C38: ='Pricing Schedule'!C120 -> lump sum (LS) | D38: 1 | E38: 1 | F38: =DATA!$CF$52 -> 0 | H38: =IF((F38+G38)>E38,"◄ ERROR TOO MUCH",(F38+G38)) -> 0 | I38: ='Pricing Schedule'!F120 -> 0 | J38: =D38*I38 -> 0 | K38: =E38*I38 -> 0 | L38: =F38*I38 -> 0 | M38: =G38*I38 -> 0 | N38: =H38*I38 -> 0
B39: ='Pricing Schedule'!B121 -> (ii) Fee adjustment* | C39: ='Pricing Schedule'!C121 -> lump sum (LS) | D39: 1 | E39: 1 | F39: =DATA!$HI$52 -> 0 | G39: =G38 -> 0 | H39: =IF((F39+G39)>E39,"◄ ERROR TOO MUCH",IF((F39+G39)>H38,"◄ ERROR > PREV ROW",(F39+G39))) -> 0 | I39: =E39 -> 1 | J39: ='ADJ-Summary'!$J$57 ->  | K39: ='ADJ-Summary'!$J$64 ->  | L39: =DATA!$HJ$52 -> 0 | M39: =+(G39+F39)*K39-L39 ->  | N39: =L39+M39 -> 
B40: ='Pricing Schedule'!B122 -> (d) Buildings:
B41: ='Pricing Schedule'!B123 -> (i) Fee (based on Employer’s estimated cost of the works) | C41: ='Pricing Schedule'!C123 -> lump sum (LS) | D41: 1 | E41: 1 | F41: =DATA!$CG$52 -> 0 | H41: =IF((F41+G41)>E41,"◄ ERROR TOO MUCH",(F41+G41)) -> 0 | I41: ='Pricing Schedule'!F123 -> 0 | J41: =D41*I41 -> 0 | K41: =E41*I41 -> 0 | L41: =F41*I41 -> 0 | M41: =G41*I41 -> 0 | N41: =H41*I41 -> 0
B42: ='Pricing Schedule'!B124 -> (ii) Fee adjustment* | C42: ='Pricing Schedule'!C124 -> lump sum (LS) | D42: 1 | E42: 1 | F42: =DATA!$HK$52 -> 0 | G42: =G41 -> 0 | H42: =IF((F42+G42)>E42,"◄ ERROR TOO MUCH",IF((F42+G42)>H41,"◄ ERROR > PREV ROW",(F42+G42))) -> 0 | I42: =E42 -> 1 | J42: ='ADJ-Summary'!$J$80 ->  | K42: ='ADJ-Summary'!$J$87 ->  | L42: =DATA!$HL$52 -> 0 | M42: =+(G42+F42)*K42-L42 ->  | N42: =L42+M42 -> 
B43: ='Pricing Schedule'!B125 -> (e) Mechanical:
B44: ='Pricing Schedule'!B126 -> (i) Fee (based on Employer’s estimated cost of the works) | C44: ='Pricing Schedule'!C126 -> lump sum (LS) | D44: 1 | E44: 1 | F44: =DATA!$CH$52 -> 0 | H44: =IF((F44+G44)>E44,"◄ ERROR TOO MUCH",(F44+G44)) -> 0 | I44: ='Pricing Schedule'!F126 -> 0 | J44: =D44*I44 -> 0 | K44: =E44*I44 -> 0 | L44: =F44*I44 -> 0 | M44: =G44*I44 -> 0 | N44: =H44*I44 -> 0
B45: ='Pricing Schedule'!B127 -> (ii) Fee adjustment* | C45: ='Pricing Schedule'!C127 -> lump sum (LS) | D45: 1 | E45: 1 | F45: =DATA!$HM$52 -> 0 | G45: =G44 -> 0 | H45: =IF((F45+G45)>E45,"◄ ERROR TOO MUCH",IF((F45+G45)>H44,"◄ ERROR > PREV ROW",(F45+G45))) -> 0 | I45: =E45 -> 1 | J45: ='ADJ-Summary'!$J$103 ->  | K45: ='ADJ-Summary'!$J$110 ->  | L45: =DATA!$HN$52 -> 0 | M45: =+(G45+F45)*K45-L45 ->  | N45: =L45+M45 -> 
B46: ='Pricing Schedule'!B128 -> (f) Electronic:
B47: ='Pricing Schedule'!B129 -> (i) Fee (based on Employer’s estimated cost of the works) | C47: ='Pricing Schedule'!C129 -> lump sum (LS) | D47: 1 | E47: 1 | F47: =DATA!$CI$52 -> 0 | H47: =IF((F47+G47)>E47,"◄ ERROR TOO MUCH",(F47+G47)) -> 0 | I47: ='Pricing Schedule'!F129 -> 0 | J47: =D47*I47 -> 0 | K47: =E47*I47 -> 0 | L47: =F47*I47 -> 0 | M47: =G47*I47 -> 0 | N47: =H47*I47 -> 0
B48: ='Pricing Schedule'!B130 -> (ii) Fee adjustment* | C48: ='Pricing Schedule'!C130 -> lump sum (LS) | D48: 1 | E48: 1 | F48: =DATA!$HO$52 -> 0 | G48: =G47 -> 0 | H48: =IF((F48+G48)>E48,"◄ ERROR TOO MUCH",IF((F48+G48)>H47,"◄ ERROR > PREV ROW",(F48+G48))) -> 0 | I48: =E48 -> 1 | J48: ='ADJ-Summary'!$J$126 ->  | K48: ='ADJ-Summary'!$J$133 ->  | L48: =DATA!$HP$52 -> 0 | M48: =+(G48+F48)*K48-L48 ->  | N48: =L48+M48 -> 
B49: ='Pricing Schedule'!B131 -> (g) Other:
B50: ='Pricing Schedule'!B132 -> (i) Fee (based on Employer’s estimated cost of the works) | C50: ='Pricing Schedule'!C132 -> lump sum (LS) | D50: 1 | E50: 1 | F50: =DATA!$CJ$52 -> 0 | H50: =IF((F50+G50)>E50,"◄ ERROR TOO MUCH",(F50+G50)) -> 0 | I50: ='Pricing Schedule'!F132 -> 0 | J50: =D50*I50 -> 0 | K50: =E50*I50 -> 0 | L50: =F50*I50 -> 0 | M50: =G50*I50 -> 0 | N50: =H50*I50 -> 0
B51: ='Pricing Schedule'!B133 -> (ii) Fee adjustment* | C51: ='Pricing Schedule'!C133 -> lump sum (LS) | D51: 1 | E51: 1 | F51: =DATA!$HQ$52 -> 0 | G51: =G50 -> 0 | H51: =IF((F51+G51)>E51,"◄ ERROR TOO MUCH",IF((F51+G51)>H50,"◄ ERROR > PREV ROW",(F51+G51))) -> 0 | I51: =E51 -> 1 | J51: ='ADJ-Summary'!$J$149 ->  | K51: ='ADJ-Summary'!$J$156 ->  | L51: =DATA!$HR$52 -> 0 | M51: =+(G51+F51)*K51-L51 ->  | N51: =L51+M51 -> 
A52: ='Pricing Schedule'!A134 -> 3.4.3 | B52: ='Pricing Schedule'!B134 -> Detailed design
B53: ='Pricing Schedule'!B135 -> (a) Road works:
B54: ='Pricing Schedule'!B136 -> (i) Fee (based on Employer’s estimated cost of the works) | C54: ='Pricing Schedule'!C136 -> lump sum (LS) | D54: 1 | E54: 1 | F54: =DATA!$CK$52 -> 0 | H54: =IF((F54+G54)>E54,"◄ ERROR TOO MUCH",(F54+G54)) -> 0 | I54: ='Pricing Schedule'!F136 -> 0 | J54: =D54*I54 -> 0 | K54: =E54*I54 -> 0 | L54: =F54*I54 -> 0 | M54: =G54*I54 -> 0 | N54: =H54*I54 -> 0
B55: ='Pricing Schedule'!B137 -> (ii) Fee adjustment* | C55: ='Pricing Schedule'!C137 -> lump sum (LS) | D55: 1 | E55: 1 | F55: =DATA!$HS$52 -> 0 | G55: =G54 -> 0 | H55: =IF((F55+G55)>E55,"◄ ERROR TOO MUCH",IF((F55+G55)>H54,"◄ ERROR > PREV ROW",(F55+G55))) -> 0 | I55: =E55 -> 1 | J55: ='ADJ-Summary'!$J$11 ->  | K55: ='ADJ-Summary'!$J$18 ->  | L55: =DATA!$HT$52 -> 0 | M55: =+(G55+F55)*K55-L55 ->  | N55: =L55+M55 -> 
B56: ='Pricing Schedule'!B138 -> (b) Structures (bridges and other major structures):
B57: ='Pricing Schedule'!B139 -> (i) Fee (based on Employer’s estimated cost of the works) | C57: ='Pricing Schedule'!C139 -> lump sum (LS) | D57: 1 | E57: 1 | F57: =DATA!$CL$52 -> 0 | H57: =IF((F57+G57)>E57,"◄ ERROR TOO MUCH",(F57+G57)) -> 0 | I57: ='Pricing Schedule'!F139 -> 0 | J57: =D57*I57 -> 0 | K57: =E57*I57 -> 0 | L57: =F57*I57 -> 0 | M57: =G57*I57 -> 0 | N57: =H57*I57 -> 0
B58: ='Pricing Schedule'!B140 -> (ii) Fee adjustment* | C58: ='Pricing Schedule'!C140 -> lump sum (LS) | D58: 1 | E58: 1 | F58: =DATA!$HU$52 -> 0 | G58: =G57 -> 0 | H58: =IF((F58+G58)>E58,"◄ ERROR TOO MUCH",IF((F58+G58)>H57,"◄ ERROR > PREV ROW",(F58+G58))) -> 0 | I58: =E58 -> 1 | J58: ='ADJ-Summary'!$J$34 ->  | K58: ='ADJ-Summary'!$J$41 ->  | L58: =DATA!$HV$52 -> 0 | M58: =+(G58+F58)*K58-L58 ->  | N58: =L58+M58 -> 
B59: ='Pricing Schedule'!B141 -> (c) Electrical:
B60: ='Pricing Schedule'!B142 -> (i) Fee (based on Employer’s estimated cost of the works) | C60: ='Pricing Schedule'!C142 -> lump sum (LS) | D60: 1 | E60: 1 | F60: =DATA!$CM$52 -> 0 | H60: =IF((F60+G60)>E60,"◄ ERROR TOO MUCH",(F60+G60)) -> 0 | I60: ='Pricing Schedule'!F142 -> 0 | J60: =D60*I60 -> 0 | K60: =E60*I60 -> 0 | L60: =F60*I60 -> 0 | M60: =G60*I60 -> 0 | N60: =H60*I60 -> 0
B61: ='Pricing Schedule'!B143 -> (ii) Fee adjustment* | C61: ='Pricing Schedule'!C143 -> lump sum (LS) | D61: 1 | E61: 1 | F61: =DATA!$HW$52 -> 0 | G61: =G60 -> 0 | H61: =IF((F61+G61)>E61,"◄ ERROR TOO MUCH",IF((F61+G61)>H60,"◄ ERROR > PREV ROW",(F61+G61))) -> 0 | I61: =E61 -> 1 | J61: ='ADJ-Summary'!$J$58 ->  | K61: ='ADJ-Summary'!$J$65 ->  | L61: =DATA!$HX$52 -> 0 | M61: =+(G61+F61)*K61-L61 ->  | N61: =L61+M61 -> 
B62: ='Pricing Schedule'!B144 -> (d) Buildings:
B63: ='Pricing Schedule'!B145 -> (i) Fee (based on Employer’s estimated cost of the works) | C63: ='Pricing Schedule'!C145 -> lump sum (LS) | D63: 1 | E63: 1 | F63: =DATA!$CN$52 -> 0 | H63: =IF((F63+G63)>E63,"◄ ERROR TOO MUCH",(F63+G63)) -> 0 | I63: ='Pricing Schedule'!F145 -> 0 | J63: =D63*I63 -> 0 | K63: =E63*I63 -> 0 | L63: =F63*I63 -> 0 | M63: =G63*I63 -> 0 | N63: =H63*I63 -> 0
B64: ='Pricing Schedule'!B146 -> (ii) Fee adjustment* | C64: ='Pricing Schedule'!C146 -> lump sum (LS) | D64: 1 | E64: 1 | F64: =DATA!$HY$52 -> 0 | G64: =G63 -> 0 | H64: =IF((F64+G64)>E64,"◄ ERROR TOO MUCH",IF((F64+G64)>H63,"◄ ERROR > PREV ROW",(F64+G64))) -> 0 | I64: =E64 -> 1 | J64: ='ADJ-Summary'!$J$81 ->  | K64: ='ADJ-Summary'!$J$88 ->  | L64: =DATA!$HZ$52 -> 0 | M64: =+(G64+F64)*K64-L64 ->  | N64: =L64+M64 -> 
B65: ='Pricing Schedule'!B147 -> (e) Mechanical:
B66: ='Pricing Schedule'!B148 -> (i) Fee (based on Employer’s estimated cost of the works) | C66: ='Pricing Schedule'!C148 -> lump sum (LS) | D66: 1 | E66: 1 | F66: =DATA!$CO$52 -> 0 | H66: =IF((F66+G66)>E66,"◄ ERROR TOO MUCH",(F66+G66)) -> 0 | I66: ='Pricing Schedule'!F148 -> 0 | J66: =D66*I66 -> 0 | K66: =E66*I66 -> 0 | L66: =F66*I66 -> 0 | M66: =G66*I66 -> 0 | N66: =H66*I66 -> 0
B67: ='Pricing Schedule'!B149 -> (ii) Fee adjustment* | C67: ='Pricing Schedule'!C149 -> lump sum (LS) | D67: 1 | E67: 1 | F67: =DATA!$IA$52 -> 0 | G67: =G66 -> 0 | H67: =IF((F67+G67)>E67,"◄ ERROR TOO MUCH",IF((F67+G67)>H66,"◄ ERROR > PREV ROW",(F67+G67))) -> 0 | I67: =E67 -> 1 | J67: ='ADJ-Summary'!$J$104 ->  | K67: ='ADJ-Summary'!$J$111 ->  | L67: =DATA!$IB$52 -> 0 | M67: =+(G67+F67)*K67-L67 ->  | N67: =L67+M67 -> 
B68: ='Pricing Schedule'!B150 -> (f) Electronic:
B69: ='Pricing Schedule'!B151 -> (i) Fee (based on Employer’s estimated cost of the works) | C69: ='Pricing Schedule'!C151 -> lump sum (LS) | D69: 1 | E69: 1 | F69: =DATA!$CP$52 -> 0 | H69: =IF((F69+G69)>E69,"◄ ERROR TOO MUCH",(F69+G69)) -> 0 | I69: ='Pricing Schedule'!F151 -> 0 | J69: =D69*I69 -> 0 | K69: =E69*I69 -> 0 | L69: =F69*I69 -> 0 | M69: =G69*I69 -> 0 | N69: =H69*I69 -> 0
B70: ='Pricing Schedule'!B152 -> (ii) Fee adjustment* | C70: ='Pricing Schedule'!C152 -> lump sum (LS) | D70: 1 | E70: 1 | F70: =DATA!$IC$52 -> 0 | G70: =G69 -> 0 | H70: =IF((F70+G70)>E70,"◄ ERROR TOO MUCH",IF((F70+G70)>H69,"◄ ERROR > PREV ROW",(F70+G70))) -> 0 | I70: =E70 -> 1 | J70: ='ADJ-Summary'!$J$127 ->  | K70: ='ADJ-Summary'!$J$134 ->  | L70: =DATA!$ID$52 -> 0 | M70: =+(G70+F70)*K70-L70 ->  | N70: =L70+M70 -> 
B71: ='Pricing Schedule'!B153 -> (g) Other:
B72: ='Pricing Schedule'!B154 -> (i) Fee (based on Employer’s estimated cost of the works) | C72: ='Pricing Schedule'!C154 -> lump sum (LS) | D72: 1 | E72: 1 | F72: =DATA!$CQ$52 -> 0 | H72: =IF((F72+G72)>E72,"◄ ERROR TOO MUCH",(F72+G72)) -> 0 | I72: ='Pricing Schedule'!F154 -> 0 | J72: =D72*I72 -> 0 | K72: =E72*I72 -> 0 | L72: =F72*I72 -> 0 | M72: =G72*I72 -> 0 | N72: =H72*I72 -> 0
B73: ='Pricing Schedule'!B155 -> (ii) Fee adjustment* | C73: ='Pricing Schedule'!C155 -> lump sum (LS) | D73: 1 | E73: 1 | F73: =DATA!$IE$52 -> 0 | G73: =G72 -> 0 | H73: =IF((F73+G73)>E73,"◄ ERROR TOO MUCH",IF((F73+G73)>H72,"◄ ERROR > PREV ROW",(F73+G73))) -> 0 | I73: =E73 -> 1 | J73: ='ADJ-Summary'!$J$150 ->  | K73: ='ADJ-Summary'!$J$157 ->  | L73: =DATA!$IF$52 -> 0 | M73: =+(G73+F73)*K73-L73 ->  | N73: =L73+M73 -> 
A74: ='Pricing Schedule'!A156 -> 3.4.4 | B74: ='Pricing Schedule'!B156 -> Disbursements
B75: ='Pricing Schedule'!B157 -> (a) Concept design | C75: ='Pricing Schedule'!C157 -> lump sum (LS) | D75: 1 | E75: 1 | F75: =DATA!$CR$52 -> 0 | H75: =F75+G75 -> 0 | I75: ='Pricing Schedule'!F157 -> 0 | J75: =D75*I75 -> 0 | K75: =E75*I75 -> 0 | L75: =F75*I75 -> 0 | M75: =G75*I75 -> 0 | N75: =H75*I75 -> 0
B76: ='Pricing Schedule'!B158 -> (b) Preliminary design | C76: ='Pricing Schedule'!C158 -> lump sum (LS) | D76: 1 | E76: 1 | F76: =DATA!$CS$52 -> 0 | H76: =F76+G76 -> 0 | I76: ='Pricing Schedule'!F158 -> 0 | J76: =D76*I76 -> 0 | K76: =E76*I76 -> 0 | L76: =F76*I76 -> 0 | M76: =G76*I76 -> 0 | N76: =H76*I76 -> 0
B77: ='Pricing Schedule'!B159 -> (c) Detailed design | C77: ='Pricing Schedule'!C159 -> lump sum (LS) | D77: 1 | E77: 1 | F77: =DATA!$CT$52 -> 0 | H77: =F77+G77 -> 0 | I77: ='Pricing Schedule'!F159 -> 0 | J77: =D77*I77 -> 0 | K77: =E77*I77 -> 0 | L77: =F77*I77 -> 0 | M77: =G77*I77 -> 0 | N77: =H77*I77 -> 0
A78: ='Pricing Schedule'!A160 -> 3.4.5 | B78: ='Pricing Schedule'!B160 -> Land Requirements
B79: ='Pricing Schedule'!B161 -> (a) Compilation of Property Report for each individual property (or portion thereof) required | C79: ='Pricing Schedule'!C161 -> number (No) | D79: ='Pricing Schedule'!D161 -> 0 | E79: =D79 -> 0 | F79: =DATA!$CU$52 -> 0 | H79: =F79+G79 -> 0 | I79: ='Pricing Schedule'!E161 -> 0 | J79: =D79*I79 -> 0 | K79: =E79*I79 -> 0 | L79: =F79*I79 -> 0 | M79: =G79*I79 -> 0 | N79: =H79*I79 -> 0
B80: ='Pricing Schedule'!B162 -> (b) Conclusion of SPLUMA Agreement with relevant Municipality(ies) | C80: ='Pricing Schedule'!C162 -> number (No) | D80: ='Pricing Schedule'!D162 -> 0 | E80: 0 | F80: =DATA!$KA$52 -> 0 | H80: 0 | I80: ='Pricing Schedule'!E162 -> 0 | J80: =D80*I80 -> 0 | K80: =E80*I80 -> 0 | L80: =F80*I80 -> 0 | M80: =G80*I80 -> 0 | N80: =H80*I80 -> 0
B81: ='Pricing Schedule'!B163 -> (c) Conclusion of addendums to the SPLUMA Agreement(s) | C81: ='Pricing Schedule'!C163 -> number (No) | D81: ='Pricing Schedule'!D163 -> 0 | E81: 0 | F81: =DATA!$KB$52 -> 0 | H81: 0 | I81: ='Pricing Schedule'!E163 -> 0 | J81: 0 | K81: 0 | L81: 0 | M81: 0 | N81: 0
A82: ='Pricing Schedule'!A164 -> 3.4.6 | B82: ='Pricing Schedule'!B164 -> Road Safety Audit: Feasibility/Preliminary/Detail
B83: ='Pricing Schedule'!B165 -> (a) Road Safety Audit | C83: ='Pricing Schedule'!C165 -> prime cost (PC) | D83: 1 | E83: =D83 -> 1 | F83: =DATA!$CV$52 -> 0 | G83: ='Pg 4 P Sums'!K103-'C3.4'!F83 -> 0 | H83: =F83+G83 -> 0 | I83: ='Pricing Schedule'!F165 -> 500000 | J83: =D83*I83 -> 500000 | K83: =E83*I83 -> 500000 | L83: =F83*I83 -> 0 | M83: =G83*I83 -> 0 | N83: =H83*I83 -> 0
B84: ='Pricing Schedule'!B166 -> (b) Handling costs i.r.o. sub item 3.4.6(a) | C84: ='Pricing Schedule'!C166 -> lump sum (LS) | D84: 1 | E84: 1 | F84: =DATA!$CW$52 -> 0 | H84: =F84+G84 -> 0 | I84: ='Pricing Schedule'!F166 -> 0 | J84: =D84*I84 -> 0 | K84: =E84*I84 -> 0 | L84: =F84*I84 -> 0 | M84: =G84*I84 -> 0 | N84: =H84*I84 -> 0
A85: ='Pricing Schedule'!A167 -> 3.4.7 | B85: ='Pricing Schedule'!B167 -> Road Safety Audit: Construction/Pre-opening
B86: ='Pricing Schedule'!B168 -> (a) Road Safety Audit | C86: ='Pricing Schedule'!C168 -> prime cost (PC) | D86: 1 | E86: =D86 -> 1 | F86: =DATA!$CX$52 -> 0 | G86: ='Pg 4 P Sums'!K112-'C3.4'!F86 -> 0 | H86: =F86+G86 -> 0 | I86: ='Pricing Schedule'!F168 -> 200000 | J86: =D86*I86 -> 200000 | K86: =E86*I86 -> 200000 | L86: =F86*I86 -> 0 | M86: =G86*I86 -> 0 | N86: =H86*I86 -> 0
B87: ='Pricing Schedule'!B169 -> (b) Handling costs i.r.o. sub item 3.4.7(a) | C87: ='Pricing Schedule'!C169 -> lump sum (LS) | D87: 1 | E87: 1 | F87: =DATA!$CY$52 -> 0 | H87: =F87+G87 -> 0 | I87: ='Pricing Schedule'!F169 -> 0 | J87: =D87*I87 -> 0 | K87: =E87*I87 -> 0 | L87: =F87*I87 -> 0 | M87: =G87*I87 -> 0 | N87: =H87*I87 -> 0
A88: ='Pricing Schedule'!A170 -> 3.4.8 | B88: ='Pricing Schedule'!B170 -> Occupational Health and Safety requirements | C88: ='Pricing Schedule'!C170 -> lump sum (LS) | D88: 1 | E88: 1 | F88: =DATA!$CZ$52 -> 0 | H88: =F88+G88 -> 0 | I88: ='Pricing Schedule'!F170 -> 0 | J88: =D88*I88 -> 0 | K88: =E88*I88 -> 0 | L88: =F88*I88 -> 0 | M88: =G88*I88 -> 0 | N88: =H88*I88 -> 0
A89: ='Pricing Schedule'!A171 -> 3.4.9 | B89: ='Pricing Schedule'!B171 -> Training
B90: ='Pricing Schedule'!B172 -> (a) Service Provider’s staff and Targeted Enterprises:
B91: ='Pricing Schedule'!B173 -> (i) Assistant Project Leader (APL) | C91: ='Pricing Schedule'!C173 -> provisional sum (PS) | D91: 1 | E91: =D91 -> 1 | F91: =DATA!$DA$52 -> 0 | H91: =F91+G91 -> 0 | I91: ='Pricing Schedule'!F173 -> 100000 | J91: =D91*I91 -> 100000 | K91: =E91*I91 -> 100000 | L91: =F91*I91 -> 0 | M91: =G91*I91 -> 0 | N91: =H91*I91 -> 0
B92: ='Pricing Schedule'!B174 -> (ii) Assistant Design Specialist(s) (ADS) | C92: ='Pricing Schedule'!C174 -> provisional sum (PS) | D92: 1 | E92: =D92 -> 1 | F92: =DATA!$DB$52 -> 0 | H92: =F92+G92 -> 0 | I92: ='Pricing Schedule'!F174 -> 100000 | J92: =D92*I92 -> 100000 | K92: =E92*I92 -> 100000 | L92: =F92*I92 -> 0 | M92: =G92*I92 -> 0 | N92: =H92*I92 -> 0
B93: ='Pricing Schedule'!B175 -> (iii) Disbursements | C93: ='Pricing Schedule'!C175 -> prime cost (PC) | D93: 1 | E93: 1 | F93: =DATA!$DC$52 -> 0 | G93: ='Pg 4 P Sums'!K122-'C3.4'!F93 -> 0 | H93: =F93+G93 -> 0 | I93: ='Pricing Schedule'!F175 -> 50000 | J93: =D93*I93 -> 50000 | K93: =E93*I93 -> 50000 | L93: =F93*I93 -> 0 | M93: =G93*I93 -> 0 | N93: =H93*I93 -> 0
B94: ='Pricing Schedule'!B176 -> (b) Employer’s Trainees:
B95: ='Pricing Schedule'!B177 -> (i) Candidate engineers | C95: ='Pricing Schedule'!C177 -> person month | D95: ='Pricing Schedule'!D177 -> 12 | E95: =D95 -> 12 | F95: =DATA!$KC$52 -> 0 | H95: =F95+G95 -> 0 | I95: ='Pricing Schedule'!E177 -> 0 | J95: =D95*I95 -> 0 | K95: =E95*I95 -> 0 | L95: =F95*I95 -> 0 | M95: =G95*I95 -> 0 | N95: =H95*I95 -> 0
B96: ='Pricing Schedule'!B178 -> (ii) Students experiential training | C96: ='Pricing Schedule'!C178 -> person month | D96: ='Pricing Schedule'!D178 -> 12 | E96: =D96 -> 12 | F96: =DATA!$KD$52 -> 0 | H96: =F96+G96 -> 0 | I96: ='Pricing Schedule'!E178 -> 0 | J96: =D96*I96 -> 0 | K96: =E96*I96 -> 0 | L96: =F96*I96 -> 0 | M96: =G96*I96 -> 0 | N96: =H96*I96 -> 0
B97: ='Pricing Schedule'!B179 -> (iii) Student stipend | C97: ='Pricing Schedule'!C179 -> provisional sum (PS) | D97: 1 | E97: 1 | F97: =DATA!$KE$52 -> 0 | G97: ='Pg 4 P Sums'!K131-'C3.4'!F97 -> 0 | H97: =F97+G97 -> 0 | I97: ='Pricing Schedule'!F179 -> 200000 | J97: 200000 | K97: 200000 | L97: 0 | M97: 0 | N97: 0
A98: ='Pricing Schedule'!A180 -> 3.4.10 | B98: ='Pricing Schedule'!B180 -> Phase / Stage discontinuity
B99: ='Pricing Schedule'!B181 -> (a) Review of previous phase / stage | C99: ='Pricing Schedule'!C181 -> lump sum (LS) | D99: 1 | E99: 1 | F99: =DATA!$DD$52 -> 0 | H99: =F99+G99 -> 0 | I99: ='Pricing Schedule'!F181 -> 0 | J99: =D99*I99 -> 0 | K99: =E99*I99 -> 0 | L99: =F99*I99 -> 0 | M99: =G99*I99 -> 0 | N99: =H99*I99 -> 0
B100: ='Pricing Schedule'!B182 -> (b) Review of tender documentation by original designer | C100: ='Pricing Schedule'!C182 -> prime cost (PC) | D100: 1 | E100: =D100 -> 1 | F100: =DATA!$DE$52 -> 0 | G100: ='Pg 4 P Sums'!K140-'C3.4'!F100 -> 0 | H100: =F100+G100 -> 0 | I100: ='Pricing Schedule'!F182 -> 0 | J100: =D100*I100 -> 0 | K100: =E100*I100 -> 0 | L100: =F100*I100 -> 0 | M100: =G100*I100 -> 0 | N100: =H100*I100 -> 0
B101: ='Pricing Schedule'!B183 -> (c) Visit to construction site by original designer | C101: ='Pricing Schedule'!C183 -> prime cost (PC) | D101: 1 | E101: 1 | F101: =DATA!$DF$52 -> 0 | G101: ='Pg 4 P Sums'!K148-'C3.4'!F101 -> 0 | H101: =F101+G101 -> 0 | I101: ='Pricing Schedule'!F183 -> 0 | J101: =D101*I101 -> 0 | K101: =E101*I101 -> 0 | L101: =F101*I101 -> 0 | M101: =G101*I101 -> 0 | N101: =H101*I101 -> 0
B102: ='Pricing Schedule'!B184 -> (d) Handling cost i.r.o. sub-items 3.4.10(b) and 3.4.10(c) | C102: ='Pricing Schedule'!C184 -> percentage (%) | D102: ='Pricing Schedule'!D184 -> 0 | E102: =K100+K101 -> 0 | F102: =L100+L101 -> 0 | G102: 0 | H102: =F102+G102 -> 0 | I102: ='Pricing Schedule'!E184 -> 0 | J102: =D102*I102 -> 0 | K102: =E102*I102 -> 0 | L102: =F102*I102 -> 0 | M102: =G102*I102 -> 0 | N102: =H102*I102 -> 0
A103: ='Pricing Schedule'!A185 -> 3.4.11 | B103: ='Pricing Schedule'!B185 -> Field work for identification of material sources by service provider
B104: ='Pricing Schedule'!B186 -> (a) Personnel cost | C104: ='Pricing Schedule'!C186 -> provisional sum (PS) | D104: 1 | E104: =D104 -> 1 | F104: =DATA!$AK$52 -> 0 | G104: ='Pg 4 P Sums'!K157-'C3.4'!F104 -> 0 | H104: =F104+G104 -> 0 | I104: ='Pricing Schedule'!F186 -> 200000 | J104: =D104*I104 -> 200000 | K104: =E104*I104 -> 200000 | L104: =F104*I104 -> 0 | M104: =G104*I104 -> 0 | N104: =H104*I104 -> 0
B105: ='Pricing Schedule'!B187 -> (b) Disbursements | C105: ='Pricing Schedule'!C187 -> prime cost (PC) | D105: 1 | E105: 1 | F105: =DATA!$AL$52 -> 0 | G105: ='Pg 4 P Sums'!K165-'C3.4'!F105 -> 0 | H105: =F105+G105 -> 0 | I105: ='Pricing Schedule'!F187 -> 15000 | J105: =D105*I105 -> 15000 | K105: =E105*I105 -> 15000 | L105: =F105*I105 -> 0 | M105: =G105*I105 -> 0 | N105: =H105*I105 -> 0
B106: ='Pricing Schedule'!B188 -> (c) Handling cost i.r.o. sub-item 3.4.11(b) | C106: ='Pricing Schedule'!C188 -> percentage (%) | D106: ='Pricing Schedule'!D188 -> 15000 | E106: =K105 -> 15000 | F106: =L105 -> 0 | G106: =M105 -> 0 | H106: =F106+G106 -> 0 | I106: ='Pricing Schedule'!E188 -> 0 | J106: =D106*I106 -> 0 | K106: =E106*I106 -> 0 | L106: =F106*I106 -> 0 | M106: =G106*I106 -> 0 | N106: =H106*I106 -> 0
A107: ='Pricing Schedule'!A189 -> 3.4.12 | B107: ='Pricing Schedule'!B189 -> Investigation and sampling for roadbed, borrow pits, quarries, structure founding materials and other areas, e.g. Cuttings
B108: ='Pricing Schedule'!B190 -> (a) Establishment of personnel and equipment for test pitting | C108: ='Pricing Schedule'!C190 -> lump sum (LS) | D108: 1 | E108: 1 | F108: =DATA!$DG$52 -> 0 | H108: =F108+G108 -> 0 | I108: ='Pricing Schedule'!F190 -> 0 | J108: =D108*I108 -> 0 | K108: =E108*I108 -> 0 | L108: =F108*I108 -> 0 | M108: =G108*I108 -> 0 | N108: =H108*I108 -> 0
B109: ='Pricing Schedule'!B191 -> (b) Hire and operation of excavator | C109: ='Pricing Schedule'!C191 -> prime cost (PC) | D109: 1 | E109: =D109 -> 1 | F109: =DATA!$DH$52 -> 0 | G109: ='Pg 4 P Sums'!K174-'C3.4'!F109 -> 0 | H109: 0 | I109: ='Pricing Schedule'!F191 -> 250000 | J109: 250000 | K109: 250000 | L109: 0 | M109: 0 | N109: 0
B110: ='Pricing Schedule'!B192 -> (c) Handling costs in respect of 3.4.12(b) | C110: ='Pricing Schedule'!C192 -> percentage (%) | D110: ='Pricing Schedule'!D192 -> 250000 | E110: =K109 -> 250000 | F110: =L109 -> 0 | G110: 0 | H110: 0 | I110: ='Pricing Schedule'!E192 -> 0 | J110: 0 | K110: 0 | L110: 0 | M110: 0 | N110: 0
B111: ='Pricing Schedule'!B193 -> (d) Test pit excavation by hand | C111: ='Pricing Schedule'!C193 -> number (No) | D111: ='Pricing Schedule'!D193 -> 12 | E111: =D111 -> 12 | F111: =DATA!$DI$52 -> 0 | H111: 0 | I111: ='Pricing Schedule'!E193 -> 0 | J111: 0 | K111: 0 | L111: 0 | M111: 0 | N111: 0
B112: ='Pricing Schedule'!B194 -> (e) Sampling and profiling of test pits | C112: ='Pricing Schedule'!C194 -> number (No) | D112: ='Pricing Schedule'!D194 -> 30 | E112: =D112 -> 30 | F112: =DATA!$DJ$52 -> 0 | H112: 0 | I112: ='Pricing Schedule'!E194 -> 0 | J112: 0 | K112: 0 | L112: 0 | M112: 0 | N112: 0
B113: ='Pricing Schedule'!B195 -> (f) DCP | C113: ='Pricing Schedule'!C195 -> number (No) | D113: ='Pricing Schedule'!D195 -> 89 | E113: 89 | F113: =DATA!$DK$52 -> 0 | H113: 0 | I113: ='Pricing Schedule'!E195 -> 0 | J113: 0 | K113: 0 | L113: 0 | M113: 0 | N113: 0
B114: ='Pricing Schedule'!B196 -> (g) Transport of samples to laboratory
B115: ='Pricing Schedule'!B197 -> (i) Large bags | C115: ='Pricing Schedule'!C197 -> number (No) | D115: ='Pricing Schedule'!D197 -> 126 | E115: =D115 -> 126 | F115: =DATA!$DL$52 -> 0 | H115: =F115+G115 -> 0 | I115: ='Pricing Schedule'!E197 -> 0 | J115: =D115*I115 -> 0 | K115: =E115*I115 -> 0 | L115: =F115*I115 -> 0 | M115: =G115*I115 -> 0 | N115: =H115*I115 -> 0
B116: ='Pricing Schedule'!B198 -> (ii) Small bags | C116: ='Pricing Schedule'!C198 -> number (No) | D116: ='Pricing Schedule'!D198 -> 126 | E116: =D116 -> 126 | F116: =DATA!$DM$52 -> 0 | H116: =F116+G116 -> 0 | I116: ='Pricing Schedule'!E198 -> 0 | J116: =D116*I116 -> 0 | K116: =E116*I116 -> 0 | L116: =F116*I116 -> 0 | M116: =G116*I116 -> 0 | N116: =H116*I116 -> 0
A117: ='Pricing Schedule'!A199 -> 3.4.13 | B117: ='Pricing Schedule'!B199 -> Laboratory testing and reporting
B118: ='Pricing Schedule'!B200 -> (a) Standard tests
B119: ='Pricing Schedule'!B201 -> (i) In-situ density | C119: ='Pricing Schedule'!C201 -> number (No) | D119: ='Pricing Schedule'!D201 -> 60 | E119: =D119 -> 60 | F119: =DATA!$DN$52 -> 0 | H119: =F119+G119 -> 0 | I119: ='Pricing Schedule'!E201 -> 0 | J119: =D119*I119 -> 0 | K119: =E119*I119 -> 0 | L119: =F119*I119 -> 0 | M119: =G119*I119 -> 0 | N119: =H119*I119 -> 0
B120: ='Pricing Schedule'!B202 -> (ii) Moisture content | C120: ='Pricing Schedule'!C202 -> number (No) | D120: ='Pricing Schedule'!D202 -> 60 | E120: =D120 -> 60 | F120: =DATA!$DO$52 -> 0 | H120: 0 | I120: ='Pricing Schedule'!E202 -> 0 | J120: 0 | K120: 0 | L120: 0 | M120: 0 | N120: 0
B121: ='Pricing Schedule'!B203 -> (iii) Sieve analysis | C121: ='Pricing Schedule'!C203 -> number (No) | D121: ='Pricing Schedule'!D203 -> 60 | E121: 60 | F121: =DATA!$DP$52 -> 0 | H121: 0 | I121: ='Pricing Schedule'!E203 -> 0 | J121: 0 | K121: 0 | L121: 0 | M121: 0 | N121: 0
B122: ='Pricing Schedule'!B204 -> (iv) Atterberg limits | C122: ='Pricing Schedule'!C204 -> number (No) | D122: ='Pricing Schedule'!D204 -> 60 | E122: 60 | F122: =DATA!$DQ$52 -> 0 | H122: 0 | I122: ='Pricing Schedule'!E204 -> 0 | J122: 0 | K122: 0 | L122: 0 | M122: 0 | N122: 0
B123: ='Pricing Schedule'!B205 -> (v) M.D.D + OMC (Mod AASHTO) natural | C123: ='Pricing Schedule'!C205 -> number (No) | D123: ='Pricing Schedule'!D205 -> 63 | E123: 63 | F123: =DATA!$DR$52 -> 0 | H123: 0 | I123: ='Pricing Schedule'!E205 -> 0 | J123: 0 | K123: 0 | L123: 0 | M123: 0 | N123: 0
B124: ='Pricing Schedule'!B206 -> (vi) M.D.D + OMC (Mod.AASHTO) stab. | C124: ='Pricing Schedule'!C206 -> number (No) | D124: ='Pricing Schedule'!D206 -> 30 | E124: 30 | F124: =DATA!$DS$52 -> 0 | H124: 0 | I124: ='Pricing Schedule'!E206 -> 0 | J124: 0 | K124: 0 | L124: 0 | M124: 0 | N124: 0
B125: ='Pricing Schedule'!B207 -> (vii) CBR | C125: ='Pricing Schedule'!C207 -> number (No) | D125: ='Pricing Schedule'!D207 -> 63 | E125: 63 | F125: =DATA!$DT$52 -> 0 | H125: 0 | I125: ='Pricing Schedule'!E207 -> 0 | J125: 0 | K125: 0 | L125: 0 | M125: 0 | N125: 0
B126: ='Pricing Schedule'!B208 -> (viii) ITS (stabilised) (set of 3) | C126: ='Pricing Schedule'!C208 -> number (No) | D126: ='Pricing Schedule'!D208 -> 30 | E126: 30 | F126: =DATA!$DU$52 -> 0 | H126: 0 | I126: ='Pricing Schedule'!E208 -> 0 | J126: 0 | K126: 0 | L126: 0 | M126: 0 | N126: 0
B127: ='Pricing Schedule'!B209 -> (ix) UCS (stabilised) (set of 3) | C127: ='Pricing Schedule'!C209 -> number (No) | D127: ='Pricing Schedule'!D209 -> 30 | E127: 30 | F127: =DATA!$DV$52 -> 0 | H127: 0 | I127: ='Pricing Schedule'!E209 -> 0 | J127: 0 | K127: 0 | L127: 0 | M127: 0 | N127: 0
B128: ='Pricing Schedule'!B210 -> (x) PH value | C128: ='Pricing Schedule'!C210 -> number (No) | D128: ='Pricing Schedule'!D210 -> 30 | E128: 30 | F128: =DATA!$DW$52 -> 0 | H128: 0 | I128: ='Pricing Schedule'!E210 -> 0 | J128: 0 | K128: 0 | L128: 0 | M128: 0 | N128: 0
B129: ='Pricing Schedule'!B211 -> (xi) Wet/dry durability (150mm) (set of 3) | C129: ='Pricing Schedule'!C211 -> number (No) | D129: ='Pricing Schedule'!D211 -> 8 | E129: 8 | F129: =DATA!$DX$52 -> 0 | H129: 0 | I129: ='Pricing Schedule'!E211 -> 0 | J129: 0 | K129: 0 | L129: 0 | M129: 0 | N129: 0
B130: ='Pricing Schedule'!B212 -> (xii) Initial consumption lime/cement (ICL) | C130: ='Pricing Schedule'!C212 -> number (No) | D130: ='Pricing Schedule'!D212 -> 33 | E130: 33 | F130: =DATA!$DY$52 -> 0 | H130: 0 | I130: ='Pricing Schedule'!E212 -> 0 | J130: 0 | K130: 0 | L130: 0 | M130: 0 | N130: 0
B131: ='Pricing Schedule'!B213 -> (xiii) Ethylene glycol Durability Index | C131: ='Pricing Schedule'!C213 -> number (No) | D131: ='Pricing Schedule'!D213 -> 4 | E131: 4 | F131: =DATA!$DZ$52 -> 0 | H131: 0 | I131: ='Pricing Schedule'!E213 -> 0 | J131: 0 | K131: 0 | L131: 0 | M131: 0 | N131: 0
B132: ='Pricing Schedule'!B214 -> (xiv) ACV | C132: ='Pricing Schedule'!C214 -> number (No) | D132: ='Pricing Schedule'!D214 -> 6 | E132: 6 | F132: =DATA!$EA$52 -> 0 | H132: 0 | I132: ='Pricing Schedule'!E214 -> 0 | J132: 0 | K132: 0 | L132: 0 | M132: 0 | N132: 0
B133: ='Pricing Schedule'!B215 -> (xv) 10% FACT (dry) | C133: ='Pricing Schedule'!C215 -> number (No) | D133: ='Pricing Schedule'!D215 -> 6 | E133: 6 | F133: =DATA!$EB$52 -> 0 | H133: 0 | I133: ='Pricing Schedule'!E215 -> 0 | J133: 0 | K133: 0 | L133: 0 | M133: 0 | N133: 0
B134: ='Pricing Schedule'!B216 -> (xvi) 10% Fact (wet) | C134: ='Pricing Schedule'!C216 -> number (No) | D134: ='Pricing Schedule'!D216 -> 6 | E134: 6 | F134: =DATA!$EC$52 -> 0 | H134: 0 | I134: ='Pricing Schedule'!E216 -> 0 | J134: 0 | K134: 0 | L134: 0 | M134: 0 | N134: 0
B135: ='Pricing Schedule'!B217 -> (xvii) 10% Fact (ethylene glycol) | C135: ='Pricing Schedule'!C217 -> number (No) | D135: ='Pricing Schedule'!D217 -> 2 | E135: 2 | F135: =DATA!$ED$52 -> 0 | H135: 0 | I135: ='Pricing Schedule'!E217 -> 0 | J135: 0 | K135: 0 | L135: 0 | M135: 0 | N135: 0
B136: ='Pricing Schedule'!B218 -> (xviii) Aggregate grading | C136: ='Pricing Schedule'!C218 -> number (No) | D136: ='Pricing Schedule'!D218 -> 15 | E136: 15 | F136: =DATA!$EE$52 -> 0 | H136: 0 | I136: ='Pricing Schedule'!E218 -> 0 | J136: 0 | K136: 0 | L136: 0 | M136: 0 | N136: 0
B137: ='Pricing Schedule'!B219 -> (xix) Aggregate Flakiness Index | C137: ='Pricing Schedule'!C219 -> number (No) | D137: ='Pricing Schedule'!D219 -> 15 | E137: 15 | F137: =DATA!$EF$52 -> 0 | H137: 0 | I137: ='Pricing Schedule'!E219 -> 0 | J137: 0 | K137: 0 | L137: 0 | M137: 0 | N137: 0
B138: ='Pricing Schedule'!B220 -> (xx) Aggregate Average Least Dimension | C138: ='Pricing Schedule'!C220 -> number (No) | D138: ='Pricing Schedule'!D220 -> 15 | E138: 15 | F138: =DATA!$EG$52 -> 0 | H138: 0 | I138: ='Pricing Schedule'!E220 -> 0 | J138: 0 | K138: 0 | L138: 0 | M138: 0 | N138: 0
B139: ='Pricing Schedule'!B221 -> (xxi) Polished Stone Value | C139: ='Pricing Schedule'!C221 -> number (No) | D139: ='Pricing Schedule'!D221 -> 4 | E139: 4 | F139: =DATA!$EH$52 -> 0 | H139: 0 | I139: ='Pricing Schedule'!E221 -> 0 | J139: 0 | K139: 0 | L139: 0 | M139: 0 | N139: 0
B140: ='Pricing Schedule'!B222 -> (xxii) Sand Equivalent | C140: ='Pricing Schedule'!C222 -> number (No) | D140: ='Pricing Schedule'!D222 -> 4 | E140: 4 | F140: =DATA!$EI$52 -> 0 | H140: 0 | I140: ='Pricing Schedule'!E222 -> 0 | J140: 0 | K140: 0 | L140: 0 | M140: 0 | N140: 0
B141: ='Pricing Schedule'!B223 -> (xxiii) Bitumen content and grading | C141: ='Pricing Schedule'!C223 -> number (No) | D141: ='Pricing Schedule'!D223 -> 6 | E141: 6 | F141: =DATA!$EJ$52 -> 0 | H141: 0 | I141: ='Pricing Schedule'!E223 -> 0 | J141: 0 | K141: 0 | L141: 0 | M141: 0 | N141: 0
B142: ='Pricing Schedule'!B224 -> (xxiv) Asphalt void content (cores) | C142: ='Pricing Schedule'!C224 -> number (No) | D142: ='Pricing Schedule'!D224 -> 6 | E142: 6 | F142: =DATA!$EK$52 -> 0 | H142: 0 | I142: ='Pricing Schedule'!E224 -> 0 | J142: 0 | K142: 0 | L142: 0 | M142: 0 | N142: 0
B143: ='Pricing Schedule'!B225 -> (xxv) Binder recovery (Absom) | C143: ='Pricing Schedule'!C225 -> number (No) | D143: ='Pricing Schedule'!D225 -> 2 | E143: 2 | F143: =DATA!$EL$52 -> 0 | H143: 0 | I143: ='Pricing Schedule'!E225 -> 0 | J143: 0 | K143: 0 | L143: 0 | M143: 0 | N143: 0
B144: ='Pricing Schedule'!B226 -> (xxvi) Bitumen penetration | C144: ='Pricing Schedule'!C226 -> number (No) | D144: ='Pricing Schedule'!D226 -> 3 | E144: 3 | F144: =DATA!$EM$52 -> 0 | H144: 0 | I144: ='Pricing Schedule'!E226 -> 0 | J144: 0 | K144: 0 | L144: 0 | M144: 0 | N144: 0
B145: ='Pricing Schedule'!B227 -> (xxvii) Bitumen softening point | C145: ='Pricing Schedule'!C227 -> number (No) | D145: ='Pricing Schedule'!D227 -> 3 | E145: 3 | F145: =DATA!$EN$52 -> 0 | H145: 0 | I145: ='Pricing Schedule'!E227 -> 0 | J145: 0 | K145: 0 | L145: 0 | M145: 0 | N145: 0
B146: ='Pricing Schedule'!B228 -> (xxviii) Sand Patch | C146: ='Pricing Schedule'!C228 -> number (No) | D146: ='Pricing Schedule'!D228 -> 20 | E146: 20 | F146: =DATA!$EO$52 -> 0 | H146: 0 | I146: ='Pricing Schedule'!E228 -> 0 | J146: 0 | K146: 0 | L146: 0 | M146: 0 | N146: 0
B147: ='Pricing Schedule'!B229 -> (b) Laboratory Testing where no schedule is available, or specialised testing | C147: ='Pricing Schedule'!C229 -> prime cost (PC) | D147: 1 | E147: 1 | F147: =DATA!$EP$52 -> 0 | G147: ='Pg 4 P Sums'!K183-'C3.4'!F147 -> 0 | H147: 0 | I147: ='Pricing Schedule'!F229 -> 500000 | J147: 500000 | K147: 500000 | L147: 0 | M147: 0 | N147: 0
B148: ='Pricing Schedule'!B230 -> (c) Handling costs i.r.o. pay item 3.4.13(b) | C148: ='Pricing Schedule'!C230 -> percentage (%) | D148: ='Pricing Schedule'!D230 -> 500000 | E148: =K147 -> 500000 | F148: =L147 -> 0 | G148: =M147 -> 0 | H148: 0 | I148: ='Pricing Schedule'!E230 -> 0 | J148: 0 | K148: 0 | L148: 0 | M148: 0 | N148: 0
A149: ='Pricing Schedule'!A231 -> 3.4.14 | B149: ='Pricing Schedule'!B231 -> Protection, removal, realignment and replacement of services prior to construction phase
B150: ='Pricing Schedule'!B232 -> (a) Services | C150: ='Pricing Schedule'!C232 -> prime cost (PC) | D150: 1 | E150: =D150 -> 1 | F150: =DATA!$JK$52 -> 0 | G150: ='Pg 4 P Sums'!K192-'C3.4'!F150 -> 0 | H150: =F150+G150 -> 0 | I150: ='Pricing Schedule'!F232 -> 100000 | J150: =D150*I150 -> 100000 | K150: =E150*I150 -> 100000 | L150: =F150*I150 -> 0 | M150: =G150*I150 -> 0 | N150: =H150*I150 -> 0
B151: ='Pricing Schedule'!B233 -> (b) Handling costs i.r.o. pay item 3.4.14(a) | C151: ='Pricing Schedule'!C233 -> percentage (%) | D151: ='Pricing Schedule'!D233 -> 100000 | E151: =K150 -> 100000 | F151: =L150 -> 0 | G151: =M150 -> 0 | H151: =F151+G151 -> 0 | I151: ='Pricing Schedule'!E233 -> 0 | J151: =D151*I151 -> 0 | K151: =E151*I151 -> 0 | L151: =F151*I151 -> 0 | M151: =G151*I151 -> 0 | N151: =H151*I151 -> 0
A152: ='Pricing Schedule'!A234 -> 3.4.15 | B152: ='Pricing Schedule'!B234 -> Employer’s Gateway Review Process
B153: ='Pricing Schedule'!B235 -> (a) Regional Gateway Review | C153: ='Pricing Schedule'!C235 -> lump sum (LS) | D153: 1 | E153: 1 | F153: =DATA!$KF$52 -> 0 | H153: =F153+G153 -> 0 | I153: ='Pricing Schedule'!F235 -> 0 | J153: =D153*I153 -> 0 | K153: =E153*I153 -> 0 | L153: =F153*I153 -> 0 | M153: =G153*I153 -> 0 | N153: =H153*I153 -> 0
B154: ='Pricing Schedule'!B236 -> (b) National Gateway Review | C154: ='Pricing Schedule'!C236 -> lump sum (LS) | D154: 1 | E154: 1 | F154: =DATA!$KG$52 -> 0 | H154: 0 | I154: ='Pricing Schedule'!F236 -> 0 | J154: 0 | K154: 0 | L154: 0 | M154: 0 | N154: 0
A155: TOTAL CARRIED FORWARD TO PAGE 2 | J155: =SUM(J8:J154) ->  | K155: =SUM(K8:K154) ->  | L155: 0
A158: INCL. IN CALCULATION FOR CPA | J158: =J75+J76+J77+J79+J80+J81+J84+J87+J88+J95+J96+J99+J108+J111+J112+J113+J115+J116+J119+J120+J121+J122+J123+J124+J125+J126+J127+J128+J129+J130+J131+J132+J133+J134+J135+J136+J137+J138+J139+J140+J141+J142+J143+J144+J145+J146+J153+J154 -> 0 | K158: =K75+K76+K77+K79+K80+K81+K84+K87+K88+K95+K96+K99+K108+K111+K112+K113+K115+K116+K119+K120+K121+K122+K123+K124+K125+K126+K127+K128+K129+K130+K131+K132+K133+K134+K135+K136+K137+K138+K139+K140+K141+K142+K143+K144+K145+K146+K153+K154 -> 0 | L158: 0 | M158: 0 | N158: 0
A159: EXCL. IN CALCULATION FOR CPA | J159: =J10+J11+J13+J14+J16+J17+J19+J20+J22+J23+J25+J26+J28+J29+J32+J33+J35++J36+J38+J39+J41+J42+J44+J45+J47+J48+J50+J51+J54+J55+J57+J58+J60+J61+J63+J64+J66+J67+J69+J70+J72+J73+J83+J86+J91+J92+J93+J97+J100+J101+J102+J104+J105+J106+J109+J110+J147+J148+J150+J151 ->  | K159: =K10+K11+K13+K14+K16+K17+K19+K20+K22+K23+K25+K26+K28+K29+K32+K33+K35++K36+K38+K39+K41+K42+K44+K45+K47+K48+K50+K51+K54+K55+K57+K58+K60+K61+K63+K64+K66+K67+K69+K70+K72+K73+K83+K86+K91+K92+K93+K97+K100+K101+K102+K104+K105+K106+K109+K110+K147+K148+K150+K151 ->  | L159: 0
A160: TOTAL CHECK | J160: =SUM(J158:J159) ->  | K160: =SUM(K158:K159) ->  | L160: 0

Sheet C3.5 (hidden)
A1: SOUTH AFRICAN NATIONAL ROADS AGENCY LIMITED | I1: CLAIM: Consulting Engineers Fees | N1: C3.5
A3: REGION: | B3: ='F1 Forecast Consultant'!C3 -> Western | I3: Account No. | K3: ='F1 Cover'!K8 -> 1
I4: Contract No. | K4: ='F1 Forecast Combined'!E3 -> R.081-010-2023/1F
A5: PRICING SCHEDULE
A6: Item No. | B6: Description | C6: Unit | D6: Sched. Quantity | E6: Fin. Est. Quantity | F6: Prev. Quantity | G6: This month Quantity | H6: Total current Quantity | I6: Rate | J6: Sched. Amount | K6: Fin. Est. Amount | L6: Prev. Amount | M6: This month Amount | N6: Total current Amount (R)
A7: ='Pricing Schedule'!A238 -> 3.5 | B7: ='Pricing Schedule'!B238 -> TENDER DOCUMENTATION
A8: ='Pricing Schedule'!A239 -> 3.5.1 | B8: ='Pricing Schedule'!B239 -> Tender documentation
B9: ='Pricing Schedule'!B240 -> (a) Preparation of tender documentation | C9: ='Pricing Schedule'!C240 -> lump sum (LS) | D9: 1 | E9: 1 | F9: =DATA!$EQ$52 -> 0 | H9: =F9+G9 -> 0 | I9: ='Pricing Schedule'!F240 -> 0 | J9: =D9*I9 -> 0 | K9: =E9*I9 -> 0 | L9: =F9*I9 -> 0 | M9: =G9*I9 -> 0 | N9: =H9*I9 -> 0
B10: ='Pricing Schedule'!B241 -> (b) Disbursements | C10: ='Pricing Schedule'!C241 -> lump sum (LS) | D10: 1 | E10: 1 | F10: =DATA!$ER$52 -> 0 | H10: =F10+G10 -> 0 | I10: ='Pricing Schedule'!F241 -> 0 | J10: =D10*I10 -> 0 | K10: =E10*I10 -> 0 | L10: =F10*I10 -> 0 | M10: =G10*I10 -> 0 | N10: =H10*I10 -> 0
B11: ='Pricing Schedule'!B242 -> (c) Tender Documents on CD/DVD | C11: ='Pricing Schedule'!C242 -> number (No) | D11: ='Pricing Schedule'!D242 -> 100 | E11: =D11 -> 100 | F11: =DATA!$ES$52 -> 0 | H11: =F11+G11 -> 0 | I11: ='Pricing Schedule'!E242 -> 0 | J11: =D11*I11 -> 0 | K11: =E11*I11 -> 0 | L11: =F11*I11 -> 0 | M11: =G11*I11 -> 0 | N11: =H11*I11 -> 0
A12: TOTAL CARRIED FORWARD TO PAGE 2 | J12: =SUM(J8:J11) -> 0 | K12: =SUM(K8:K11) -> 0 | L12: =SUM(L8:L11) -> 0 | M12: =SUM(M8:M11) -> 0 | N12: =SUM(N8:N11) -> 0
A15: INCL. IN CALCULATION FOR CPA | J15: =J9+J10+J11 -> 0 | K15: =K9+K10+K11 -> 0 | L15: 0 | M15: 0 | N15: 0
A16: EXCL. IN CALCULATION FOR CPA | J16: 0 | K16: 0 | L16: 0 | M16: 0 | N16: 0
A17: TOTAL CHECK | J17: =SUM(J15:J16) -> 0 | K17: =SUM(K15:K16) -> 0 | L17: 0 | M17: 0 | N17: 0

Sheet C3.6 (hidden)
A1: SOUTH AFRICAN NATIONAL ROADS AGENCY LIMITED | I1: CLAIM: Consulting Engineers Fees | N1: C3.6
A3: REGION: | B3: ='F1 Forecast Consultant'!C3 -> Western | I3: Account No. | K3: ='F1 Cover'!K8 -> 1
I4: Contract No. | K4: ='F1 Forecast Combined'!E3 -> R.081-010-2023/1F
A5: PRICING SCHEDULE
A6: Item No. | B6: Description | C6: Unit | D6: Sched. Quantity | E6: Fin. Est. Quantity | F6: Prev. Quantity | G6: This month Quantity | H6: Total current Quantity | I6: Rate | J6: Sched. Amount | K6: Fin. Est. Amount | L6: Prev. Amount | M6: This month Amount | N6: Total current Amount (R)
A7: ='Pricing Schedule'!A244 -> 3.6 | B7: ='Pricing Schedule'!B244 -> CLARIFICATION MEETING, TENDER PERIOD AND TENDER EVALUATION
A8: ='Pricing Schedule'!A245 -> 3.6.1 | B8: ='Pricing Schedule'!B245 -> Clarification meeting and tender period
B9: ='Pricing Schedule'!B246 -> (a) Service Provider’s cost | C9: ='Pricing Schedule'!C246 -> lump sum (LS) | D9: 1 | E9: 1 | F9: =DATA!$ET$52 -> 0 | H9: =F9+G9 -> 0 | I9: ='Pricing Schedule'!F246 -> 0 | J9: =D9*I9 -> 0 | K9: =E9*I9 -> 0 | L9: =F9*I9 -> 0 | M9: =G9*I9 -> 0 | N9: =H9*I9 -> 0
B10: ='Pricing Schedule'!B247 -> (b) Provision for pre-recorded video | C10: ='Pricing Schedule'!C247 -> prime cost (PC) | D10: 1 | E10: =D10 -> 1 | F10: =DATA!$EU$52 -> 0 | G10: ='Pg 4 P Sums'!K214-'C3.6'!F10 -> 0 | H10: =F10+G10 -> 0 | I10: ='Pricing Schedule'!F247 -> 25000 | J10: =D10*I10 -> 25000 | K10: =E10*I10 -> 25000 | L10: =F10*I10 -> 0 | M10: =G10*I10 -> 0 | N10: =H10*I10 -> 0
B11: ='Pricing Schedule'!B248 -> (c) Handling costs i.r.o. pay item 3.6.1(b) | C11: ='Pricing Schedule'!C248 -> percentage (%) | D11: ='Pricing Schedule'!D248 -> 25000 | E11: =K10 -> 25000 | F11: =L10 -> 0 | G11: 0 | H11: =F11+G11 -> 0 | I11: ='Pricing Schedule'!E248 -> 0 | J11: =D11*I11 -> 0 | K11: =E11*I11 -> 0 | L11: =F11*I11 -> 0 | M11: =G11*I11 -> 0 | N11: =H11*I11 -> 0
A12: ='Pricing Schedule'!A249 -> 3.6.2 | B12: ='Pricing Schedule'!B249 -> Tender evaluation
B13: ='Pricing Schedule'!B250 -> (a) Tender evaluation and report | C13: ='Pricing Schedule'!C250 -> lump sum (LS) | D13: 1 | E13: 1 | F13: =DATA!$EV$52 -> 0 | H13: =F13+G13 -> 0 | I13: ='Pricing Schedule'!F250 -> 0 | J13: =D13*I13 -> 0 | K13: =E13*I13 -> 0 | L13: =F13*I13 -> 0 | M13: =G13*I13 -> 0 | N13: =H13*I13 -> 0
B14: ='Pricing Schedule'!B251 -> (b) Disbursements | C14: ='Pricing Schedule'!C251 -> lump sum (LS) | D14: 1 | E14: 1 | F14: =DATA!$EW$52 -> 0 | H14: =F14+G14 -> 0 | I14: ='Pricing Schedule'!F251 -> 0 | J14: =D14*I14 -> 0 | K14: =E14*I14 -> 0 | L14: =F14*I14 -> 0 | M14: =G14*I14 -> 0 | N14: =H14*I14 -> 0
A15: ='Pricing Schedule'!A252 -> 3.6.3 | B15: ='Pricing Schedule'!B252 -> Preparation of Works contract documents | C15: ='Pricing Schedule'!C252 -> lump sum (LS) | D15: 1 | E15: 1 | F15: =DATA!$JJ$52 -> 0 | H15: =F15+G15 -> 0 | I15: ='Pricing Schedule'!F252 -> 0 | J15: =D15*I15 -> 0 | K15: =E15*I15 -> 0 | L15: =F15*I15 -> 0 | M15: =G15*I15 -> 0 | N15: =H15*I15 -> 0
A16: TOTAL CARRIED FORWARD TO PAGE 2 | J16: =SUM(J8:J15) -> 25000 | K16: =SUM(K8:K15) -> 25000 | L16: 0 | M16: 0 | N16: 0
A19: INCL. IN CALCULATION FOR CPA | J19: =J9+J13+J14+J15 -> 0 | K19: =K9+K13+K14 -> 0 | L19: 0 | M19: 0 | N19: 0
A20: EXCL. IN CALCULATION FOR CPA | J20: =J10+J11 -> 25000 | K20: =K10+K11 -> 25000 | L20: 0 | M20: 0 | N20: 0
A21: TOTAL CHECK | J21: =SUM(J19:J20) -> 25000 | K21: =SUM(K19:K20) -> 25000 | L21: 0 | M21: 0 | N21: 0

Sheet C3.7 (hidden)
A1: SOUTH AFRICAN NATIONAL ROADS AGENCY LIMITED | I1: CLAIM: Consulting Engineers Fees | N1: C3.7
A3: REGION: | B3: ='F1 Forecast Consultant'!C3 -> Western | I3: Account No. | K3: ='F1 Cover'!K8 -> 1
I4: Contract No. | K4: ='F1 Forecast Combined'!E3 -> R.081-010-2023/1F
A5: PRICING SCHEDULE
A6: Item No. | B6: Description | C6: Unit | D6: Sched. Quantity | E6: Fin. Est. Quantity | F6: Prev. Quantity | G6: This month Quantity | H6: Total current Quantity | I6: Rate | J6: Sched. Amount | K6: Fin. Est. Amount | L6: Prev. Amount | M6: This month Amount | N6: Total current Amount (R)
A7: ='Pricing Schedule'!A254 -> 3.7 | B7: ='Pricing Schedule'!B254 -> ADMINISTRATION AND MONITORING OF THE WORKS CONTRACT
A8: ='Pricing Schedule'!A255 -> 3.7.1 | B8: ='Pricing Schedule'!B255 -> ADMINISTRATION AND MONITORING OF THE WORKS CONTRACT
B9: ='Pricing Schedule'!B256 -> (a) Road works:
B10: ='Pricing Schedule'!B257 -> (i) Fee (based on Employer’s estimated cost of the works) | C10: ='Pricing Schedule'!C257 -> lump sum (LS) | D10: 1 | E10: 1 | F10: =DATA!$EX$52 -> 0 | H10: =IF((F10+G10)>E10,"◄ ERROR TOO MUCH",(F10+G10)) -> 0 | I10: ='Pricing Schedule'!F257 -> 0 | J10: =D10*I10 -> 0 | K10: =E10*I10 -> 0 | L10: =F10*I10 -> 0 | M10: =G10*I10 -> 0 | N10: =H10*I10 -> 0
B11: ='Pricing Schedule'!B258 -> (ii) Fee adjustment* | C11: ='Pricing Schedule'!C258 -> lump sum (LS) | D11: 1 | E11: 1 | F11: =DATA!$IG$52 -> 0 | G11: =G10 -> 0 | H11: =IF((F11+G11)>E11,"◄ ERROR TOO MUCH",IF((F11+G11)>H10,"◄ ERROR > PREV ROW",(F11+G11))) -> 0 | I11: =E11 -> 1 | J11: ='ADJ-Summary'!$J$12 ->  | K11: ='ADJ-Summary'!$J$19 ->  | L11: =DATA!$IH$52 -> 0 | M11: =+(G11+F11)*K11-L11 ->  | N11: =L11+M11 -> 
B12: ='Pricing Schedule'!B259 -> (b) Structures (bridges and other major structures):
B13: ='Pricing Schedule'!B260 -> (i) Fee (based on Employer’s estimated cost of the works) | C13: ='Pricing Schedule'!C260 -> lump sum (LS) | D13: 1 | E13: 1 | F13: =DATA!$EY$52 -> 0 | H13: =IF((F13+G13)>E13,"◄ ERROR TOO MUCH",(F13+G13)) -> 0 | I13: ='Pricing Schedule'!F260 -> 0 | J13: =D13*I13 -> 0 | K13: =E13*I13 -> 0 | L13: =F13*I13 -> 0 | M13: =G13*I13 -> 0 | N13: =H13*I13 -> 0
B14: ='Pricing Schedule'!B261 -> (ii) Fee adjustment* | C14: ='Pricing Schedule'!C261 -> lump sum (LS) | D14: 1 | E14: 1 | F14: =DATA!$II$52 -> 0 | G14: =G13 -> 0 | H14: =IF((F14+G14)>E14,"◄ ERROR TOO MUCH",IF((F14+G14)>H13,"◄ ERROR > PREV ROW",(F14+G14))) -> 0 | I14: =E14 -> 1 | J14: ='ADJ-Summary'!$J$35 ->  | K14: ='ADJ-Summary'!$J$42 ->  | L14: =DATA!$IJ$52 -> 0 | M14: =+(G14+F14)*K14-L14 ->  | N14: =L14+M14 -> 
B15: ='Pricing Schedule'!B262 -> (c) Electrical:
B16: ='Pricing Schedule'!B263 -> (i) Fee (based on Employer’s estimated cost of the works) | C16: ='Pricing Schedule'!C263 -> lump sum (LS) | D16: 1 | E16: 1 | F16: =DATA!$EZ$52 -> 0 | H16: =IF((F16+G16)>E16,"◄ ERROR TOO MUCH",(F16+G16)) -> 0 | I16: ='Pricing Schedule'!F263 -> 0 | J16: =D16*I16 -> 0 | K16: =E16*I16 -> 0 | L16: =F16*I16 -> 0 | M16: =G16*I16 -> 0 | N16: =H16*I16 -> 0
B17: ='Pricing Schedule'!B264 -> (ii) Fee adjustment* | C17: ='Pricing Schedule'!C264 -> lump sum (LS) | D17: 1 | E17: 1 | F17: =DATA!$IK$52 -> 0 | G17: =G16 -> 0 | H17: =IF((F17+G17)>E17,"◄ ERROR TOO MUCH",IF((F17+G17)>H16,"◄ ERROR > PREV ROW",(F17+G17))) -> 0 | I17: =E17 -> 1 | J17: ='ADJ-Summary'!$J$59 ->  | K17: ='ADJ-Summary'!$J$66 ->  | L17: =DATA!$IL$52 -> 0 | M17: =+(G17+F17)*K17-L17 ->  | N17: =L17+M17 -> 
B18: ='Pricing Schedule'!B265 -> (d) Buildings:
B19: ='Pricing Schedule'!B266 -> (i) Fee (based on Employer’s estimated cost of the works) | C19: ='Pricing Schedule'!C266 -> lump sum (LS) | D19: 1 | E19: 1 | F19: =DATA!$FA$52 -> 0 | H19: =IF((F19+G19)>E19,"◄ ERROR TOO MUCH",(F19+G19)) -> 0 | I19: ='Pricing Schedule'!F266 -> 0 | J19: =D19*I19 -> 0 | K19: =E19*I19 -> 0 | L19: =F19*I19 -> 0 | M19: =G19*I19 -> 0 | N19: =H19*I19 -> 0
B20: ='Pricing Schedule'!B267 -> (ii) Fee adjustment* | C20: ='Pricing Schedule'!C267 -> lump sum (LS) | D20: 1 | E20: 1 | F20: =DATA!$IM$52 -> 0 | G20: =G19 -> 0 | H20: =IF((F20+G20)>E20,"◄ ERROR TOO MUCH",IF((F20+G20)>H19,"◄ ERROR > PREV ROW",(F20+G20))) -> 0 | I20: =E20 -> 1 | J20: ='ADJ-Summary'!$J$82 ->  | K20: ='ADJ-Summary'!$J$89 ->  | L20: =DATA!$IN$52 -> 0 | M20: =+(G20+F20)*K20-L20 ->  | N20: =L20+M20 -> 
B21: ='Pricing Schedule'!B268 -> (e) Mechanical:
B22: ='Pricing Schedule'!B269 -> (i) Fee (based on Employer’s estimated cost of the works) | C22: ='Pricing Schedule'!C269 -> lump sum (LS) | D22: 1 | E22: 1 | F22: =DATA!$FB$52 -> 0 | H22: =IF((F22+G22)>E22,"◄ ERROR TOO MUCH",(F22+G22)) -> 0 | I22: ='Pricing Schedule'!F269 -> 0 | J22: =D22*I22 -> 0 | K22: =E22*I22 -> 0 | L22: =F22*I22 -> 0 | M22: =G22*I22 -> 0 | N22: =H22*I22 -> 0
B23: ='Pricing Schedule'!B270 -> (ii) Fee adjustment* | C23: ='Pricing Schedule'!C270 -> lump sum (LS) | D23: 1 | E23: 1 | F23: =DATA!$IO$52 -> 0 | G23: =G22 -> 0 | H23: =IF((F23+G23)>E23,"◄ ERROR TOO MUCH",IF((F23+G23)>H22,"◄ ERROR > PREV ROW",(F23+G23))) -> 0 | I23: =E23 -> 1 | J23: ='ADJ-Summary'!$J$105 ->  | K23: ='ADJ-Summary'!$J$112 ->  | L23: =DATA!$IP$52 -> 0 | M23: =+(G23+F23)*K23-L23 ->  | N23: =L23+M23 -> 
B24: ='Pricing Schedule'!B271 -> (f) Electronic:
B25: ='Pricing Schedule'!B272 -> (i) Fee (based on Employer’s estimated cost of the works) | C25: ='Pricing Schedule'!C272 -> lump sum (LS) | D25: 1 | E25: 1 | F25: =DATA!$FC$52 -> 0 | H25: =IF((F25+G25)>E25,"◄ ERROR TOO MUCH",(F25+G25)) -> 0 | I25: ='Pricing Schedule'!F272 -> 0 | J25: =D25*I25 -> 0 | K25: =E25*I25 -> 0 | L25: =F25*I25 -> 0 | M25: =G25*I25 -> 0 | N25: =H25*I25 -> 0
B26: ='Pricing Schedule'!B273 -> (ii) Fee adjustment* | C26: ='Pricing Schedule'!C273 -> lump sum (LS) | D26: 1 | E26: 1 | F26: =DATA!$IQ$52 -> 0 | G26: =G25 -> 0 | H26: =IF((F26+G26)>E26,"◄ ERROR TOO MUCH",IF((F26+G26)>H25,"◄ ERROR > PREV ROW",(F26+G26))) -> 0 | I26: =E26 -> 1 | J26: ='ADJ-Summary'!$J$128 ->  | K26: ='ADJ-Summary'!$J$135 ->  | L26: =DATA!$IR$52 -> 0 | M26: =+(G26+F26)*K26-L26 ->  | N26: =L26+M26 -> 
B27: ='Pricing Schedule'!B274 -> (g) Other:
B28: ='Pricing Schedule'!B275 -> (i) Fee (based on Employer’s estimated cost of the works) | C28: ='Pricing Schedule'!C275 -> lump sum (LS) | D28: 1 | E28: 1 | F28: =DATA!$FD$52 -> 0 | H28: =IF((F28+G28)>E28,"◄ ERROR TOO MUCH",(F28+G28)) -> 0 | I28: ='Pricing Schedule'!F275 -> 0 | J28: =D28*I28 -> 0 | K28: =E28*I28 -> 0 | L28: =F28*I28 -> 0 | M28: =G28*I28 -> 0 | N28: =H28*I28 -> 0
B29: ='Pricing Schedule'!B276 -> (ii) Fee adjustment* | C29: ='Pricing Schedule'!C276 -> lump sum (LS) | D29: 1 | E29: 1 | F29: =DATA!$IS$52 -> 0 | G29: =G28 -> 0 | H29: =IF((F29+G29)>E29,"◄ ERROR TOO MUCH",IF((F29+G29)>H28,"◄ ERROR > PREV ROW",(F29+G29))) -> 0 | I29: =E29 -> 1 | J29: ='ADJ-Summary'!$J$151 ->  | K29: ='ADJ-Summary'!$J$158 ->  | L29: =DATA!$IT$52 -> 0 | M29: =+(G29+F29)*K29-L29 ->  | N29: =L29+M29 -> 
B30: ='Pricing Schedule'!B277 -> (h) Disbursements | C30: ='Pricing Schedule'!C277 -> month | D30: ='Pricing Schedule'!D277 -> 21 | E30: =D30 -> 21 | F30: =DATA!$GP$52 -> 0 | H30: =F30+G30 -> 0 | I30: ='Pricing Schedule'!E277 -> 0 | J30: =D30*I30 -> 0 | K30: =E30*I30 -> 0 | L30: =F30*I30 -> 0 | M30: =G30*I30 -> 0 | N30: =H30*I30 -> 0
B31: ='Pricing Schedule'!B278 -> (i) Administration and Monitoring of the Works Contract for extended Works Contract period from the original Employer’s estimate | C31: ='Pricing Schedule'!C278 -> month | D31: ='Pricing Schedule'!D278 -> 3 | E31: =D31 -> 3 | F31: =DATA!$KL$52 -> 0 | H31: =F31+G31 -> 0 | I31: ='Pricing Schedule'!E278 -> 0 | J31: =D31*I31 -> 0 | K31: =E31*I31 -> 0 | L31: =F31*I31 -> 0 | M31: =G31*I31 -> 0 | N31: =H31*I31 -> 0
B32: ='Pricing Schedule'!B279 -> (j) Administration and Monitoring of the Works Contract for prolonged site stoppages not under the control of the Employer | C32: ='Pricing Schedule'!C279 -> month | D32: ='Pricing Schedule'!D279 -> 3 | E32: =D32 -> 3 | F32: =DATA!$KM$52 -> 0 | H32: =F32+G32 -> 0 | I32: ='Pricing Schedule'!E279 -> 0 | J32: =D32*I32 -> 0 | K32: =E32*I32 -> 0 | L32: =F32*I32 -> 0 | M32: =G32*I32 -> 0 | N32: =H32*I32 -> 0
B33: ='Pricing Schedule'!B280 -> (k) Training of Service Provider’s staff and Targeted Enterprises:
B34: ='Pricing Schedule'!B281 -> (i) Assistant Contract Engineer | C34: ='Pricing Schedule'!C281 -> provisional sum (PS) | D34: 1 | E34: =D34 -> 1 | F34: =DATA!$KN$52 -> 0 | G34: ='Pg 4 P Sums'!K237-'C3.7'!F34 -> 0 | H34: =F34+G34 -> 0 | I34: ='Pricing Schedule'!F281 -> 50000 | J34: =D34*I34 -> 50000 | K34: =E34*I34 -> 50000 | L34: =F34*I34 -> 0 | M34: =G34*I34 -> 0 | N34: =H34*I34 -> 0
B35: ='Pricing Schedule'!B282 -> (ii) Disbursements | C35: ='Pricing Schedule'!C282 -> prime cost (PC) | D35: 1 | E35: =D35 -> 1 | F35: =DATA!$KO$52 -> 0 | G35: ='Pg 4 P Sums'!K245-'C3.7'!F35 -> 0 | H35: =F35+G35 -> 0 | I35: ='Pricing Schedule'!F282 -> 20000 | J35: =D35*I35 -> 20000 | K35: =E35*I35 -> 20000 | L35: =F35*I35 -> 0 | M35: =G35*I35 -> 0 | N35: =H35*I35 -> 0
A36: ='Pricing Schedule'!A283 -> 3.7.2 | B36: ='Pricing Schedule'!B283 -> Occupational Health and Safety obligations
B37: ='Pricing Schedule'!B284 -> (a) Continuous compliance and monthly internal audits | C37: ='Pricing Schedule'!C284 -> month | D37: ='Pricing Schedule'!D284 -> 21 | E37: =D37 -> 21 | F37: =DATA!$FE$52 -> 0 | H37: =F37+G37 -> 0 | I37: ='Pricing Schedule'!E284 -> 0 | J37: =D37*I37 -> 0 | K37: =E37*I37 -> 0 | L37: =F37*I37 -> 0 | M37: =G37*I37 -> 0 | N37: =H37*I37 -> 0
B38: ='Pricing Schedule'!B285 -> (b) external site audits | C38: ='Pricing Schedule'!C285 -> provisional sum (PS) | D38: 1 | E38: =D38 -> 1 | F38: =DATA!$FF$52 -> 0 | G38: ='Pg 4 P Sums'!K254-'C3.7'!F38 -> 0 | H38: =F38+G38 -> 0 | I38: ='Pricing Schedule'!F285 -> 160000 | J38: =D38*I38 -> 160000 | K38: =E38*I38 -> 160000 | L38: =F38*I38 -> 0 | M38: =G38*I38 -> 0 | N38: =H38*I38 -> 0
B39: ='Pricing Schedule'!B286 -> (c) Handling costs i.r.o. pay item 3.7.2 (b) | C39: ='Pricing Schedule'!C286 -> percentage (%) | D39: ='Pricing Schedule'!D286 -> 160000 | E39: =K38 -> 160000 | F39: =L38 -> 0 | G39: 0 | H39: =F39+G39 -> 0 | I39: ='Pricing Schedule'!E286 -> 0 | J39: =D39*I39 -> 0 | K39: =E39*I39 -> 0 | L39: =F39*I39 -> 0 | M39: =G39*I39 -> 0 | N39: =H39*I39 -> 0
A40: ='Pricing Schedule'!A287 -> 3.7.3 | B40: ='Pricing Schedule'!B287 -> Establishment of supervisory personnel on site
B41: ='Pricing Schedule'!B288 -> (a) Relocation costs of individual site personnel | C41: ='Pricing Schedule'!C288 -> prime cost (PC) | D41: 1 | E41: =D41 -> 1 | F41: =DATA!$FG$52 -> 0 | G41: ='Pg 4 P Sums'!K263-'C3.7'!F41 -> 0 | H41: =F41+G41 -> 0 | I41: ='Pricing Schedule'!F288 -> 125000 | J41: =D41*I41 -> 125000 | K41: =E41*I41 -> 125000 | L41: =F41*I41 -> 0 | M41: =G41*I41 -> 0 | N41: =H41*I41 -> 0
B42: ='Pricing Schedule'!B289 -> (b) Handling costs i.r.o. sub item 3.7.3(a) | C42: ='Pricing Schedule'!C289 -> percentage (%) | D42: ='Pricing Schedule'!D289 -> 125000 | E42: =K41 -> 125000 | F42: =L41 -> 0 | G42: =M41 -> 0 | H42: =F42+G42 -> 0 | I42: ='Pricing Schedule'!E289 -> 0 | J42: =D42*I42 -> 0 | K42: =E42*I42 -> 0 | L42: =F42*I42 -> 0 | M42: =G42*I42 -> 0 | N42: =H42*I42 -> 0
B43: ='Pricing Schedule'!B290 -> (c) Establishment of office equipment | C43: ='Pricing Schedule'!C290 -> lump sum (LS) | D43: 1 | E43: 1 | F43: =DATA!$FH$52 -> 0 | H43: =F43+G43 -> 0 | I43: ='Pricing Schedule'!F290 -> 0 | J43: =D43*I43 -> 0 | K43: =E43*I43 -> 0 | L43: =F43*I43 -> 0 | M43: =G43*I43 -> 0 | N43: =H43*I43 -> 0
A44: ='Pricing Schedule'!A291 -> 3.7.4 | B44: ='Pricing Schedule'!B291 -> Provision of Supervisory Staff and Equipment
B45: ='Pricing Schedule'!B292 -> (a) Site supervision staff | C45: ='Pricing Schedule'!C292 -> provisional sum (PS) | D45: 1 | E45: =D45 -> 1 | F45: =DATA!$FI$52 -> 0 | G45: ='Pg 4 P Sums'!K272-'C3.7'!F45 -> 0 | H45: =F45+G45 -> 0 | I45: ='Pricing Schedule'!F292 -> 7500000 | J45: =D45*I45 -> 7500000 | K45: =E45*I45 -> 7500000 | L45: =F45*I45 -> 0 | M45: =G45*I45 -> 0 | N45: =H45*I45 -> 0
B46: ='Pricing Schedule'!B293 -> (b) Mark up i.r.o sub item 3.7.4 (a) | C46: ='Pricing Schedule'!C293 -> percentage (%) | D46: ='Pricing Schedule'!D293 -> 7500000 | E46: =K45 -> 7500000 | F46: =L45 -> 0 | G46: =M45 -> 0 | H46: 0 | I46: ='Pricing Schedule'!E293 -> 0 | J46: 0 | K46: 0 | L46: 0 | M46: 0 | N46: 0
B47: ='Pricing Schedule'!B294 -> (c) Surveyor and assistants | C47: ='Pricing Schedule'!C294 -> prime cost (PC) | D47: 1 | E47: =D47 -> 1 | F47: =DATA!$FJ$52 -> 0 | G47: ='Pg 4 P Sums'!K280-'C3.7'!F47 -> 0 | H47: 0 | I47: ='Pricing Schedule'!F294 -> 300000 | J47: 300000 | K47: 300000 | L47: 0 | M47: 0 | N47: 0
B48: ='Pricing Schedule'!B295 -> (d) Handling costs i.r.o. sub item 3.7.4(c) | C48: ='Pricing Schedule'!C295 -> percentage (%) | D48: ='Pricing Schedule'!D295 -> 300000 | E48: =K47 -> 300000 | F48: =L47 -> 0 | G48: =M47 -> 0 | H48: 0 | I48: ='Pricing Schedule'!E295 -> 0 | J48: 0 | K48: 0 | L48: 0 | M48: 0 | N48: 0
B49: ='Pricing Schedule'!B296 -> (e) Provision and monthly cost of office equipment | C49: ='Pricing Schedule'!C296 -> month | D49: ='Pricing Schedule'!D296 -> 21 | E49: =D49 -> 21 | F49: =DATA!$FK$52 -> 0 | H49: 0 | I49: ='Pricing Schedule'!E296 -> 0 | J49: 0 | K49: 0 | L49: 0 | M49: 0 | N49: 0
B50: ='Pricing Schedule'!B297 -> (f) Project Liaison Officer (PLO) | C50: ='Pricing Schedule'!C297 -> provisional sum (PS) | D50: 1 | E50: =D50 -> 1 | F50: =DATA!$FL$52 -> 0 | G50: ='Pg 4 P Sums'!K288-'C3.7'!F50 -> 0 | H50: 0 | I50: ='Pricing Schedule'!F297 -> 80000 | J50: 80000 | K50: 80000 | L50: 0 | M50: 0 | N50: 0
B51: ='Pricing Schedule'!B298 -> (g) Mark up i.r.o sub item 3.7.4 (f) | C51: ='Pricing Schedule'!C298 -> percentage (%) | D51: ='Pricing Schedule'!D298 -> 80000 | E51: =K50 -> 80000 | F51: =L50 -> 0 | G51: =M50 -> 0 | H51: 0 | I51: ='Pricing Schedule'!E298 -> 0 | J51: 0 | K51: 0 | L51: 0 | M51: 0 | N51: 0
B52: ='Pricing Schedule'!B299 -> (h) Accommodation for supervisory staff | C52: ='Pricing Schedule'!C299 -> provisional sum (PS) | D52: 1 | E52: =D52 -> 1 | F52: =DATA!$FM$52 -> 0 | G52: ='Pg 4 P Sums'!K296-'C3.7'!F52 -> 0 | H52: 0 | I52: ='Pricing Schedule'!F299 -> 500000 | J52: 500000 | K52: 500000 | L52: 0 | M52: 0 | N52: 0
B53: ='Pricing Schedule'!B300 -> (i) Mark up i.r.o sub item 3.7.4 (h) | C53: ='Pricing Schedule'!C300 -> percentage (%) | D53: ='Pricing Schedule'!D300 -> 500000 | E53: =K52 -> 500000 | F53: =L52 -> 0 | G53: =M52 -> 0 | H53: 0 | I53: ='Pricing Schedule'!E300 -> 0 | J53: 0 | K53: 0 | L53: 0 | M53: 0 | N53: 0
A54: ='Pricing Schedule'!A301 -> 3.7.5 | B54: ='Pricing Schedule'!B301 -> Training
B55: ='Pricing Schedule'!B302 -> (a) Employer’s candidate engineers | C55: ='Pricing Schedule'!C302 -> person month | D55: ='Pricing Schedule'!D302 -> 30 | E55: =D55 -> 30 | F55: =DATA!$FN$52 -> 0 | H55: =F55+G55 -> 0 | I55: ='Pricing Schedule'!E302 -> 0 | J55: =D55*I55 -> 0 | K55: =E55*I55 -> 0 | L55: =F55*I55 -> 0 | M55: =G55*I55 -> 0 | N55: =H55*I55 -> 0
B56: ='Pricing Schedule'!B303 -> (b) Students (engineering or surveying) receiving experiential training | C56: ='Pricing Schedule'!C303 -> person month | D56: ='Pricing Schedule'!D303 -> 30 | E56: =D56 -> 30 | F56: =DATA!$FO$52 -> 0 | H56: =F56+G56 -> 0 | I56: ='Pricing Schedule'!E303 -> 0 | J56: =D56*I56 -> 0 | K56: =E56*I56 -> 0 | L56: =F56*I56 -> 0 | M56: =G56*I56 -> 0 | N56: =H56*I56 -> 0
B57: ='Pricing Schedule'!B304 -> (c) Student stipend | C57: ='Pricing Schedule'!C304 -> provisional sum (PS) | D57: 1 | E57: 1 | F57: =DATA!$FP$52 -> 0 | G57: ='Pg 4 P Sums'!K305-'C3.7'!F57 -> 0 | H57: =F57+G57 -> 0 | I57: ='Pricing Schedule'!F304 -> 350000 | J57: =D57*I57 -> 350000 | K57: =E57*I57 -> 350000 | L57: =F57*I57 -> 0 | M57: =G57*I57 -> 0 | N57: =H57*I57 -> 0
A58: ='Pricing Schedule'!A305 -> 3.7.6 | B58: ='Pricing Schedule'!B305 -> Transport for site supervisory staff and for additional services
B59: ='Pricing Schedule'!B306 -> (a) Travelling to perform duties | C59: ='Pricing Schedule'!C306 -> provisional sum (PS) | D59: 1 | E59: =D59 -> 1 | F59: =DATA!$FQ$52 -> 0 | G59: ='Pg 4 P Sums'!K314-'C3.7'!F59 -> 0 | H59: =F59+G59 -> 0 | I59: ='Pricing Schedule'!F306 -> 1000000 | J59: =D59*I59 -> 1000000 | K59: =E59*I59 -> 1000000 | L59: =F59*I59 -> 0 | M59: =G59*I59 -> 0 | N59: =H59*I59 -> 0
B60: ='Pricing Schedule'!B307 -> (b) Mark up i.r.o sub item 3.7.6 (a) | C60: ='Pricing Schedule'!C307 -> percentage (%) | D60: ='Pricing Schedule'!D307 -> 1000000 | E60: =K59 -> 1000000 | F60: =L59 -> 0 | G60: =M59 -> 0 | H60: =F60+G60 -> 0 | I60: ='Pricing Schedule'!E307 -> 0 | J60: =D60*I60 -> 0 | K60: =E60*I60 -> 0 | L60: =F60*I60 -> 0 | M60: =G60*I60 -> 0 | N60: =H60*I60 -> 0
B61: ='Pricing Schedule'!B308 -> (c) Toll fees | C61: ='Pricing Schedule'!C308 -> prime cost (PC) | D61: 1 | E61: =D61 -> 1 | F61: =DATA!$JI$52 -> 0 | G61: ='Pg 4 P Sums'!K322-'C3.7'!F61 -> 0 | H61: =F61+G61 -> 0 | I61: ='Pricing Schedule'!F308 -> 50000 | J61: =D61*I61 -> 50000 | K61: =E61*I61 -> 50000 | L61: =F61*I61 -> 0 | M61: =G61*I61 -> 0 | N61: =H61*I61 -> 0
A62: ='Pricing Schedule'!A309 -> 3.7.7 | B62: ='Pricing Schedule'!B309 -> Assistance at Clarification Meeting, Tender Period and Tender Evaluation of Sub-contract Packages
B63: ='Pricing Schedule'!B310 -> (a) Service Provider’s cost | C63: ='Pricing Schedule'!C310 -> number (No) | D63: ='Pricing Schedule'!D310 -> 10 | E63: =D63 -> 10 | F63: =DATA!$JL$52 -> 0 | H63: =F63+G63 -> 0 | I63: ='Pricing Schedule'!E310 -> 0 | J63: =D63*I63 -> 0 | K63: =E63*I63 -> 0 | L63: =F63*I63 -> 0 | M63: =G63*I63 -> 0 | N63: =H63*I63 -> 0
B64: ='Pricing Schedule'!B311 -> (b) Tender Evaluation | C64: ='Pricing Schedule'!C311 -> number (No) | D64: ='Pricing Schedule'!D311 -> 10 | E64: =D64 -> 10 | F64: =DATA!$JM$52 -> 0 | H64: =F64+G64 -> 0 | I64: ='Pricing Schedule'!E311 -> 0 | J64: =D64*I64 -> 0 | K64: =E64*I64 -> 0 | L64: =F64*I64 -> 0 | M64: =G64*I64 -> 0 | N64: =H64*I64 -> 0
B65: ='Pricing Schedule'!B312 -> (c) Evaluation Report | C65: ='Pricing Schedule'!C312 -> number (No) | D65: ='Pricing Schedule'!D312 -> 10 | E65: =D65 -> 10 | F65: =DATA!$JN$52 -> 0 | H65: =F65+G65 -> 0 | I65: ='Pricing Schedule'!E312 -> 0 | J65: =D65*I65 -> 0 | K65: =E65*I65 -> 0 | L65: =F65*I65 -> 0 | M65: =G65*I65 -> 0 | N65: =H65*I65 -> 0
A66: ='Pricing Schedule'!A313 -> 3.7.8 | B66: ='Pricing Schedule'!B313 -> Environmental Services during Construction Phase
B67: ='Pricing Schedule'!B314 -> (a) Environmental services | C67: ='Pricing Schedule'!C314 -> prime cost (PC) | D67: 1 | E67: =D67 -> 1 | F67: =DATA!$KP$52 -> 0 | G67: ='Pg 4 P Sums'!K331-'C3.7'!F67 -> 0 | H67: =F67+G67 -> 0 | I67: ='Pricing Schedule'!F314 -> 250000 | J67: =D67*I67 -> 250000 | K67: =E67*I67 -> 250000 | L67: =F67*I67 -> 0 | M67: =G67*I67 -> 0 | N67: =H67*I67 -> 0
B68: ='Pricing Schedule'!B315 -> (b) Cost for procuring and managing sub-service provider under sub-item 3.7.8(a) | C68: ='Pricing Schedule'!C315 -> lump sum (LS) | D68: 1 | E68: 1 | F68: =DATA!$KH$52 -> 0 | H68: =F68+G68 -> 0 | I68: ='Pricing Schedule'!F315 -> 0 | J68: =D68*I68 -> 0 | K68: =E68*I68 -> 0 | L68: =F68*I68 -> 0 | M68: =G68*I68 -> 0 | N68: =H68*I68 -> 0
A69: TOTAL CARRIED FORWARD TO PAGE 2 | J69: =SUM(J9:J68) ->  | K69: =SUM(K9:K68) ->  | L69: 0
A72: INCL. IN CALCULATION FOR CPA | J72: =J37+J43+J49+J55+J56+J30+J63+J64+J65+J68+J31+J32 -> 0 | K72: =K37+K43+K49+K55+K56+K30+K63+K64+K65+K68+K31+K32 -> 0 | L72: 0 | M72: 0 | N72: 0
A73: EXCL. IN CALCULATION FOR CPA | J73: =J10+J11+J13+J14+J16+J17+J19+J20+J22+J23+J25+J26+J28+J29+J38+J39+J41+J42+J45+J46+J47+J48+J50+J51+J52+J53+J57+J59+J60+J61+J67+J34+J35 ->  | K73: =K10+K11+K13+K14+K16+K17+K19+K20+K22+K23+K25+K26+K28+K29+K38+K39+K41+K42+K45+K46+K47+K48+K50+K51+K52+K53+K57+K59+K60+K61+K67+K34+K35 ->  | L73: 0
A74: TOTAL CHECK | J74: =SUM(J72:J73) ->  | K74: =SUM(K72:K73) ->  | L74: 0

Sheet C3.8 (hidden)
A1: SOUTH AFRICAN NATIONAL ROADS AGENCY LIMITED | I1: CLAIM: Consulting Engineers Fees | N1: C3.8
A3: REGION: | B3: ='F1 Forecast Consultant'!C3 -> Western | I3: Account No. | K3: ='F1 Cover'!K8 -> 1
I4: Contract No. | K4: ='F1 Forecast Combined'!E3 -> R.081-010-2023/1F
A5: PRICING SCHEDULE
A6: Item No. | B6: Description | C6: Unit | D6: Sched. Quantity | E6: Fin. Est. Quantity | F6: Prev. Quantity | G6: This month Quantity | H6: Total current Quantity | I6: Rate | J6: Sched. Amount | K6: Fin. Est. Amount | L6: Prev. Amount | M6: This month Amount | N6: Total current Amount (R)
A7: ='Pricing Schedule'!A317 -> 3.8 | B7: ='Pricing Schedule'!B317 -> ADDITIONAL DUTIES, SPECIAL SERVICES AND SPECIALIST ADVICE
A8: ='Pricing Schedule'!A318 -> 3.8.1 | B8: ='Pricing Schedule'!B318 -> Additional duties by Service Provider
B9: ='Pricing Schedule'!B319 -> (a) Personnel cost
B10: ='Pricing Schedule'!B320 -> (i) Category A | C10: ='Pricing Schedule'!C320 -> Hour | D10: ='Pricing Schedule'!D320 -> 20 | E10: =D10 -> 20 | F10: =DATA!$FR$52 -> 0 | H10: =F10+G10 -> 0 | I10: ='Pricing Schedule'!E320 -> 3534 | J10: =I10*D10 -> 70680 | K10: =E10*I10 -> 70680 | L10: =F10*I10 -> 0 | M10: =G10*I10 -> 0 | N10: =H10*I10 -> 0
B11: ='Pricing Schedule'!B321 -> (ii) Category B | C11: ='Pricing Schedule'!C321 -> Hour | D11: ='Pricing Schedule'!D321 -> 60 | E11: =D11 -> 60 | F11: =DATA!$FS$52 -> 0 | H11: 0 | I11: ='Pricing Schedule'!E321 -> 2796 | J11: =I11*D11 -> 167760 | K11: 167760 | L11: 0 | M11: 0 | N11: 0
B12: ='Pricing Schedule'!B322 -> (iii) Category C | C12: ='Pricing Schedule'!C322 -> Hour | D12: ='Pricing Schedule'!D322 -> 80 | E12: 80 | F12: =DATA!$FT$52 -> 0 | H12: 0 | I12: ='Pricing Schedule'!E322 -> 2403 | J12: 192240 | K12: 192240 | L12: 0 | M12: 0 | N12: 0
B13: ='Pricing Schedule'!B323 -> (iv) Category D | C13: ='Pricing Schedule'!C323 -> Hour | D13: ='Pricing Schedule'!D323 -> 120 | E13: 120 | F13: =DATA!$FU$52 -> 0 | H13: 0 | I13: ='Pricing Schedule'!E323 -> 1167 | J13: 140040 | K13: 140040 | L13: 0 | M13: 0 | N13: 0
B14: ='Pricing Schedule'!B324 -> (b) Disbursements | C14: ='Pricing Schedule'!C324 -> prime cost (PC) | D14: 1 | E14: 1 | F14: =DATA!$FV$52 -> 0 | G14: ='Pg 4 P Sums'!K353-'C3.8'!F14 -> 0 | H14: 0 | I14: ='Pricing Schedule'!F324 -> 200000 | J14: =D14*I14 -> 200000 | K14: 200000 | L14: 0 | M14: 0 | N14: 0
B15: ='Pricing Schedule'!B325 -> (c) Handling cost i.r.o. sub-item 3.8.1(b) | C15: ='Pricing Schedule'!C325 -> percentage (%) | D15: ='Pricing Schedule'!D325 -> 200000 | E15: =K14 -> 200000 | F15: =L14 -> 0 | G15: 0 | H15: 0 | I15: ='Pricing Schedule'!E325 -> 0 | J15: =D15*I15 -> 0 | K15: 0 | L15: 0 | M15: 0 | N15: 0
A16: ='Pricing Schedule'!A326 -> 3.8.2 | B16: ='Pricing Schedule'!B326 -> Additional duties by the Employer | C16: ='Pricing Schedule'!C326 -> Hour | D16: ='Pricing Schedule'!D326 -> 0 | E16: =D16 -> 0 | F16: =DATA!$FW$52 -> 0 | H16: 0 | I16: ='Pricing Schedule'!E326 -> -1500 | J16: 0 | K16: 0 | L16: 0 | M16: 0 | N16: 0
A17: ='Pricing Schedule'!A327 -> 3.8.3 | B17: ='Pricing Schedule'!B327 -> Special Services and specialist advice
B18: ='Pricing Schedule'!B328 -> (a) Special service or advice provided by the service provider
B19: ='Pricing Schedule'!B329 -> (i) Personnel - Category A | C19: ='Pricing Schedule'!C329 -> Hour | D19: ='Pricing Schedule'!D329 -> 20 | E19: =D19 -> 20 | F19: =DATA!$FX$52 -> 0 | H19: =F19+G19 -> 0 | I19: ='Pricing Schedule'!E329 -> 3534 | J19: =I19*D19 -> 70680 | K19: =E19*I19 -> 70680 | L19: =F19*I19 -> 0 | M19: =G19*I19 -> 0 | N19: =H19*I19 -> 0
B20: ='Pricing Schedule'!B330 -> (ii) Personnel - Category B | C20: ='Pricing Schedule'!C330 -> Hour | D20: ='Pricing Schedule'!D330 -> 60 | E20: =D20 -> 60 | F20: =DATA!$FY$52 -> 0 | H20: 0 | I20: ='Pricing Schedule'!E330 -> 2796 | J20: =I20*D20 -> 167760 | K20: 167760 | L20: 0 | M20: 0 | N20: 0
B21: ='Pricing Schedule'!B331 -> (iii) Personnel - Category C | C21: ='Pricing Schedule'!C331 -> Hour | D21: ='Pricing Schedule'!D331 -> 80 | E21: 80 | F21: =DATA!$FZ$52 -> 0 | H21: 0 | I21: ='Pricing Schedule'!E331 -> 2403 | J21: 192240 | K21: 192240 | L21: 0 | M21: 0 | N21: 0
B22: ='Pricing Schedule'!B332 -> (iv) Personnel - Category D | C22: ='Pricing Schedule'!C332 -> Hour | D22: ='Pricing Schedule'!D332 -> 120 | E22: 120 | F22: =DATA!$GA$52 -> 0 | H22: 0 | I22: ='Pricing Schedule'!E332 -> 1167 | J22: 140040 | K22: 140040 | L22: 0 | M22: 0 | N22: 0
B23: ='Pricing Schedule'!B333 -> (b) Service or advice procured by service provider | C23: ='Pricing Schedule'!C333 -> prime cost (PC) | D23: 1 | E23: 1 | F23: =DATA!$GB$52 -> 0 | G23: ='Pg 4 P Sums'!K362-'C3.8'!F23 -> 0 | H23: 0 | I23: ='Pricing Schedule'!F333 -> 200000 | J23: =D23*I23 -> 200000 | K23: 200000 | L23: 0 | M23: 0 | N23: 0
B24: ='Pricing Schedule'!B334 -> (c) Handling costs i.r.o. pay item 3.8.3(b) | C24: ='Pricing Schedule'!C334 -> percentage (%) | D24: ='Pricing Schedule'!D334 -> 200000 | E24: =K23 -> 200000 | F24: =L23 -> 0 | G24: =M23 -> 0 | H24: 0 | I24: ='Pricing Schedule'!E334 -> 0 | J24: =D24*I24 -> 0 | K24: 0 | L24: 0 | M24: 0 | N24: 0
A25: ='Pricing Schedule'!A335 -> 3.8.4 | B25: ='Pricing Schedule'!B335 -> Training of Targeted Enterprise Understudy | C25: ='Pricing Schedule'!C335 -> provisional sum (PS) | D25: 1 | E25: =D25 -> 1 | F25: =DATA!$GC$52 -> 0 | G25: ='Pg 4 P Sums'!K370-'C3.8'!F25 -> 0 | H25: 0 | I25: ='Pricing Schedule'!F335 -> 200000 | J25: =D25*I25 -> 200000 | K25: 200000 | L25: 0 | M25: 0 | N25: 0
A26: ='Pricing Schedule'!A336 -> 3.8.5 | B26: ='Pricing Schedule'!B336 -> Payment and Monthly Reporting cost | C26: ='Pricing Schedule'!C336 -> month | D26: ='Pricing Schedule'!D336 -> 15 | E26: =D26 -> 15 | F26: =DATA!$GD$52 -> 0 | H26: 0 | I26: ='Pricing Schedule'!E336 -> 0 | J26: =I26*D26 -> 0 | K26: 0 | L26: 0 | M26: 0 | N26: 0
A27: ='Pricing Schedule'!A337 -> 3.8.6 | B27: ='Pricing Schedule'!B337 -> Project Liaison Committee (PLC)
B28: ='Pricing Schedule'!B338 -> (a) Establishment of PLC | C28: ='Pricing Schedule'!C338 -> lump sum (LS) | D28: 1 | E28: 1 | F28: =DATA!$JO$52 -> 0 | H28: =IF((F28+G28)>E28,"ERROR TOO MUCH",(F28+G28)) -> 0 | I28: ='Pricing Schedule'!F338 -> 0 | J28: =D28*I28 -> 0 | K28: =E28*I28 -> 0 | L28: =F28*I28 -> 0 | M28: =G28*I28 -> 0 | N28: =H28*I28 -> 0
B29: ='Pricing Schedule'!B339 -> (b) Liaison/Meetings with the PLC during design phase | C29: ='Pricing Schedule'!C339 -> provisional sum (PS) | D29: 1 | E29: =D29 -> 1 | F29: =DATA!$JP$52 -> 0 | G29: ='Pg 4 P Sums'!K379-'C3.8'!F29 -> 0 | H29: =F29+G29 -> 0 | I29: ='Pricing Schedule'!F339 -> 10000 | J29: 10000 | K29: =E29*I29 -> 10000 | L29: =F29*I29 -> 0 | M29: =G29*I29 -> 0 | N29: =H29*I29 -> 0
B30: ='Pricing Schedule'!B340 -> (c) PLC stipend | C30: ='Pricing Schedule'!C340 -> provisional sum (PS) | D30: 1 | E30: =D30 -> 1 | F30: =DATA!$JQ$52 -> 0 | G30: ='Pg 4 P Sums'!K387-'C3.8'!F30 -> 0 | H30: 0 | I30: ='Pricing Schedule'!F340 -> 60000 | J30: 60000 | K30: 60000 | L30: 0 | M30: 0 | N30: 0
B31: ='Pricing Schedule'!B341 -> (d) Handling cost i.r.o. item 3.8.6 (c ) | C31: ='Pricing Schedule'!C341 -> percentage (%) | D31: ='Pricing Schedule'!D341 -> 60000 | E31: =K30 -> 60000 | F31: =L30 -> 0 | G31: =M30 -> 0 | H31: 0 | I31: ='Pricing Schedule'!E341 -> 0 | J31: 0 | K31: 0 | L31: 0 | M31: 0 | N31: 0
B32: ='Pricing Schedule'!B342 -> (e) Training of PLC members | C32: ='Pricing Schedule'!C342 -> provisional sum (PS) | D32: 1 | E32: =D32 -> 1 | F32: =DATA!$KI$52 -> 0 | G32: ='Pg 4 P Sums'!K395-'C3.8'!F32 -> 0 | H32: =F32+G32 -> 0 | I32: ='Pricing Schedule'!F342 -> 150000 | J32: 150000 | K32: =E32*I32 -> 150000 | L32: =F32*I32 -> 0 | M32: =G32*I32 -> 0 | N32: =H32*I32 -> 0
B33: ='Pricing Schedule'!B343 -> (f) Handling cost i.r.o. item 3.8.6 (e ) | C33: ='Pricing Schedule'!C343 -> percentage (%) | D33: ='Pricing Schedule'!D343 -> 150000 | E33: =K32 -> 150000 | F33: =L32 -> 0 | G33: =M32 -> 0 | H33: 0 | I33: ='Pricing Schedule'!E343 -> 0 | J33: 0 | K33: 0 | L33: 0 | M33: 0 | N33: 0
A34: ='Pricing Schedule'!A344 -> 3.8.7 | B34: ='Pricing Schedule'!B344 -> Market Analysis and Databases
B35: ='Pricing Schedule'!B345 -> (a) Market analysis | C35: ='Pricing Schedule'!C345 -> lump sum (LS) | D35: 1 | E35: 1 | F35: =DATA!$JR$52 -> 0 | H35: =IF((F35+G35)>E35,"ERROR TOO MUCH",(F35+G35)) -> 0 | I35: ='Pricing Schedule'!F345 -> 0 | J35: =D35*I35 -> 0 | K35: =E35*I35 -> 0 | L35: =F35*I35 -> 0 | M35: =G35*I35 -> 0 | N35: =H35*I35 -> 0
B36: ='Pricing Schedule'!B346 -> (b) Establishment and Maintenance of a Targeted Enterprise database | C36: ='Pricing Schedule'!C346 -> month | D36: ='Pricing Schedule'!D346 -> 10 | E36: =D36 -> 10 | F36: =DATA!$JS$52 -> 0 | H36: =IF((F36+G36)>E36,"ERROR TOO MUCH",(F36+G36)) -> 0 | I36: ='Pricing Schedule'!E346 -> 0 | J36: =D36*I36 -> 0 | K36: =E36*I36 -> 0 | L36: =F36*I36 -> 0 | M36: =G36*I36 -> 0 | N36: =H36*I36 -> 0
B37: ='Pricing Schedule'!B347 -> (c) Establishment and Maintenance of a Targeted Labour database | C37: ='Pricing Schedule'!C347 -> month | D37: ='Pricing Schedule'!D347 -> 10 | E37: =D37 -> 10 | F37: =DATA!$KJ$52 -> 0 | H37: =IF((F37+G37)>E37,"ERROR TOO MUCH",(F37+G37)) -> 0 | I37: ='Pricing Schedule'!E347 -> 0 | J37: =D37*I37 -> 0 | K37: =E37*I37 -> 0 | L37: =F37*I37 -> 0 | M37: =G37*I37 -> 0 | N37: =H37*I37 -> 0
A38: ='Pricing Schedule'!A348 -> 3.8.8 | B38: ='Pricing Schedule'!B348 -> Provision of Social Facilitation Services
B39: ='Pricing Schedule'!B349 -> (a) Social Facilitator | C39: ='Pricing Schedule'!C349 -> provisional sum (PS) | D39: 1 | E39: =D39 -> 1 | F39: =DATA!$KK$52 -> 0 | G39: ='Pg 4 P Sums'!K404-'C3.8'!F39 -> 0 | H39: =F39+G39 -> 0 | I39: ='Pricing Schedule'!F349 -> 150000 | J39: =D39*I39 -> 150000 | K39: =E39*I39 -> 150000 | L39: =F39*I39 -> 0 | M39: =G39*I39 -> 0 | N39: =H39*I39 -> 0
B40: ='Pricing Schedule'!B350 -> (b) Mark-up costs i.t.o. sub-item 3.8.8 (a) | C40: ='Pricing Schedule'!C350 -> percentage (%) | D40: ='Pricing Schedule'!D350 -> 150000 | E40: =K39 -> 150000 | F40: =L39 -> 0 | G40: =M39 -> 0 | H40: 0 | I40: ='Pricing Schedule'!E350 -> 0 | J40: 0 | K40: 0 | L40: 0 | M40: 0 | N40: 0
A41: TOTAL CARRIED FORWARD TO PAGE 2 | J41: =SUM(J8:J40) -> 2111440 | K41: =SUM(K8:K40) -> 2111440 | L41: 0 | M41: 0 | N41: 0
A44: INCL. IN CALCULATION FOR CPA | J44: =J10+J11+J12+J13+J16+J19+J20+J21+J22+J26+J28+J35+J36+J37 -> 1141440 | K44: =K10+K11+K12+K13+K16+K19+K20+K21+K22+K26+K28+K35+K36+K37 -> 1141440 | L44: 0 | M44: 0 | N44: 0
A45: EXCL. IN CALCULATION FOR CPA | J45: =+J14+J15+J23+J24+J25+J29+J30+J31+J32+J33+J39+J40 -> 970000 | K45: =+K14+K15+K23+K24+K25+K29+K30+K31+K32+K33+K39+K40 -> 970000 | L45: 0 | M45: 0 | N45: 0
A46: TOTAL CHECK | J46: =SUM(J44:J45) -> 2111440 | K46: =SUM(K44:K45) -> 2111440 | L46: 0 | M46: 0 | N46: 0

Sheet C3.9 (hidden)
A1: SOUTH AFRICAN NATIONAL ROADS AGENCY LIMITED | I1: CLAIM: Consulting Engineers Fees | N1: C3.9
A3: REGION: | B3: ='F1 Forecast Consultant'!C3 -> Western | I3: Account No. | K3: ='F1 Cover'!K8 -> 1
I4: Contract No. | K4: ='F1 Forecast Combined'!E3 -> R.081-010-2023/1F
A5: PRICING SCHEDULE
A6: Item No. | B6: Description | C6: Unit | D6: Sched. Quantity | E6: Fin. Est. Quantity | F6: Prev. Quantity | G6: This month Quantity | H6: Total current Quantity | I6: Rate | J6: Sched. Amount | K6: Fin. Est. Amount | L6: Prev. Amount | M6: This month Amount | N6: Total current Amount (R)
A7: ='Pricing Schedule'!A352 -> 3.9 | B7: ='Pricing Schedule'!B352 -> QUALITY CONTROL: WORKS CONTRACT
A8: ='Pricing Schedule'!A353 -> 3.9.1 | B8: ='Pricing Schedule'!B353 -> Laboratory testing
B9: ='Pricing Schedule'!B354 -> (a) Provision of a fully operational laboratory | C9: ='Pricing Schedule'!C354 -> prime cost (PC) | D9: 1 | E9: =D9 -> 1 | F9: =DATA!$GE$52 -> 0 | G9: ='Pg 4 P Sums'!K426-'C3.9'!F9 -> 0 | H9: =F9+G9 -> 0 | I9: ='Pricing Schedule'!F354 -> 0 | J9: =D9*I9 -> 0 | K9: =E9*I9 -> 0 | L9: =F9*I9 -> 0 | M9: =G9*I9 -> 0 | N9: =H9*I9 -> 0
B10: ='Pricing Schedule'!B355 -> (b) Handling cost i.r.o. sub item 3.9.1(a) | C10: ='Pricing Schedule'!C355 -> percentage (%) | D10: ='Pricing Schedule'!D355 -> 0 | E10: =K9 -> 0 | F10: =L9 -> 0 | G10: 0 | H10: =F10+G10 -> 0 | I10: ='Pricing Schedule'!E355 -> 0 | J10: =D10*I10 -> 0 | K10: =E10*I10 -> 0 | L10: =F10*I10 -> 0 | M10: =G10*I10 -> 0 | N10: =H10*I10 -> 0
B11: ='Pricing Schedule'!B356 -> (c) Off-site materials testing | C11: ='Pricing Schedule'!C356 -> prime cost (PC) | D11: 1 | E11: =D11 -> 1 | F11: =DATA!$GF$52 -> 0 | G11: ='Pg 4 P Sums'!K434-'C3.9'!F11 -> 0 | H11: =F11+G11 -> 0 | I11: ='Pricing Schedule'!F356 -> 750000 | J11: =D11*I11 -> 750000 | K11: =E11*I11 -> 750000 | L11: =F11*I11 -> 0 | M11: =G11*I11 -> 0 | N11: =H11*I11 -> 0
B12: ='Pricing Schedule'!B357 -> (d) Handling cost i.r.o. sub item 3.9.1(c) | C12: ='Pricing Schedule'!C357 -> percentage (%) | D12: ='Pricing Schedule'!D357 -> 750000 | E12: =K11 -> 750000 | F12: =L11 -> 0 | G12: =M11 -> 0 | H12: =F12+G12 -> 0 | I12: ='Pricing Schedule'!E357 -> 0 | J12: =D12*I12 -> 0 | K12: =E12*I12 -> 0 | L12: =F12*I12 -> 0 | M12: =G12*I12 -> 0 | N12: =H12*I12 -> 0
A13: TOTAL CARRIED FORWARD TO PAGE 2 | J13: =SUM(J8:J12) -> 750000 | K13: =SUM(K8:K12) -> 750000 | L13: =SUM(L8:L12) -> 0 | M13: =SUM(M8:M12) -> 0 | N13: =SUM(N8:N12) -> 0
A16: INCL. IN CALCULATION FOR CPA | J16: 0 | K16: 0 | L16: 0 | M16: 0 | N16: 0
A17: EXCL. IN CALCULATION FOR CPA | J17: =J9+J10+J11+J12 -> 750000 | K17: =K9+K10+K11+K12 -> 750000 | L17: 0 | M17: 0 | N17: 0
A18: TOTAL CHECK | J18: =SUM(J16:J17) -> 750000 | K18: =SUM(K16:K17) -> 750000 | L18: 0 | M18: 0 | N18: 0

Sheet C3.10 (hidden)
A1: SOUTH AFRICAN NATIONAL ROADS AGENCY LIMITED | I1: CLAIM: Consulting Engineers Fees | N1: C3.10
A3: REGION: | B3: ='F1 Forecast Consultant'!C3 -> Western | I3: Account No. | K3: ='F1 Cover'!K8 -> 1
I4: Contract No. | K4: ='F1 Forecast Combined'!E3 -> R.081-010-2023/1F
A5: PRICING SCHEDULE
